Workbook

Sheet Capa
A5: ELABORAÇÃO DE 05 (CINCO) FRAMEWORKS NAS ÁREAS DE SANEAMENTO BÁSICO E SEGURANÇA HÍDRICA COM VISTAS A ESTIMULAR A CAPTAÇÃO DE RECURSOS INTERNACIONAIS PARA PROJETOS DE INFRAESTRUTURA NO ÂMBITO DO MDR Subproduto 3.3 – Elaboração do Framework para o Saneamento Básico - Componente/modalidade Resíduos Sólidos Urbanos Maio 2022
A19: Responsável
A20: Gustavo Pimentel | CEO - gustavo.pimentel@nintgroup.com
A22: Equipe
A23: Tatiana Assali | Diretora - tatiana.assali@nintgroup.com
A24: Beatriz Ferrari | Especialista - beatriz.ferrari@nintgroup.com
A25: Guilherme Gonçalves | Especialista - guilhermelimpgas@gmail.com
A26: Anderson Neto | Analista Sênior - anderson.neto@nintgroup.com
A27: Carina Santana | Analista - carina.santana@nintgroup.com
A28: Isadora Fraga | Analista - isadora.fraga@nintgroup.com

Sheet Contracapa
A4: IICA – MDR Frameworks
A6: Contracapa
B9: Identificação
B10: Consultor(a)/Autor(a): KOAN FINANÇAS SUSTENTÁVEIS LTDA
B11: Número do Contrato: 221016
B12: Nome do Projeto: Projeto de Cooperação Técnica (PCT) “Projeto de Desenvolvimento do Setor Água – INTERÁGUAS na Área de Saneamento Básico – Projeto INTERÁGUAS/Saneamento” – PCT BRA/IICA/13/005.
B13: Oficial/Coordenador Técnico Responsável: Gustavo Pimentel
B14: Classificação
B15: Temas Prioritários do IICA
B16: Agronegócio e Comércio | D16: Recursos Naturais e Mudanças Climáticas | E16: X
B17: Desenvolvimento Rural Sustentável | D17: Comunicação e Gestão do Conhecimento
B18: Sanidade agropecuária e qualidade dos alimentos | D18: Infraestrutura no meio Rural
B19: Modernização Institucional | D19: Educação - Formação
B20: Políticas Públicas | C20: X | D20: Financiamento Público
B21: Inovação Tecnológica | D21: Outros:
B23: Palavras-Chave: Saneamento, Gestão de resíduos sólidos urbanos.
B26: Resumo
B27: Título do Produto: PRODUTO 3 - ELABORAÇÃO DE 5 (CINCO) DOCUMENTOS DENOMINADOS FRAMEWORKS
B30: Subtítulo do Produto: Subproduto 3.3 – Elaboração do Framework para o Saneamento - Componente/modalidade Resíduos Sólidos Urbanos
B33: SÍNTESE do Produto: Framework para o setor de saneamento, subsetor de resíduos sólidos urbanos, com o objetivo de implementar a avaliação de projetos de infraestrutura deste subsetor considerando seu alinhamento à Taxonomia ambiental, social e de governança (ASG) desenvolvida no Produto 2.
B39: Área de Abrangência:
B40: País: Brasil
B41: Região: Norte_x_; Sul_x_; Centro-Oeste_x_; Nordeste_x_; Sudeste_x_; Outra(s):
B42: Estado(s):
B43: Cidade(s):

Sheet ODS
A4: IICA – MDR Frameworks - Resíduos Sólidos Urbanos
A6: Taxonomia - Resíduos Sólidos Urbanos
A8: Alinhamento com os ODS
B10: Os Objetivos de Desenvolvimento Sustentável (ODS) da Agenda 2030 foram desenvolvidos pela ONU e lançados em 2015. Estão organizados em 17 objetivos e 169 metas dentro das três dimensões do desenvolvimento sustentável: a econômica, a social e a ambiental. O subsetor de Resíduos Sólidos Urbanos conta com o potencial de contribuir para o atingimento dos objetivos e metas de desenvolvimento sustentável de forma direta e/ou indireta, conforme indicado abaixo:
B16: Objetivos | D16: Metas | F16: Contribuição
D17: 1.4 Até 2030, garantir que todos os homens e mulheres, particularmente os pobres e vulneráveis, tenham direitos iguais aos recursos econômicos, bem como o acesso a serviços básicos, propriedade e controle sobre a terra e outras formas de propriedade, herança, recursos naturais, novas tecnologias apropriadas e serviços financeiros, incluindo microfinanças | F17: Indireta
D22: 1.5 Até 2030, construir a resiliência dos pobres e daqueles em situação de vulnerabilidade, e reduzir a exposição e vulnerabilidade destes a eventos extremos relacionados com o clima e outros choques e desastres econômicos, sociais e ambientais. | F22: Indireta
D26: 3.9 Até 2030, reduzir substancialmente o número de mortes e doenças por produtos químicos perigosos e por contaminação e poluição do ar, da água e do solo. | F26: Direta
D33: 6.3 Até 2030, melhorar a qualidade da água, reduzindo a poluição, eliminando despejo e minimizando a liberação de produtos químicos e materiais perigosos, reduzindo à metade a proporção de águas residuais não tratadas, e aumentando substancialmente a reciclagem e reutilização segura globalmente; | F33: Direta
D38: 6.4 Até 2030, aumentar substancialmente a eficiência do uso da água em todos os setores e assegurar retiradas sustentáveis e o abastecimento de água doce para enfrentar a escassez de água, e reduzir substancialmente o número de pessoas que sofrem com a escassez de água. | F38: Indireta
D42: 7.3 Até 2030, dobrar a taxa global de melhoria da eficiência energética; | F42: Indireta
D44: 7.a reforçar a cooperação internacional para facilitar o acesso a pesquisa e tecnologias de energia limpa, incluindo energias renováveis, eficiência energética (...) e promover o investimento em infraestrutura de energia e em tecnologias de energia limpa; | F44: Indireta
D47: 7.b expandir a infraestrutura e modernizar a tecnologia para o fornecimento de serviços de energia modernos e sustentáveis para todos nos países em desenvolvimento (...). | F47: Indireta
D50: 9.1 Desenvolver infraestrutura de qualidade, confiável, sustentável e resiliente, incluindo infraestrutura regional e transfronteiriça, para apoiar o desenvolvimento econômico e o bem-estar humano, com foco no acesso equitativo e a preços acessíveis para todos; | F50: Direta
D55: 9.4 Até 2030, modernizar a infraestrutura e reabilitar as indústrias para torná-las sustentáveis, com eficiência aumentada no uso de recursos e maior adoção de tecnologias e processos industriais limpos e ambientalmente adequados; com todos os países atuando de acordo com suas respectivas capacidades. | F55: Indireta
D59: 11.a Apoiar relações econômicas, sociais e ambientais positivas entre áreas urbanas, periurbanas e rurais, reforçando o planejamento nacional e regional de desenvolvimento; | F59: Direta
D63: 11.b Até 2020, aumentar substancialmente o número de cidades e assentamentos humanos adotando e implementando políticas e planos integrados para a inclusão, a eficiência dos recursos, mitigação e adaptação às mudanças climáticas, a resiliência a desastres; e desenvolver e implementar, de acordo com o Marco de Sendai para a Redução do Risco de Desastres 2015-2030, o gerenciamento holístico do risco de desastres em todos os níveis; | F63: Direta
D70: 11.1 Até 2030, garantir o acesso de todos a habitação segura, adequada e a preço acessível, e aos serviços básicos e urbanizar as favelas; | F70: Direta
D73: 11.5 Até 2030, reduzir significativamente o número de mortes e o número de pessoas afetadas por catástrofes e diminuir substancialmente as perdas econômicas diretas causadas por elas em relação ao produto interno bruto global, incluindo os desastres relacionados à água, com o foco em proteger os pobres e as pessoas em situação de vulnerabilidade. | F73: Direta
D77: 11.6 Até 2030, reduzir o impacto ambiental negativo per capita das cidades, inclusive prestando especial atenção à qualidade do ar, gestão de resíduos municipais e outros. | F77: Direta
D80: 12.2 Até 2030, alcançar gestão sustentável e uso eficiente dos recursos naturais; | F80: Direta
D82: 12.4 Até 2020, alcançar o manejo ambientalmente adequado dos produtos químicos e de todos os resíduos, ao longo de todo o ciclo de vida destes, de acordo com os marcos internacionalmente acordados, e reduzir significativamente a liberação destes para o ar, água e solo, para minimizar seus impactos negativos sobre a saúde humana e o meio ambiente; | F82: Direta
D87: 12.5 Até 2030, reduzir substancialmente a geração de resíduos por meio da prevenção, redução, reciclagem e reuso. | F87: Direta
D90: 13.b Promover mecanismos para a criação de capacidades para o planejamento relacionado às mudanças climáticas e à gestão eficaz, nos países menos desenvolvidos, inclusive com foco em mulheres, jovens, comunidades locais e marginalizadas; | F90: Indireta
D94: 13.1 Reforçar a resiliência e a capacidade de adaptação a riscos relacionados ao clima e às catástrofes naturais em todos os países; | F94: Indireta

Sheet 0.Metodologia
B4: IICA – MDR Frameworks - Resíduos Sólidos Urbanos
B6: 1. Metodologia
B8: Esta seção apresenta a metodologia de pontuação de ativos e projetos desenvolvida para que as secretarias do Ministério de Desenvolvimento Regional (MDR) avaliem os diferentes níveis de performance ASG de acordo com o atendimento dos critérios da Taxonomia, de forma a se possibilitar a avaliação e comparação padronizada e transparente.
B12: 1.1 Análise setorial
B14: As Taxonomias são divididas em dois relatórios, um para cada um dos dois setores prioritários do projeto, enquanto cada um dos cinco Frameworks subsetoriais apresenta critérios ASG específicos à natureza de suas atividades. Desta forma, a avaliação setorial deverá ser feita para a identificação da Taxonomia e Framework aplicável a cada projeto/ativo.
B25: 1.2 Definição de atividades elegíveis
B27: Definição setorial
B28: O setor de saneamento básico representa o conjunto de serviços públicos, infraestruturas e instalações operacionais de abastecimento de água potável, esgotamento sanitário, limpeza urbana e manejo de resíduos sólidos e drenagem e manejo das águas pluviais urbanas, conforme definido pela Lei de Diretrizes Nacionais para o Saneamento Básico. A Taxonomia ASG define a composição do setor de Saneamento Básico com os subsetores de abastecimento de água, esgotamento sanitário e resíduos sólidos urbanos.
B34: Definição subsetorial
B35: A gestão de resíduos sólidos urbanos contempla a manutenção de infraestruturas e instalações operacionais de coleta, transporte, transbordo, tratamento e destinação final ambientalmente adequada destes. A Política Nacional de Resíduos define como resíduos sólidos urbanos tanto resíduos domiciliares (originários de atividades domésticas em residências urbanas) quanto resíduos de limpeza urbana (originários da varrição, limpeza de logradouros e vias públicas e outros serviços de limpeza urbana).
B43: 1.3 Etapa do ciclo de vida do projeto
M45: Estudos de Estruturação da Concessão: Contempla estudos técnicos, de viabilidade e modelagem econômico-financeira, além de minutas jurídicas de contrato. | O45: Licitação da Concessão: Contempla a preparação e licitação do projeto, incluindo a descrição do ciclo completo de contratação do projeto e atividades envolvidas; e o recebimento, estudo e avaliação de propostas, a fim de outorgar a concessão à empresa ou consórcio vencedor.
B46: De modo a ser aplicável às diversas atuações do ministério, a Taxonomia contempla projetos e ativos em diferentes etapas do seu ciclo de vida. Esse nível de maturidade pode influenciar no escopo dos critérios ASG elegíveis para a avaliação do projeto/ativo, a relevância dos temas ASG e a disponibilidade de informações para a execução da avaliação. Desta forma, a metodologia de pontuação diferenciará a aplicabilidade e relevância dos critérios ASG entre quatro fases do ciclo de vida:
M53: Implementação: Contempla do início das obras com base nos projetos de engenharia, ao progresso da fase de construção e testes para aprovação da obra. | O53: Operação: Após conclusão das obras de implementação, contempla a operação da concessão do serviço, incluindo a administração e manutenção a serem prestadas.
B56: Adicionalmente, para o setor de saneamento, podemos considerar a escala da capacidade de tratamento (porte) dos ativos em questão para determinar a relevância de alguns critérios ASG, conforme sugerido durante as discussões sobre a Taxonomia.
B60: 1.4 Relevância dos temas ASG
B62: Os critérios da Taxonomia são categorizados em três dimensões, Ambiental, Social e Governança, que por sua vez são divididos em treze temas no total, conforme apresentado na Metodologia de categorização. A relevância dos riscos e oportunidades ASG de cada um desses temas varia de acordo com o setor e subsetor do ativo/projeto, assim como a etapa do ciclo de vida pode influenciar na relevância e aplicabilidade destes temas. Para capturar essas especificidades, a metodologia sugere diferentes pesos para cada tema ASG de acordo com cada subsetor, refletindo assim do espectro de nula a alta relevância.
B67: Neste framework são feitas sugestões dos respectivos pesos para cada tema ASG de acordo com seu subsetor e etapa do ciclo de vida do projeto, baseado no mapeamento de riscos e impactos socioambientais desenvolvido na revisão bibliográfica e entrevistas a especialistas feitas no Modelo Lógico Conceitual. Estes pesos buscam refletir como cada subsetor um mesmo tema ASG pode variar de potencial exposição refletida nos respectivos pesos, podendo variar entre baixo (1) e muito relevante (três). Desta forma, critérios de um tema ASG considerado de maior relevância para um subsetor teriam maior relevância na nota que reflete a performance ASG do projeto, em comparação a temas ASG para os quais o subsetor está menos exposto aos riscos e impactos. Esta classificação de pesos permite a comparação entre a exposição de cada subsetor ao risco de impacto negativo de cada tema ASG. Também permite avaliar como os projetos podem ter sua exposição aos riscos de cada tema ASG variadas ao longo do ciclo de vida de um projeto. A tabela abaixo apresenta os pesos dos temas ASG para este Framework de Resíduos Sólidos Urbanos:
D79: Saneamento Básico
D80: Resíduos sólidos urbanos
B81: Dimensão | C81: Temas | D81: Estudos de Estruturação da Concessão | E81: Licitação da Concessão | F81: Implementação | G81: Operação
B82: Ambiental (A) | C82: Adaptação às mudanças climáticas | D82: =_Dados!C18 -> 1 | E82: =_Dados!D18 -> 1 | F82: =_Dados!E18 -> 1 | G82: =_Dados!F18 -> 1
C83: Conservação da biodiversidade | D83: =_Dados!C19 -> 2 | E83: =_Dados!D19 -> 2 | F83: =_Dados!E19 -> 2 | G83: =_Dados!F19 -> 2
C84: Eficiência no uso de recursos | D84: =_Dados!C20 -> 3 | E84: =_Dados!D20 -> 3 | F84: =_Dados!E20 -> 3 | G84: =_Dados!F20 -> 3
C85: Mitigação das mudanças climáticas | D85: =_Dados!C21 -> 2 | E85: =_Dados!D21 -> 2 | F85: =_Dados!E21 -> 2 | G85: =_Dados!F21 -> 2
C86: Prevenção e controle da poluição | D86: =_Dados!C22 -> 2 | E86: =_Dados!D22 -> 2 | F86: =_Dados!E22 -> 2 | G86: =_Dados!F22 -> 2
B87: Social (S) | C87: Aquisição, uso da terra e reassentamento | D87: =_Dados!C23 -> 2 | E87: =_Dados!D23 -> 2 | F87: =_Dados!E23 -> 2 | G87: =_Dados!F23 -> 2
C88: Comunidade afetada e do entorno | D88: =_Dados!C24 -> 2 | E88: =_Dados!D24 -> 2 | F88: =_Dados!E24 -> 2 | G88: =_Dados!F24 -> 2
C89: Redução da pobreza e desenvolvimento local | D89: =_Dados!C25 -> 2 | E89: =_Dados!D25 -> 2 | F89: =_Dados!E25 -> 2 | G89: =_Dados!F25 -> 2
C90: Equidade de gênero e inclusão social | D90: =_Dados!C25 -> 2 | E90: =_Dados!D25 -> 2 | F90: =_Dados!E25 -> 2 | G90: =_Dados!F25 -> 2
C91: Patrimônio cultural | D91: =_Dados!C26 -> 2 | E91: =_Dados!D26 -> 2 | F91: =_Dados!E26 -> 2 | G91: =_Dados!F26 -> 2
C92: Povos indígenas e tradicionais | D92: =_Dados!C27 -> 2 | E92: =_Dados!D27 -> 2 | F92: =_Dados!E27 -> 2 | G92: =_Dados!F27 -> 2
C93: Saúde, segurança e condições de trabalho | D93: =_Dados!C29 -> 1 | E93: =_Dados!D29 -> 1 | F93: =_Dados!E29 -> 1 | G93: =_Dados!F29 -> 1
B94: Governança (G) | C94: Gestão de riscos ASG | D94: =_Dados!C30 -> 2 | E94: =_Dados!D30 -> 2 | F94: =_Dados!E30 -> 2 | G94: =_Dados!F30 -> 2
C95: Governança e transparência | D95: =_Dados!C31 -> 2 | E95: =_Dados!D31 -> 2 | F95: =_Dados!E31 -> 2 | G95: =_Dados!F31 -> 2
B96: Governança (G) - complementar | C96: Governança corporativa institucional | D96: =_Dados!C32 -> 1 | E96: =_Dados!D32 -> 1 | F96: =_Dados!E32 -> 1 | G96: =_Dados!F32 -> 1
B99: 1.5 Classificação ASG
B101: Os critérios de melhores práticas nas dimensões ambientais, sociais e de governança (ASG) pontuados neste Framework são agrupados em treze temas, apresentados na tabela a seguir, de categorização de dimensões e temas ASG. Esses temas foram identificados através do benchmark de taxonomias e critérios usados como referência metodológica.
B105: Dimensão | C105: Temas | D105: Escopo
B106: Ambiental (A) | C106: Eficiência no uso de recursos | D106: Aplicação de técnicas, sistemas e iniciativas para o consumo eficiente e sustentável de energia, água e demais matérias-primas e insumos necessários.
C107: Prevenção e controle da poluição | D107: Evitar ou minimizar a liberação de poluentes, resíduos perigosos e não-perigosos para o ar, terra e água, originados de atividades rotineiras ou acidentais, com potencial impacto local, regional ou além da fronteira, e quando não for possível, destiná-los de forma correta.
C108: Conservação da biodiversidade | D108: Proteção e conservação da biodiversidade e manutenção dos serviços ecossistêmicos, considerando os impactos diretos e indiretos das atividades no ambiente. Busca evitar perda e/ou fragmentação e degradação de habitat, dentre outros.
C109: Mitigação das mudanças climáticas | D109: Utilização de tecnologias e práticas que evitam, reduzem ou sequestram emissões de gases do efeito estufa (GEE), contribuindo para a transição à uma economia de baixo carbono.
C110: Adaptação às mudanças climáticas | D110: Utilização de tecnologias e práticas que contribuem para a resiliência (inclusive socioeconômica) ou adaptação às mudanças climáticas, considerando que não incorram prejuízo aos objetivos ambientais de longo prazo e tenham um impacto ambiental positivo substancial ao longo do ciclo de vida do projeto.
B111: Social (S) | C111: Saúde, segurança e condições de trabalho | D111: Cumprimento das leis trabalhistas e condições de trabalho decentes para os funcionários contratados e terceirizados. Associado ao cumprimento das convenções da Organização Internacional do Trabalho (OIT).
C112: Comunidade afetada e do entorno | D112: Medidas para antecipar e evitar impactos adversos do projeto na saúde e segurança da comunidade e do ecossistema do entorno.
C113: Aquisição, uso da terra e reassentamento | D113: Minimização dos impactos sociais e econômicos adversos da aquisição de terras ou restrições ao uso da terra, fornecimento de compensação pela perda de ativos ao custo de reposição e divulgação de informações e consultas às pessoas afetadas.
C114: Povos indígenas e comunidades tradicionais | D114: Respeito aos direitos humanos, dignidade, aspirações, cultura e meios de subsistência dos povos indígenas, evitando ou minimizando e compensando de forma adequada os impactos causados pelo projeto.
C115: Patrimônio cultural | D115: Proteção do patrimônio cultural dos impactos adversos das atividades, apoio à sua preservação e promoção da repartição equitativa dos benefícios do uso do patrimônio cultural.
C116: Redução da pobreza e desenvolvimento local | D116: Inclusão do caráter social e potencialização do impacto socioeconômico positivo na região onde o projeto é desenvolvido, como geração de emprego e remuneração justa, de modo a contribuir para a redução da pobreza.
C117: Equidade de gênero e inclusão social | D117: Consideração das questões de gênero e inclusão tanto na força de trabalho envolvida no projeto quanto na comunidade do entorno. Aborda a identificação e gestão dos riscos e impactos, o reconhecimento e acessibilidade dos diferentes grupos na consulta à comunidade e a não discriminação e igualdade de oportunidades no trabalho.
B118: Governança (G) | C118: Gestão de riscos ASG | D118: Avaliação do sistema de gestão integrado para identificar e gerir os impactos, riscos e oportunidades ambientais, sociais e de governança (ASG) dos projetos ao longo do seu ciclo de vida.
C119: Governança e transparência | D119: Monitoramento das atividades e divulgação de informações relacionadas ao projeto, acessibilizando as informações à comunidade afetada e engajando as partes interessadas.
B120: Governança (G) - complementar | C120: Governança corporativa institucional | D120: Práticas associadas a governança e ética da organização, avaliando a qualidade das políticas e sistemas anticorrupção e antisuborno, a estrutura e práticas do conselho de administração, o compromisso com o gerenciamento de risco ASG e a responsabilidade pelas partes interessadas.
B123: Dentro de cada um dos treze temas ASG, os critérios são classificados em relação ao seu nível de ambição e complexidade de atendimento, além dos benefícios ASG associados.
B125: A seleção dos critérios que serão considerados nos projetos dos setores-alvo deve ser feita através da identificação dos tópicos mais aderentes a cada projeto. Entretanto, recomenda-se que projetos de mais alto risco sejam analisadas a partir de critérios de maior nível de ambição, em comparação a projetos com risco socioambiental mais baixo. Também deve ser considerada a etapa das fases de estruturação em que o projeto se encontra, uma vez que alguns critérios são específicos a cada fase (como recomendações para os estudos de viabilidade ou para a operação).
B127: Exemplo de ponderação dos critérios ASG por nível de ambição:
B129: Nível dos critérios ASG | C129: Descrição | F129: Peso
B130: Satisfatório | C130: Critérios ASG cuja adoção impõe baixo desafio ao projeto, levando em conta os requisitos de conformidade legal já previstos no contexto brasileiro e os componentes solicitados de forma recorrente por instituições financeiras. | F130: 1
B132: Robusto | C132: Critérios ASG cuja adoção impõe desafios razoáveis ao projeto, indo além dos aspectos demandados pela legislação ambiental ou comumente disseminados no setor. | F132: 1.5
B134: Superior | C134: Critérios ASG cuja adoção confere protagonismo ao projeto, levando em consideração aspectos desafiadores para o contexto brasileiro e os componentes mais rigorosos solicitados por instituições financeiras. | F134: 2
B137: 1.6 Resultado
B139: O resultado da pontuação será apresentado em uma escala de zero a dez, permitindo a comparação da performance ASG entre projetos e ativos. Esta escala é dividida ente quatro níveis de performance, conforme a figura abaixo. Enquanto o primeiro nível representa desalinhamento com a Taxonomia ASG, os três outros níveis representam ativos alinhados às melhores práticas ASG, progressivamente refletindo maior alinhamento com melhores práticas setoriais a nível internacional.
B144: Escala de pontuação dos Frameworks ASG:
B155: Por sem complementar, o resultado da avaliação complementar sobre o tema Governança corporativa institucional não interfere no resultado da performance ASG do projeto avaliado. Com o objetivo de garantir que o sistema de governança corporativa da instituição implementadora possa ser avaliado, não consiste em uma avaliação obrigatória. O resultado também será apresentado em um escala de zero a dez, na própria aba em que se apresentam os critérios do tema, ao final do preenchimento dos mesmos.
B159: 1.7 Fontes de dados
B161: Para o desenvolvimento da avaliação dos ativos e projetos segundo a Taxonomia, devem ser coletadas informações das seguintes fontes:
B162: • Documentos legais (Decretos, Resoluções, Portaria); • Documentos setoriais relacionados à exigências para concessionária (Exemplo: Rodovias : Programa de Exploração da Rodovia – PER). • Bases de dados públicas (Fontes e ferramentas sugeridas ao longo da taxonomia); • Dados públicos da empresa (Relatório de sustentabilidade, Relatório anual, Formulário de referência); • Dados públicos do projeto - Sites de notícias e de órgão público relevantes (Sites dos ministérios e secretarias relevantes); - Documentos administrativos (Edital, Contrato); - Projeto básico e projeto executivo (Cronograma, Estudos técnicos preliminares e Estudo de Viabilidade Econômica) - Estudos de impacto ambientais, sociais e econômicos (EIA/RIMA); - Planos de gestão ambiental ou social (Plano de gestão para conservação da biodiversidade, Plano de preparo e resposta a emergências); - Outorgas, certificados (CERTOH) e autorizações relacionadas cabíveis, licenças ambientais; - Dados sob demanda para implementadores e consultorias envolvidas, quando pertinente;

Sheet 1.Ficha de inscrição
A5: IICA – MDR Frameworks - Resíduos Sólidos Urbanos
A7: 1.1 Identificação do projeto avaliado
B9: Esta ficha de identificação do projeto avaliado é de preenchimento obrigatório. Através dela define-se o escopo do projeto de forma a determinar o escopo da avaliação de sua performance ambiental, social e de governança (ASG), além de fornecer dados sobre a análise para controle do MDR.
B11: Ficha de identificação do projeto avaliado
B13: Nome do projeto
B15: Breve descrição do projeto
B17: Data da avaliação
B19: Responsável pela análise
B21: Contato do responsável
B23: Setor | C23: Saneamento Básico
B25: Subsetor | C25: Resíduos Sólidos Urbanos
B27: Etapas do projeto contempladas (obrigatório)
B29: Estudos de Estruturação da Concessão
B31: Licitação da Concessão
B33: Implementação
B35: Operação
B37: Atividades contempladas no projeto (obrigatório)
B38: Caso alguma (s) das atividades abaixo seja contemplada no escopo do projeto analisado, selecione "Sim". Devem ser respondidos os critérios ASG elegíveis nas respectivas abas de avaliação indicadas. Caso a atividade esteja fora do escopo do projeto analisado, selecione "Não".
B40: Aterros sanitários (3.1)
B42: Coleta e transporte de resíduos sólidos urbanos (3.2)
B44: Tratamento biológico aeróbio (compostagem) (3.3)
B46: Tratamento biológico anaeróbio (biodigestão) (3.4)
B48: Tratamento Mecânico Biológico (3.5)
B50: Valorização de resíduos recicláveis secos (3.6)
B53: Tema complementar
B54: Governança corporativa institucional (opcional)

Sheet 2.Avaliação Geral (obrigatória)
B5: IICA – MDR Frameworks - Resíduos Sólidos Urbanos
B7: 2. Avaliação ambiental, social e de governança (ASG) - Critérios gerais
B9: As perguntas a seguir têm como objetivo avaliar a gestão e performance ambiental, social e de governança (ASG) para ativo/projetos de resíduos sólidos urbanos. Responda o atendimento aos critérios ASG na coluna ''Resposta'. Se possível, preencha também uma explicação adicional sobre como o ativo/projeto atende ou não ao critério ASG, assim como forneça evidências para confirmação.
A11: Nº | B11: Dimensão | C11: Tema | D11: Critério | E11: Nível | F11: aplicab_estágio | G11: Resposta | H11: Comentários | I11: Evidências | J11: peso_setorial_tema | K11: nota_nível | L11: nota_critério | M11: Critério aplicável? | N11: Aplicável ao estágio? | O11: Resultado aplicável? | P11: Nota máxima | Q11: Nota real
A12: 1 | B12: Ambiental | C12: Conservação da biodiversidade | D12: Aponta um plano de gestão para conservação da biodiversidade, incluindo as medidas que serão executadas para evitar e minimizar os impactos à biodiversidade identificados? | E12: Satisfatório | F12: Estudos de Estruturação da Concessão; Licitação da Concessão; Implementação; Operação | J12: =IFERROR( VLOOKUP( C12,_Dados!B:F, MATCH( IF( AND(_Dados!$A$79<>_Dados!$A$59,_Dados!$A$79<>_Dados!$A$60,_Dados!$A$79<>_Dados!$A$61,_Dados!$A$79<>_Dados!$A$62), _Dados!$C$17,_Dados!$A$79), _Dados!B$17:F$17,0), 0), "") -> 3 | K12: =IFERROR(VLOOKUP(E12,_Dados!A:B,2,0),"") -> 1 | L12: =IFERROR(VLOOKUP(G12,_Dados!A:B,2,0),"") ->  | M12: =IF(G12<>"Não se aplica","VERDADEIRO","FALSO") -> VERDADEIRO | N12: =IFERROR(_xlfn.IFS( AND(F12=_Dados!$A$59,_Dados!$A$79<>"",OR(_Dados!$A$79=_Dados!$A$59,_Dados!$A$79=_Dados!$A$63,_Dados!$A$79=_Dados!$A$64,_Dados!$A$79=_Dados!$A$65,_Dados!$A$79=_Dados!$A$69,_Dados!$A$79=_Dados!$A$70,_Dados!$A$79=_Dados!$A$71,_Dados!$A$79=_Dados!$A$73)),"VERDADEIRO", AND(F12=_Dados!$A$60,_Dados!$A$79<>"",OR(_Dados!$A$79=_Dados!$A$60,_Dados!$A$79=_Dados!$A$63,_Dados!$A$79=_Dados!$A$66,_Dados!$A$79=_Dados!$A$67,_Dados!$A$79=_Dados!$A$69,_Dados!$A$79=_Dados!$A$70,_Dados!$A$79=_Dados!$A$72,_Dados!$A$79=_Dados!$A$73)),"VERDADEIRO", AND(F12=_Dados!$A$61,_Dados!$A$79<>"",OR(_Dados!$A$79=_Dados!$A$61,_Dados!$A$79=_Dados!$A$64,_Dados!$A$79=_Dados!$A$66,_Dados!$A$79=_Dados!$A$68,_Dados!$A$79=_Dados!$A$69,_Dados!$A$79=_Dados!$A$71,_Dados!$A$79=_Dados!$A$72,_Dados!$A$79=_Dados!$A$73)),"VERDADEIRO", AND(F12=_Dados!$A$62,_Dados!$A$79<>"",OR(_Dados!$A$79=_Dados!$A$62,_Dados!$A$79=_Dados!$A$65,_Dados!$A$79=_Dados!$A$67,_Dados!$A$79=_Dados!$A$68,_Dados!$A$79=_Dados!$A$70,_Dados!$A$79=_Dados!$A$71,_Dados!$A$79=_Dados!$A$72,_Dados!$A$79=_Dados!$A$73)),"VERDADEIRO", AND(F12=_Dados!$A$63,_Dados!$A$79<>"",AND(_Dados!$A$79<>_Dados!$A$61,_Dados!$A$79<>_Dados!$A$62,_Dados!$A$79<>_Dados!$A$68)),"VERDADEIRO", AND(F12=_Dados!$A$64,_Dados!$A$79<>"",AND(_Dados!$A$79<>_Dados!$A$60,_Dados!$A$79<>_Dados!$A$62,_Dados!$A$79<>_Dados!$A$67)),"VERDADEIRO", AND(F12=_Dados!$A$65,_Dados!$A$79<>"",AND(_Dados!$A$79<>_Dados!$A$60,_Dados!$A$79<>_Dados!$A$61,_Dados!$A$79<>_Dados!$A$66)),"VERDADEIRO", AND(F12=_Dados!$A$66,_Dados!$A$79<>"",AND(_Dados!$A$79<>_Dados!$A$59,_Dados!$A$79<>_Dados!$A$61,_Dados!$A$79<>_Dados!$A$65)),"VERDADEIRO", AND(F12=_Dados!$A$67,_Dados!$A$79<>"",AND(_Dados!$A$79<>_Dados!$A$59,_Dados!$A$79<>_Dados!$A$61,_Dados!$A$79<>_Dados!$A$64)),"VERDADEIRO", AND(F12=_Dados!$A$68,_Dados!$A$79<>"",AND(_Dados!$A$79<>_Dados!$A$59,_Dados!$A$79<>_Dados!$A$60,_Dados!$A$79<>_Dados!$A$63)),"VERDADEIRO", AND(F12=_Dados!$A$69,_Dados!$A$79<>"",_Dados!$A$79<>_Dados!$A$62),"VERDADEIRO", AND(F12=_Dados!$A$70,_Dados!$A$79<>"",_Dados!$A$79<>_Dados!$A$61),"VERDADEIRO", AND(F12=_Dados!$A$71,_Dados!$A$79<>"",_Dados!$A$79<>_Dados!$A$60),"VERDADEIRO", AND(F12=_Dados!$A$72,_Dados!$A$79<>"",_Dados!$A$79<>_Dados!$A$59),"VERDADEIRO", AND(F12=_Dados!$A$73,_Dados!$A$79<>""),"VERDADEIRO"),"FALSO") -> FALSO | O12: =IF(M12&N12="VERDADEIROVERDADEIRO","Sim","Não") -> Não | P12: =IF(O12="Não",0,J12*K12*1) -> 0 | Q12: =IFERROR(IF(O12="Não",0,J12*K12*L12),999) -> 0
A13: 2 | B13: Ambiental | C13: Conservação da biodiversidade | D13: Oferece um plano de gestão para conservação da biodiversidade que inclui as medidas que serão executadas para evitar e minimizar os impactos à biodiversidade identificados? | E13: Satisfatório | F13: Estudos de Estruturação da Concessão; Licitação da Concessão; Implementação; Operação | J13: =IFERROR( VLOOKUP( C13,_Dados!B:F, MATCH( IF( AND(_Dados!$A$79<>_Dados!$A$59,_Dados!$A$79<>_Dados!$A$60,_Dados!$A$79<>_Dados!$A$61,_Dados!$A$79<>_Dados!$A$62), _Dados!$C$17,_Dados!$A$79), _Dados!B$17:F$17,0), 0), "") -> 3 | K13: =IFERROR(VLOOKUP(E13,_Dados!A:B,2,0),"") -> 1 | L13: =IFERROR(VLOOKUP(G13,_Dados!A:B,2,0),"") ->  | M13: VERDADEIRO | N13: =IFERROR(_xlfn.IFS( AND(F13=_Dados!$A$59,_Dados!$A$79<>"",OR(_Dados!$A$79=_Dados!$A$59,_Dados!$A$79=_Dados!$A$63,_Dados!$A$79=_Dados!$A$64,_Dados!$A$79=_Dados!$A$65,_Dados!$A$79=_Dados!$A$69,_Dados!$A$79=_Dados!$A$70,_Dados!$A$79=_Dados!$A$71,_Dados!$A$79=_Dados!$A$73)),"VERDADEIRO", AND(F13=_Dados!$A$60,_Dados!$A$79<>"",OR(_Dados!$A$79=_Dados!$A$60,_Dados!$A$79=_Dados!$A$63,_Dados!$A$79=_Dados!$A$66,_Dados!$A$79=_Dados!$A$67,_Dados!$A$79=_Dados!$A$69,_Dados!$A$79=_Dados!$A$70,_Dados!$A$79=_Dados!$A$72,_Dados!$A$79=_Dados!$A$73)),"VERDADEIRO", AND(F13=_Dados!$A$61,_Dados!$A$79<>"",OR(_Dados!$A$79=_Dados!$A$61,_Dados!$A$79=_Dados!$A$64,_Dados!$A$79=_Dados!$A$66,_Dados!$A$79=_Dados!$A$68,_Dados!$A$79=_Dados!$A$69,_Dados!$A$79=_Dados!$A$71,_Dados!$A$79=_Dados!$A$72,_Dados!$A$79=_Dados!$A$73)),"VERDADEIRO", AND(F13=_Dados!$A$62,_Dados!$A$79<>"",OR(_Dados!$A$79=_Dados!$A$62,_Dados!$A$79=_Dados!$A$65,_Dados!$A$79=_Dados!$A$67,_Dados!$A$79=_Dados!$A$68,_Dados!$A$79=_Dados!$A$70,_Dados!$A$79=_Dados!$A$71,_Dados!$A$79=_Dados!$A$72,_Dados!$A$79=_Dados!$A$73)),"VERDADEIRO", AND(F13=_Dados!$A$63,_Dados!$A$79<>"",AND(_Dados!$A$79<>_Dados!$A$61,_Dados!$A$79<>_Dados!$A$62,_Dados!$A$79<>_Dados!$A$68)),"VERDADEIRO", AND(F13=_Dados!$A$64,_Dados!$A$79<>"",AND(_Dados!$A$79<>_Dados!$A$60,_Dados!$A$79<>_Dados!$A$62,_Dados!$A$79<>_Dados!$A$67)),"VERDADEIRO", AND(F13=_Dados!$A$65,_Dados!$A$79<>"",AND(_Dados!$A$79<>_Dados!$A$60,_Dados!$A$79<>_Dados!$A$61,_Dados!$A$79<>_Dados!$A$66)),"VERDADEIRO", AND(F13=_Dados!$A$66,_Dados!$A$79<>"",AND(_Dados!$A$79<>_Dados!$A$59,_Dados!$A$79<>_Dados!$A$61,_Dados!$A$79<>_Dados!$A$65)),"VERDADEIRO", AND(F13=_Dados!$A$67,_Dados!$A$79<>"",AND(_Dados!$A$79<>_Dados!$A$59,_Dados!$A$79<>_Dados!$A$61,_Dados!$A$79<>_Dados!$A$64)),"VERDADEIRO", AND(F13=_Dados!$A$68,_Dados!$A$79<>"",AND(_Dados!$A$79<>_Dados!$A$59,_Dados!$A$79<>_Dados!$A$60,_Dados!$A$79<>_Dados!$A$63)),"VERDADEIRO", AND(F13=_Dados!$A$69,_Dados!$A$79<>"",_Dados!$A$79<>_Dados!$A$62),"VERDADEIRO", AND(F13=_Dados!$A$70,_Dados!$A$79<>"",_Dados!$A$79<>_Dados!$A$61),"VERDADEIRO", AND(F13=_Dados!$A$71,_Dados!$A$79<>"",_Dados!$A$79<>_Dados!$A$60),"VERDADEIRO", AND(F13=_Dados!$A$72,_Dados!$A$79<>"",_Dados!$A$79<>_Dados!$A$59),"VERDADEIRO", AND(F13=_Dados!$A$73,_Dados!$A$79<>""),"VERDADEIRO"),"FALSO") -> FALSO | O13: Não | P13: 0 | Q13: 0
A14: 3 | B14: Ambiental | C14: Conservação da biodiversidade | D14: Prevê mecanismos para difundir a existência do plano para seus colaboradores, parceiros comerciais e outras partes interessadas? | E14: Satisfatório | F14: Estudos de Estruturação da Concessão; Licitação da Concessão; Implementação; Operação | J14: =IFERROR( VLOOKUP( C14,_Dados!B:F, MATCH( IF( AND(_Dados!$A$79<>_Dados!$A$59,_Dados!$A$79<>_Dados!$A$60,_Dados!$A$79<>_Dados!$A$61,_Dados!$A$79<>_Dados!$A$62), _Dados!$C$17,_Dados!$A$79), _Dados!B$17:F$17,0), 0), "") -> 3 | K14: =IFERROR(VLOOKUP(E14,_Dados!A:B,2,0),"") -> 1 | L14: =IFERROR(VLOOKUP(G14,_Dados!A:B,2,0),"") ->  | M14: VERDADEIRO | N14: =IFERROR(_xlfn.IFS( AND(F14=_Dados!$A$59,_Dados!$A$79<>"",OR(_Dados!$A$79=_Dados!$A$59,_Dados!$A$79=_Dados!$A$63,_Dados!$A$79=_Dados!$A$64,_Dados!$A$79=_Dados!$A$65,_Dados!$A$79=_Dados!$A$69,_Dados!$A$79=_Dados!$A$70,_Dados!$A$79=_Dados!$A$71,_Dados!$A$79=_Dados!$A$73)),"VERDADEIRO", AND(F14=_Dados!$A$60,_Dados!$A$79<>"",OR(_Dados!$A$79=_Dados!$A$60,_Dados!$A$79=_Dados!$A$63,_Dados!$A$79=_Dados!$A$66,_Dados!$A$79=_Dados!$A$67,_Dados!$A$79=_Dados!$A$69,_Dados!$A$79=_Dados!$A$70,_Dados!$A$79=_Dados!$A$72,_Dados!$A$79=_Dados!$A$73)),"VERDADEIRO", AND(F14=_Dados!$A$61,_Dados!$A$79<>"",OR(_Dados!$A$79=_Dados!$A$61,_Dados!$A$79=_Dados!$A$64,_Dados!$A$79=_Dados!$A$66,_Dados!$A$79=_Dados!$A$68,_Dados!$A$79=_Dados!$A$69,_Dados!$A$79=_Dados!$A$71,_Dados!$A$79=_Dados!$A$72,_Dados!$A$79=_Dados!$A$73)),"VERDADEIRO", AND(F14=_Dados!$A$62,_Dados!$A$79<>"",OR(_Dados!$A$79=_Dados!$A$62,_Dados!$A$79=_Dados!$A$65,_Dados!$A$79=_Dados!$A$67,_Dados!$A$79=_Dados!$A$68,_Dados!$A$79=_Dados!$A$70,_Dados!$A$79=_Dados!$A$71,_Dados!$A$79=_Dados!$A$72,_Dados!$A$79=_Dados!$A$73)),"VERDADEIRO", AND(F14=_Dados!$A$63,_Dados!$A$79<>"",AND(_Dados!$A$79<>_Dados!$A$61,_Dados!$A$79<>_Dados!$A$62,_Dados!$A$79<>_Dados!$A$68)),"VERDADEIRO", AND(F14=_Dados!$A$64,_Dados!$A$79<>"",AND(_Dados!$A$79<>_Dados!$A$60,_Dados!$A$79<>_Dados!$A$62,_Dados!$A$79<>_Dados!$A$67)),"VERDADEIRO", AND(F14=_Dados!$A$65,_Dados!$A$79<>"",AND(_Dados!$A$79<>_Dados!$A$60,_Dados!$A$79<>_Dados!$A$61,_Dados!$A$79<>_Dados!$A$66)),"VERDADEIRO", AND(F14=_Dados!$A$66,_Dados!$A$79<>"",AND(_Dados!$A$79<>_Dados!$A$59,_Dados!$A$79<>_Dados!$A$61,_Dados!$A$79<>_Dados!$A$65)),"VERDADEIRO", AND(F14=_Dados!$A$67,_Dados!$A$79<>"",AND(_Dados!$A$79<>_Dados!$A$59,_Dados!$A$79<>_Dados!$A$61,_Dados!$A$79<>_Dados!$A$64)),"VERDADEIRO", AND(F14=_Dados!$A$68,_Dados!$A$79<>"",AND(_Dados!$A$79<>_Dados!$A$59,_Dados!$A$79<>_Dados!$A$60,_Dados!$A$79<>_Dados!$A$63)),"VERDADEIRO", AND(F14=_Dados!$A$69,_Dados!$A$79<>"",_Dados!$A$79<>_Dados!$A$62),"VERDADEIRO", AND(F14=_Dados!$A$70,_Dados!$A$79<>"",_Dados!$A$79<>_Dados!$A$61),"VERDADEIRO", AND(F14=_Dados!$A$71,_Dados!$A$79<>"",_Dados!$A$79<>_Dados!$A$60),"VERDADEIRO", AND(F14=_Dados!$A$72,_Dados!$A$79<>"",_Dados!$A$79<>_Dados!$A$59),"VERDADEIRO", AND(F14=_Dados!$A$73,_Dados!$A$79<>""),"VERDADEIRO"),"FALSO") -> FALSO | O14: Não | P14: =IF(O14="Não",0,J14*K14*1) -> 0 | Q14: =IFERROR(IF(O14="Não",0,J14*K14*L14),999) -> 0
A15: =A14+1.1 -> 4.1 | B15: Ambiental | C15: Conservação da biodiversidade | D15: Realiza um diagnóstico de seus impactos na biodiversidade ao longo do ciclo de vida do ativo, incluindo transformação ou degradação de habitats naturais (áreas formadas por associações de espécies vegetais e/ou animais de origem predominantemente nativa e/ou nas quais a atividade humana não tenha modificado essencialmente as funções ecológicas primárias e a composição das espécies da área) e áreas com alto valor de biodiversidade? | E15: Satisfatório | F15: Estudos de Estruturação da Concessão; Licitação da Concessão; Implementação; Operação | J15: =IFERROR( VLOOKUP( C15,_Dados!B:F, MATCH( IF( AND(_Dados!$A$79<>_Dados!$A$59,_Dados!$A$79<>_Dados!$A$60,_Dados!$A$79<>_Dados!$A$61,_Dados!$A$79<>_Dados!$A$62), _Dados!$C$17,_Dados!$A$79), _Dados!B$17:F$17,0), 0), "") -> 3 | K15: =IFERROR(VLOOKUP(E15,_Dados!A:B,2,0),"") -> 1 | L15: =IFERROR(VLOOKUP(G15,_Dados!A:B,2,0),"") ->  | M15: VERDADEIRO | N15: =IFERROR(_xlfn.IFS( AND(F15=_Dados!$A$59,_Dados!$A$79<>"",OR(_Dados!$A$79=_Dados!$A$59,_Dados!$A$79=_Dados!$A$63,_Dados!$A$79=_Dados!$A$64,_Dados!$A$79=_Dados!$A$65,_Dados!$A$79=_Dados!$A$69,_Dados!$A$79=_Dados!$A$70,_Dados!$A$79=_Dados!$A$71,_Dados!$A$79=_Dados!$A$73)),"VERDADEIRO", AND(F15=_Dados!$A$60,_Dados!$A$79<>"",OR(_Dados!$A$79=_Dados!$A$60,_Dados!$A$79=_Dados!$A$63,_Dados!$A$79=_Dados!$A$66,_Dados!$A$79=_Dados!$A$67,_Dados!$A$79=_Dados!$A$69,_Dados!$A$79=_Dados!$A$70,_Dados!$A$79=_Dados!$A$72,_Dados!$A$79=_Dados!$A$73)),"VERDADEIRO", AND(F15=_Dados!$A$61,_Dados!$A$79<>"",OR(_Dados!$A$79=_Dados!$A$61,_Dados!$A$79=_Dados!$A$64,_Dados!$A$79=_Dados!$A$66,_Dados!$A$79=_Dados!$A$68,_Dados!$A$79=_Dados!$A$69,_Dados!$A$79=_Dados!$A$71,_Dados!$A$79=_Dados!$A$72,_Dados!$A$79=_Dados!$A$73)),"VERDADEIRO", AND(F15=_Dados!$A$62,_Dados!$A$79<>"",OR(_Dados!$A$79=_Dados!$A$62,_Dados!$A$79=_Dados!$A$65,_Dados!$A$79=_Dados!$A$67,_Dados!$A$79=_Dados!$A$68,_Dados!$A$79=_Dados!$A$70,_Dados!$A$79=_Dados!$A$71,_Dados!$A$79=_Dados!$A$72,_Dados!$A$79=_Dados!$A$73)),"VERDADEIRO", AND(F15=_Dados!$A$63,_Dados!$A$79<>"",AND(_Dados!$A$79<>_Dados!$A$61,_Dados!$A$79<>_Dados!$A$62,_Dados!$A$79<>_Dados!$A$68)),"VERDADEIRO", AND(F15=_Dados!$A$64,_Dados!$A$79<>"",AND(_Dados!$A$79<>_Dados!$A$60,_Dados!$A$79<>_Dados!$A$62,_Dados!$A$79<>_Dados!$A$67)),"VERDADEIRO", AND(F15=_Dados!$A$65,_Dados!$A$79<>"",AND(_Dados!$A$79<>_Dados!$A$60,_Dados!$A$79<>_Dados!$A$61,_Dados!$A$79<>_Dados!$A$66)),"VERDADEIRO", AND(F15=_Dados!$A$66,_Dados!$A$79<>"",AND(_Dados!$A$79<>_Dados!$A$59,_Dados!$A$79<>_Dados!$A$61,_Dados!$A$79<>_Dados!$A$65)),"VERDADEIRO", AND(F15=_Dados!$A$67,_Dados!$A$79<>"",AND(_Dados!$A$79<>_Dados!$A$59,_Dados!$A$79<>_Dados!$A$61,_Dados!$A$79<>_Dados!$A$64)),"VERDADEIRO", AND(F15=_Dados!$A$68,_Dados!$A$79<>"",AND(_Dados!$A$79<>_Dados!$A$59,_Dados!$A$79<>_Dados!$A$60,_Dados!$A$79<>_Dados!$A$63)),"VERDADEIRO", AND(F15=_Dados!$A$69,_Dados!$A$79<>"",_Dados!$A$79<>_Dados!$A$62),"VERDADEIRO", AND(F15=_Dados!$A$70,_Dados!$A$79<>"",_Dados!$A$79<>_Dados!$A$61),"VERDADEIRO", AND(F15=_Dados!$A$71,_Dados!$A$79<>"",_Dados!$A$79<>_Dados!$A$60),"VERDADEIRO", AND(F15=_Dados!$A$72,_Dados!$A$79<>"",_Dados!$A$79<>_Dados!$A$59),"VERDADEIRO", AND(F15=_Dados!$A$73,_Dados!$A$79<>""),"VERDADEIRO"),"FALSO") -> FALSO | O15: Não | P15: =IF(O15="Não",0,(0.5*((J15*K15*1)/(J15*K15*1)))) -> 0 | Q15: =_xlfn.IFS( O15="Não",0, G15="",999, G15="Não",0, G15="Sim",(J15*K15*L15)/(J15*K15*L15)*P15 ) -> 0
A16: =A15+0.1 -> 4.2 | B16: Ambiental | C16: Conservação da biodiversidade | D16: O diagnóstico de impactos na biodiversidade inclui: (i) habitat de importância significativa para espécies gravemente ameaçadas e/ou ameaçadas? (ii) habitat propícios para concentração significativas de espécies migratórias e/ou congregantes (iii) avaliação da microbiota/ biota aquática (iv) ecossistemas altamente ameaçados e/ou únicos e/ou áreas associadas a processos evolutivos | E16: Satisfatório | F16: Estudos de Estruturação da Concessão; Licitação da Concessão; Implementação; Operação | J16: =IFERROR( VLOOKUP( C16,_Dados!B:F, MATCH( IF( AND(_Dados!$A$79<>_Dados!$A$59,_Dados!$A$79<>_Dados!$A$60,_Dados!$A$79<>_Dados!$A$61,_Dados!$A$79<>_Dados!$A$62), _Dados!$C$17,_Dados!$A$79), _Dados!B$17:F$17,0), 0), "") -> 3 | K16: =IFERROR(VLOOKUP(E16,_Dados!A:B,2,0),"") -> 1 | L16: =IFERROR(VLOOKUP(G16,_Dados!A:B,2,0),"") ->  | M16: VERDADEIRO | N16: =IFERROR(_xlfn.IFS( AND(F16=_Dados!$A$59,_Dados!$A$79<>"",OR(_Dados!$A$79=_Dados!$A$59,_Dados!$A$79=_Dados!$A$63,_Dados!$A$79=_Dados!$A$64,_Dados!$A$79=_Dados!$A$65,_Dados!$A$79=_Dados!$A$69,_Dados!$A$79=_Dados!$A$70,_Dados!$A$79=_Dados!$A$71,_Dados!$A$79=_Dados!$A$73)),"VERDADEIRO", AND(F16=_Dados!$A$60,_Dados!$A$79<>"",OR(_Dados!$A$79=_Dados!$A$60,_Dados!$A$79=_Dados!$A$63,_Dados!$A$79=_Dados!$A$66,_Dados!$A$79=_Dados!$A$67,_Dados!$A$79=_Dados!$A$69,_Dados!$A$79=_Dados!$A$70,_Dados!$A$79=_Dados!$A$72,_Dados!$A$79=_Dados!$A$73)),"VERDADEIRO", AND(F16=_Dados!$A$61,_Dados!$A$79<>"",OR(_Dados!$A$79=_Dados!$A$61,_Dados!$A$79=_Dados!$A$64,_Dados!$A$79=_Dados!$A$66,_Dados!$A$79=_Dados!$A$68,_Dados!$A$79=_Dados!$A$69,_Dados!$A$79=_Dados!$A$71,_Dados!$A$79=_Dados!$A$72,_Dados!$A$79=_Dados!$A$73)),"VERDADEIRO", AND(F16=_Dados!$A$62,_Dados!$A$79<>"",OR(_Dados!$A$79=_Dados!$A$62,_Dados!$A$79=_Dados!$A$65,_Dados!$A$79=_Dados!$A$67,_Dados!$A$79=_Dados!$A$68,_Dados!$A$79=_Dados!$A$70,_Dados!$A$79=_Dados!$A$71,_Dados!$A$79=_Dados!$A$72,_Dados!$A$79=_Dados!$A$73)),"VERDADEIRO", AND(F16=_Dados!$A$63,_Dados!$A$79<>"",AND(_Dados!$A$79<>_Dados!$A$61,_Dados!$A$79<>_Dados!$A$62,_Dados!$A$79<>_Dados!$A$68)),"VERDADEIRO", AND(F16=_Dados!$A$64,_Dados!$A$79<>"",AND(_Dados!$A$79<>_Dados!$A$60,_Dados!$A$79<>_Dados!$A$62,_Dados!$A$79<>_Dados!$A$67)),"VERDADEIRO", AND(F16=_Dados!$A$65,_Dados!$A$79<>"",AND(_Dados!$A$79<>_Dados!$A$60,_Dados!$A$79<>_Dados!$A$61,_Dados!$A$79<>_Dados!$A$66)),"VERDADEIRO", AND(F16=_Dados!$A$66,_Dados!$A$79<>"",AND(_Dados!$A$79<>_Dados!$A$59,_Dados!$A$79<>_Dados!$A$61,_Dados!$A$79<>_Dados!$A$65)),"VERDADEIRO", AND(F16=_Dados!$A$67,_Dados!$A$79<>"",AND(_Dados!$A$79<>_Dados!$A$59,_Dados!$A$79<>_Dados!$A$61,_Dados!$A$79<>_Dados!$A$64)),"VERDADEIRO", AND(F16=_Dados!$A$68,_Dados!$A$79<>"",AND(_Dados!$A$79<>_Dados!$A$59,_Dados!$A$79<>_Dados!$A$60,_Dados!$A$79<>_Dados!$A$63)),"VERDADEIRO", AND(F16=_Dados!$A$69,_Dados!$A$79<>"",_Dados!$A$79<>_Dados!$A$62),"VERDADEIRO", AND(F16=_Dados!$A$70,_Dados!$A$79<>"",_Dados!$A$79<>_Dados!$A$61),"VERDADEIRO", AND(F16=_Dados!$A$71,_Dados!$A$79<>"",_Dados!$A$79<>_Dados!$A$60),"VERDADEIRO", AND(F16=_Dados!$A$72,_Dados!$A$79<>"",_Dados!$A$79<>_Dados!$A$59),"VERDADEIRO", AND(F16=_Dados!$A$73,_Dados!$A$79<>""),"VERDADEIRO"),"FALSO") -> FALSO | O16: Não | P16: =IF(O16="Não",0,(0.5*((J16*K16*1)/(J16*K16*1)))) -> 0 | Q16: 0
A17: =A14+2 -> 5 | B17: Ambiental | C17: Conservação da biodiversidade | D17: Prevê uma estrutura de governança que defina funções, responsabilidades e autoridade para a gestão do tema de conservação da biodiversidade (apontando os respectivos cargos envolvidos)? | E17: Robusto | F17: Estudos de Estruturação da Concessão; Licitação da Concessão; Implementação; Operação | J17: =IFERROR( VLOOKUP( C17,_Dados!B:F, MATCH( IF( AND(_Dados!$A$79<>_Dados!$A$59,_Dados!$A$79<>_Dados!$A$60,_Dados!$A$79<>_Dados!$A$61,_Dados!$A$79<>_Dados!$A$62), _Dados!$C$17,_Dados!$A$79), _Dados!B$17:F$17,0), 0), "") -> 3 | K17: =IFERROR(VLOOKUP(E17,_Dados!A:B,2,0),"") -> 1.5 | L17: =IFERROR(VLOOKUP(G17,_Dados!A:B,2,0),"") ->  | M17: VERDADEIRO | N17: =IFERROR(_xlfn.IFS( AND(F17=_Dados!$A$59,_Dados!$A$79<>"",OR(_Dados!$A$79=_Dados!$A$59,_Dados!$A$79=_Dados!$A$63,_Dados!$A$79=_Dados!$A$64,_Dados!$A$79=_Dados!$A$65,_Dados!$A$79=_Dados!$A$69,_Dados!$A$79=_Dados!$A$70,_Dados!$A$79=_Dados!$A$71,_Dados!$A$79=_Dados!$A$73)),"VERDADEIRO", AND(F17=_Dados!$A$60,_Dados!$A$79<>"",OR(_Dados!$A$79=_Dados!$A$60,_Dados!$A$79=_Dados!$A$63,_Dados!$A$79=_Dados!$A$66,_Dados!$A$79=_Dados!$A$67,_Dados!$A$79=_Dados!$A$69,_Dados!$A$79=_Dados!$A$70,_Dados!$A$79=_Dados!$A$72,_Dados!$A$79=_Dados!$A$73)),"VERDADEIRO", AND(F17=_Dados!$A$61,_Dados!$A$79<>"",OR(_Dados!$A$79=_Dados!$A$61,_Dados!$A$79=_Dados!$A$64,_Dados!$A$79=_Dados!$A$66,_Dados!$A$79=_Dados!$A$68,_Dados!$A$79=_Dados!$A$69,_Dados!$A$79=_Dados!$A$71,_Dados!$A$79=_Dados!$A$72,_Dados!$A$79=_Dados!$A$73)),"VERDADEIRO", AND(F17=_Dados!$A$62,_Dados!$A$79<>"",OR(_Dados!$A$79=_Dados!$A$62,_Dados!$A$79=_Dados!$A$65,_Dados!$A$79=_Dados!$A$67,_Dados!$A$79=_Dados!$A$68,_Dados!$A$79=_Dados!$A$70,_Dados!$A$79=_Dados!$A$71,_Dados!$A$79=_Dados!$A$72,_Dados!$A$79=_Dados!$A$73)),"VERDADEIRO", AND(F17=_Dados!$A$63,_Dados!$A$79<>"",AND(_Dados!$A$79<>_Dados!$A$61,_Dados!$A$79<>_Dados!$A$62,_Dados!$A$79<>_Dados!$A$68)),"VERDADEIRO", AND(F17=_Dados!$A$64,_Dados!$A$79<>"",AND(_Dados!$A$79<>_Dados!$A$60,_Dados!$A$79<>_Dados!$A$62,_Dados!$A$79<>_Dados!$A$67)),"VERDADEIRO", AND(F17=_Dados!$A$65,_Dados!$A$79<>"",AND(_Dados!$A$79<>_Dados!$A$60,_Dados!$A$79<>_Dados!$A$61,_Dados!$A$79<>_Dados!$A$66)),"VERDADEIRO", AND(F17=_Dados!$A$66,_Dados!$A$79<>"",AND(_Dados!$A$79<>_Dados!$A$59,_Dados!$A$79<>_Dados!$A$61,_Dados!$A$79<>_Dados!$A$65)),"VERDADEIRO", AND(F17=_Dados!$A$67,_Dados!$A$79<>"",AND(_Dados!$A$79<>_Dados!$A$59,_Dados!$A$79<>_Dados!$A$61,_Dados!$A$79<>_Dados!$A$64)),"VERDADEIRO", AND(F17=_Dados!$A$68,_Dados!$A$79<>"",AND(_Dados!$A$79<>_Dados!$A$59,_Dados!$A$79<>_Dados!$A$60,_Dados!$A$79<>_Dados!$A$63)),"VERDADEIRO", AND(F17=_Dados!$A$69,_Dados!$A$79<>"",_Dados!$A$79<>_Dados!$A$62),"VERDADEIRO", AND(F17=_Dados!$A$70,_Dados!$A$79<>"",_Dados!$A$79<>_Dados!$A$61),"VERDADEIRO", AND(F17=_Dados!$A$71,_Dados!$A$79<>"",_Dados!$A$79<>_Dados!$A$60),"VERDADEIRO", AND(F17=_Dados!$A$72,_Dados!$A$79<>"",_Dados!$A$79<>_Dados!$A$59),"VERDADEIRO", AND(F17=_Dados!$A$73,_Dados!$A$79<>""),"VERDADEIRO"),"FALSO") -> FALSO | O17: Não | P17: 0 | Q17: 0
A18: =A17+1 -> 6 | B18: Ambiental | C18: Conservação da biodiversidade | D18: Prevê um mapeamento e valoração dos serviços ecossistêmicos fornecidos pela área afetada e estratégias para manter o valor e a funcionalidade dos serviços prioritários? | E18: Superior | F18: Estudos de Estruturação da Concessão; Licitação da Concessão; Implementação; Operação | J18: =IFERROR( VLOOKUP( C18,_Dados!B:F, MATCH( IF( AND(_Dados!$A$79<>_Dados!$A$59,_Dados!$A$79<>_Dados!$A$60,_Dados!$A$79<>_Dados!$A$61,_Dados!$A$79<>_Dados!$A$62), _Dados!$C$17,_Dados!$A$79), _Dados!B$17:F$17,0), 0), "") -> 3 | K18: =IFERROR(VLOOKUP(E18,_Dados!A:B,2,0),"") -> 2 | L18: =IFERROR(VLOOKUP(G18,_Dados!A:B,2,0),"") ->  | M18: VERDADEIRO | N18: =IFERROR(_xlfn.IFS( AND(F18=_Dados!$A$59,_Dados!$A$79<>"",OR(_Dados!$A$79=_Dados!$A$59,_Dados!$A$79=_Dados!$A$63,_Dados!$A$79=_Dados!$A$64,_Dados!$A$79=_Dados!$A$65,_Dados!$A$79=_Dados!$A$69,_Dados!$A$79=_Dados!$A$70,_Dados!$A$79=_Dados!$A$71,_Dados!$A$79=_Dados!$A$73)),"VERDADEIRO", AND(F18=_Dados!$A$60,_Dados!$A$79<>"",OR(_Dados!$A$79=_Dados!$A$60,_Dados!$A$79=_Dados!$A$63,_Dados!$A$79=_Dados!$A$66,_Dados!$A$79=_Dados!$A$67,_Dados!$A$79=_Dados!$A$69,_Dados!$A$79=_Dados!$A$70,_Dados!$A$79=_Dados!$A$72,_Dados!$A$79=_Dados!$A$73)),"VERDADEIRO", AND(F18=_Dados!$A$61,_Dados!$A$79<>"",OR(_Dados!$A$79=_Dados!$A$61,_Dados!$A$79=_Dados!$A$64,_Dados!$A$79=_Dados!$A$66,_Dados!$A$79=_Dados!$A$68,_Dados!$A$79=_Dados!$A$69,_Dados!$A$79=_Dados!$A$71,_Dados!$A$79=_Dados!$A$72,_Dados!$A$79=_Dados!$A$73)),"VERDADEIRO", AND(F18=_Dados!$A$62,_Dados!$A$79<>"",OR(_Dados!$A$79=_Dados!$A$62,_Dados!$A$79=_Dados!$A$65,_Dados!$A$79=_Dados!$A$67,_Dados!$A$79=_Dados!$A$68,_Dados!$A$79=_Dados!$A$70,_Dados!$A$79=_Dados!$A$71,_Dados!$A$79=_Dados!$A$72,_Dados!$A$79=_Dados!$A$73)),"VERDADEIRO", AND(F18=_Dados!$A$63,_Dados!$A$79<>"",AND(_Dados!$A$79<>_Dados!$A$61,_Dados!$A$79<>_Dados!$A$62,_Dados!$A$79<>_Dados!$A$68)),"VERDADEIRO", AND(F18=_Dados!$A$64,_Dados!$A$79<>"",AND(_Dados!$A$79<>_Dados!$A$60,_Dados!$A$79<>_Dados!$A$62,_Dados!$A$79<>_Dados!$A$67)),"VERDADEIRO", AND(F18=_Dados!$A$65,_Dados!$A$79<>"",AND(_Dados!$A$79<>_Dados!$A$60,_Dados!$A$79<>_Dados!$A$61,_Dados!$A$79<>_Dados!$A$66)),"VERDADEIRO", AND(F18=_Dados!$A$66,_Dados!$A$79<>"",AND(_Dados!$A$79<>_Dados!$A$59,_Dados!$A$79<>_Dados!$A$61,_Dados!$A$79<>_Dados!$A$65)),"VERDADEIRO", AND(F18=_Dados!$A$67,_Dados!$A$79<>"",AND(_Dados!$A$79<>_Dados!$A$59,_Dados!$A$79<>_Dados!$A$61,_Dados!$A$79<>_Dados!$A$64)),"VERDADEIRO", AND(F18=_Dados!$A$68,_Dados!$A$79<>"",AND(_Dados!$A$79<>_Dados!$A$59,_Dados!$A$79<>_Dados!$A$60,_Dados!$A$79<>_Dados!$A$63)),"VERDADEIRO", AND(F18=_Dados!$A$69,_Dados!$A$79<>"",_Dados!$A$79<>_Dados!$A$62),"VERDADEIRO", AND(F18=_Dados!$A$70,_Dados!$A$79<>"",_Dados!$A$79<>_Dados!$A$61),"VERDADEIRO", AND(F18=_Dados!$A$71,_Dados!$A$79<>"",_Dados!$A$79<>_Dados!$A$60),"VERDADEIRO", AND(F18=_Dados!$A$72,_Dados!$A$79<>"",_Dados!$A$79<>_Dados!$A$59),"VERDADEIRO", AND(F18=_Dados!$A$73,_Dados!$A$79<>""),"VERDADEIRO"),"FALSO") -> FALSO | O18: Não | P18: 0 | Q18: 0
A19: =A18+1 -> 7 | B19: Ambiental | C19: Eficiência no uso de recursos | D19: Estima sua eficiência no consumo de água e energia (m³ e kWh pelo volume de efluentes tratados), avaliando sua contribuição para a degradação da qualidade de corpos hídricos superficiais e subterrâneos e estabelece medidas para evitá-la? | E19: Satisfatório | F19: Operação | J19: =IFERROR( VLOOKUP( C19,_Dados!B:F, MATCH( IF( AND(_Dados!$A$79<>_Dados!$A$59,_Dados!$A$79<>_Dados!$A$60,_Dados!$A$79<>_Dados!$A$61,_Dados!$A$79<>_Dados!$A$62), _Dados!$C$17,_Dados!$A$79), _Dados!B$17:F$17,0), 0), "") -> 1 | K19: =IFERROR(VLOOKUP(E19,_Dados!A:B,2,0),"") -> 1 | L19: =IFERROR(VLOOKUP(G19,_Dados!A:B,2,0),"") ->  | M19: VERDADEIRO | N19: =IFERROR(_xlfn.IFS( AND(F19=_Dados!$A$59,_Dados!$A$79<>"",OR(_Dados!$A$79=_Dados!$A$59,_Dados!$A$79=_Dados!$A$63,_Dados!$A$79=_Dados!$A$64,_Dados!$A$79=_Dados!$A$65,_Dados!$A$79=_Dados!$A$69,_Dados!$A$79=_Dados!$A$70,_Dados!$A$79=_Dados!$A$71,_Dados!$A$79=_Dados!$A$73)),"VERDADEIRO", AND(F19=_Dados!$A$60,_Dados!$A$79<>"",OR(_Dados!$A$79=_Dados!$A$60,_Dados!$A$79=_Dados!$A$63,_Dados!$A$79=_Dados!$A$66,_Dados!$A$79=_Dados!$A$67,_Dados!$A$79=_Dados!$A$69,_Dados!$A$79=_Dados!$A$70,_Dados!$A$79=_Dados!$A$72,_Dados!$A$79=_Dados!$A$73)),"VERDADEIRO", AND(F19=_Dados!$A$61,_Dados!$A$79<>"",OR(_Dados!$A$79=_Dados!$A$61,_Dados!$A$79=_Dados!$A$64,_Dados!$A$79=_Dados!$A$66,_Dados!$A$79=_Dados!$A$68,_Dados!$A$79=_Dados!$A$69,_Dados!$A$79=_Dados!$A$71,_Dados!$A$79=_Dados!$A$72,_Dados!$A$79=_Dados!$A$73)),"VERDADEIRO", AND(F19=_Dados!$A$62,_Dados!$A$79<>"",OR(_Dados!$A$79=_Dados!$A$62,_Dados!$A$79=_Dados!$A$65,_Dados!$A$79=_Dados!$A$67,_Dados!$A$79=_Dados!$A$68,_Dados!$A$79=_Dados!$A$70,_Dados!$A$79=_Dados!$A$71,_Dados!$A$79=_Dados!$A$72,_Dados!$A$79=_Dados!$A$73)),"VERDADEIRO", AND(F19=_Dados!$A$63,_Dados!$A$79<>"",AND(_Dados!$A$79<>_Dados!$A$61,_Dados!$A$79<>_Dados!$A$62,_Dados!$A$79<>_Dados!$A$68)),"VERDADEIRO", AND(F19=_Dados!$A$64,_Dados!$A$79<>"",AND(_Dados!$A$79<>_Dados!$A$60,_Dados!$A$79<>_Dados!$A$62,_Dados!$A$79<>_Dados!$A$67)),"VERDADEIRO", AND(F19=_Dados!$A$65,_Dados!$A$79<>"",AND(_Dados!$A$79<>_Dados!$A$60,_Dados!$A$79<>_Dados!$A$61,_Dados!$A$79<>_Dados!$A$66)),"VERDADEIRO", AND(F19=_Dados!$A$66,_Dados!$A$79<>"",AND(_Dados!$A$79<>_Dados!$A$59,_Dados!$A$79<>_Dados!$A$61,_Dados!$A$79<>_Dados!$A$65)),"VERDADEIRO", AND(F19=_Dados!$A$67,_Dados!$A$79<>"",AND(_Dados!$A$79<>_Dados!$A$59,_Dados!$A$79<>_Dados!$A$61,_Dados!$A$79<>_Dados!$A$64)),"VERDADEIRO", AND(F19=_Dados!$A$68,_Dados!$A$79<>"",AND(_Dados!$A$79<>_Dados!$A$59,_Dados!$A$79<>_Dados!$A$60,_Dados!$A$79<>_Dados!$A$63)),"VERDADEIRO", AND(F19=_Dados!$A$69,_Dados!$A$79<>"",_Dados!$A$79<>_Dados!$A$62),"VERDADEIRO", AND(F19=_Dados!$A$70,_Dados!$A$79<>"",_Dados!$A$79<>_Dados!$A$61),"VERDADEIRO", AND(F19=_Dados!$A$71,_Dados!$A$79<>"",_Dados!$A$79<>_Dados!$A$60),"VERDADEIRO", AND(F19=_Dados!$A$72,_Dados!$A$79<>"",_Dados!$A$79<>_Dados!$A$59),"VERDADEIRO", AND(F19=_Dados!$A$73,_Dados!$A$79<>""),"VERDADEIRO"),"FALSO") -> FALSO | O19: Não | P19: 0 | Q19: 0
A20: 8 | B20: Ambiental | C20: Eficiência no uso de recursos | D20: Adota procedimentos que garantam o uso eficiente de energia e de recursos naturais? | E20: Robusto | F20: Implementação; Operação | J20: =IFERROR( VLOOKUP( C20,_Dados!B:F, MATCH( IF( AND(_Dados!$A$79<>_Dados!$A$59,_Dados!$A$79<>_Dados!$A$60,_Dados!$A$79<>_Dados!$A$61,_Dados!$A$79<>_Dados!$A$62), _Dados!$C$17,_Dados!$A$79), _Dados!B$17:F$17,0), 0), "") -> 1 | K20: =IFERROR(VLOOKUP(E20,_Dados!A:B,2,0),"") -> 1.5 | L20: =IFERROR(VLOOKUP(G20,_Dados!A:B,2,0),"") ->  | M20: VERDADEIRO | N20: =IFERROR(_xlfn.IFS( AND(F20=_Dados!$A$59,_Dados!$A$79<>"",OR(_Dados!$A$79=_Dados!$A$59,_Dados!$A$79=_Dados!$A$63,_Dados!$A$79=_Dados!$A$64,_Dados!$A$79=_Dados!$A$65,_Dados!$A$79=_Dados!$A$69,_Dados!$A$79=_Dados!$A$70,_Dados!$A$79=_Dados!$A$71,_Dados!$A$79=_Dados!$A$73)),"VERDADEIRO", AND(F20=_Dados!$A$60,_Dados!$A$79<>"",OR(_Dados!$A$79=_Dados!$A$60,_Dados!$A$79=_Dados!$A$63,_Dados!$A$79=_Dados!$A$66,_Dados!$A$79=_Dados!$A$67,_Dados!$A$79=_Dados!$A$69,_Dados!$A$79=_Dados!$A$70,_Dados!$A$79=_Dados!$A$72,_Dados!$A$79=_Dados!$A$73)),"VERDADEIRO", AND(F20=_Dados!$A$61,_Dados!$A$79<>"",OR(_Dados!$A$79=_Dados!$A$61,_Dados!$A$79=_Dados!$A$64,_Dados!$A$79=_Dados!$A$66,_Dados!$A$79=_Dados!$A$68,_Dados!$A$79=_Dados!$A$69,_Dados!$A$79=_Dados!$A$71,_Dados!$A$79=_Dados!$A$72,_Dados!$A$79=_Dados!$A$73)),"VERDADEIRO", AND(F20=_Dados!$A$62,_Dados!$A$79<>"",OR(_Dados!$A$79=_Dados!$A$62,_Dados!$A$79=_Dados!$A$65,_Dados!$A$79=_Dados!$A$67,_Dados!$A$79=_Dados!$A$68,_Dados!$A$79=_Dados!$A$70,_Dados!$A$79=_Dados!$A$71,_Dados!$A$79=_Dados!$A$72,_Dados!$A$79=_Dados!$A$73)),"VERDADEIRO", AND(F20=_Dados!$A$63,_Dados!$A$79<>"",AND(_Dados!$A$79<>_Dados!$A$61,_Dados!$A$79<>_Dados!$A$62,_Dados!$A$79<>_Dados!$A$68)),"VERDADEIRO", AND(F20=_Dados!$A$64,_Dados!$A$79<>"",AND(_Dados!$A$79<>_Dados!$A$60,_Dados!$A$79<>_Dados!$A$62,_Dados!$A$79<>_Dados!$A$67)),"VERDADEIRO", AND(F20=_Dados!$A$65,_Dados!$A$79<>"",AND(_Dados!$A$79<>_Dados!$A$60,_Dados!$A$79<>_Dados!$A$61,_Dados!$A$79<>_Dados!$A$66)),"VERDADEIRO", AND(F20=_Dados!$A$66,_Dados!$A$79<>"",AND(_Dados!$A$79<>_Dados!$A$59,_Dados!$A$79<>_Dados!$A$61,_Dados!$A$79<>_Dados!$A$65)),"VERDADEIRO", AND(F20=_Dados!$A$67,_Dados!$A$79<>"",AND(_Dados!$A$79<>_Dados!$A$59,_Dados!$A$79<>_Dados!$A$61,_Dados!$A$79<>_Dados!$A$64)),"VERDADEIRO", AND(F20=_Dados!$A$68,_Dados!$A$79<>"",AND(_Dados!$A$79<>_Dados!$A$59,_Dados!$A$79<>_Dados!$A$60,_Dados!$A$79<>_Dados!$A$63)),"VERDADEIRO", AND(F20=_Dados!$A$69,_Dados!$A$79<>"",_Dados!$A$79<>_Dados!$A$62),"VERDADEIRO", AND(F20=_Dados!$A$70,_Dados!$A$79<>"",_Dados!$A$79<>_Dados!$A$61),"VERDADEIRO", AND(F20=_Dados!$A$71,_Dados!$A$79<>"",_Dados!$A$79<>_Dados!$A$60),"VERDADEIRO", AND(F20=_Dados!$A$72,_Dados!$A$79<>"",_Dados!$A$79<>_Dados!$A$59),"VERDADEIRO", AND(F20=_Dados!$A$73,_Dados!$A$79<>""),"VERDADEIRO"),"FALSO") -> FALSO | O20: Não | P20: 0 | Q20: 0
A21: 9 | B21: Ambiental | C21: Eficiência no uso de recursos | D21: Prevê uma estrutura de governança que defina funções, responsabilidades e autoridade para a gestão do tema de eficiência no uso de recursos (apontando os respectivos cargos envolvidos)? | E21: Robusto | F21: Implementação; Operação | J21: =IFERROR( VLOOKUP( C21,_Dados!B:F, MATCH( IF( AND(_Dados!$A$79<>_Dados!$A$59,_Dados!$A$79<>_Dados!$A$60,_Dados!$A$79<>_Dados!$A$61,_Dados!$A$79<>_Dados!$A$62), _Dados!$C$17,_Dados!$A$79), _Dados!B$17:F$17,0), 0), "") -> 1 | K21: =IFERROR(VLOOKUP(E21,_Dados!A:B,2,0),"") -> 1.5 | L21: =IFERROR(VLOOKUP(G21,_Dados!A:B,2,0),"") ->  | M21: VERDADEIRO | N21: =IFERROR(_xlfn.IFS( AND(F21=_Dados!$A$59,_Dados!$A$79<>"",OR(_Dados!$A$79=_Dados!$A$59,_Dados!$A$79=_Dados!$A$63,_Dados!$A$79=_Dados!$A$64,_Dados!$A$79=_Dados!$A$65,_Dados!$A$79=_Dados!$A$69,_Dados!$A$79=_Dados!$A$70,_Dados!$A$79=_Dados!$A$71,_Dados!$A$79=_Dados!$A$73)),"VERDADEIRO", AND(F21=_Dados!$A$60,_Dados!$A$79<>"",OR(_Dados!$A$79=_Dados!$A$60,_Dados!$A$79=_Dados!$A$63,_Dados!$A$79=_Dados!$A$66,_Dados!$A$79=_Dados!$A$67,_Dados!$A$79=_Dados!$A$69,_Dados!$A$79=_Dados!$A$70,_Dados!$A$79=_Dados!$A$72,_Dados!$A$79=_Dados!$A$73)),"VERDADEIRO", AND(F21=_Dados!$A$61,_Dados!$A$79<>"",OR(_Dados!$A$79=_Dados!$A$61,_Dados!$A$79=_Dados!$A$64,_Dados!$A$79=_Dados!$A$66,_Dados!$A$79=_Dados!$A$68,_Dados!$A$79=_Dados!$A$69,_Dados!$A$79=_Dados!$A$71,_Dados!$A$79=_Dados!$A$72,_Dados!$A$79=_Dados!$A$73)),"VERDADEIRO", AND(F21=_Dados!$A$62,_Dados!$A$79<>"",OR(_Dados!$A$79=_Dados!$A$62,_Dados!$A$79=_Dados!$A$65,_Dados!$A$79=_Dados!$A$67,_Dados!$A$79=_Dados!$A$68,_Dados!$A$79=_Dados!$A$70,_Dados!$A$79=_Dados!$A$71,_Dados!$A$79=_Dados!$A$72,_Dados!$A$79=_Dados!$A$73)),"VERDADEIRO", AND(F21=_Dados!$A$63,_Dados!$A$79<>"",AND(_Dados!$A$79<>_Dados!$A$61,_Dados!$A$79<>_Dados!$A$62,_Dados!$A$79<>_Dados!$A$68)),"VERDADEIRO", AND(F21=_Dados!$A$64,_Dados!$A$79<>"",AND(_Dados!$A$79<>_Dados!$A$60,_Dados!$A$79<>_Dados!$A$62,_Dados!$A$79<>_Dados!$A$67)),"VERDADEIRO", AND(F21=_Dados!$A$65,_Dados!$A$79<>"",AND(_Dados!$A$79<>_Dados!$A$60,_Dados!$A$79<>_Dados!$A$61,_Dados!$A$79<>_Dados!$A$66)),"VERDADEIRO", AND(F21=_Dados!$A$66,_Dados!$A$79<>"",AND(_Dados!$A$79<>_Dados!$A$59,_Dados!$A$79<>_Dados!$A$61,_Dados!$A$79<>_Dados!$A$65)),"VERDADEIRO", AND(F21=_Dados!$A$67,_Dados!$A$79<>"",AND(_Dados!$A$79<>_Dados!$A$59,_Dados!$A$79<>_Dados!$A$61,_Dados!$A$79<>_Dados!$A$64)),"VERDADEIRO", AND(F21=_Dados!$A$68,_Dados!$A$79<>"",AND(_Dados!$A$79<>_Dados!$A$59,_Dados!$A$79<>_Dados!$A$60,_Dados!$A$79<>_Dados!$A$63)),"VERDADEIRO", AND(F21=_Dados!$A$69,_Dados!$A$79<>"",_Dados!$A$79<>_Dados!$A$62),"VERDADEIRO", AND(F21=_Dados!$A$70,_Dados!$A$79<>"",_Dados!$A$79<>_Dados!$A$61),"VERDADEIRO", AND(F21=_Dados!$A$71,_Dados!$A$79<>"",_Dados!$A$79<>_Dados!$A$60),"VERDADEIRO", AND(F21=_Dados!$A$72,_Dados!$A$79<>"",_Dados!$A$79<>_Dados!$A$59),"VERDADEIRO", AND(F21=_Dados!$A$73,_Dados!$A$79<>""),"VERDADEIRO"),"FALSO") -> FALSO | O21: Não | P21: 0 | Q21: 0
A22: 10 | B22: Ambiental | C22: Eficiência no uso de recursos | D22: Prevê, durante seu ciclo de vida, a conformidade de seus fornecedores diretos aos critérios de eficiência de recursos apresentados anteriormente, por meio de cláusulas específicas nas contratações, exigência de certificações aplicáveis, suporte aos fornecedores (treinamentos e/ou assistência técnica) e auditorias? | E22: Superior | F22: Estudos de Estruturação da Concessão; Licitação da Concessão; Implementação; Operação | J22: =IFERROR( VLOOKUP( C22,_Dados!B:F, MATCH( IF( AND(_Dados!$A$79<>_Dados!$A$59,_Dados!$A$79<>_Dados!$A$60,_Dados!$A$79<>_Dados!$A$61,_Dados!$A$79<>_Dados!$A$62), _Dados!$C$17,_Dados!$A$79), _Dados!B$17:F$17,0), 0), "") -> 1 | K22: =IFERROR(VLOOKUP(E22,_Dados!A:B,2,0),"") -> 2 | L22: =IFERROR(VLOOKUP(G22,_Dados!A:B,2,0),"") ->  | M22: VERDADEIRO | N22: =IFERROR(_xlfn.IFS( AND(F22=_Dados!$A$59,_Dados!$A$79<>"",OR(_Dados!$A$79=_Dados!$A$59,_Dados!$A$79=_Dados!$A$63,_Dados!$A$79=_Dados!$A$64,_Dados!$A$79=_Dados!$A$65,_Dados!$A$79=_Dados!$A$69,_Dados!$A$79=_Dados!$A$70,_Dados!$A$79=_Dados!$A$71,_Dados!$A$79=_Dados!$A$73)),"VERDADEIRO", AND(F22=_Dados!$A$60,_Dados!$A$79<>"",OR(_Dados!$A$79=_Dados!$A$60,_Dados!$A$79=_Dados!$A$63,_Dados!$A$79=_Dados!$A$66,_Dados!$A$79=_Dados!$A$67,_Dados!$A$79=_Dados!$A$69,_Dados!$A$79=_Dados!$A$70,_Dados!$A$79=_Dados!$A$72,_Dados!$A$79=_Dados!$A$73)),"VERDADEIRO", AND(F22=_Dados!$A$61,_Dados!$A$79<>"",OR(_Dados!$A$79=_Dados!$A$61,_Dados!$A$79=_Dados!$A$64,_Dados!$A$79=_Dados!$A$66,_Dados!$A$79=_Dados!$A$68,_Dados!$A$79=_Dados!$A$69,_Dados!$A$79=_Dados!$A$71,_Dados!$A$79=_Dados!$A$72,_Dados!$A$79=_Dados!$A$73)),"VERDADEIRO", AND(F22=_Dados!$A$62,_Dados!$A$79<>"",OR(_Dados!$A$79=_Dados!$A$62,_Dados!$A$79=_Dados!$A$65,_Dados!$A$79=_Dados!$A$67,_Dados!$A$79=_Dados!$A$68,_Dados!$A$79=_Dados!$A$70,_Dados!$A$79=_Dados!$A$71,_Dados!$A$79=_Dados!$A$72,_Dados!$A$79=_Dados!$A$73)),"VERDADEIRO", AND(F22=_Dados!$A$63,_Dados!$A$79<>"",AND(_Dados!$A$79<>_Dados!$A$61,_Dados!$A$79<>_Dados!$A$62,_Dados!$A$79<>_Dados!$A$68)),"VERDADEIRO", AND(F22=_Dados!$A$64,_Dados!$A$79<>"",AND(_Dados!$A$79<>_Dados!$A$60,_Dados!$A$79<>_Dados!$A$62,_Dados!$A$79<>_Dados!$A$67)),"VERDADEIRO", AND(F22=_Dados!$A$65,_Dados!$A$79<>"",AND(_Dados!$A$79<>_Dados!$A$60,_Dados!$A$79<>_Dados!$A$61,_Dados!$A$79<>_Dados!$A$66)),"VERDADEIRO", AND(F22=_Dados!$A$66,_Dados!$A$79<>"",AND(_Dados!$A$79<>_Dados!$A$59,_Dados!$A$79<>_Dados!$A$61,_Dados!$A$79<>_Dados!$A$65)),"VERDADEIRO", AND(F22=_Dados!$A$67,_Dados!$A$79<>"",AND(_Dados!$A$79<>_Dados!$A$59,_Dados!$A$79<>_Dados!$A$61,_Dados!$A$79<>_Dados!$A$64)),"VERDADEIRO", AND(F22=_Dados!$A$68,_Dados!$A$79<>"",AND(_Dados!$A$79<>_Dados!$A$59,_Dados!$A$79<>_Dados!$A$60,_Dados!$A$79<>_Dados!$A$63)),"VERDADEIRO", AND(F22=_Dados!$A$69,_Dados!$A$79<>"",_Dados!$A$79<>_Dados!$A$62),"VERDADEIRO", AND(F22=_Dados!$A$70,_Dados!$A$79<>"",_Dados!$A$79<>_Dados!$A$61),"VERDADEIRO", AND(F22=_Dados!$A$71,_Dados!$A$79<>"",_Dados!$A$79<>_Dados!$A$60),"VERDADEIRO", AND(F22=_Dados!$A$72,_Dados!$A$79<>"",_Dados!$A$79<>_Dados!$A$59),"VERDADEIRO", AND(F22=_Dados!$A$73,_Dados!$A$79<>""),"VERDADEIRO"),"FALSO") -> FALSO | O22: Não | P22: 0 | Q22: 0
A23: =A22+1 -> 11 | B23: Ambiental | C23: Prevenção e controle da poluição | D23: Divulga, pelo menos anualmente, suas emissões de poluentes atmosféricos perigosos (HAPs)? | E23: Satisfatório | F23: Operação | J23: =IFERROR( VLOOKUP( C23,_Dados!B:F, MATCH( IF( AND(_Dados!$A$79<>_Dados!$A$59,_Dados!$A$79<>_Dados!$A$60,_Dados!$A$79<>_Dados!$A$61,_Dados!$A$79<>_Dados!$A$62), _Dados!$C$17,_Dados!$A$79), _Dados!B$17:F$17,0), 0), "") -> 2 | K23: =IFERROR(VLOOKUP(E23,_Dados!A:B,2,0),"") -> 1 | L23: =IFERROR(VLOOKUP(G23,_Dados!A:B,2,0),"") ->  | M23: VERDADEIRO | N23: =IFERROR(_xlfn.IFS( AND(F23=_Dados!$A$59,_Dados!$A$79<>"",OR(_Dados!$A$79=_Dados!$A$59,_Dados!$A$79=_Dados!$A$63,_Dados!$A$79=_Dados!$A$64,_Dados!$A$79=_Dados!$A$65,_Dados!$A$79=_Dados!$A$69,_Dados!$A$79=_Dados!$A$70,_Dados!$A$79=_Dados!$A$71,_Dados!$A$79=_Dados!$A$73)),"VERDADEIRO", AND(F23=_Dados!$A$60,_Dados!$A$79<>"",OR(_Dados!$A$79=_Dados!$A$60,_Dados!$A$79=_Dados!$A$63,_Dados!$A$79=_Dados!$A$66,_Dados!$A$79=_Dados!$A$67,_Dados!$A$79=_Dados!$A$69,_Dados!$A$79=_Dados!$A$70,_Dados!$A$79=_Dados!$A$72,_Dados!$A$79=_Dados!$A$73)),"VERDADEIRO", AND(F23=_Dados!$A$61,_Dados!$A$79<>"",OR(_Dados!$A$79=_Dados!$A$61,_Dados!$A$79=_Dados!$A$64,_Dados!$A$79=_Dados!$A$66,_Dados!$A$79=_Dados!$A$68,_Dados!$A$79=_Dados!$A$69,_Dados!$A$79=_Dados!$A$71,_Dados!$A$79=_Dados!$A$72,_Dados!$A$79=_Dados!$A$73)),"VERDADEIRO", AND(F23=_Dados!$A$62,_Dados!$A$79<>"",OR(_Dados!$A$79=_Dados!$A$62,_Dados!$A$79=_Dados!$A$65,_Dados!$A$79=_Dados!$A$67,_Dados!$A$79=_Dados!$A$68,_Dados!$A$79=_Dados!$A$70,_Dados!$A$79=_Dados!$A$71,_Dados!$A$79=_Dados!$A$72,_Dados!$A$79=_Dados!$A$73)),"VERDADEIRO", AND(F23=_Dados!$A$63,_Dados!$A$79<>"",AND(_Dados!$A$79<>_Dados!$A$61,_Dados!$A$79<>_Dados!$A$62,_Dados!$A$79<>_Dados!$A$68)),"VERDADEIRO", AND(F23=_Dados!$A$64,_Dados!$A$79<>"",AND(_Dados!$A$79<>_Dados!$A$60,_Dados!$A$79<>_Dados!$A$62,_Dados!$A$79<>_Dados!$A$67)),"VERDADEIRO", AND(F23=_Dados!$A$65,_Dados!$A$79<>"",AND(_Dados!$A$79<>_Dados!$A$60,_Dados!$A$79<>_Dados!$A$61,_Dados!$A$79<>_Dados!$A$66)),"VERDADEIRO", AND(F23=_Dados!$A$66,_Dados!$A$79<>"",AND(_Dados!$A$79<>_Dados!$A$59,_Dados!$A$79<>_Dados!$A$61,_Dados!$A$79<>_Dados!$A$65)),"VERDADEIRO", AND(F23=_Dados!$A$67,_Dados!$A$79<>"",AND(_Dados!$A$79<>_Dados!$A$59,_Dados!$A$79<>_Dados!$A$61,_Dados!$A$79<>_Dados!$A$64)),"VERDADEIRO", AND(F23=_Dados!$A$68,_Dados!$A$79<>"",AND(_Dados!$A$79<>_Dados!$A$59,_Dados!$A$79<>_Dados!$A$60,_Dados!$A$79<>_Dados!$A$63)),"VERDADEIRO", AND(F23=_Dados!$A$69,_Dados!$A$79<>"",_Dados!$A$79<>_Dados!$A$62),"VERDADEIRO", AND(F23=_Dados!$A$70,_Dados!$A$79<>"",_Dados!$A$79<>_Dados!$A$61),"VERDADEIRO", AND(F23=_Dados!$A$71,_Dados!$A$79<>"",_Dados!$A$79<>_Dados!$A$60),"VERDADEIRO", AND(F23=_Dados!$A$72,_Dados!$A$79<>"",_Dados!$A$79<>_Dados!$A$59),"VERDADEIRO", AND(F23=_Dados!$A$73,_Dados!$A$79<>""),"VERDADEIRO"),"FALSO") -> FALSO | O23: =IF(M23&N23="VERDADEIROVERDADEIRO","Sim","Não") -> Não | P23: 0 | Q23: 0
A24: =A23+1 -> 12 | B24: Ambiental | C24: Prevenção e controle da poluição | D24: Divulga, pelo menos anualmente, suas emissões de poluentes atmosféricos, em toneladas métricas por poluente, que forem lançadas na atmosfera? | E24: Satisfatório | F24: Implementação; Operação | J24: =IFERROR( VLOOKUP( C24,_Dados!B:F, MATCH( IF( AND(_Dados!$A$79<>_Dados!$A$59,_Dados!$A$79<>_Dados!$A$60,_Dados!$A$79<>_Dados!$A$61,_Dados!$A$79<>_Dados!$A$62), _Dados!$C$17,_Dados!$A$79), _Dados!B$17:F$17,0), 0), "") -> 2 | K24: =IFERROR(VLOOKUP(E24,_Dados!A:B,2,0),"") -> 1 | L24: =IFERROR(VLOOKUP(G24,_Dados!A:B,2,0),"") ->  | M24: VERDADEIRO | N24: =IFERROR(_xlfn.IFS( AND(F24=_Dados!$A$59,_Dados!$A$79<>"",OR(_Dados!$A$79=_Dados!$A$59,_Dados!$A$79=_Dados!$A$63,_Dados!$A$79=_Dados!$A$64,_Dados!$A$79=_Dados!$A$65,_Dados!$A$79=_Dados!$A$69,_Dados!$A$79=_Dados!$A$70,_Dados!$A$79=_Dados!$A$71,_Dados!$A$79=_Dados!$A$73)),"VERDADEIRO", AND(F24=_Dados!$A$60,_Dados!$A$79<>"",OR(_Dados!$A$79=_Dados!$A$60,_Dados!$A$79=_Dados!$A$63,_Dados!$A$79=_Dados!$A$66,_Dados!$A$79=_Dados!$A$67,_Dados!$A$79=_Dados!$A$69,_Dados!$A$79=_Dados!$A$70,_Dados!$A$79=_Dados!$A$72,_Dados!$A$79=_Dados!$A$73)),"VERDADEIRO", AND(F24=_Dados!$A$61,_Dados!$A$79<>"",OR(_Dados!$A$79=_Dados!$A$61,_Dados!$A$79=_Dados!$A$64,_Dados!$A$79=_Dados!$A$66,_Dados!$A$79=_Dados!$A$68,_Dados!$A$79=_Dados!$A$69,_Dados!$A$79=_Dados!$A$71,_Dados!$A$79=_Dados!$A$72,_Dados!$A$79=_Dados!$A$73)),"VERDADEIRO", AND(F24=_Dados!$A$62,_Dados!$A$79<>"",OR(_Dados!$A$79=_Dados!$A$62,_Dados!$A$79=_Dados!$A$65,_Dados!$A$79=_Dados!$A$67,_Dados!$A$79=_Dados!$A$68,_Dados!$A$79=_Dados!$A$70,_Dados!$A$79=_Dados!$A$71,_Dados!$A$79=_Dados!$A$72,_Dados!$A$79=_Dados!$A$73)),"VERDADEIRO", AND(F24=_Dados!$A$63,_Dados!$A$79<>"",AND(_Dados!$A$79<>_Dados!$A$61,_Dados!$A$79<>_Dados!$A$62,_Dados!$A$79<>_Dados!$A$68)),"VERDADEIRO", AND(F24=_Dados!$A$64,_Dados!$A$79<>"",AND(_Dados!$A$79<>_Dados!$A$60,_Dados!$A$79<>_Dados!$A$62,_Dados!$A$79<>_Dados!$A$67)),"VERDADEIRO", AND(F24=_Dados!$A$65,_Dados!$A$79<>"",AND(_Dados!$A$79<>_Dados!$A$60,_Dados!$A$79<>_Dados!$A$61,_Dados!$A$79<>_Dados!$A$66)),"VERDADEIRO", AND(F24=_Dados!$A$66,_Dados!$A$79<>"",AND(_Dados!$A$79<>_Dados!$A$59,_Dados!$A$79<>_Dados!$A$61,_Dados!$A$79<>_Dados!$A$65)),"VERDADEIRO", AND(F24=_Dados!$A$67,_Dados!$A$79<>"",AND(_Dados!$A$79<>_Dados!$A$59,_Dados!$A$79<>_Dados!$A$61,_Dados!$A$79<>_Dados!$A$64)),"VERDADEIRO", AND(F24=_Dados!$A$68,_Dados!$A$79<>"",AND(_Dados!$A$79<>_Dados!$A$59,_Dados!$A$79<>_Dados!$A$60,_Dados!$A$79<>_Dados!$A$63)),"VERDADEIRO", AND(F24=_Dados!$A$69,_Dados!$A$79<>"",_Dados!$A$79<>_Dados!$A$62),"VERDADEIRO", AND(F24=_Dados!$A$70,_Dados!$A$79<>"",_Dados!$A$79<>_Dados!$A$61),"VERDADEIRO", AND(F24=_Dados!$A$71,_Dados!$A$79<>"",_Dados!$A$79<>_Dados!$A$60),"VERDADEIRO", AND(F24=_Dados!$A$72,_Dados!$A$79<>"",_Dados!$A$79<>_Dados!$A$59),"VERDADEIRO", AND(F24=_Dados!$A$73,_Dados!$A$79<>""),"VERDADEIRO"),"FALSO") -> FALSO | O24: Não | P24: 0 | Q24: 0
A25: 13 | B25: Ambiental | C25: Prevenção e controle da poluição | D25: Estima sua geração de efluentes (m³ por tonelada de produto ou output), avaliando sua contribuição para a degradação da qualidade de corpos hídricos superficiais e subterrâneos e estabelecer medidas para evitá-la? | E25: Satisfatório | F25: Implementação; Operação | J25: =IFERROR( VLOOKUP( C25,_Dados!B:F, MATCH( IF( AND(_Dados!$A$79<>_Dados!$A$59,_Dados!$A$79<>_Dados!$A$60,_Dados!$A$79<>_Dados!$A$61,_Dados!$A$79<>_Dados!$A$62), _Dados!$C$17,_Dados!$A$79), _Dados!B$17:F$17,0), 0), "") -> 2 | K25: =IFERROR(VLOOKUP(E25,_Dados!A:B,2,0),"") -> 1 | L25: =IFERROR(VLOOKUP(G25,_Dados!A:B,2,0),"") ->  | M25: VERDADEIRO | N25: =IFERROR(_xlfn.IFS( AND(F25=_Dados!$A$59,_Dados!$A$79<>"",OR(_Dados!$A$79=_Dados!$A$59,_Dados!$A$79=_Dados!$A$63,_Dados!$A$79=_Dados!$A$64,_Dados!$A$79=_Dados!$A$65,_Dados!$A$79=_Dados!$A$69,_Dados!$A$79=_Dados!$A$70,_Dados!$A$79=_Dados!$A$71,_Dados!$A$79=_Dados!$A$73)),"VERDADEIRO", AND(F25=_Dados!$A$60,_Dados!$A$79<>"",OR(_Dados!$A$79=_Dados!$A$60,_Dados!$A$79=_Dados!$A$63,_Dados!$A$79=_Dados!$A$66,_Dados!$A$79=_Dados!$A$67,_Dados!$A$79=_Dados!$A$69,_Dados!$A$79=_Dados!$A$70,_Dados!$A$79=_Dados!$A$72,_Dados!$A$79=_Dados!$A$73)),"VERDADEIRO", AND(F25=_Dados!$A$61,_Dados!$A$79<>"",OR(_Dados!$A$79=_Dados!$A$61,_Dados!$A$79=_Dados!$A$64,_Dados!$A$79=_Dados!$A$66,_Dados!$A$79=_Dados!$A$68,_Dados!$A$79=_Dados!$A$69,_Dados!$A$79=_Dados!$A$71,_Dados!$A$79=_Dados!$A$72,_Dados!$A$79=_Dados!$A$73)),"VERDADEIRO", AND(F25=_Dados!$A$62,_Dados!$A$79<>"",OR(_Dados!$A$79=_Dados!$A$62,_Dados!$A$79=_Dados!$A$65,_Dados!$A$79=_Dados!$A$67,_Dados!$A$79=_Dados!$A$68,_Dados!$A$79=_Dados!$A$70,_Dados!$A$79=_Dados!$A$71,_Dados!$A$79=_Dados!$A$72,_Dados!$A$79=_Dados!$A$73)),"VERDADEIRO", AND(F25=_Dados!$A$63,_Dados!$A$79<>"",AND(_Dados!$A$79<>_Dados!$A$61,_Dados!$A$79<>_Dados!$A$62,_Dados!$A$79<>_Dados!$A$68)),"VERDADEIRO", AND(F25=_Dados!$A$64,_Dados!$A$79<>"",AND(_Dados!$A$79<>_Dados!$A$60,_Dados!$A$79<>_Dados!$A$62,_Dados!$A$79<>_Dados!$A$67)),"VERDADEIRO", AND(F25=_Dados!$A$65,_Dados!$A$79<>"",AND(_Dados!$A$79<>_Dados!$A$60,_Dados!$A$79<>_Dados!$A$61,_Dados!$A$79<>_Dados!$A$66)),"VERDADEIRO", AND(F25=_Dados!$A$66,_Dados!$A$79<>"",AND(_Dados!$A$79<>_Dados!$A$59,_Dados!$A$79<>_Dados!$A$61,_Dados!$A$79<>_Dados!$A$65)),"VERDADEIRO", AND(F25=_Dados!$A$67,_Dados!$A$79<>"",AND(_Dados!$A$79<>_Dados!$A$59,_Dados!$A$79<>_Dados!$A$61,_Dados!$A$79<>_Dados!$A$64)),"VERDADEIRO", AND(F25=_Dados!$A$68,_Dados!$A$79<>"",AND(_Dados!$A$79<>_Dados!$A$59,_Dados!$A$79<>_Dados!$A$60,_Dados!$A$79<>_Dados!$A$63)),"VERDADEIRO", AND(F25=_Dados!$A$69,_Dados!$A$79<>"",_Dados!$A$79<>_Dados!$A$62),"VERDADEIRO", AND(F25=_Dados!$A$70,_Dados!$A$79<>"",_Dados!$A$79<>_Dados!$A$61),"VERDADEIRO", AND(F25=_Dados!$A$71,_Dados!$A$79<>"",_Dados!$A$79<>_Dados!$A$60),"VERDADEIRO", AND(F25=_Dados!$A$72,_Dados!$A$79<>"",_Dados!$A$79<>_Dados!$A$59),"VERDADEIRO", AND(F25=_Dados!$A$73,_Dados!$A$79<>""),"VERDADEIRO"),"FALSO") -> FALSO | O25: Não | P25: 0 | Q25: 0
A26: 14 | B26: Ambiental | C26: Prevenção e controle da poluição | D26: Estima sua geração de resíduos sólidos (tonelada de resíduos por tonelada de produto ou output) e estabelece medidas para diminuí-la? | E26: Satisfatório | F26: Implementação; Operação | J26: =IFERROR( VLOOKUP( C26,_Dados!B:F, MATCH( IF( AND(_Dados!$A$79<>_Dados!$A$59,_Dados!$A$79<>_Dados!$A$60,_Dados!$A$79<>_Dados!$A$61,_Dados!$A$79<>_Dados!$A$62), _Dados!$C$17,_Dados!$A$79), _Dados!B$17:F$17,0), 0), "") -> 2 | K26: =IFERROR(VLOOKUP(E26,_Dados!A:B,2,0),"") -> 1 | L26: =IFERROR(VLOOKUP(G26,_Dados!A:B,2,0),"") ->  | M26: VERDADEIRO | N26: =IFERROR(_xlfn.IFS( AND(F26=_Dados!$A$59,_Dados!$A$79<>"",OR(_Dados!$A$79=_Dados!$A$59,_Dados!$A$79=_Dados!$A$63,_Dados!$A$79=_Dados!$A$64,_Dados!$A$79=_Dados!$A$65,_Dados!$A$79=_Dados!$A$69,_Dados!$A$79=_Dados!$A$70,_Dados!$A$79=_Dados!$A$71,_Dados!$A$79=_Dados!$A$73)),"VERDADEIRO", AND(F26=_Dados!$A$60,_Dados!$A$79<>"",OR(_Dados!$A$79=_Dados!$A$60,_Dados!$A$79=_Dados!$A$63,_Dados!$A$79=_Dados!$A$66,_Dados!$A$79=_Dados!$A$67,_Dados!$A$79=_Dados!$A$69,_Dados!$A$79=_Dados!$A$70,_Dados!$A$79=_Dados!$A$72,_Dados!$A$79=_Dados!$A$73)),"VERDADEIRO", AND(F26=_Dados!$A$61,_Dados!$A$79<>"",OR(_Dados!$A$79=_Dados!$A$61,_Dados!$A$79=_Dados!$A$64,_Dados!$A$79=_Dados!$A$66,_Dados!$A$79=_Dados!$A$68,_Dados!$A$79=_Dados!$A$69,_Dados!$A$79=_Dados!$A$71,_Dados!$A$79=_Dados!$A$72,_Dados!$A$79=_Dados!$A$73)),"VERDADEIRO", AND(F26=_Dados!$A$62,_Dados!$A$79<>"",OR(_Dados!$A$79=_Dados!$A$62,_Dados!$A$79=_Dados!$A$65,_Dados!$A$79=_Dados!$A$67,_Dados!$A$79=_Dados!$A$68,_Dados!$A$79=_Dados!$A$70,_Dados!$A$79=_Dados!$A$71,_Dados!$A$79=_Dados!$A$72,_Dados!$A$79=_Dados!$A$73)),"VERDADEIRO", AND(F26=_Dados!$A$63,_Dados!$A$79<>"",AND(_Dados!$A$79<>_Dados!$A$61,_Dados!$A$79<>_Dados!$A$62,_Dados!$A$79<>_Dados!$A$68)),"VERDADEIRO", AND(F26=_Dados!$A$64,_Dados!$A$79<>"",AND(_Dados!$A$79<>_Dados!$A$60,_Dados!$A$79<>_Dados!$A$62,_Dados!$A$79<>_Dados!$A$67)),"VERDADEIRO", AND(F26=_Dados!$A$65,_Dados!$A$79<>"",AND(_Dados!$A$79<>_Dados!$A$60,_Dados!$A$79<>_Dados!$A$61,_Dados!$A$79<>_Dados!$A$66)),"VERDADEIRO", AND(F26=_Dados!$A$66,_Dados!$A$79<>"",AND(_Dados!$A$79<>_Dados!$A$59,_Dados!$A$79<>_Dados!$A$61,_Dados!$A$79<>_Dados!$A$65)),"VERDADEIRO", AND(F26=_Dados!$A$67,_Dados!$A$79<>"",AND(_Dados!$A$79<>_Dados!$A$59,_Dados!$A$79<>_Dados!$A$61,_Dados!$A$79<>_Dados!$A$64)),"VERDADEIRO", AND(F26=_Dados!$A$68,_Dados!$A$79<>"",AND(_Dados!$A$79<>_Dados!$A$59,_Dados!$A$79<>_Dados!$A$60,_Dados!$A$79<>_Dados!$A$63)),"VERDADEIRO", AND(F26=_Dados!$A$69,_Dados!$A$79<>"",_Dados!$A$79<>_Dados!$A$62),"VERDADEIRO", AND(F26=_Dados!$A$70,_Dados!$A$79<>"",_Dados!$A$79<>_Dados!$A$61),"VERDADEIRO", AND(F26=_Dados!$A$71,_Dados!$A$79<>"",_Dados!$A$79<>_Dados!$A$60),"VERDADEIRO", AND(F26=_Dados!$A$72,_Dados!$A$79<>"",_Dados!$A$79<>_Dados!$A$59),"VERDADEIRO", AND(F26=_Dados!$A$73,_Dados!$A$79<>""),"VERDADEIRO"),"FALSO") -> FALSO | O26: Não | P26: 0 | Q26: 0
A27: 15 | B27: Ambiental | C27: Prevenção e controle da poluição | D27: Prevê a existência de um sistema de gestão que garanta o tratamento adequado dos resíduos, bem como procedimentos para sua redução e monitoramento ao longo do ciclo de vida do ativo? | E27: Satisfatório | F27: Estudos de Estruturação da Concessão; Licitação da Concessão; Implementação; Operação | J27: =IFERROR( VLOOKUP( C27,_Dados!B:F, MATCH( IF( AND(_Dados!$A$79<>_Dados!$A$59,_Dados!$A$79<>_Dados!$A$60,_Dados!$A$79<>_Dados!$A$61,_Dados!$A$79<>_Dados!$A$62), _Dados!$C$17,_Dados!$A$79), _Dados!B$17:F$17,0), 0), "") -> 2 | K27: =IFERROR(VLOOKUP(E27,_Dados!A:B,2,0),"") -> 1 | L27: =IFERROR(VLOOKUP(G27,_Dados!A:B,2,0),"") ->  | M27: VERDADEIRO | N27: =IFERROR(_xlfn.IFS( AND(F27=_Dados!$A$59,_Dados!$A$79<>"",OR(_Dados!$A$79=_Dados!$A$59,_Dados!$A$79=_Dados!$A$63,_Dados!$A$79=_Dados!$A$64,_Dados!$A$79=_Dados!$A$65,_Dados!$A$79=_Dados!$A$69,_Dados!$A$79=_Dados!$A$70,_Dados!$A$79=_Dados!$A$71,_Dados!$A$79=_Dados!$A$73)),"VERDADEIRO", AND(F27=_Dados!$A$60,_Dados!$A$79<>"",OR(_Dados!$A$79=_Dados!$A$60,_Dados!$A$79=_Dados!$A$63,_Dados!$A$79=_Dados!$A$66,_Dados!$A$79=_Dados!$A$67,_Dados!$A$79=_Dados!$A$69,_Dados!$A$79=_Dados!$A$70,_Dados!$A$79=_Dados!$A$72,_Dados!$A$79=_Dados!$A$73)),"VERDADEIRO", AND(F27=_Dados!$A$61,_Dados!$A$79<>"",OR(_Dados!$A$79=_Dados!$A$61,_Dados!$A$79=_Dados!$A$64,_Dados!$A$79=_Dados!$A$66,_Dados!$A$79=_Dados!$A$68,_Dados!$A$79=_Dados!$A$69,_Dados!$A$79=_Dados!$A$71,_Dados!$A$79=_Dados!$A$72,_Dados!$A$79=_Dados!$A$73)),"VERDADEIRO", AND(F27=_Dados!$A$62,_Dados!$A$79<>"",OR(_Dados!$A$79=_Dados!$A$62,_Dados!$A$79=_Dados!$A$65,_Dados!$A$79=_Dados!$A$67,_Dados!$A$79=_Dados!$A$68,_Dados!$A$79=_Dados!$A$70,_Dados!$A$79=_Dados!$A$71,_Dados!$A$79=_Dados!$A$72,_Dados!$A$79=_Dados!$A$73)),"VERDADEIRO", AND(F27=_Dados!$A$63,_Dados!$A$79<>"",AND(_Dados!$A$79<>_Dados!$A$61,_Dados!$A$79<>_Dados!$A$62,_Dados!$A$79<>_Dados!$A$68)),"VERDADEIRO", AND(F27=_Dados!$A$64,_Dados!$A$79<>"",AND(_Dados!$A$79<>_Dados!$A$60,_Dados!$A$79<>_Dados!$A$62,_Dados!$A$79<>_Dados!$A$67)),"VERDADEIRO", AND(F27=_Dados!$A$65,_Dados!$A$79<>"",AND(_Dados!$A$79<>_Dados!$A$60,_Dados!$A$79<>_Dados!$A$61,_Dados!$A$79<>_Dados!$A$66)),"VERDADEIRO", AND(F27=_Dados!$A$66,_Dados!$A$79<>"",AND(_Dados!$A$79<>_Dados!$A$59,_Dados!$A$79<>_Dados!$A$61,_Dados!$A$79<>_Dados!$A$65)),"VERDADEIRO", AND(F27=_Dados!$A$67,_Dados!$A$79<>"",AND(_Dados!$A$79<>_Dados!$A$59,_Dados!$A$79<>_Dados!$A$61,_Dados!$A$79<>_Dados!$A$64)),"VERDADEIRO", AND(F27=_Dados!$A$68,_Dados!$A$79<>"",AND(_Dados!$A$79<>_Dados!$A$59,_Dados!$A$79<>_Dados!$A$60,_Dados!$A$79<>_Dados!$A$63)),"VERDADEIRO", AND(F27=_Dados!$A$69,_Dados!$A$79<>"",_Dados!$A$79<>_Dados!$A$62),"VERDADEIRO", AND(F27=_Dados!$A$70,_Dados!$A$79<>"",_Dados!$A$79<>_Dados!$A$61),"VERDADEIRO", AND(F27=_Dados!$A$71,_Dados!$A$79<>"",_Dados!$A$79<>_Dados!$A$60),"VERDADEIRO", AND(F27=_Dados!$A$72,_Dados!$A$79<>"",_Dados!$A$79<>_Dados!$A$59),"VERDADEIRO", AND(F27=_Dados!$A$73,_Dados!$A$79<>""),"VERDADEIRO"),"FALSO") -> FALSO | O27: Não | P27: 0 | Q27: 0
A28: 16 | B28: Ambiental | C28: Prevenção e controle da poluição | D28: Estabelece medidas de reciclagem ou reutilização dos resíduos gerados ao longo de seu ciclo de vida, indicando metas? | E28: Robusto | F28: Implementação; Operação | J28: =IFERROR( VLOOKUP( C28,_Dados!B:F, MATCH( IF( AND(_Dados!$A$79<>_Dados!$A$59,_Dados!$A$79<>_Dados!$A$60,_Dados!$A$79<>_Dados!$A$61,_Dados!$A$79<>_Dados!$A$62), _Dados!$C$17,_Dados!$A$79), _Dados!B$17:F$17,0), 0), "") -> 2 | K28: =IFERROR(VLOOKUP(E28,_Dados!A:B,2,0),"") -> 1.5 | L28: =IFERROR(VLOOKUP(G28,_Dados!A:B,2,0),"") ->  | M28: VERDADEIRO | N28: =IFERROR(_xlfn.IFS( AND(F28=_Dados!$A$59,_Dados!$A$79<>"",OR(_Dados!$A$79=_Dados!$A$59,_Dados!$A$79=_Dados!$A$63,_Dados!$A$79=_Dados!$A$64,_Dados!$A$79=_Dados!$A$65,_Dados!$A$79=_Dados!$A$69,_Dados!$A$79=_Dados!$A$70,_Dados!$A$79=_Dados!$A$71,_Dados!$A$79=_Dados!$A$73)),"VERDADEIRO", AND(F28=_Dados!$A$60,_Dados!$A$79<>"",OR(_Dados!$A$79=_Dados!$A$60,_Dados!$A$79=_Dados!$A$63,_Dados!$A$79=_Dados!$A$66,_Dados!$A$79=_Dados!$A$67,_Dados!$A$79=_Dados!$A$69,_Dados!$A$79=_Dados!$A$70,_Dados!$A$79=_Dados!$A$72,_Dados!$A$79=_Dados!$A$73)),"VERDADEIRO", AND(F28=_Dados!$A$61,_Dados!$A$79<>"",OR(_Dados!$A$79=_Dados!$A$61,_Dados!$A$79=_Dados!$A$64,_Dados!$A$79=_Dados!$A$66,_Dados!$A$79=_Dados!$A$68,_Dados!$A$79=_Dados!$A$69,_Dados!$A$79=_Dados!$A$71,_Dados!$A$79=_Dados!$A$72,_Dados!$A$79=_Dados!$A$73)),"VERDADEIRO", AND(F28=_Dados!$A$62,_Dados!$A$79<>"",OR(_Dados!$A$79=_Dados!$A$62,_Dados!$A$79=_Dados!$A$65,_Dados!$A$79=_Dados!$A$67,_Dados!$A$79=_Dados!$A$68,_Dados!$A$79=_Dados!$A$70,_Dados!$A$79=_Dados!$A$71,_Dados!$A$79=_Dados!$A$72,_Dados!$A$79=_Dados!$A$73)),"VERDADEIRO", AND(F28=_Dados!$A$63,_Dados!$A$79<>"",AND(_Dados!$A$79<>_Dados!$A$61,_Dados!$A$79<>_Dados!$A$62,_Dados!$A$79<>_Dados!$A$68)),"VERDADEIRO", AND(F28=_Dados!$A$64,_Dados!$A$79<>"",AND(_Dados!$A$79<>_Dados!$A$60,_Dados!$A$79<>_Dados!$A$62,_Dados!$A$79<>_Dados!$A$67)),"VERDADEIRO", AND(F28=_Dados!$A$65,_Dados!$A$79<>"",AND(_Dados!$A$79<>_Dados!$A$60,_Dados!$A$79<>_Dados!$A$61,_Dados!$A$79<>_Dados!$A$66)),"VERDADEIRO", AND(F28=_Dados!$A$66,_Dados!$A$79<>"",AND(_Dados!$A$79<>_Dados!$A$59,_Dados!$A$79<>_Dados!$A$61,_Dados!$A$79<>_Dados!$A$65)),"VERDADEIRO", AND(F28=_Dados!$A$67,_Dados!$A$79<>"",AND(_Dados!$A$79<>_Dados!$A$59,_Dados!$A$79<>_Dados!$A$61,_Dados!$A$79<>_Dados!$A$64)),"VERDADEIRO", AND(F28=_Dados!$A$68,_Dados!$A$79<>"",AND(_Dados!$A$79<>_Dados!$A$59,_Dados!$A$79<>_Dados!$A$60,_Dados!$A$79<>_Dados!$A$63)),"VERDADEIRO", AND(F28=_Dados!$A$69,_Dados!$A$79<>"",_Dados!$A$79<>_Dados!$A$62),"VERDADEIRO", AND(F28=_Dados!$A$70,_Dados!$A$79<>"",_Dados!$A$79<>_Dados!$A$61),"VERDADEIRO", AND(F28=_Dados!$A$71,_Dados!$A$79<>"",_Dados!$A$79<>_Dados!$A$60),"VERDADEIRO", AND(F28=_Dados!$A$72,_Dados!$A$79<>"",_Dados!$A$79<>_Dados!$A$59),"VERDADEIRO", AND(F28=_Dados!$A$73,_Dados!$A$79<>""),"VERDADEIRO"),"FALSO") -> FALSO | O28: Não | P28: 0 | Q28: 0
A29: 17 | B29: Ambiental | C29: Prevenção e controle da poluição | D29: Estabelece um plano de descomissionamento, identificando possíveis impactos socioambientais negativos e como serão endereçados? | E29: Superior | F29: Estudos de Estruturação da Concessão; Licitação da Concessão; Implementação; Operação | J29: =IFERROR( VLOOKUP( C29,_Dados!B:F, MATCH( IF( AND(_Dados!$A$79<>_Dados!$A$59,_Dados!$A$79<>_Dados!$A$60,_Dados!$A$79<>_Dados!$A$61,_Dados!$A$79<>_Dados!$A$62), _Dados!$C$17,_Dados!$A$79), _Dados!B$17:F$17,0), 0), "") -> 2 | K29: =IFERROR(VLOOKUP(E29,_Dados!A:B,2,0),"") -> 2 | L29: =IFERROR(VLOOKUP(G29,_Dados!A:B,2,0),"") ->  | M29: VERDADEIRO | N29: =IFERROR(_xlfn.IFS( AND(F29=_Dados!$A$59,_Dados!$A$79<>"",OR(_Dados!$A$79=_Dados!$A$59,_Dados!$A$79=_Dados!$A$63,_Dados!$A$79=_Dados!$A$64,_Dados!$A$79=_Dados!$A$65,_Dados!$A$79=_Dados!$A$69,_Dados!$A$79=_Dados!$A$70,_Dados!$A$79=_Dados!$A$71,_Dados!$A$79=_Dados!$A$73)),"VERDADEIRO", AND(F29=_Dados!$A$60,_Dados!$A$79<>"",OR(_Dados!$A$79=_Dados!$A$60,_Dados!$A$79=_Dados!$A$63,_Dados!$A$79=_Dados!$A$66,_Dados!$A$79=_Dados!$A$67,_Dados!$A$79=_Dados!$A$69,_Dados!$A$79=_Dados!$A$70,_Dados!$A$79=_Dados!$A$72,_Dados!$A$79=_Dados!$A$73)),"VERDADEIRO", AND(F29=_Dados!$A$61,_Dados!$A$79<>"",OR(_Dados!$A$79=_Dados!$A$61,_Dados!$A$79=_Dados!$A$64,_Dados!$A$79=_Dados!$A$66,_Dados!$A$79=_Dados!$A$68,_Dados!$A$79=_Dados!$A$69,_Dados!$A$79=_Dados!$A$71,_Dados!$A$79=_Dados!$A$72,_Dados!$A$79=_Dados!$A$73)),"VERDADEIRO", AND(F29=_Dados!$A$62,_Dados!$A$79<>"",OR(_Dados!$A$79=_Dados!$A$62,_Dados!$A$79=_Dados!$A$65,_Dados!$A$79=_Dados!$A$67,_Dados!$A$79=_Dados!$A$68,_Dados!$A$79=_Dados!$A$70,_Dados!$A$79=_Dados!$A$71,_Dados!$A$79=_Dados!$A$72,_Dados!$A$79=_Dados!$A$73)),"VERDADEIRO", AND(F29=_Dados!$A$63,_Dados!$A$79<>"",AND(_Dados!$A$79<>_Dados!$A$61,_Dados!$A$79<>_Dados!$A$62,_Dados!$A$79<>_Dados!$A$68)),"VERDADEIRO", AND(F29=_Dados!$A$64,_Dados!$A$79<>"",AND(_Dados!$A$79<>_Dados!$A$60,_Dados!$A$79<>_Dados!$A$62,_Dados!$A$79<>_Dados!$A$67)),"VERDADEIRO", AND(F29=_Dados!$A$65,_Dados!$A$79<>"",AND(_Dados!$A$79<>_Dados!$A$60,_Dados!$A$79<>_Dados!$A$61,_Dados!$A$79<>_Dados!$A$66)),"VERDADEIRO", AND(F29=_Dados!$A$66,_Dados!$A$79<>"",AND(_Dados!$A$79<>_Dados!$A$59,_Dados!$A$79<>_Dados!$A$61,_Dados!$A$79<>_Dados!$A$65)),"VERDADEIRO", AND(F29=_Dados!$A$67,_Dados!$A$79<>"",AND(_Dados!$A$79<>_Dados!$A$59,_Dados!$A$79<>_Dados!$A$61,_Dados!$A$79<>_Dados!$A$64)),"VERDADEIRO", AND(F29=_Dados!$A$68,_Dados!$A$79<>"",AND(_Dados!$A$79<>_Dados!$A$59,_Dados!$A$79<>_Dados!$A$60,_Dados!$A$79<>_Dados!$A$63)),"VERDADEIRO", AND(F29=_Dados!$A$69,_Dados!$A$79<>"",_Dados!$A$79<>_Dados!$A$62),"VERDADEIRO", AND(F29=_Dados!$A$70,_Dados!$A$79<>"",_Dados!$A$79<>_Dados!$A$61),"VERDADEIRO", AND(F29=_Dados!$A$71,_Dados!$A$79<>"",_Dados!$A$79<>_Dados!$A$60),"VERDADEIRO", AND(F29=_Dados!$A$72,_Dados!$A$79<>"",_Dados!$A$79<>_Dados!$A$59),"VERDADEIRO", AND(F29=_Dados!$A$73,_Dados!$A$79<>""),"VERDADEIRO"),"FALSO") -> FALSO | O29: Não | P29: 0 | Q29: 0
A30: 18 | B30: Ambiental | C30: Prevenção e controle da poluição | D30: Prevê procedimentos de logística reversa, incluindo o recebimento de eventuais resíduos sólidos gerados pelos processos e indicando metas? | E30: Superior | F30: Estudos de Estruturação da Concessão; Licitação da Concessão; Implementação; Operação | J30: =IFERROR( VLOOKUP( C30,_Dados!B:F, MATCH( IF( AND(_Dados!$A$79<>_Dados!$A$59,_Dados!$A$79<>_Dados!$A$60,_Dados!$A$79<>_Dados!$A$61,_Dados!$A$79<>_Dados!$A$62), _Dados!$C$17,_Dados!$A$79), _Dados!B$17:F$17,0), 0), "") -> 2 | K30: =IFERROR(VLOOKUP(E30,_Dados!A:B,2,0),"") -> 2 | L30: =IFERROR(VLOOKUP(G30,_Dados!A:B,2,0),"") ->  | M30: VERDADEIRO | N30: =IFERROR(_xlfn.IFS( AND(F30=_Dados!$A$59,_Dados!$A$79<>"",OR(_Dados!$A$79=_Dados!$A$59,_Dados!$A$79=_Dados!$A$63,_Dados!$A$79=_Dados!$A$64,_Dados!$A$79=_Dados!$A$65,_Dados!$A$79=_Dados!$A$69,_Dados!$A$79=_Dados!$A$70,_Dados!$A$79=_Dados!$A$71,_Dados!$A$79=_Dados!$A$73)),"VERDADEIRO", AND(F30=_Dados!$A$60,_Dados!$A$79<>"",OR(_Dados!$A$79=_Dados!$A$60,_Dados!$A$79=_Dados!$A$63,_Dados!$A$79=_Dados!$A$66,_Dados!$A$79=_Dados!$A$67,_Dados!$A$79=_Dados!$A$69,_Dados!$A$79=_Dados!$A$70,_Dados!$A$79=_Dados!$A$72,_Dados!$A$79=_Dados!$A$73)),"VERDADEIRO", AND(F30=_Dados!$A$61,_Dados!$A$79<>"",OR(_Dados!$A$79=_Dados!$A$61,_Dados!$A$79=_Dados!$A$64,_Dados!$A$79=_Dados!$A$66,_Dados!$A$79=_Dados!$A$68,_Dados!$A$79=_Dados!$A$69,_Dados!$A$79=_Dados!$A$71,_Dados!$A$79=_Dados!$A$72,_Dados!$A$79=_Dados!$A$73)),"VERDADEIRO", AND(F30=_Dados!$A$62,_Dados!$A$79<>"",OR(_Dados!$A$79=_Dados!$A$62,_Dados!$A$79=_Dados!$A$65,_Dados!$A$79=_Dados!$A$67,_Dados!$A$79=_Dados!$A$68,_Dados!$A$79=_Dados!$A$70,_Dados!$A$79=_Dados!$A$71,_Dados!$A$79=_Dados!$A$72,_Dados!$A$79=_Dados!$A$73)),"VERDADEIRO", AND(F30=_Dados!$A$63,_Dados!$A$79<>"",AND(_Dados!$A$79<>_Dados!$A$61,_Dados!$A$79<>_Dados!$A$62,_Dados!$A$79<>_Dados!$A$68)),"VERDADEIRO", AND(F30=_Dados!$A$64,_Dados!$A$79<>"",AND(_Dados!$A$79<>_Dados!$A$60,_Dados!$A$79<>_Dados!$A$62,_Dados!$A$79<>_Dados!$A$67)),"VERDADEIRO", AND(F30=_Dados!$A$65,_Dados!$A$79<>"",AND(_Dados!$A$79<>_Dados!$A$60,_Dados!$A$79<>_Dados!$A$61,_Dados!$A$79<>_Dados!$A$66)),"VERDADEIRO", AND(F30=_Dados!$A$66,_Dados!$A$79<>"",AND(_Dados!$A$79<>_Dados!$A$59,_Dados!$A$79<>_Dados!$A$61,_Dados!$A$79<>_Dados!$A$65)),"VERDADEIRO", AND(F30=_Dados!$A$67,_Dados!$A$79<>"",AND(_Dados!$A$79<>_Dados!$A$59,_Dados!$A$79<>_Dados!$A$61,_Dados!$A$79<>_Dados!$A$64)),"VERDADEIRO", AND(F30=_Dados!$A$68,_Dados!$A$79<>"",AND(_Dados!$A$79<>_Dados!$A$59,_Dados!$A$79<>_Dados!$A$60,_Dados!$A$79<>_Dados!$A$63)),"VERDADEIRO", AND(F30=_Dados!$A$69,_Dados!$A$79<>"",_Dados!$A$79<>_Dados!$A$62),"VERDADEIRO", AND(F30=_Dados!$A$70,_Dados!$A$79<>"",_Dados!$A$79<>_Dados!$A$61),"VERDADEIRO", AND(F30=_Dados!$A$71,_Dados!$A$79<>"",_Dados!$A$79<>_Dados!$A$60),"VERDADEIRO", AND(F30=_Dados!$A$72,_Dados!$A$79<>"",_Dados!$A$79<>_Dados!$A$59),"VERDADEIRO", AND(F30=_Dados!$A$73,_Dados!$A$79<>""),"VERDADEIRO"),"FALSO") -> FALSO | O30: Não | P30: 0 | Q30: 0
A31: 19 | B31: Ambiental | C31: Prevenção e controle da poluição | D31: Prevê, durante seu ciclo de vida, a conformidade de seus fornecedores diretos aos critérios de prevenção e controle da poluição apresentados anteriormente, por meio de cláusulas específicas nas contratações, exigência de certificações aplicáveis, suporte aos fornecedores (treinamentos e/ou assistência técnica) e auditorias? | E31: Superior | F31: Estudos de Estruturação da Concessão; Licitação da Concessão; Implementação; Operação | J31: =IFERROR( VLOOKUP( C31,_Dados!B:F, MATCH( IF( AND(_Dados!$A$79<>_Dados!$A$59,_Dados!$A$79<>_Dados!$A$60,_Dados!$A$79<>_Dados!$A$61,_Dados!$A$79<>_Dados!$A$62), _Dados!$C$17,_Dados!$A$79), _Dados!B$17:F$17,0), 0), "") -> 2 | K31: =IFERROR(VLOOKUP(E31,_Dados!A:B,2,0),"") -> 2 | L31: =IFERROR(VLOOKUP(G31,_Dados!A:B,2,0),"") ->  | M31: VERDADEIRO | N31: =IFERROR(_xlfn.IFS( AND(F31=_Dados!$A$59,_Dados!$A$79<>"",OR(_Dados!$A$79=_Dados!$A$59,_Dados!$A$79=_Dados!$A$63,_Dados!$A$79=_Dados!$A$64,_Dados!$A$79=_Dados!$A$65,_Dados!$A$79=_Dados!$A$69,_Dados!$A$79=_Dados!$A$70,_Dados!$A$79=_Dados!$A$71,_Dados!$A$79=_Dados!$A$73)),"VERDADEIRO", AND(F31=_Dados!$A$60,_Dados!$A$79<>"",OR(_Dados!$A$79=_Dados!$A$60,_Dados!$A$79=_Dados!$A$63,_Dados!$A$79=_Dados!$A$66,_Dados!$A$79=_Dados!$A$67,_Dados!$A$79=_Dados!$A$69,_Dados!$A$79=_Dados!$A$70,_Dados!$A$79=_Dados!$A$72,_Dados!$A$79=_Dados!$A$73)),"VERDADEIRO", AND(F31=_Dados!$A$61,_Dados!$A$79<>"",OR(_Dados!$A$79=_Dados!$A$61,_Dados!$A$79=_Dados!$A$64,_Dados!$A$79=_Dados!$A$66,_Dados!$A$79=_Dados!$A$68,_Dados!$A$79=_Dados!$A$69,_Dados!$A$79=_Dados!$A$71,_Dados!$A$79=_Dados!$A$72,_Dados!$A$79=_Dados!$A$73)),"VERDADEIRO", AND(F31=_Dados!$A$62,_Dados!$A$79<>"",OR(_Dados!$A$79=_Dados!$A$62,_Dados!$A$79=_Dados!$A$65,_Dados!$A$79=_Dados!$A$67,_Dados!$A$79=_Dados!$A$68,_Dados!$A$79=_Dados!$A$70,_Dados!$A$79=_Dados!$A$71,_Dados!$A$79=_Dados!$A$72,_Dados!$A$79=_Dados!$A$73)),"VERDADEIRO", AND(F31=_Dados!$A$63,_Dados!$A$79<>"",AND(_Dados!$A$79<>_Dados!$A$61,_Dados!$A$79<>_Dados!$A$62,_Dados!$A$79<>_Dados!$A$68)),"VERDADEIRO", AND(F31=_Dados!$A$64,_Dados!$A$79<>"",AND(_Dados!$A$79<>_Dados!$A$60,_Dados!$A$79<>_Dados!$A$62,_Dados!$A$79<>_Dados!$A$67)),"VERDADEIRO", AND(F31=_Dados!$A$65,_Dados!$A$79<>"",AND(_Dados!$A$79<>_Dados!$A$60,_Dados!$A$79<>_Dados!$A$61,_Dados!$A$79<>_Dados!$A$66)),"VERDADEIRO", AND(F31=_Dados!$A$66,_Dados!$A$79<>"",AND(_Dados!$A$79<>_Dados!$A$59,_Dados!$A$79<>_Dados!$A$61,_Dados!$A$79<>_Dados!$A$65)),"VERDADEIRO", AND(F31=_Dados!$A$67,_Dados!$A$79<>"",AND(_Dados!$A$79<>_Dados!$A$59,_Dados!$A$79<>_Dados!$A$61,_Dados!$A$79<>_Dados!$A$64)),"VERDADEIRO", AND(F31=_Dados!$A$68,_Dados!$A$79<>"",AND(_Dados!$A$79<>_Dados!$A$59,_Dados!$A$79<>_Dados!$A$60,_Dados!$A$79<>_Dados!$A$63)),"VERDADEIRO", AND(F31=_Dados!$A$69,_Dados!$A$79<>"",_Dados!$A$79<>_Dados!$A$62),"VERDADEIRO", AND(F31=_Dados!$A$70,_Dados!$A$79<>"",_Dados!$A$79<>_Dados!$A$61),"VERDADEIRO", AND(F31=_Dados!$A$71,_Dados!$A$79<>"",_Dados!$A$79<>_Dados!$A$60),"VERDADEIRO", AND(F31=_Dados!$A$72,_Dados!$A$79<>"",_Dados!$A$79<>_Dados!$A$59),"VERDADEIRO", AND(F31=_Dados!$A$73,_Dados!$A$79<>""),"VERDADEIRO"),"FALSO") -> FALSO | O31: Não | P31: 0 | Q31: 0
A32: 20 | B32: Ambiental | C32: Prevenção e controle da poluição | D32: Realiza uma Avaliação do Ciclo de Vida (ACV), seguindo os parâmetros previstos pela ISO 14.040? | E32: Superior | F32: Estudos de Estruturação da Concessão; Licitação da Concessão; Implementação; Operação | J32: =IFERROR( VLOOKUP( C32,_Dados!B:F, MATCH( IF( AND(_Dados!$A$79<>_Dados!$A$59,_Dados!$A$79<>_Dados!$A$60,_Dados!$A$79<>_Dados!$A$61,_Dados!$A$79<>_Dados!$A$62), _Dados!$C$17,_Dados!$A$79), _Dados!B$17:F$17,0), 0), "") -> 2 | K32: =IFERROR(VLOOKUP(E32,_Dados!A:B,2,0),"") -> 2 | L32: =IFERROR(VLOOKUP(G32,_Dados!A:B,2,0),"") ->  | M32: VERDADEIRO | N32: =IFERROR(_xlfn.IFS( AND(F32=_Dados!$A$59,_Dados!$A$79<>"",OR(_Dados!$A$79=_Dados!$A$59,_Dados!$A$79=_Dados!$A$63,_Dados!$A$79=_Dados!$A$64,_Dados!$A$79=_Dados!$A$65,_Dados!$A$79=_Dados!$A$69,_Dados!$A$79=_Dados!$A$70,_Dados!$A$79=_Dados!$A$71,_Dados!$A$79=_Dados!$A$73)),"VERDADEIRO", AND(F32=_Dados!$A$60,_Dados!$A$79<>"",OR(_Dados!$A$79=_Dados!$A$60,_Dados!$A$79=_Dados!$A$63,_Dados!$A$79=_Dados!$A$66,_Dados!$A$79=_Dados!$A$67,_Dados!$A$79=_Dados!$A$69,_Dados!$A$79=_Dados!$A$70,_Dados!$A$79=_Dados!$A$72,_Dados!$A$79=_Dados!$A$73)),"VERDADEIRO", AND(F32=_Dados!$A$61,_Dados!$A$79<>"",OR(_Dados!$A$79=_Dados!$A$61,_Dados!$A$79=_Dados!$A$64,_Dados!$A$79=_Dados!$A$66,_Dados!$A$79=_Dados!$A$68,_Dados!$A$79=_Dados!$A$69,_Dados!$A$79=_Dados!$A$71,_Dados!$A$79=_Dados!$A$72,_Dados!$A$79=_Dados!$A$73)),"VERDADEIRO", AND(F32=_Dados!$A$62,_Dados!$A$79<>"",OR(_Dados!$A$79=_Dados!$A$62,_Dados!$A$79=_Dados!$A$65,_Dados!$A$79=_Dados!$A$67,_Dados!$A$79=_Dados!$A$68,_Dados!$A$79=_Dados!$A$70,_Dados!$A$79=_Dados!$A$71,_Dados!$A$79=_Dados!$A$72,_Dados!$A$79=_Dados!$A$73)),"VERDADEIRO", AND(F32=_Dados!$A$63,_Dados!$A$79<>"",AND(_Dados!$A$79<>_Dados!$A$61,_Dados!$A$79<>_Dados!$A$62,_Dados!$A$79<>_Dados!$A$68)),"VERDADEIRO", AND(F32=_Dados!$A$64,_Dados!$A$79<>"",AND(_Dados!$A$79<>_Dados!$A$60,_Dados!$A$79<>_Dados!$A$62,_Dados!$A$79<>_Dados!$A$67)),"VERDADEIRO", AND(F32=_Dados!$A$65,_Dados!$A$79<>"",AND(_Dados!$A$79<>_Dados!$A$60,_Dados!$A$79<>_Dados!$A$61,_Dados!$A$79<>_Dados!$A$66)),"VERDADEIRO", AND(F32=_Dados!$A$66,_Dados!$A$79<>"",AND(_Dados!$A$79<>_Dados!$A$59,_Dados!$A$79<>_Dados!$A$61,_Dados!$A$79<>_Dados!$A$65)),"VERDADEIRO", AND(F32=_Dados!$A$67,_Dados!$A$79<>"",AND(_Dados!$A$79<>_Dados!$A$59,_Dados!$A$79<>_Dados!$A$61,_Dados!$A$79<>_Dados!$A$64)),"VERDADEIRO", AND(F32=_Dados!$A$68,_Dados!$A$79<>"",AND(_Dados!$A$79<>_Dados!$A$59,_Dados!$A$79<>_Dados!$A$60,_Dados!$A$79<>_Dados!$A$63)),"VERDADEIRO", AND(F32=_Dados!$A$69,_Dados!$A$79<>"",_Dados!$A$79<>_Dados!$A$62),"VERDADEIRO", AND(F32=_Dados!$A$70,_Dados!$A$79<>"",_Dados!$A$79<>_Dados!$A$61),"VERDADEIRO", AND(F32=_Dados!$A$71,_Dados!$A$79<>"",_Dados!$A$79<>_Dados!$A$60),"VERDADEIRO", AND(F32=_Dados!$A$72,_Dados!$A$79<>"",_Dados!$A$79<>_Dados!$A$59),"VERDADEIRO", AND(F32=_Dados!$A$73,_Dados!$A$79<>""),"VERDADEIRO"),"FALSO") -> FALSO | O32: Não | P32: 0 | Q32: 0
A33: 21 | B33: Ambiental | C33: Adaptação às mudanças climáticas | D33: Há garantia de que o projeto/ativo não afeta negativamente os esforços de adaptação às mudanças climáticas de outras pessoas, natureza e bens afetados pelo empreendimento? | E33: Satisfatório | F33: Estudos de Estruturação da Concessão; Licitação da Concessão; Implementação; Operação | J33: =IFERROR( VLOOKUP( C33,_Dados!B:F, MATCH( IF( AND(_Dados!$A$79<>_Dados!$A$59,_Dados!$A$79<>_Dados!$A$60,_Dados!$A$79<>_Dados!$A$61,_Dados!$A$79<>_Dados!$A$62), _Dados!$C$17,_Dados!$A$79), _Dados!B$17:F$17,0), 0), "") -> 2 | K33: =IFERROR(VLOOKUP(E33,_Dados!A:B,2,0),"") -> 1 | L33: =IFERROR(VLOOKUP(G33,_Dados!A:B,2,0),"") ->  | M33: VERDADEIRO | N33: =IFERROR(_xlfn.IFS( AND(F33=_Dados!$A$59,_Dados!$A$79<>"",OR(_Dados!$A$79=_Dados!$A$59,_Dados!$A$79=_Dados!$A$63,_Dados!$A$79=_Dados!$A$64,_Dados!$A$79=_Dados!$A$65,_Dados!$A$79=_Dados!$A$69,_Dados!$A$79=_Dados!$A$70,_Dados!$A$79=_Dados!$A$71,_Dados!$A$79=_Dados!$A$73)),"VERDADEIRO", AND(F33=_Dados!$A$60,_Dados!$A$79<>"",OR(_Dados!$A$79=_Dados!$A$60,_Dados!$A$79=_Dados!$A$63,_Dados!$A$79=_Dados!$A$66,_Dados!$A$79=_Dados!$A$67,_Dados!$A$79=_Dados!$A$69,_Dados!$A$79=_Dados!$A$70,_Dados!$A$79=_Dados!$A$72,_Dados!$A$79=_Dados!$A$73)),"VERDADEIRO", AND(F33=_Dados!$A$61,_Dados!$A$79<>"",OR(_Dados!$A$79=_Dados!$A$61,_Dados!$A$79=_Dados!$A$64,_Dados!$A$79=_Dados!$A$66,_Dados!$A$79=_Dados!$A$68,_Dados!$A$79=_Dados!$A$69,_Dados!$A$79=_Dados!$A$71,_Dados!$A$79=_Dados!$A$72,_Dados!$A$79=_Dados!$A$73)),"VERDADEIRO", AND(F33=_Dados!$A$62,_Dados!$A$79<>"",OR(_Dados!$A$79=_Dados!$A$62,_Dados!$A$79=_Dados!$A$65,_Dados!$A$79=_Dados!$A$67,_Dados!$A$79=_Dados!$A$68,_Dados!$A$79=_Dados!$A$70,_Dados!$A$79=_Dados!$A$71,_Dados!$A$79=_Dados!$A$72,_Dados!$A$79=_Dados!$A$73)),"VERDADEIRO", AND(F33=_Dados!$A$63,_Dados!$A$79<>"",AND(_Dados!$A$79<>_Dados!$A$61,_Dados!$A$79<>_Dados!$A$62,_Dados!$A$79<>_Dados!$A$68)),"VERDADEIRO", AND(F33=_Dados!$A$64,_Dados!$A$79<>"",AND(_Dados!$A$79<>_Dados!$A$60,_Dados!$A$79<>_Dados!$A$62,_Dados!$A$79<>_Dados!$A$67)),"VERDADEIRO", AND(F33=_Dados!$A$65,_Dados!$A$79<>"",AND(_Dados!$A$79<>_Dados!$A$60,_Dados!$A$79<>_Dados!$A$61,_Dados!$A$79<>_Dados!$A$66)),"VERDADEIRO", AND(F33=_Dados!$A$66,_Dados!$A$79<>"",AND(_Dados!$A$79<>_Dados!$A$59,_Dados!$A$79<>_Dados!$A$61,_Dados!$A$79<>_Dados!$A$65)),"VERDADEIRO", AND(F33=_Dados!$A$67,_Dados!$A$79<>"",AND(_Dados!$A$79<>_Dados!$A$59,_Dados!$A$79<>_Dados!$A$61,_Dados!$A$79<>_Dados!$A$64)),"VERDADEIRO", AND(F33=_Dados!$A$68,_Dados!$A$79<>"",AND(_Dados!$A$79<>_Dados!$A$59,_Dados!$A$79<>_Dados!$A$60,_Dados!$A$79<>_Dados!$A$63)),"VERDADEIRO", AND(F33=_Dados!$A$69,_Dados!$A$79<>"",_Dados!$A$79<>_Dados!$A$62),"VERDADEIRO", AND(F33=_Dados!$A$70,_Dados!$A$79<>"",_Dados!$A$79<>_Dados!$A$61),"VERDADEIRO", AND(F33=_Dados!$A$71,_Dados!$A$79<>"",_Dados!$A$79<>_Dados!$A$60),"VERDADEIRO", AND(F33=_Dados!$A$72,_Dados!$A$79<>"",_Dados!$A$79<>_Dados!$A$59),"VERDADEIRO", AND(F33=_Dados!$A$73,_Dados!$A$79<>""),"VERDADEIRO"),"FALSO") -> FALSO | O33: Não | P33: 0 | Q33: 0
A34: 22 | B34: Ambiental | C34: Adaptação às mudanças climáticas | D34: Identifica (i) riscos e vulnerabilidades climáticas relacionados ao ativo, (ii) impactos do ativo nos ecossistemas e stakeholders e (iii) estratégias para mitigar e adaptar aos riscos e vulnerabilidades levantados? | E34: Satisfatório | F34: Estudos de Estruturação da Concessão; Licitação da Concessão; Implementação; Operação | J34: =IFERROR( VLOOKUP( C34,_Dados!B:F, MATCH( IF( AND(_Dados!$A$79<>_Dados!$A$59,_Dados!$A$79<>_Dados!$A$60,_Dados!$A$79<>_Dados!$A$61,_Dados!$A$79<>_Dados!$A$62), _Dados!$C$17,_Dados!$A$79), _Dados!B$17:F$17,0), 0), "") -> 2 | K34: =IFERROR(VLOOKUP(E34,_Dados!A:B,2,0),"") -> 1 | L34: =IFERROR(VLOOKUP(G34,_Dados!A:B,2,0),"") ->  | M34: VERDADEIRO | N34: =IFERROR(_xlfn.IFS( AND(F34=_Dados!$A$59,_Dados!$A$79<>"",OR(_Dados!$A$79=_Dados!$A$59,_Dados!$A$79=_Dados!$A$63,_Dados!$A$79=_Dados!$A$64,_Dados!$A$79=_Dados!$A$65,_Dados!$A$79=_Dados!$A$69,_Dados!$A$79=_Dados!$A$70,_Dados!$A$79=_Dados!$A$71,_Dados!$A$79=_Dados!$A$73)),"VERDADEIRO", AND(F34=_Dados!$A$60,_Dados!$A$79<>"",OR(_Dados!$A$79=_Dados!$A$60,_Dados!$A$79=_Dados!$A$63,_Dados!$A$79=_Dados!$A$66,_Dados!$A$79=_Dados!$A$67,_Dados!$A$79=_Dados!$A$69,_Dados!$A$79=_Dados!$A$70,_Dados!$A$79=_Dados!$A$72,_Dados!$A$79=_Dados!$A$73)),"VERDADEIRO", AND(F34=_Dados!$A$61,_Dados!$A$79<>"",OR(_Dados!$A$79=_Dados!$A$61,_Dados!$A$79=_Dados!$A$64,_Dados!$A$79=_Dados!$A$66,_Dados!$A$79=_Dados!$A$68,_Dados!$A$79=_Dados!$A$69,_Dados!$A$79=_Dados!$A$71,_Dados!$A$79=_Dados!$A$72,_Dados!$A$79=_Dados!$A$73)),"VERDADEIRO", AND(F34=_Dados!$A$62,_Dados!$A$79<>"",OR(_Dados!$A$79=_Dados!$A$62,_Dados!$A$79=_Dados!$A$65,_Dados!$A$79=_Dados!$A$67,_Dados!$A$79=_Dados!$A$68,_Dados!$A$79=_Dados!$A$70,_Dados!$A$79=_Dados!$A$71,_Dados!$A$79=_Dados!$A$72,_Dados!$A$79=_Dados!$A$73)),"VERDADEIRO", AND(F34=_Dados!$A$63,_Dados!$A$79<>"",AND(_Dados!$A$79<>_Dados!$A$61,_Dados!$A$79<>_Dados!$A$62,_Dados!$A$79<>_Dados!$A$68)),"VERDADEIRO", AND(F34=_Dados!$A$64,_Dados!$A$79<>"",AND(_Dados!$A$79<>_Dados!$A$60,_Dados!$A$79<>_Dados!$A$62,_Dados!$A$79<>_Dados!$A$67)),"VERDADEIRO", AND(F34=_Dados!$A$65,_Dados!$A$79<>"",AND(_Dados!$A$79<>_Dados!$A$60,_Dados!$A$79<>_Dados!$A$61,_Dados!$A$79<>_Dados!$A$66)),"VERDADEIRO", AND(F34=_Dados!$A$66,_Dados!$A$79<>"",AND(_Dados!$A$79<>_Dados!$A$59,_Dados!$A$79<>_Dados!$A$61,_Dados!$A$79<>_Dados!$A$65)),"VERDADEIRO", AND(F34=_Dados!$A$67,_Dados!$A$79<>"",AND(_Dados!$A$79<>_Dados!$A$59,_Dados!$A$79<>_Dados!$A$61,_Dados!$A$79<>_Dados!$A$64)),"VERDADEIRO", AND(F34=_Dados!$A$68,_Dados!$A$79<>"",AND(_Dados!$A$79<>_Dados!$A$59,_Dados!$A$79<>_Dados!$A$60,_Dados!$A$79<>_Dados!$A$63)),"VERDADEIRO", AND(F34=_Dados!$A$69,_Dados!$A$79<>"",_Dados!$A$79<>_Dados!$A$62),"VERDADEIRO", AND(F34=_Dados!$A$70,_Dados!$A$79<>"",_Dados!$A$79<>_Dados!$A$61),"VERDADEIRO", AND(F34=_Dados!$A$71,_Dados!$A$79<>"",_Dados!$A$79<>_Dados!$A$60),"VERDADEIRO", AND(F34=_Dados!$A$72,_Dados!$A$79<>"",_Dados!$A$79<>_Dados!$A$59),"VERDADEIRO", AND(F34=_Dados!$A$73,_Dados!$A$79<>""),"VERDADEIRO"),"FALSO") -> FALSO | O34: Não | P34: 0 | Q34: 0
A35: 23 | B35: Ambiental | C35: Adaptação às mudanças climáticas | D35: O projeto/ativo é consistente com os esforços de adaptação às mudanças climáticas setoriais, regionais e/ou nacionais? | E35: Satisfatório | F35: Estudos de Estruturação da Concessão; Licitação da Concessão; Implementação; Operação | J35: =IFERROR( VLOOKUP( C35,_Dados!B:F, MATCH( IF( AND(_Dados!$A$79<>_Dados!$A$59,_Dados!$A$79<>_Dados!$A$60,_Dados!$A$79<>_Dados!$A$61,_Dados!$A$79<>_Dados!$A$62), _Dados!$C$17,_Dados!$A$79), _Dados!B$17:F$17,0), 0), "") -> 2 | K35: =IFERROR(VLOOKUP(E35,_Dados!A:B,2,0),"") -> 1 | L35: =IFERROR(VLOOKUP(G35,_Dados!A:B,2,0),"") ->  | M35: VERDADEIRO | N35: =IFERROR(_xlfn.IFS( AND(F35=_Dados!$A$59,_Dados!$A$79<>"",OR(_Dados!$A$79=_Dados!$A$59,_Dados!$A$79=_Dados!$A$63,_Dados!$A$79=_Dados!$A$64,_Dados!$A$79=_Dados!$A$65,_Dados!$A$79=_Dados!$A$69,_Dados!$A$79=_Dados!$A$70,_Dados!$A$79=_Dados!$A$71,_Dados!$A$79=_Dados!$A$73)),"VERDADEIRO", AND(F35=_Dados!$A$60,_Dados!$A$79<>"",OR(_Dados!$A$79=_Dados!$A$60,_Dados!$A$79=_Dados!$A$63,_Dados!$A$79=_Dados!$A$66,_Dados!$A$79=_Dados!$A$67,_Dados!$A$79=_Dados!$A$69,_Dados!$A$79=_Dados!$A$70,_Dados!$A$79=_Dados!$A$72,_Dados!$A$79=_Dados!$A$73)),"VERDADEIRO", AND(F35=_Dados!$A$61,_Dados!$A$79<>"",OR(_Dados!$A$79=_Dados!$A$61,_Dados!$A$79=_Dados!$A$64,_Dados!$A$79=_Dados!$A$66,_Dados!$A$79=_Dados!$A$68,_Dados!$A$79=_Dados!$A$69,_Dados!$A$79=_Dados!$A$71,_Dados!$A$79=_Dados!$A$72,_Dados!$A$79=_Dados!$A$73)),"VERDADEIRO", AND(F35=_Dados!$A$62,_Dados!$A$79<>"",OR(_Dados!$A$79=_Dados!$A$62,_Dados!$A$79=_Dados!$A$65,_Dados!$A$79=_Dados!$A$67,_Dados!$A$79=_Dados!$A$68,_Dados!$A$79=_Dados!$A$70,_Dados!$A$79=_Dados!$A$71,_Dados!$A$79=_Dados!$A$72,_Dados!$A$79=_Dados!$A$73)),"VERDADEIRO", AND(F35=_Dados!$A$63,_Dados!$A$79<>"",AND(_Dados!$A$79<>_Dados!$A$61,_Dados!$A$79<>_Dados!$A$62,_Dados!$A$79<>_Dados!$A$68)),"VERDADEIRO", AND(F35=_Dados!$A$64,_Dados!$A$79<>"",AND(_Dados!$A$79<>_Dados!$A$60,_Dados!$A$79<>_Dados!$A$62,_Dados!$A$79<>_Dados!$A$67)),"VERDADEIRO", AND(F35=_Dados!$A$65,_Dados!$A$79<>"",AND(_Dados!$A$79<>_Dados!$A$60,_Dados!$A$79<>_Dados!$A$61,_Dados!$A$79<>_Dados!$A$66)),"VERDADEIRO", AND(F35=_Dados!$A$66,_Dados!$A$79<>"",AND(_Dados!$A$79<>_Dados!$A$59,_Dados!$A$79<>_Dados!$A$61,_Dados!$A$79<>_Dados!$A$65)),"VERDADEIRO", AND(F35=_Dados!$A$67,_Dados!$A$79<>"",AND(_Dados!$A$79<>_Dados!$A$59,_Dados!$A$79<>_Dados!$A$61,_Dados!$A$79<>_Dados!$A$64)),"VERDADEIRO", AND(F35=_Dados!$A$68,_Dados!$A$79<>"",AND(_Dados!$A$79<>_Dados!$A$59,_Dados!$A$79<>_Dados!$A$60,_Dados!$A$79<>_Dados!$A$63)),"VERDADEIRO", AND(F35=_Dados!$A$69,_Dados!$A$79<>"",_Dados!$A$79<>_Dados!$A$62),"VERDADEIRO", AND(F35=_Dados!$A$70,_Dados!$A$79<>"",_Dados!$A$79<>_Dados!$A$61),"VERDADEIRO", AND(F35=_Dados!$A$71,_Dados!$A$79<>"",_Dados!$A$79<>_Dados!$A$60),"VERDADEIRO", AND(F35=_Dados!$A$72,_Dados!$A$79<>"",_Dados!$A$79<>_Dados!$A$59),"VERDADEIRO", AND(F35=_Dados!$A$73,_Dados!$A$79<>""),"VERDADEIRO"),"FALSO") -> FALSO | O35: Não | P35: 0 | Q35: 0
A36: 24 | B36: Ambiental | C36: Adaptação às mudanças climáticas | D36: Prevê uma estrutura de governança que defina funções, responsabilidades e autoridade para a gestão do tema de adaptação às mudanças climáticas (apontando os respectivos cargos envolvidos)? | E36: Satisfatório | F36: Estudos de Estruturação da Concessão; Licitação da Concessão; Implementação; Operação | J36: =IFERROR( VLOOKUP( C36,_Dados!B:F, MATCH( IF( AND(_Dados!$A$79<>_Dados!$A$59,_Dados!$A$79<>_Dados!$A$60,_Dados!$A$79<>_Dados!$A$61,_Dados!$A$79<>_Dados!$A$62), _Dados!$C$17,_Dados!$A$79), _Dados!B$17:F$17,0), 0), "") -> 2 | K36: =IFERROR(VLOOKUP(E36,_Dados!A:B,2,0),"") -> 1 | L36: =IFERROR(VLOOKUP(G36,_Dados!A:B,2,0),"") ->  | M36: VERDADEIRO | N36: =IFERROR(_xlfn.IFS( AND(F36=_Dados!$A$59,_Dados!$A$79<>"",OR(_Dados!$A$79=_Dados!$A$59,_Dados!$A$79=_Dados!$A$63,_Dados!$A$79=_Dados!$A$64,_Dados!$A$79=_Dados!$A$65,_Dados!$A$79=_Dados!$A$69,_Dados!$A$79=_Dados!$A$70,_Dados!$A$79=_Dados!$A$71,_Dados!$A$79=_Dados!$A$73)),"VERDADEIRO", AND(F36=_Dados!$A$60,_Dados!$A$79<>"",OR(_Dados!$A$79=_Dados!$A$60,_Dados!$A$79=_Dados!$A$63,_Dados!$A$79=_Dados!$A$66,_Dados!$A$79=_Dados!$A$67,_Dados!$A$79=_Dados!$A$69,_Dados!$A$79=_Dados!$A$70,_Dados!$A$79=_Dados!$A$72,_Dados!$A$79=_Dados!$A$73)),"VERDADEIRO", AND(F36=_Dados!$A$61,_Dados!$A$79<>"",OR(_Dados!$A$79=_Dados!$A$61,_Dados!$A$79=_Dados!$A$64,_Dados!$A$79=_Dados!$A$66,_Dados!$A$79=_Dados!$A$68,_Dados!$A$79=_Dados!$A$69,_Dados!$A$79=_Dados!$A$71,_Dados!$A$79=_Dados!$A$72,_Dados!$A$79=_Dados!$A$73)),"VERDADEIRO", AND(F36=_Dados!$A$62,_Dados!$A$79<>"",OR(_Dados!$A$79=_Dados!$A$62,_Dados!$A$79=_Dados!$A$65,_Dados!$A$79=_Dados!$A$67,_Dados!$A$79=_Dados!$A$68,_Dados!$A$79=_Dados!$A$70,_Dados!$A$79=_Dados!$A$71,_Dados!$A$79=_Dados!$A$72,_Dados!$A$79=_Dados!$A$73)),"VERDADEIRO", AND(F36=_Dados!$A$63,_Dados!$A$79<>"",AND(_Dados!$A$79<>_Dados!$A$61,_Dados!$A$79<>_Dados!$A$62,_Dados!$A$79<>_Dados!$A$68)),"VERDADEIRO", AND(F36=_Dados!$A$64,_Dados!$A$79<>"",AND(_Dados!$A$79<>_Dados!$A$60,_Dados!$A$79<>_Dados!$A$62,_Dados!$A$79<>_Dados!$A$67)),"VERDADEIRO", AND(F36=_Dados!$A$65,_Dados!$A$79<>"",AND(_Dados!$A$79<>_Dados!$A$60,_Dados!$A$79<>_Dados!$A$61,_Dados!$A$79<>_Dados!$A$66)),"VERDADEIRO", AND(F36=_Dados!$A$66,_Dados!$A$79<>"",AND(_Dados!$A$79<>_Dados!$A$59,_Dados!$A$79<>_Dados!$A$61,_Dados!$A$79<>_Dados!$A$65)),"VERDADEIRO", AND(F36=_Dados!$A$67,_Dados!$A$79<>"",AND(_Dados!$A$79<>_Dados!$A$59,_Dados!$A$79<>_Dados!$A$61,_Dados!$A$79<>_Dados!$A$64)),"VERDADEIRO", AND(F36=_Dados!$A$68,_Dados!$A$79<>"",AND(_Dados!$A$79<>_Dados!$A$59,_Dados!$A$79<>_Dados!$A$60,_Dados!$A$79<>_Dados!$A$63)),"VERDADEIRO", AND(F36=_Dados!$A$69,_Dados!$A$79<>"",_Dados!$A$79<>_Dados!$A$62),"VERDADEIRO", AND(F36=_Dados!$A$70,_Dados!$A$79<>"",_Dados!$A$79<>_Dados!$A$61),"VERDADEIRO", AND(F36=_Dados!$A$71,_Dados!$A$79<>"",_Dados!$A$79<>_Dados!$A$60),"VERDADEIRO", AND(F36=_Dados!$A$72,_Dados!$A$79<>"",_Dados!$A$79<>_Dados!$A$59),"VERDADEIRO", AND(F36=_Dados!$A$73,_Dados!$A$79<>""),"VERDADEIRO"),"FALSO") -> FALSO | O36: Não | P36: 0 | Q36: 0
A37: 25 | B37: Ambiental | C37: Adaptação às mudanças climáticas | D37: Realiza uma análise de riscos climáticos como iniciativa de adaptação às mudanças climáticas, antecipando riscos e impactos adversos para o próprio projeto? É preciso descrever qual(is) o(s) cenário(s) climático(s) utilizados. | E37: Robusto | F37: Estudos de Estruturação da Concessão; Licitação da Concessão; Implementação; Operação | J37: =IFERROR( VLOOKUP( C37,_Dados!B:F, MATCH( IF( AND(_Dados!$A$79<>_Dados!$A$59,_Dados!$A$79<>_Dados!$A$60,_Dados!$A$79<>_Dados!$A$61,_Dados!$A$79<>_Dados!$A$62), _Dados!$C$17,_Dados!$A$79), _Dados!B$17:F$17,0), 0), "") -> 2 | K37: =IFERROR(VLOOKUP(E37,_Dados!A:B,2,0),"") -> 1.5 | L37: =IFERROR(VLOOKUP(G37,_Dados!A:B,2,0),"") ->  | M37: VERDADEIRO | N37: =IFERROR(_xlfn.IFS( AND(F37=_Dados!$A$59,_Dados!$A$79<>"",OR(_Dados!$A$79=_Dados!$A$59,_Dados!$A$79=_Dados!$A$63,_Dados!$A$79=_Dados!$A$64,_Dados!$A$79=_Dados!$A$65,_Dados!$A$79=_Dados!$A$69,_Dados!$A$79=_Dados!$A$70,_Dados!$A$79=_Dados!$A$71,_Dados!$A$79=_Dados!$A$73)),"VERDADEIRO", AND(F37=_Dados!$A$60,_Dados!$A$79<>"",OR(_Dados!$A$79=_Dados!$A$60,_Dados!$A$79=_Dados!$A$63,_Dados!$A$79=_Dados!$A$66,_Dados!$A$79=_Dados!$A$67,_Dados!$A$79=_Dados!$A$69,_Dados!$A$79=_Dados!$A$70,_Dados!$A$79=_Dados!$A$72,_Dados!$A$79=_Dados!$A$73)),"VERDADEIRO", AND(F37=_Dados!$A$61,_Dados!$A$79<>"",OR(_Dados!$A$79=_Dados!$A$61,_Dados!$A$79=_Dados!$A$64,_Dados!$A$79=_Dados!$A$66,_Dados!$A$79=_Dados!$A$68,_Dados!$A$79=_Dados!$A$69,_Dados!$A$79=_Dados!$A$71,_Dados!$A$79=_Dados!$A$72,_Dados!$A$79=_Dados!$A$73)),"VERDADEIRO", AND(F37=_Dados!$A$62,_Dados!$A$79<>"",OR(_Dados!$A$79=_Dados!$A$62,_Dados!$A$79=_Dados!$A$65,_Dados!$A$79=_Dados!$A$67,_Dados!$A$79=_Dados!$A$68,_Dados!$A$79=_Dados!$A$70,_Dados!$A$79=_Dados!$A$71,_Dados!$A$79=_Dados!$A$72,_Dados!$A$79=_Dados!$A$73)),"VERDADEIRO", AND(F37=_Dados!$A$63,_Dados!$A$79<>"",AND(_Dados!$A$79<>_Dados!$A$61,_Dados!$A$79<>_Dados!$A$62,_Dados!$A$79<>_Dados!$A$68)),"VERDADEIRO", AND(F37=_Dados!$A$64,_Dados!$A$79<>"",AND(_Dados!$A$79<>_Dados!$A$60,_Dados!$A$79<>_Dados!$A$62,_Dados!$A$79<>_Dados!$A$67)),"VERDADEIRO", AND(F37=_Dados!$A$65,_Dados!$A$79<>"",AND(_Dados!$A$79<>_Dados!$A$60,_Dados!$A$79<>_Dados!$A$61,_Dados!$A$79<>_Dados!$A$66)),"VERDADEIRO", AND(F37=_Dados!$A$66,_Dados!$A$79<>"",AND(_Dados!$A$79<>_Dados!$A$59,_Dados!$A$79<>_Dados!$A$61,_Dados!$A$79<>_Dados!$A$65)),"VERDADEIRO", AND(F37=_Dados!$A$67,_Dados!$A$79<>"",AND(_Dados!$A$79<>_Dados!$A$59,_Dados!$A$79<>_Dados!$A$61,_Dados!$A$79<>_Dados!$A$64)),"VERDADEIRO", AND(F37=_Dados!$A$68,_Dados!$A$79<>"",AND(_Dados!$A$79<>_Dados!$A$59,_Dados!$A$79<>_Dados!$A$60,_Dados!$A$79<>_Dados!$A$63)),"VERDADEIRO", AND(F37=_Dados!$A$69,_Dados!$A$79<>"",_Dados!$A$79<>_Dados!$A$62),"VERDADEIRO", AND(F37=_Dados!$A$70,_Dados!$A$79<>"",_Dados!$A$79<>_Dados!$A$61),"VERDADEIRO", AND(F37=_Dados!$A$71,_Dados!$A$79<>"",_Dados!$A$79<>_Dados!$A$60),"VERDADEIRO", AND(F37=_Dados!$A$72,_Dados!$A$79<>"",_Dados!$A$79<>_Dados!$A$59),"VERDADEIRO", AND(F37=_Dados!$A$73,_Dados!$A$79<>""),"VERDADEIRO"),"FALSO") -> FALSO | O37: Não | P37: 0 | Q37: 0
A38: 26 | B38: Ambiental | C38: Adaptação às mudanças climáticas | D38: Possui um plano de adaptação aos riscos climáticos e impactos adversos identificados, estabelecendo medidas que os reduza substancialmente? Para infraestruturas já existentes, as ações devem ser executadas em até cinco anos, e para novas infraestruturas a execução deve ser concluída até a construção do projeto. As medidas não devem intensificar os riscos e impactos adversos de outros atores e do ecossistema local. | E38: Superior | F38: Estudos de Estruturação da Concessão; Licitação da Concessão; Implementação; Operação | J38: =IFERROR( VLOOKUP( C38,_Dados!B:F, MATCH( IF( AND(_Dados!$A$79<>_Dados!$A$59,_Dados!$A$79<>_Dados!$A$60,_Dados!$A$79<>_Dados!$A$61,_Dados!$A$79<>_Dados!$A$62), _Dados!$C$17,_Dados!$A$79), _Dados!B$17:F$17,0), 0), "") -> 2 | K38: =IFERROR(VLOOKUP(E38,_Dados!A:B,2,0),"") -> 2 | L38: =IFERROR(VLOOKUP(G38,_Dados!A:B,2,0),"") ->  | M38: VERDADEIRO | N38: =IFERROR(_xlfn.IFS( AND(F38=_Dados!$A$59,_Dados!$A$79<>"",OR(_Dados!$A$79=_Dados!$A$59,_Dados!$A$79=_Dados!$A$63,_Dados!$A$79=_Dados!$A$64,_Dados!$A$79=_Dados!$A$65,_Dados!$A$79=_Dados!$A$69,_Dados!$A$79=_Dados!$A$70,_Dados!$A$79=_Dados!$A$71,_Dados!$A$79=_Dados!$A$73)),"VERDADEIRO", AND(F38=_Dados!$A$60,_Dados!$A$79<>"",OR(_Dados!$A$79=_Dados!$A$60,_Dados!$A$79=_Dados!$A$63,_Dados!$A$79=_Dados!$A$66,_Dados!$A$79=_Dados!$A$67,_Dados!$A$79=_Dados!$A$69,_Dados!$A$79=_Dados!$A$70,_Dados!$A$79=_Dados!$A$72,_Dados!$A$79=_Dados!$A$73)),"VERDADEIRO", AND(F38=_Dados!$A$61,_Dados!$A$79<>"",OR(_Dados!$A$79=_Dados!$A$61,_Dados!$A$79=_Dados!$A$64,_Dados!$A$79=_Dados!$A$66,_Dados!$A$79=_Dados!$A$68,_Dados!$A$79=_Dados!$A$69,_Dados!$A$79=_Dados!$A$71,_Dados!$A$79=_Dados!$A$72,_Dados!$A$79=_Dados!$A$73)),"VERDADEIRO", AND(F38=_Dados!$A$62,_Dados!$A$79<>"",OR(_Dados!$A$79=_Dados!$A$62,_Dados!$A$79=_Dados!$A$65,_Dados!$A$79=_Dados!$A$67,_Dados!$A$79=_Dados!$A$68,_Dados!$A$79=_Dados!$A$70,_Dados!$A$79=_Dados!$A$71,_Dados!$A$79=_Dados!$A$72,_Dados!$A$79=_Dados!$A$73)),"VERDADEIRO", AND(F38=_Dados!$A$63,_Dados!$A$79<>"",AND(_Dados!$A$79<>_Dados!$A$61,_Dados!$A$79<>_Dados!$A$62,_Dados!$A$79<>_Dados!$A$68)),"VERDADEIRO", AND(F38=_Dados!$A$64,_Dados!$A$79<>"",AND(_Dados!$A$79<>_Dados!$A$60,_Dados!$A$79<>_Dados!$A$62,_Dados!$A$79<>_Dados!$A$67)),"VERDADEIRO", AND(F38=_Dados!$A$65,_Dados!$A$79<>"",AND(_Dados!$A$79<>_Dados!$A$60,_Dados!$A$79<>_Dados!$A$61,_Dados!$A$79<>_Dados!$A$66)),"VERDADEIRO", AND(F38=_Dados!$A$66,_Dados!$A$79<>"",AND(_Dados!$A$79<>_Dados!$A$59,_Dados!$A$79<>_Dados!$A$61,_Dados!$A$79<>_Dados!$A$65)),"VERDADEIRO", AND(F38=_Dados!$A$67,_Dados!$A$79<>"",AND(_Dados!$A$79<>_Dados!$A$59,_Dados!$A$79<>_Dados!$A$61,_Dados!$A$79<>_Dados!$A$64)),"VERDADEIRO", AND(F38=_Dados!$A$68,_Dados!$A$79<>"",AND(_Dados!$A$79<>_Dados!$A$59,_Dados!$A$79<>_Dados!$A$60,_Dados!$A$79<>_Dados!$A$63)),"VERDADEIRO", AND(F38=_Dados!$A$69,_Dados!$A$79<>"",_Dados!$A$79<>_Dados!$A$62),"VERDADEIRO", AND(F38=_Dados!$A$70,_Dados!$A$79<>"",_Dados!$A$79<>_Dados!$A$61),"VERDADEIRO", AND(F38=_Dados!$A$71,_Dados!$A$79<>"",_Dados!$A$79<>_Dados!$A$60),"VERDADEIRO", AND(F38=_Dados!$A$72,_Dados!$A$79<>"",_Dados!$A$79<>_Dados!$A$59),"VERDADEIRO", AND(F38=_Dados!$A$73,_Dados!$A$79<>""),"VERDADEIRO"),"FALSO") -> FALSO | O38: Não | P38: 0 | Q38: 0
A39: 27 | B39: Ambiental | C39: Adaptação às mudanças climáticas | D39: Prevê, durante seu ciclo de vida, a conformidade de seus fornecedores diretos aos critérios de adaptação às mudanças climáticas apresentados anteriormente, por meio de cláusulas específicas nas contratações, exigência de certificações aplicáveis, suporte aos fornecedores (treinamentos e/ou assistência técnica) e auditorias? | E39: Superior | F39: Estudos de Estruturação da Concessão; Licitação da Concessão; Implementação; Operação | J39: =IFERROR( VLOOKUP( C39,_Dados!B:F, MATCH( IF( AND(_Dados!$A$79<>_Dados!$A$59,_Dados!$A$79<>_Dados!$A$60,_Dados!$A$79<>_Dados!$A$61,_Dados!$A$79<>_Dados!$A$62), _Dados!$C$17,_Dados!$A$79), _Dados!B$17:F$17,0), 0), "") -> 2 | K39: =IFERROR(VLOOKUP(E39,_Dados!A:B,2,0),"") -> 2 | L39: =IFERROR(VLOOKUP(G39,_Dados!A:B,2,0),"") ->  | M39: VERDADEIRO | N39: =IFERROR(_xlfn.IFS( AND(F39=_Dados!$A$59,_Dados!$A$79<>"",OR(_Dados!$A$79=_Dados!$A$59,_Dados!$A$79=_Dados!$A$63,_Dados!$A$79=_Dados!$A$64,_Dados!$A$79=_Dados!$A$65,_Dados!$A$79=_Dados!$A$69,_Dados!$A$79=_Dados!$A$70,_Dados!$A$79=_Dados!$A$71,_Dados!$A$79=_Dados!$A$73)),"VERDADEIRO", AND(F39=_Dados!$A$60,_Dados!$A$79<>"",OR(_Dados!$A$79=_Dados!$A$60,_Dados!$A$79=_Dados!$A$63,_Dados!$A$79=_Dados!$A$66,_Dados!$A$79=_Dados!$A$67,_Dados!$A$79=_Dados!$A$69,_Dados!$A$79=_Dados!$A$70,_Dados!$A$79=_Dados!$A$72,_Dados!$A$79=_Dados!$A$73)),"VERDADEIRO", AND(F39=_Dados!$A$61,_Dados!$A$79<>"",OR(_Dados!$A$79=_Dados!$A$61,_Dados!$A$79=_Dados!$A$64,_Dados!$A$79=_Dados!$A$66,_Dados!$A$79=_Dados!$A$68,_Dados!$A$79=_Dados!$A$69,_Dados!$A$79=_Dados!$A$71,_Dados!$A$79=_Dados!$A$72,_Dados!$A$79=_Dados!$A$73)),"VERDADEIRO", AND(F39=_Dados!$A$62,_Dados!$A$79<>"",OR(_Dados!$A$79=_Dados!$A$62,_Dados!$A$79=_Dados!$A$65,_Dados!$A$79=_Dados!$A$67,_Dados!$A$79=_Dados!$A$68,_Dados!$A$79=_Dados!$A$70,_Dados!$A$79=_Dados!$A$71,_Dados!$A$79=_Dados!$A$72,_Dados!$A$79=_Dados!$A$73)),"VERDADEIRO", AND(F39=_Dados!$A$63,_Dados!$A$79<>"",AND(_Dados!$A$79<>_Dados!$A$61,_Dados!$A$79<>_Dados!$A$62,_Dados!$A$79<>_Dados!$A$68)),"VERDADEIRO", AND(F39=_Dados!$A$64,_Dados!$A$79<>"",AND(_Dados!$A$79<>_Dados!$A$60,_Dados!$A$79<>_Dados!$A$62,_Dados!$A$79<>_Dados!$A$67)),"VERDADEIRO", AND(F39=_Dados!$A$65,_Dados!$A$79<>"",AND(_Dados!$A$79<>_Dados!$A$60,_Dados!$A$79<>_Dados!$A$61,_Dados!$A$79<>_Dados!$A$66)),"VERDADEIRO", AND(F39=_Dados!$A$66,_Dados!$A$79<>"",AND(_Dados!$A$79<>_Dados!$A$59,_Dados!$A$79<>_Dados!$A$61,_Dados!$A$79<>_Dados!$A$65)),"VERDADEIRO", AND(F39=_Dados!$A$67,_Dados!$A$79<>"",AND(_Dados!$A$79<>_Dados!$A$59,_Dados!$A$79<>_Dados!$A$61,_Dados!$A$79<>_Dados!$A$64)),"VERDADEIRO", AND(F39=_Dados!$A$68,_Dados!$A$79<>"",AND(_Dados!$A$79<>_Dados!$A$59,_Dados!$A$79<>_Dados!$A$60,_Dados!$A$79<>_Dados!$A$63)),"VERDADEIRO", AND(F39=_Dados!$A$69,_Dados!$A$79<>"",_Dados!$A$79<>_Dados!$A$62),"VERDADEIRO", AND(F39=_Dados!$A$70,_Dados!$A$79<>"",_Dados!$A$79<>_Dados!$A$61),"VERDADEIRO", AND(F39=_Dados!$A$71,_Dados!$A$79<>"",_Dados!$A$79<>_Dados!$A$60),"VERDADEIRO", AND(F39=_Dados!$A$72,_Dados!$A$79<>"",_Dados!$A$79<>_Dados!$A$59),"VERDADEIRO", AND(F39=_Dados!$A$73,_Dados!$A$79<>""),"VERDADEIRO"),"FALSO") -> FALSO | O39: Não | P39: 0 | Q39: 0
A40: 28 | B40: Ambiental | C40: Mitigação das mudanças climáticas | D40: A entidade divulga suas emissões globais brutas de gases de efeito estufa (GEE) de Escopo 1 para a atmosfera, o percentual do gás de aterro queimado e o percentual do gás de aterro que foi utilizado para energia? | E40: Satisfatório | F40: Implementação; Operação | J40: =IFERROR( VLOOKUP( C40,_Dados!B:F, MATCH( IF( AND(_Dados!$A$79<>_Dados!$A$59,_Dados!$A$79<>_Dados!$A$60,_Dados!$A$79<>_Dados!$A$61,_Dados!$A$79<>_Dados!$A$62), _Dados!$C$17,_Dados!$A$79), _Dados!B$17:F$17,0), 0), "") -> 2 | K40: =IFERROR(VLOOKUP(E40,_Dados!A:B,2,0),"") -> 1 | L40: =IFERROR(VLOOKUP(G40,_Dados!A:B,2,0),"") ->  | M40: VERDADEIRO | N40: =IFERROR(_xlfn.IFS( AND(F40=_Dados!$A$59,_Dados!$A$79<>"",OR(_Dados!$A$79=_Dados!$A$59,_Dados!$A$79=_Dados!$A$63,_Dados!$A$79=_Dados!$A$64,_Dados!$A$79=_Dados!$A$65,_Dados!$A$79=_Dados!$A$69,_Dados!$A$79=_Dados!$A$70,_Dados!$A$79=_Dados!$A$71,_Dados!$A$79=_Dados!$A$73)),"VERDADEIRO", AND(F40=_Dados!$A$60,_Dados!$A$79<>"",OR(_Dados!$A$79=_Dados!$A$60,_Dados!$A$79=_Dados!$A$63,_Dados!$A$79=_Dados!$A$66,_Dados!$A$79=_Dados!$A$67,_Dados!$A$79=_Dados!$A$69,_Dados!$A$79=_Dados!$A$70,_Dados!$A$79=_Dados!$A$72,_Dados!$A$79=_Dados!$A$73)),"VERDADEIRO", AND(F40=_Dados!$A$61,_Dados!$A$79<>"",OR(_Dados!$A$79=_Dados!$A$61,_Dados!$A$79=_Dados!$A$64,_Dados!$A$79=_Dados!$A$66,_Dados!$A$79=_Dados!$A$68,_Dados!$A$79=_Dados!$A$69,_Dados!$A$79=_Dados!$A$71,_Dados!$A$79=_Dados!$A$72,_Dados!$A$79=_Dados!$A$73)),"VERDADEIRO", AND(F40=_Dados!$A$62,_Dados!$A$79<>"",OR(_Dados!$A$79=_Dados!$A$62,_Dados!$A$79=_Dados!$A$65,_Dados!$A$79=_Dados!$A$67,_Dados!$A$79=_Dados!$A$68,_Dados!$A$79=_Dados!$A$70,_Dados!$A$79=_Dados!$A$71,_Dados!$A$79=_Dados!$A$72,_Dados!$A$79=_Dados!$A$73)),"VERDADEIRO", AND(F40=_Dados!$A$63,_Dados!$A$79<>"",AND(_Dados!$A$79<>_Dados!$A$61,_Dados!$A$79<>_Dados!$A$62,_Dados!$A$79<>_Dados!$A$68)),"VERDADEIRO", AND(F40=_Dados!$A$64,_Dados!$A$79<>"",AND(_Dados!$A$79<>_Dados!$A$60,_Dados!$A$79<>_Dados!$A$62,_Dados!$A$79<>_Dados!$A$67)),"VERDADEIRO", AND(F40=_Dados!$A$65,_Dados!$A$79<>"",AND(_Dados!$A$79<>_Dados!$A$60,_Dados!$A$79<>_Dados!$A$61,_Dados!$A$79<>_Dados!$A$66)),"VERDADEIRO", AND(F40=_Dados!$A$66,_Dados!$A$79<>"",AND(_Dados!$A$79<>_Dados!$A$59,_Dados!$A$79<>_Dados!$A$61,_Dados!$A$79<>_Dados!$A$65)),"VERDADEIRO", AND(F40=_Dados!$A$67,_Dados!$A$79<>"",AND(_Dados!$A$79<>_Dados!$A$59,_Dados!$A$79<>_Dados!$A$61,_Dados!$A$79<>_Dados!$A$64)),"VERDADEIRO", AND(F40=_Dados!$A$68,_Dados!$A$79<>"",AND(_Dados!$A$79<>_Dados!$A$59,_Dados!$A$79<>_Dados!$A$60,_Dados!$A$79<>_Dados!$A$63)),"VERDADEIRO", AND(F40=_Dados!$A$69,_Dados!$A$79<>"",_Dados!$A$79<>_Dados!$A$62),"VERDADEIRO", AND(F40=_Dados!$A$70,_Dados!$A$79<>"",_Dados!$A$79<>_Dados!$A$61),"VERDADEIRO", AND(F40=_Dados!$A$71,_Dados!$A$79<>"",_Dados!$A$79<>_Dados!$A$60),"VERDADEIRO", AND(F40=_Dados!$A$72,_Dados!$A$79<>"",_Dados!$A$79<>_Dados!$A$59),"VERDADEIRO", AND(F40=_Dados!$A$73,_Dados!$A$79<>""),"VERDADEIRO"),"FALSO") -> FALSO | O40: Não | P40: 0 | Q40: 0
A41: 29 | B41: Ambiental | C41: Mitigação das mudanças climáticas | D41: Divulga sua (s) meta (s) de redução de emissões e analisa seu desempenho em relação às metas? | E41: Satisfatório | F41: Estudos de Estruturação da Concessão; Licitação da Concessão; Implementação; Operação | J41: =IFERROR( VLOOKUP( C41,_Dados!B:F, MATCH( IF( AND(_Dados!$A$79<>_Dados!$A$59,_Dados!$A$79<>_Dados!$A$60,_Dados!$A$79<>_Dados!$A$61,_Dados!$A$79<>_Dados!$A$62), _Dados!$C$17,_Dados!$A$79), _Dados!B$17:F$17,0), 0), "") -> 2 | K41: =IFERROR(VLOOKUP(E41,_Dados!A:B,2,0),"") -> 1 | L41: =IFERROR(VLOOKUP(G41,_Dados!A:B,2,0),"") ->  | M41: VERDADEIRO | N41: =IFERROR(_xlfn.IFS( AND(F41=_Dados!$A$59,_Dados!$A$79<>"",OR(_Dados!$A$79=_Dados!$A$59,_Dados!$A$79=_Dados!$A$63,_Dados!$A$79=_Dados!$A$64,_Dados!$A$79=_Dados!$A$65,_Dados!$A$79=_Dados!$A$69,_Dados!$A$79=_Dados!$A$70,_Dados!$A$79=_Dados!$A$71,_Dados!$A$79=_Dados!$A$73)),"VERDADEIRO", AND(F41=_Dados!$A$60,_Dados!$A$79<>"",OR(_Dados!$A$79=_Dados!$A$60,_Dados!$A$79=_Dados!$A$63,_Dados!$A$79=_Dados!$A$66,_Dados!$A$79=_Dados!$A$67,_Dados!$A$79=_Dados!$A$69,_Dados!$A$79=_Dados!$A$70,_Dados!$A$79=_Dados!$A$72,_Dados!$A$79=_Dados!$A$73)),"VERDADEIRO", AND(F41=_Dados!$A$61,_Dados!$A$79<>"",OR(_Dados!$A$79=_Dados!$A$61,_Dados!$A$79=_Dados!$A$64,_Dados!$A$79=_Dados!$A$66,_Dados!$A$79=_Dados!$A$68,_Dados!$A$79=_Dados!$A$69,_Dados!$A$79=_Dados!$A$71,_Dados!$A$79=_Dados!$A$72,_Dados!$A$79=_Dados!$A$73)),"VERDADEIRO", AND(F41=_Dados!$A$62,_Dados!$A$79<>"",OR(_Dados!$A$79=_Dados!$A$62,_Dados!$A$79=_Dados!$A$65,_Dados!$A$79=_Dados!$A$67,_Dados!$A$79=_Dados!$A$68,_Dados!$A$79=_Dados!$A$70,_Dados!$A$79=_Dados!$A$71,_Dados!$A$79=_Dados!$A$72,_Dados!$A$79=_Dados!$A$73)),"VERDADEIRO", AND(F41=_Dados!$A$63,_Dados!$A$79<>"",AND(_Dados!$A$79<>_Dados!$A$61,_Dados!$A$79<>_Dados!$A$62,_Dados!$A$79<>_Dados!$A$68)),"VERDADEIRO", AND(F41=_Dados!$A$64,_Dados!$A$79<>"",AND(_Dados!$A$79<>_Dados!$A$60,_Dados!$A$79<>_Dados!$A$62,_Dados!$A$79<>_Dados!$A$67)),"VERDADEIRO", AND(F41=_Dados!$A$65,_Dados!$A$79<>"",AND(_Dados!$A$79<>_Dados!$A$60,_Dados!$A$79<>_Dados!$A$61,_Dados!$A$79<>_Dados!$A$66)),"VERDADEIRO", AND(F41=_Dados!$A$66,_Dados!$A$79<>"",AND(_Dados!$A$79<>_Dados!$A$59,_Dados!$A$79<>_Dados!$A$61,_Dados!$A$79<>_Dados!$A$65)),"VERDADEIRO", AND(F41=_Dados!$A$67,_Dados!$A$79<>"",AND(_Dados!$A$79<>_Dados!$A$59,_Dados!$A$79<>_Dados!$A$61,_Dados!$A$79<>_Dados!$A$64)),"VERDADEIRO", AND(F41=_Dados!$A$68,_Dados!$A$79<>"",AND(_Dados!$A$79<>_Dados!$A$59,_Dados!$A$79<>_Dados!$A$60,_Dados!$A$79<>_Dados!$A$63)),"VERDADEIRO", AND(F41=_Dados!$A$69,_Dados!$A$79<>"",_Dados!$A$79<>_Dados!$A$62),"VERDADEIRO", AND(F41=_Dados!$A$70,_Dados!$A$79<>"",_Dados!$A$79<>_Dados!$A$61),"VERDADEIRO", AND(F41=_Dados!$A$71,_Dados!$A$79<>"",_Dados!$A$79<>_Dados!$A$60),"VERDADEIRO", AND(F41=_Dados!$A$72,_Dados!$A$79<>"",_Dados!$A$79<>_Dados!$A$59),"VERDADEIRO", AND(F41=_Dados!$A$73,_Dados!$A$79<>""),"VERDADEIRO"),"FALSO") -> FALSO | O41: Não | P41: 0 | Q41: 0
A42: 30 | B42: Ambiental | C42: Mitigação das mudanças climáticas | D42: Identifica e analisa riscos associados à mitigação das mudanças climáticas e seus impactos no curto, médio e longo prazo? | E42: Satisfatório | F42: Estudos de Estruturação da Concessão; Licitação da Concessão; Implementação; Operação | J42: =IFERROR( VLOOKUP( C42,_Dados!B:F, MATCH( IF( AND(_Dados!$A$79<>_Dados!$A$59,_Dados!$A$79<>_Dados!$A$60,_Dados!$A$79<>_Dados!$A$61,_Dados!$A$79<>_Dados!$A$62), _Dados!$C$17,_Dados!$A$79), _Dados!B$17:F$17,0), 0), "") -> 2 | K42: =IFERROR(VLOOKUP(E42,_Dados!A:B,2,0),"") -> 1 | L42: =IFERROR(VLOOKUP(G42,_Dados!A:B,2,0),"") ->  | M42: VERDADEIRO | N42: =IFERROR(_xlfn.IFS( AND(F42=_Dados!$A$59,_Dados!$A$79<>"",OR(_Dados!$A$79=_Dados!$A$59,_Dados!$A$79=_Dados!$A$63,_Dados!$A$79=_Dados!$A$64,_Dados!$A$79=_Dados!$A$65,_Dados!$A$79=_Dados!$A$69,_Dados!$A$79=_Dados!$A$70,_Dados!$A$79=_Dados!$A$71,_Dados!$A$79=_Dados!$A$73)),"VERDADEIRO", AND(F42=_Dados!$A$60,_Dados!$A$79<>"",OR(_Dados!$A$79=_Dados!$A$60,_Dados!$A$79=_Dados!$A$63,_Dados!$A$79=_Dados!$A$66,_Dados!$A$79=_Dados!$A$67,_Dados!$A$79=_Dados!$A$69,_Dados!$A$79=_Dados!$A$70,_Dados!$A$79=_Dados!$A$72,_Dados!$A$79=_Dados!$A$73)),"VERDADEIRO", AND(F42=_Dados!$A$61,_Dados!$A$79<>"",OR(_Dados!$A$79=_Dados!$A$61,_Dados!$A$79=_Dados!$A$64,_Dados!$A$79=_Dados!$A$66,_Dados!$A$79=_Dados!$A$68,_Dados!$A$79=_Dados!$A$69,_Dados!$A$79=_Dados!$A$71,_Dados!$A$79=_Dados!$A$72,_Dados!$A$79=_Dados!$A$73)),"VERDADEIRO", AND(F42=_Dados!$A$62,_Dados!$A$79<>"",OR(_Dados!$A$79=_Dados!$A$62,_Dados!$A$79=_Dados!$A$65,_Dados!$A$79=_Dados!$A$67,_Dados!$A$79=_Dados!$A$68,_Dados!$A$79=_Dados!$A$70,_Dados!$A$79=_Dados!$A$71,_Dados!$A$79=_Dados!$A$72,_Dados!$A$79=_Dados!$A$73)),"VERDADEIRO", AND(F42=_Dados!$A$63,_Dados!$A$79<>"",AND(_Dados!$A$79<>_Dados!$A$61,_Dados!$A$79<>_Dados!$A$62,_Dados!$A$79<>_Dados!$A$68)),"VERDADEIRO", AND(F42=_Dados!$A$64,_Dados!$A$79<>"",AND(_Dados!$A$79<>_Dados!$A$60,_Dados!$A$79<>_Dados!$A$62,_Dados!$A$79<>_Dados!$A$67)),"VERDADEIRO", AND(F42=_Dados!$A$65,_Dados!$A$79<>"",AND(_Dados!$A$79<>_Dados!$A$60,_Dados!$A$79<>_Dados!$A$61,_Dados!$A$79<>_Dados!$A$66)),"VERDADEIRO", AND(F42=_Dados!$A$66,_Dados!$A$79<>"",AND(_Dados!$A$79<>_Dados!$A$59,_Dados!$A$79<>_Dados!$A$61,_Dados!$A$79<>_Dados!$A$65)),"VERDADEIRO", AND(F42=_Dados!$A$67,_Dados!$A$79<>"",AND(_Dados!$A$79<>_Dados!$A$59,_Dados!$A$79<>_Dados!$A$61,_Dados!$A$79<>_Dados!$A$64)),"VERDADEIRO", AND(F42=_Dados!$A$68,_Dados!$A$79<>"",AND(_Dados!$A$79<>_Dados!$A$59,_Dados!$A$79<>_Dados!$A$60,_Dados!$A$79<>_Dados!$A$63)),"VERDADEIRO", AND(F42=_Dados!$A$69,_Dados!$A$79<>"",_Dados!$A$79<>_Dados!$A$62),"VERDADEIRO", AND(F42=_Dados!$A$70,_Dados!$A$79<>"",_Dados!$A$79<>_Dados!$A$61),"VERDADEIRO", AND(F42=_Dados!$A$71,_Dados!$A$79<>"",_Dados!$A$79<>_Dados!$A$60),"VERDADEIRO", AND(F42=_Dados!$A$72,_Dados!$A$79<>"",_Dados!$A$79<>_Dados!$A$59),"VERDADEIRO", AND(F42=_Dados!$A$73,_Dados!$A$79<>""),"VERDADEIRO"),"FALSO") -> FALSO | O42: Não | P42: 0 | Q42: 0
A43: 31 | B43: Ambiental | C43: Mitigação das mudanças climáticas | D43: Apresenta a quantificação das emissões do Escopo 1, os cenários de mitigação e a estratégia que será utilizada para mitigação e qual o investimento necessário de CAPEX e OPEX para garantir a mitigação projetada? | E43: Robusto | F43: Implementação; Operação | J43: =IFERROR( VLOOKUP( C43,_Dados!B:F, MATCH( IF( AND(_Dados!$A$79<>_Dados!$A$59,_Dados!$A$79<>_Dados!$A$60,_Dados!$A$79<>_Dados!$A$61,_Dados!$A$79<>_Dados!$A$62), _Dados!$C$17,_Dados!$A$79), _Dados!B$17:F$17,0), 0), "") -> 2 | K43: =IFERROR(VLOOKUP(E43,_Dados!A:B,2,0),"") -> 1.5 | L43: =IFERROR(VLOOKUP(G43,_Dados!A:B,2,0),"") ->  | M43: VERDADEIRO | N43: =IFERROR(_xlfn.IFS( AND(F43=_Dados!$A$59,_Dados!$A$79<>"",OR(_Dados!$A$79=_Dados!$A$59,_Dados!$A$79=_Dados!$A$63,_Dados!$A$79=_Dados!$A$64,_Dados!$A$79=_Dados!$A$65,_Dados!$A$79=_Dados!$A$69,_Dados!$A$79=_Dados!$A$70,_Dados!$A$79=_Dados!$A$71,_Dados!$A$79=_Dados!$A$73)),"VERDADEIRO", AND(F43=_Dados!$A$60,_Dados!$A$79<>"",OR(_Dados!$A$79=_Dados!$A$60,_Dados!$A$79=_Dados!$A$63,_Dados!$A$79=_Dados!$A$66,_Dados!$A$79=_Dados!$A$67,_Dados!$A$79=_Dados!$A$69,_Dados!$A$79=_Dados!$A$70,_Dados!$A$79=_Dados!$A$72,_Dados!$A$79=_Dados!$A$73)),"VERDADEIRO", AND(F43=_Dados!$A$61,_Dados!$A$79<>"",OR(_Dados!$A$79=_Dados!$A$61,_Dados!$A$79=_Dados!$A$64,_Dados!$A$79=_Dados!$A$66,_Dados!$A$79=_Dados!$A$68,_Dados!$A$79=_Dados!$A$69,_Dados!$A$79=_Dados!$A$71,_Dados!$A$79=_Dados!$A$72,_Dados!$A$79=_Dados!$A$73)),"VERDADEIRO", AND(F43=_Dados!$A$62,_Dados!$A$79<>"",OR(_Dados!$A$79=_Dados!$A$62,_Dados!$A$79=_Dados!$A$65,_Dados!$A$79=_Dados!$A$67,_Dados!$A$79=_Dados!$A$68,_Dados!$A$79=_Dados!$A$70,_Dados!$A$79=_Dados!$A$71,_Dados!$A$79=_Dados!$A$72,_Dados!$A$79=_Dados!$A$73)),"VERDADEIRO", AND(F43=_Dados!$A$63,_Dados!$A$79<>"",AND(_Dados!$A$79<>_Dados!$A$61,_Dados!$A$79<>_Dados!$A$62,_Dados!$A$79<>_Dados!$A$68)),"VERDADEIRO", AND(F43=_Dados!$A$64,_Dados!$A$79<>"",AND(_Dados!$A$79<>_Dados!$A$60,_Dados!$A$79<>_Dados!$A$62,_Dados!$A$79<>_Dados!$A$67)),"VERDADEIRO", AND(F43=_Dados!$A$65,_Dados!$A$79<>"",AND(_Dados!$A$79<>_Dados!$A$60,_Dados!$A$79<>_Dados!$A$61,_Dados!$A$79<>_Dados!$A$66)),"VERDADEIRO", AND(F43=_Dados!$A$66,_Dados!$A$79<>"",AND(_Dados!$A$79<>_Dados!$A$59,_Dados!$A$79<>_Dados!$A$61,_Dados!$A$79<>_Dados!$A$65)),"VERDADEIRO", AND(F43=_Dados!$A$67,_Dados!$A$79<>"",AND(_Dados!$A$79<>_Dados!$A$59,_Dados!$A$79<>_Dados!$A$61,_Dados!$A$79<>_Dados!$A$64)),"VERDADEIRO", AND(F43=_Dados!$A$68,_Dados!$A$79<>"",AND(_Dados!$A$79<>_Dados!$A$59,_Dados!$A$79<>_Dados!$A$60,_Dados!$A$79<>_Dados!$A$63)),"VERDADEIRO", AND(F43=_Dados!$A$69,_Dados!$A$79<>"",_Dados!$A$79<>_Dados!$A$62),"VERDADEIRO", AND(F43=_Dados!$A$70,_Dados!$A$79<>"",_Dados!$A$79<>_Dados!$A$61),"VERDADEIRO", AND(F43=_Dados!$A$71,_Dados!$A$79<>"",_Dados!$A$79<>_Dados!$A$60),"VERDADEIRO", AND(F43=_Dados!$A$72,_Dados!$A$79<>"",_Dados!$A$79<>_Dados!$A$59),"VERDADEIRO", AND(F43=_Dados!$A$73,_Dados!$A$79<>""),"VERDADEIRO"),"FALSO") -> FALSO | O43: Não | P43: 0 | Q43: 0
A44: 32 | B44: Ambiental | C44: Mitigação das mudanças climáticas | D44: Apresenta um plano de gestão para o tema, incluindo (i) as medidas que serão executadas para reduzir as emissões de gases de efeito estufa (GEE) e endereçar os riscos e impactos previstos, (ii) indicadores que serão monitorados durante o ciclo de vida do ativo e (iii) avaliação de tecnologias e ações que permitam alcançar o menor patamar de emissões em relação ao benchmark do setor? | E44: Robusto | F44: Estudos de Estruturação da Concessão; Licitação da Concessão; Implementação; Operação | J44: =IFERROR( VLOOKUP( C44,_Dados!B:F, MATCH( IF( AND(_Dados!$A$79<>_Dados!$A$59,_Dados!$A$79<>_Dados!$A$60,_Dados!$A$79<>_Dados!$A$61,_Dados!$A$79<>_Dados!$A$62), _Dados!$C$17,_Dados!$A$79), _Dados!B$17:F$17,0), 0), "") -> 2 | K44: =IFERROR(VLOOKUP(E44,_Dados!A:B,2,0),"") -> 1.5 | L44: =IFERROR(VLOOKUP(G44,_Dados!A:B,2,0),"") ->  | M44: =IF(G44<>"Não se aplica","VERDADEIRO","FALSO") -> VERDADEIRO | N44: =IFERROR(_xlfn.IFS( AND(F44=_Dados!$A$59,_Dados!$A$79<>"",OR(_Dados!$A$79=_Dados!$A$59,_Dados!$A$79=_Dados!$A$63,_Dados!$A$79=_Dados!$A$64,_Dados!$A$79=_Dados!$A$65,_Dados!$A$79=_Dados!$A$69,_Dados!$A$79=_Dados!$A$70,_Dados!$A$79=_Dados!$A$71,_Dados!$A$79=_Dados!$A$73)),"VERDADEIRO", AND(F44=_Dados!$A$60,_Dados!$A$79<>"",OR(_Dados!$A$79=_Dados!$A$60,_Dados!$A$79=_Dados!$A$63,_Dados!$A$79=_Dados!$A$66,_Dados!$A$79=_Dados!$A$67,_Dados!$A$79=_Dados!$A$69,_Dados!$A$79=_Dados!$A$70,_Dados!$A$79=_Dados!$A$72,_Dados!$A$79=_Dados!$A$73)),"VERDADEIRO", AND(F44=_Dados!$A$61,_Dados!$A$79<>"",OR(_Dados!$A$79=_Dados!$A$61,_Dados!$A$79=_Dados!$A$64,_Dados!$A$79=_Dados!$A$66,_Dados!$A$79=_Dados!$A$68,_Dados!$A$79=_Dados!$A$69,_Dados!$A$79=_Dados!$A$71,_Dados!$A$79=_Dados!$A$72,_Dados!$A$79=_Dados!$A$73)),"VERDADEIRO", AND(F44=_Dados!$A$62,_Dados!$A$79<>"",OR(_Dados!$A$79=_Dados!$A$62,_Dados!$A$79=_Dados!$A$65,_Dados!$A$79=_Dados!$A$67,_Dados!$A$79=_Dados!$A$68,_Dados!$A$79=_Dados!$A$70,_Dados!$A$79=_Dados!$A$71,_Dados!$A$79=_Dados!$A$72,_Dados!$A$79=_Dados!$A$73)),"VERDADEIRO", AND(F44=_Dados!$A$63,_Dados!$A$79<>"",AND(_Dados!$A$79<>_Dados!$A$61,_Dados!$A$79<>_Dados!$A$62,_Dados!$A$79<>_Dados!$A$68)),"VERDADEIRO", AND(F44=_Dados!$A$64,_Dados!$A$79<>"",AND(_Dados!$A$79<>_Dados!$A$60,_Dados!$A$79<>_Dados!$A$62,_Dados!$A$79<>_Dados!$A$67)),"VERDADEIRO", AND(F44=_Dados!$A$65,_Dados!$A$79<>"",AND(_Dados!$A$79<>_Dados!$A$60,_Dados!$A$79<>_Dados!$A$61,_Dados!$A$79<>_Dados!$A$66)),"VERDADEIRO", AND(F44=_Dados!$A$66,_Dados!$A$79<>"",AND(_Dados!$A$79<>_Dados!$A$59,_Dados!$A$79<>_Dados!$A$61,_Dados!$A$79<>_Dados!$A$65)),"VERDADEIRO", AND(F44=_Dados!$A$67,_Dados!$A$79<>"",AND(_Dados!$A$79<>_Dados!$A$59,_Dados!$A$79<>_Dados!$A$61,_Dados!$A$79<>_Dados!$A$64)),"VERDADEIRO", AND(F44=_Dados!$A$68,_Dados!$A$79<>"",AND(_Dados!$A$79<>_Dados!$A$59,_Dados!$A$79<>_Dados!$A$60,_Dados!$A$79<>_Dados!$A$63)),"VERDADEIRO", AND(F44=_Dados!$A$69,_Dados!$A$79<>"",_Dados!$A$79<>_Dados!$A$62),"VERDADEIRO", AND(F44=_Dados!$A$70,_Dados!$A$79<>"",_Dados!$A$79<>_Dados!$A$61),"VERDADEIRO", AND(F44=_Dados!$A$71,_Dados!$A$79<>"",_Dados!$A$79<>_Dados!$A$60),"VERDADEIRO", AND(F44=_Dados!$A$72,_Dados!$A$79<>"",_Dados!$A$79<>_Dados!$A$59),"VERDADEIRO", AND(F44=_Dados!$A$73,_Dados!$A$79<>""),"VERDADEIRO"),"FALSO") -> FALSO | O44: Não | P44: 0 | Q44: 0
A45: 33 | B45: Ambiental | C45: Mitigação das mudanças climáticas | D45: Prevê uma estrutura de governança que defina funções, responsabilidades e autoridade para a gestão do tema de mitigação das mudanças climáticas (apontando os respectivos cargos envolvidos)? | E45: Robusto | F45: Estudos de Estruturação da Concessão; Licitação da Concessão; Implementação; Operação | J45: =IFERROR( VLOOKUP( C45,_Dados!B:F, MATCH( IF( AND(_Dados!$A$79<>_Dados!$A$59,_Dados!$A$79<>_Dados!$A$60,_Dados!$A$79<>_Dados!$A$61,_Dados!$A$79<>_Dados!$A$62), _Dados!$C$17,_Dados!$A$79), _Dados!B$17:F$17,0), 0), "") -> 2 | K45: =IFERROR(VLOOKUP(E45,_Dados!A:B,2,0),"") -> 1.5 | L45: =IFERROR(VLOOKUP(G45,_Dados!A:B,2,0),"") ->  | M45: VERDADEIRO | N45: =IFERROR(_xlfn.IFS( AND(F45=_Dados!$A$59,_Dados!$A$79<>"",OR(_Dados!$A$79=_Dados!$A$59,_Dados!$A$79=_Dados!$A$63,_Dados!$A$79=_Dados!$A$64,_Dados!$A$79=_Dados!$A$65,_Dados!$A$79=_Dados!$A$69,_Dados!$A$79=_Dados!$A$70,_Dados!$A$79=_Dados!$A$71,_Dados!$A$79=_Dados!$A$73)),"VERDADEIRO", AND(F45=_Dados!$A$60,_Dados!$A$79<>"",OR(_Dados!$A$79=_Dados!$A$60,_Dados!$A$79=_Dados!$A$63,_Dados!$A$79=_Dados!$A$66,_Dados!$A$79=_Dados!$A$67,_Dados!$A$79=_Dados!$A$69,_Dados!$A$79=_Dados!$A$70,_Dados!$A$79=_Dados!$A$72,_Dados!$A$79=_Dados!$A$73)),"VERDADEIRO", AND(F45=_Dados!$A$61,_Dados!$A$79<>"",OR(_Dados!$A$79=_Dados!$A$61,_Dados!$A$79=_Dados!$A$64,_Dados!$A$79=_Dados!$A$66,_Dados!$A$79=_Dados!$A$68,_Dados!$A$79=_Dados!$A$69,_Dados!$A$79=_Dados!$A$71,_Dados!$A$79=_Dados!$A$72,_Dados!$A$79=_Dados!$A$73)),"VERDADEIRO", AND(F45=_Dados!$A$62,_Dados!$A$79<>"",OR(_Dados!$A$79=_Dados!$A$62,_Dados!$A$79=_Dados!$A$65,_Dados!$A$79=_Dados!$A$67,_Dados!$A$79=_Dados!$A$68,_Dados!$A$79=_Dados!$A$70,_Dados!$A$79=_Dados!$A$71,_Dados!$A$79=_Dados!$A$72,_Dados!$A$79=_Dados!$A$73)),"VERDADEIRO", AND(F45=_Dados!$A$63,_Dados!$A$79<>"",AND(_Dados!$A$79<>_Dados!$A$61,_Dados!$A$79<>_Dados!$A$62,_Dados!$A$79<>_Dados!$A$68)),"VERDADEIRO", AND(F45=_Dados!$A$64,_Dados!$A$79<>"",AND(_Dados!$A$79<>_Dados!$A$60,_Dados!$A$79<>_Dados!$A$62,_Dados!$A$79<>_Dados!$A$67)),"VERDADEIRO", AND(F45=_Dados!$A$65,_Dados!$A$79<>"",AND(_Dados!$A$79<>_Dados!$A$60,_Dados!$A$79<>_Dados!$A$61,_Dados!$A$79<>_Dados!$A$66)),"VERDADEIRO", AND(F45=_Dados!$A$66,_Dados!$A$79<>"",AND(_Dados!$A$79<>_Dados!$A$59,_Dados!$A$79<>_Dados!$A$61,_Dados!$A$79<>_Dados!$A$65)),"VERDADEIRO", AND(F45=_Dados!$A$67,_Dados!$A$79<>"",AND(_Dados!$A$79<>_Dados!$A$59,_Dados!$A$79<>_Dados!$A$61,_Dados!$A$79<>_Dados!$A$64)),"VERDADEIRO", AND(F45=_Dados!$A$68,_Dados!$A$79<>"",AND(_Dados!$A$79<>_Dados!$A$59,_Dados!$A$79<>_Dados!$A$60,_Dados!$A$79<>_Dados!$A$63)),"VERDADEIRO", AND(F45=_Dados!$A$69,_Dados!$A$79<>"",_Dados!$A$79<>_Dados!$A$62),"VERDADEIRO", AND(F45=_Dados!$A$70,_Dados!$A$79<>"",_Dados!$A$79<>_Dados!$A$61),"VERDADEIRO", AND(F45=_Dados!$A$71,_Dados!$A$79<>"",_Dados!$A$79<>_Dados!$A$60),"VERDADEIRO", AND(F45=_Dados!$A$72,_Dados!$A$79<>"",_Dados!$A$79<>_Dados!$A$59),"VERDADEIRO", AND(F45=_Dados!$A$73,_Dados!$A$79<>""),"VERDADEIRO"),"FALSO") -> FALSO | O45: Não | P45: 0 | Q45: 0
A46: 34 | B46: Ambiental | C46: Mitigação das mudanças climáticas | D46: Avalia o custo-benefício de adoção de tecnologias de captura e estoque de carbono e estabelece medidas para neutralizar suas emissões? | E46: Superior | F46: Estudos de Estruturação da Concessão; Licitação da Concessão; Implementação; Operação | J46: =IFERROR( VLOOKUP( C46,_Dados!B:F, MATCH( IF( AND(_Dados!$A$79<>_Dados!$A$59,_Dados!$A$79<>_Dados!$A$60,_Dados!$A$79<>_Dados!$A$61,_Dados!$A$79<>_Dados!$A$62), _Dados!$C$17,_Dados!$A$79), _Dados!B$17:F$17,0), 0), "") -> 2 | K46: =IFERROR(VLOOKUP(E46,_Dados!A:B,2,0),"") -> 2 | L46: =IFERROR(VLOOKUP(G46,_Dados!A:B,2,0),"") ->  | M46: VERDADEIRO | N46: =IFERROR(_xlfn.IFS( AND(F46=_Dados!$A$59,_Dados!$A$79<>"",OR(_Dados!$A$79=_Dados!$A$59,_Dados!$A$79=_Dados!$A$63,_Dados!$A$79=_Dados!$A$64,_Dados!$A$79=_Dados!$A$65,_Dados!$A$79=_Dados!$A$69,_Dados!$A$79=_Dados!$A$70,_Dados!$A$79=_Dados!$A$71,_Dados!$A$79=_Dados!$A$73)),"VERDADEIRO", AND(F46=_Dados!$A$60,_Dados!$A$79<>"",OR(_Dados!$A$79=_Dados!$A$60,_Dados!$A$79=_Dados!$A$63,_Dados!$A$79=_Dados!$A$66,_Dados!$A$79=_Dados!$A$67,_Dados!$A$79=_Dados!$A$69,_Dados!$A$79=_Dados!$A$70,_Dados!$A$79=_Dados!$A$72,_Dados!$A$79=_Dados!$A$73)),"VERDADEIRO", AND(F46=_Dados!$A$61,_Dados!$A$79<>"",OR(_Dados!$A$79=_Dados!$A$61,_Dados!$A$79=_Dados!$A$64,_Dados!$A$79=_Dados!$A$66,_Dados!$A$79=_Dados!$A$68,_Dados!$A$79=_Dados!$A$69,_Dados!$A$79=_Dados!$A$71,_Dados!$A$79=_Dados!$A$72,_Dados!$A$79=_Dados!$A$73)),"VERDADEIRO", AND(F46=_Dados!$A$62,_Dados!$A$79<>"",OR(_Dados!$A$79=_Dados!$A$62,_Dados!$A$79=_Dados!$A$65,_Dados!$A$79=_Dados!$A$67,_Dados!$A$79=_Dados!$A$68,_Dados!$A$79=_Dados!$A$70,_Dados!$A$79=_Dados!$A$71,_Dados!$A$79=_Dados!$A$72,_Dados!$A$79=_Dados!$A$73)),"VERDADEIRO", AND(F46=_Dados!$A$63,_Dados!$A$79<>"",AND(_Dados!$A$79<>_Dados!$A$61,_Dados!$A$79<>_Dados!$A$62,_Dados!$A$79<>_Dados!$A$68)),"VERDADEIRO", AND(F46=_Dados!$A$64,_Dados!$A$79<>"",AND(_Dados!$A$79<>_Dados!$A$60,_Dados!$A$79<>_Dados!$A$62,_Dados!$A$79<>_Dados!$A$67)),"VERDADEIRO", AND(F46=_Dados!$A$65,_Dados!$A$79<>"",AND(_Dados!$A$79<>_Dados!$A$60,_Dados!$A$79<>_Dados!$A$61,_Dados!$A$79<>_Dados!$A$66)),"VERDADEIRO", AND(F46=_Dados!$A$66,_Dados!$A$79<>"",AND(_Dados!$A$79<>_Dados!$A$59,_Dados!$A$79<>_Dados!$A$61,_Dados!$A$79<>_Dados!$A$65)),"VERDADEIRO", AND(F46=_Dados!$A$67,_Dados!$A$79<>"",AND(_Dados!$A$79<>_Dados!$A$59,_Dados!$A$79<>_Dados!$A$61,_Dados!$A$79<>_Dados!$A$64)),"VERDADEIRO", AND(F46=_Dados!$A$68,_Dados!$A$79<>"",AND(_Dados!$A$79<>_Dados!$A$59,_Dados!$A$79<>_Dados!$A$60,_Dados!$A$79<>_Dados!$A$63)),"VERDADEIRO", AND(F46=_Dados!$A$69,_Dados!$A$79<>"",_Dados!$A$79<>_Dados!$A$62),"VERDADEIRO", AND(F46=_Dados!$A$70,_Dados!$A$79<>"",_Dados!$A$79<>_Dados!$A$61),"VERDADEIRO", AND(F46=_Dados!$A$71,_Dados!$A$79<>"",_Dados!$A$79<>_Dados!$A$60),"VERDADEIRO", AND(F46=_Dados!$A$72,_Dados!$A$79<>"",_Dados!$A$79<>_Dados!$A$59),"VERDADEIRO", AND(F46=_Dados!$A$73,_Dados!$A$79<>""),"VERDADEIRO"),"FALSO") -> FALSO | O46: Não | P46: 0 | Q46: 0
A47: 35 | B47: Ambiental | C47: Mitigação das mudanças climáticas | D47: Comprova através de medições reais, monitoramento e verificação de emissões de gases de efeito estufa a estratégia de mitigação definida no projeto, que não deve ser inferior a 50% do total de emissões geradas durante o ciclo de vida do projeto? | E47: Superior | F47: Implementação; Operação | J47: =IFERROR( VLOOKUP( C47,_Dados!B:F, MATCH( IF( AND(_Dados!$A$79<>_Dados!$A$59,_Dados!$A$79<>_Dados!$A$60,_Dados!$A$79<>_Dados!$A$61,_Dados!$A$79<>_Dados!$A$62), _Dados!$C$17,_Dados!$A$79), _Dados!B$17:F$17,0), 0), "") -> 2 | K47: =IFERROR(VLOOKUP(E47,_Dados!A:B,2,0),"") -> 2 | L47: =IFERROR(VLOOKUP(G47,_Dados!A:B,2,0),"") ->  | M47: VERDADEIRO | N47: =IFERROR(_xlfn.IFS( AND(F47=_Dados!$A$59,_Dados!$A$79<>"",OR(_Dados!$A$79=_Dados!$A$59,_Dados!$A$79=_Dados!$A$63,_Dados!$A$79=_Dados!$A$64,_Dados!$A$79=_Dados!$A$65,_Dados!$A$79=_Dados!$A$69,_Dados!$A$79=_Dados!$A$70,_Dados!$A$79=_Dados!$A$71,_Dados!$A$79=_Dados!$A$73)),"VERDADEIRO", AND(F47=_Dados!$A$60,_Dados!$A$79<>"",OR(_Dados!$A$79=_Dados!$A$60,_Dados!$A$79=_Dados!$A$63,_Dados!$A$79=_Dados!$A$66,_Dados!$A$79=_Dados!$A$67,_Dados!$A$79=_Dados!$A$69,_Dados!$A$79=_Dados!$A$70,_Dados!$A$79=_Dados!$A$72,_Dados!$A$79=_Dados!$A$73)),"VERDADEIRO", AND(F47=_Dados!$A$61,_Dados!$A$79<>"",OR(_Dados!$A$79=_Dados!$A$61,_Dados!$A$79=_Dados!$A$64,_Dados!$A$79=_Dados!$A$66,_Dados!$A$79=_Dados!$A$68,_Dados!$A$79=_Dados!$A$69,_Dados!$A$79=_Dados!$A$71,_Dados!$A$79=_Dados!$A$72,_Dados!$A$79=_Dados!$A$73)),"VERDADEIRO", AND(F47=_Dados!$A$62,_Dados!$A$79<>"",OR(_Dados!$A$79=_Dados!$A$62,_Dados!$A$79=_Dados!$A$65,_Dados!$A$79=_Dados!$A$67,_Dados!$A$79=_Dados!$A$68,_Dados!$A$79=_Dados!$A$70,_Dados!$A$79=_Dados!$A$71,_Dados!$A$79=_Dados!$A$72,_Dados!$A$79=_Dados!$A$73)),"VERDADEIRO", AND(F47=_Dados!$A$63,_Dados!$A$79<>"",AND(_Dados!$A$79<>_Dados!$A$61,_Dados!$A$79<>_Dados!$A$62,_Dados!$A$79<>_Dados!$A$68)),"VERDADEIRO", AND(F47=_Dados!$A$64,_Dados!$A$79<>"",AND(_Dados!$A$79<>_Dados!$A$60,_Dados!$A$79<>_Dados!$A$62,_Dados!$A$79<>_Dados!$A$67)),"VERDADEIRO", AND(F47=_Dados!$A$65,_Dados!$A$79<>"",AND(_Dados!$A$79<>_Dados!$A$60,_Dados!$A$79<>_Dados!$A$61,_Dados!$A$79<>_Dados!$A$66)),"VERDADEIRO", AND(F47=_Dados!$A$66,_Dados!$A$79<>"",AND(_Dados!$A$79<>_Dados!$A$59,_Dados!$A$79<>_Dados!$A$61,_Dados!$A$79<>_Dados!$A$65)),"VERDADEIRO", AND(F47=_Dados!$A$67,_Dados!$A$79<>"",AND(_Dados!$A$79<>_Dados!$A$59,_Dados!$A$79<>_Dados!$A$61,_Dados!$A$79<>_Dados!$A$64)),"VERDADEIRO", AND(F47=_Dados!$A$68,_Dados!$A$79<>"",AND(_Dados!$A$79<>_Dados!$A$59,_Dados!$A$79<>_Dados!$A$60,_Dados!$A$79<>_Dados!$A$63)),"VERDADEIRO", AND(F47=_Dados!$A$69,_Dados!$A$79<>"",_Dados!$A$79<>_Dados!$A$62),"VERDADEIRO", AND(F47=_Dados!$A$70,_Dados!$A$79<>"",_Dados!$A$79<>_Dados!$A$61),"VERDADEIRO", AND(F47=_Dados!$A$71,_Dados!$A$79<>"",_Dados!$A$79<>_Dados!$A$60),"VERDADEIRO", AND(F47=_Dados!$A$72,_Dados!$A$79<>"",_Dados!$A$79<>_Dados!$A$59),"VERDADEIRO", AND(F47=_Dados!$A$73,_Dados!$A$79<>""),"VERDADEIRO"),"FALSO") -> FALSO | O47: Não | P47: 0 | Q47: 0
A48: 36 | B48: Ambiental | C48: Mitigação das mudanças climáticas | D48: Estabelece metas de redução de emissões e de neutralização de carbono baseadas em evidências científicas (Science-based targets) e ambiciosas em relação a seus pares de mercado? | E48: Superior | F48: Estudos de Estruturação da Concessão; Licitação da Concessão; Implementação; Operação | J48: =IFERROR( VLOOKUP( C48,_Dados!B:F, MATCH( IF( AND(_Dados!$A$79<>_Dados!$A$59,_Dados!$A$79<>_Dados!$A$60,_Dados!$A$79<>_Dados!$A$61,_Dados!$A$79<>_Dados!$A$62), _Dados!$C$17,_Dados!$A$79), _Dados!B$17:F$17,0), 0), "") -> 2 | K48: =IFERROR(VLOOKUP(E48,_Dados!A:B,2,0),"") -> 2 | L48: =IFERROR(VLOOKUP(G48,_Dados!A:B,2,0),"") ->  | M48: VERDADEIRO | N48: =IFERROR(_xlfn.IFS( AND(F48=_Dados!$A$59,_Dados!$A$79<>"",OR(_Dados!$A$79=_Dados!$A$59,_Dados!$A$79=_Dados!$A$63,_Dados!$A$79=_Dados!$A$64,_Dados!$A$79=_Dados!$A$65,_Dados!$A$79=_Dados!$A$69,_Dados!$A$79=_Dados!$A$70,_Dados!$A$79=_Dados!$A$71,_Dados!$A$79=_Dados!$A$73)),"VERDADEIRO", AND(F48=_Dados!$A$60,_Dados!$A$79<>"",OR(_Dados!$A$79=_Dados!$A$60,_Dados!$A$79=_Dados!$A$63,_Dados!$A$79=_Dados!$A$66,_Dados!$A$79=_Dados!$A$67,_Dados!$A$79=_Dados!$A$69,_Dados!$A$79=_Dados!$A$70,_Dados!$A$79=_Dados!$A$72,_Dados!$A$79=_Dados!$A$73)),"VERDADEIRO", AND(F48=_Dados!$A$61,_Dados!$A$79<>"",OR(_Dados!$A$79=_Dados!$A$61,_Dados!$A$79=_Dados!$A$64,_Dados!$A$79=_Dados!$A$66,_Dados!$A$79=_Dados!$A$68,_Dados!$A$79=_Dados!$A$69,_Dados!$A$79=_Dados!$A$71,_Dados!$A$79=_Dados!$A$72,_Dados!$A$79=_Dados!$A$73)),"VERDADEIRO", AND(F48=_Dados!$A$62,_Dados!$A$79<>"",OR(_Dados!$A$79=_Dados!$A$62,_Dados!$A$79=_Dados!$A$65,_Dados!$A$79=_Dados!$A$67,_Dados!$A$79=_Dados!$A$68,_Dados!$A$79=_Dados!$A$70,_Dados!$A$79=_Dados!$A$71,_Dados!$A$79=_Dados!$A$72,_Dados!$A$79=_Dados!$A$73)),"VERDADEIRO", AND(F48=_Dados!$A$63,_Dados!$A$79<>"",AND(_Dados!$A$79<>_Dados!$A$61,_Dados!$A$79<>_Dados!$A$62,_Dados!$A$79<>_Dados!$A$68)),"VERDADEIRO", AND(F48=_Dados!$A$64,_Dados!$A$79<>"",AND(_Dados!$A$79<>_Dados!$A$60,_Dados!$A$79<>_Dados!$A$62,_Dados!$A$79<>_Dados!$A$67)),"VERDADEIRO", AND(F48=_Dados!$A$65,_Dados!$A$79<>"",AND(_Dados!$A$79<>_Dados!$A$60,_Dados!$A$79<>_Dados!$A$61,_Dados!$A$79<>_Dados!$A$66)),"VERDADEIRO", AND(F48=_Dados!$A$66,_Dados!$A$79<>"",AND(_Dados!$A$79<>_Dados!$A$59,_Dados!$A$79<>_Dados!$A$61,_Dados!$A$79<>_Dados!$A$65)),"VERDADEIRO", AND(F48=_Dados!$A$67,_Dados!$A$79<>"",AND(_Dados!$A$79<>_Dados!$A$59,_Dados!$A$79<>_Dados!$A$61,_Dados!$A$79<>_Dados!$A$64)),"VERDADEIRO", AND(F48=_Dados!$A$68,_Dados!$A$79<>"",AND(_Dados!$A$79<>_Dados!$A$59,_Dados!$A$79<>_Dados!$A$60,_Dados!$A$79<>_Dados!$A$63)),"VERDADEIRO", AND(F48=_Dados!$A$69,_Dados!$A$79<>"",_Dados!$A$79<>_Dados!$A$62),"VERDADEIRO", AND(F48=_Dados!$A$70,_Dados!$A$79<>"",_Dados!$A$79<>_Dados!$A$61),"VERDADEIRO", AND(F48=_Dados!$A$71,_Dados!$A$79<>"",_Dados!$A$79<>_Dados!$A$60),"VERDADEIRO", AND(F48=_Dados!$A$72,_Dados!$A$79<>"",_Dados!$A$79<>_Dados!$A$59),"VERDADEIRO", AND(F48=_Dados!$A$73,_Dados!$A$79<>""),"VERDADEIRO"),"FALSO") -> FALSO | O48: Não | P48: 0 | Q48: 0
A49: 37 | B49: Ambiental | C49: Mitigação das mudanças climáticas | D49: Prevê durante seu ciclo de vida, a conformidade de seus fornecedores diretos aos critérios de mitigação das mudanças climáticas apresentados anteriormente, por meio de cláusulas específicas nas contratações, exigência de certificações aplicáveis, suporte aos fornecedores (treinamentos e/ou assistência técnica) e auditorias? | E49: Superior | F49: Estudos de Estruturação da Concessão; Licitação da Concessão; Implementação; Operação | J49: =IFERROR( VLOOKUP( C49,_Dados!B:F, MATCH( IF( AND(_Dados!$A$79<>_Dados!$A$59,_Dados!$A$79<>_Dados!$A$60,_Dados!$A$79<>_Dados!$A$61,_Dados!$A$79<>_Dados!$A$62), _Dados!$C$17,_Dados!$A$79), _Dados!B$17:F$17,0), 0), "") -> 2 | K49: =IFERROR(VLOOKUP(E49,_Dados!A:B,2,0),"") -> 2 | L49: =IFERROR(VLOOKUP(G49,_Dados!A:B,2,0),"") ->  | M49: VERDADEIRO | N49: =IFERROR(_xlfn.IFS( AND(F49=_Dados!$A$59,_Dados!$A$79<>"",OR(_Dados!$A$79=_Dados!$A$59,_Dados!$A$79=_Dados!$A$63,_Dados!$A$79=_Dados!$A$64,_Dados!$A$79=_Dados!$A$65,_Dados!$A$79=_Dados!$A$69,_Dados!$A$79=_Dados!$A$70,_Dados!$A$79=_Dados!$A$71,_Dados!$A$79=_Dados!$A$73)),"VERDADEIRO", AND(F49=_Dados!$A$60,_Dados!$A$79<>"",OR(_Dados!$A$79=_Dados!$A$60,_Dados!$A$79=_Dados!$A$63,_Dados!$A$79=_Dados!$A$66,_Dados!$A$79=_Dados!$A$67,_Dados!$A$79=_Dados!$A$69,_Dados!$A$79=_Dados!$A$70,_Dados!$A$79=_Dados!$A$72,_Dados!$A$79=_Dados!$A$73)),"VERDADEIRO", AND(F49=_Dados!$A$61,_Dados!$A$79<>"",OR(_Dados!$A$79=_Dados!$A$61,_Dados!$A$79=_Dados!$A$64,_Dados!$A$79=_Dados!$A$66,_Dados!$A$79=_Dados!$A$68,_Dados!$A$79=_Dados!$A$69,_Dados!$A$79=_Dados!$A$71,_Dados!$A$79=_Dados!$A$72,_Dados!$A$79=_Dados!$A$73)),"VERDADEIRO", AND(F49=_Dados!$A$62,_Dados!$A$79<>"",OR(_Dados!$A$79=_Dados!$A$62,_Dados!$A$79=_Dados!$A$65,_Dados!$A$79=_Dados!$A$67,_Dados!$A$79=_Dados!$A$68,_Dados!$A$79=_Dados!$A$70,_Dados!$A$79=_Dados!$A$71,_Dados!$A$79=_Dados!$A$72,_Dados!$A$79=_Dados!$A$73)),"VERDADEIRO", AND(F49=_Dados!$A$63,_Dados!$A$79<>"",AND(_Dados!$A$79<>_Dados!$A$61,_Dados!$A$79<>_Dados!$A$62,_Dados!$A$79<>_Dados!$A$68)),"VERDADEIRO", AND(F49=_Dados!$A$64,_Dados!$A$79<>"",AND(_Dados!$A$79<>_Dados!$A$60,_Dados!$A$79<>_Dados!$A$62,_Dados!$A$79<>_Dados!$A$67)),"VERDADEIRO", AND(F49=_Dados!$A$65,_Dados!$A$79<>"",AND(_Dados!$A$79<>_Dados!$A$60,_Dados!$A$79<>_Dados!$A$61,_Dados!$A$79<>_Dados!$A$66)),"VERDADEIRO", AND(F49=_Dados!$A$66,_Dados!$A$79<>"",AND(_Dados!$A$79<>_Dados!$A$59,_Dados!$A$79<>_Dados!$A$61,_Dados!$A$79<>_Dados!$A$65)),"VERDADEIRO", AND(F49=_Dados!$A$67,_Dados!$A$79<>"",AND(_Dados!$A$79<>_Dados!$A$59,_Dados!$A$79<>_Dados!$A$61,_Dados!$A$79<>_Dados!$A$64)),"VERDADEIRO", AND(F49=_Dados!$A$68,_Dados!$A$79<>"",AND(_Dados!$A$79<>_Dados!$A$59,_Dados!$A$79<>_Dados!$A$60,_Dados!$A$79<>_Dados!$A$63)),"VERDADEIRO", AND(F49=_Dados!$A$69,_Dados!$A$79<>"",_Dados!$A$79<>_Dados!$A$62),"VERDADEIRO", AND(F49=_Dados!$A$70,_Dados!$A$79<>"",_Dados!$A$79<>_Dados!$A$61),"VERDADEIRO", AND(F49=_Dados!$A$71,_Dados!$A$79<>"",_Dados!$A$79<>_Dados!$A$60),"VERDADEIRO", AND(F49=_Dados!$A$72,_Dados!$A$79<>"",_Dados!$A$79<>_Dados!$A$59),"VERDADEIRO", AND(F49=_Dados!$A$73,_Dados!$A$79<>""),"VERDADEIRO"),"FALSO") -> FALSO | O49: Não | P49: 0 | Q49: 0
A50: =A49+1.1 -> 38.1 | B50: Social | C50: Comunidade afetada e do entorno | D50: Possui uma política formal de desenvolvimento local, abrangendo a otimização do impacto do negócio na região? | E50: Satisfatório | F50: Estudos de Estruturação da Concessão; Licitação da Concessão; Implementação; Operação | J50: =IFERROR( VLOOKUP( C50,_Dados!B:F, MATCH( IF( AND(_Dados!$A$79<>_Dados!$A$59,_Dados!$A$79<>_Dados!$A$60,_Dados!$A$79<>_Dados!$A$61,_Dados!$A$79<>_Dados!$A$62), _Dados!$C$17,_Dados!$A$79), _Dados!B$17:F$17,0), 0), "") -> 2 | K50: =IFERROR(VLOOKUP(E50,_Dados!A:B,2,0),"") -> 1 | L50: =IFERROR(VLOOKUP(G50,_Dados!A:B,2,0),"") ->  | M50: VERDADEIRO | N50: =IFERROR(_xlfn.IFS( AND(F50=_Dados!$A$59,_Dados!$A$79<>"",OR(_Dados!$A$79=_Dados!$A$59,_Dados!$A$79=_Dados!$A$63,_Dados!$A$79=_Dados!$A$64,_Dados!$A$79=_Dados!$A$65,_Dados!$A$79=_Dados!$A$69,_Dados!$A$79=_Dados!$A$70,_Dados!$A$79=_Dados!$A$71,_Dados!$A$79=_Dados!$A$73)),"VERDADEIRO", AND(F50=_Dados!$A$60,_Dados!$A$79<>"",OR(_Dados!$A$79=_Dados!$A$60,_Dados!$A$79=_Dados!$A$63,_Dados!$A$79=_Dados!$A$66,_Dados!$A$79=_Dados!$A$67,_Dados!$A$79=_Dados!$A$69,_Dados!$A$79=_Dados!$A$70,_Dados!$A$79=_Dados!$A$72,_Dados!$A$79=_Dados!$A$73)),"VERDADEIRO", AND(F50=_Dados!$A$61,_Dados!$A$79<>"",OR(_Dados!$A$79=_Dados!$A$61,_Dados!$A$79=_Dados!$A$64,_Dados!$A$79=_Dados!$A$66,_Dados!$A$79=_Dados!$A$68,_Dados!$A$79=_Dados!$A$69,_Dados!$A$79=_Dados!$A$71,_Dados!$A$79=_Dados!$A$72,_Dados!$A$79=_Dados!$A$73)),"VERDADEIRO", AND(F50=_Dados!$A$62,_Dados!$A$79<>"",OR(_Dados!$A$79=_Dados!$A$62,_Dados!$A$79=_Dados!$A$65,_Dados!$A$79=_Dados!$A$67,_Dados!$A$79=_Dados!$A$68,_Dados!$A$79=_Dados!$A$70,_Dados!$A$79=_Dados!$A$71,_Dados!$A$79=_Dados!$A$72,_Dados!$A$79=_Dados!$A$73)),"VERDADEIRO", AND(F50=_Dados!$A$63,_Dados!$A$79<>"",AND(_Dados!$A$79<>_Dados!$A$61,_Dados!$A$79<>_Dados!$A$62,_Dados!$A$79<>_Dados!$A$68)),"VERDADEIRO", AND(F50=_Dados!$A$64,_Dados!$A$79<>"",AND(_Dados!$A$79<>_Dados!$A$60,_Dados!$A$79<>_Dados!$A$62,_Dados!$A$79<>_Dados!$A$67)),"VERDADEIRO", AND(F50=_Dados!$A$65,_Dados!$A$79<>"",AND(_Dados!$A$79<>_Dados!$A$60,_Dados!$A$79<>_Dados!$A$61,_Dados!$A$79<>_Dados!$A$66)),"VERDADEIRO", AND(F50=_Dados!$A$66,_Dados!$A$79<>"",AND(_Dados!$A$79<>_Dados!$A$59,_Dados!$A$79<>_Dados!$A$61,_Dados!$A$79<>_Dados!$A$65)),"VERDADEIRO", AND(F50=_Dados!$A$67,_Dados!$A$79<>"",AND(_Dados!$A$79<>_Dados!$A$59,_Dados!$A$79<>_Dados!$A$61,_Dados!$A$79<>_Dados!$A$64)),"VERDADEIRO", AND(F50=_Dados!$A$68,_Dados!$A$79<>"",AND(_Dados!$A$79<>_Dados!$A$59,_Dados!$A$79<>_Dados!$A$60,_Dados!$A$79<>_Dados!$A$63)),"VERDADEIRO", AND(F50=_Dados!$A$69,_Dados!$A$79<>"",_Dados!$A$79<>_Dados!$A$62),"VERDADEIRO", AND(F50=_Dados!$A$70,_Dados!$A$79<>"",_Dados!$A$79<>_Dados!$A$61),"VERDADEIRO", AND(F50=_Dados!$A$71,_Dados!$A$79<>"",_Dados!$A$79<>_Dados!$A$60),"VERDADEIRO", AND(F50=_Dados!$A$72,_Dados!$A$79<>"",_Dados!$A$79<>_Dados!$A$59),"VERDADEIRO", AND(F50=_Dados!$A$73,_Dados!$A$79<>""),"VERDADEIRO"),"FALSO") -> FALSO | O50: =IF(M50&N50="VERDADEIROVERDADEIRO","Sim","Não") -> Não | P50: =IF(O50="Não",0,(0.5*((J50*K50*1)/(J50*K50*1)))) -> 0 | Q50: =_xlfn.IFS( O50="Não",0, G50="",999, G50="Não",0, G50="Sim",(J50*K50*L50)/(J50*K50*L50)*P50 ) -> 0
A51: =A50+0.1 -> 38.2 | B51: Social | C51: Comunidade afetada e do entorno | D51: A política formal de desenvolvimento local abrange a promoção e fortalecimento de fornecedores locais? | E51: Satisfatório | F51: Estudos de Estruturação da Concessão; Licitação da Concessão; Implementação; Operação | J51: =IFERROR( VLOOKUP( C51,_Dados!B:F, MATCH( IF( AND(_Dados!$A$79<>_Dados!$A$59,_Dados!$A$79<>_Dados!$A$60,_Dados!$A$79<>_Dados!$A$61,_Dados!$A$79<>_Dados!$A$62), _Dados!$C$17,_Dados!$A$79), _Dados!B$17:F$17,0), 0), "") -> 2 | K51: =IFERROR(VLOOKUP(E51,_Dados!A:B,2,0),"") -> 1 | L51: =IFERROR(VLOOKUP(G51,_Dados!A:B,2,0),"") ->  | M51: VERDADEIRO | N51: =IFERROR(_xlfn.IFS( AND(F51=_Dados!$A$59,_Dados!$A$79<>"",OR(_Dados!$A$79=_Dados!$A$59,_Dados!$A$79=_Dados!$A$63,_Dados!$A$79=_Dados!$A$64,_Dados!$A$79=_Dados!$A$65,_Dados!$A$79=_Dados!$A$69,_Dados!$A$79=_Dados!$A$70,_Dados!$A$79=_Dados!$A$71,_Dados!$A$79=_Dados!$A$73)),"VERDADEIRO", AND(F51=_Dados!$A$60,_Dados!$A$79<>"",OR(_Dados!$A$79=_Dados!$A$60,_Dados!$A$79=_Dados!$A$63,_Dados!$A$79=_Dados!$A$66,_Dados!$A$79=_Dados!$A$67,_Dados!$A$79=_Dados!$A$69,_Dados!$A$79=_Dados!$A$70,_Dados!$A$79=_Dados!$A$72,_Dados!$A$79=_Dados!$A$73)),"VERDADEIRO", AND(F51=_Dados!$A$61,_Dados!$A$79<>"",OR(_Dados!$A$79=_Dados!$A$61,_Dados!$A$79=_Dados!$A$64,_Dados!$A$79=_Dados!$A$66,_Dados!$A$79=_Dados!$A$68,_Dados!$A$79=_Dados!$A$69,_Dados!$A$79=_Dados!$A$71,_Dados!$A$79=_Dados!$A$72,_Dados!$A$79=_Dados!$A$73)),"VERDADEIRO", AND(F51=_Dados!$A$62,_Dados!$A$79<>"",OR(_Dados!$A$79=_Dados!$A$62,_Dados!$A$79=_Dados!$A$65,_Dados!$A$79=_Dados!$A$67,_Dados!$A$79=_Dados!$A$68,_Dados!$A$79=_Dados!$A$70,_Dados!$A$79=_Dados!$A$71,_Dados!$A$79=_Dados!$A$72,_Dados!$A$79=_Dados!$A$73)),"VERDADEIRO", AND(F51=_Dados!$A$63,_Dados!$A$79<>"",AND(_Dados!$A$79<>_Dados!$A$61,_Dados!$A$79<>_Dados!$A$62,_Dados!$A$79<>_Dados!$A$68)),"VERDADEIRO", AND(F51=_Dados!$A$64,_Dados!$A$79<>"",AND(_Dados!$A$79<>_Dados!$A$60,_Dados!$A$79<>_Dados!$A$62,_Dados!$A$79<>_Dados!$A$67)),"VERDADEIRO", AND(F51=_Dados!$A$65,_Dados!$A$79<>"",AND(_Dados!$A$79<>_Dados!$A$60,_Dados!$A$79<>_Dados!$A$61,_Dados!$A$79<>_Dados!$A$66)),"VERDADEIRO", AND(F51=_Dados!$A$66,_Dados!$A$79<>"",AND(_Dados!$A$79<>_Dados!$A$59,_Dados!$A$79<>_Dados!$A$61,_Dados!$A$79<>_Dados!$A$65)),"VERDADEIRO", AND(F51=_Dados!$A$67,_Dados!$A$79<>"",AND(_Dados!$A$79<>_Dados!$A$59,_Dados!$A$79<>_Dados!$A$61,_Dados!$A$79<>_Dados!$A$64)),"VERDADEIRO", AND(F51=_Dados!$A$68,_Dados!$A$79<>"",AND(_Dados!$A$79<>_Dados!$A$59,_Dados!$A$79<>_Dados!$A$60,_Dados!$A$79<>_Dados!$A$63)),"VERDADEIRO", AND(F51=_Dados!$A$69,_Dados!$A$79<>"",_Dados!$A$79<>_Dados!$A$62),"VERDADEIRO", AND(F51=_Dados!$A$70,_Dados!$A$79<>"",_Dados!$A$79<>_Dados!$A$61),"VERDADEIRO", AND(F51=_Dados!$A$71,_Dados!$A$79<>"",_Dados!$A$79<>_Dados!$A$60),"VERDADEIRO", AND(F51=_Dados!$A$72,_Dados!$A$79<>"",_Dados!$A$79<>_Dados!$A$59),"VERDADEIRO", AND(F51=_Dados!$A$73,_Dados!$A$79<>""),"VERDADEIRO"),"FALSO") -> FALSO | O51: Não | P51: =IF(O51="Não",0,(0.1*((J51*K51*1)/(J51*K51*1)))) -> 0 | Q51: 0
A52: =A51+0.1 -> 38.3 | B52: Social | C52: Comunidade afetada e do entorno | D52: A política formal de desenvolvimento local abrange a capacitação da comunidade para empregabilidade? | E52: Satisfatório | F52: Estudos de Estruturação da Concessão; Licitação da Concessão; Implementação; Operação | J52: =IFERROR( VLOOKUP( C52,_Dados!B:F, MATCH( IF( AND(_Dados!$A$79<>_Dados!$A$59,_Dados!$A$79<>_Dados!$A$60,_Dados!$A$79<>_Dados!$A$61,_Dados!$A$79<>_Dados!$A$62), _Dados!$C$17,_Dados!$A$79), _Dados!B$17:F$17,0), 0), "") -> 2 | K52: =IFERROR(VLOOKUP(E52,_Dados!A:B,2,0),"") -> 1 | L52: =IFERROR(VLOOKUP(G52,_Dados!A:B,2,0),"") ->  | M52: VERDADEIRO | N52: =IFERROR(_xlfn.IFS( AND(F52=_Dados!$A$59,_Dados!$A$79<>"",OR(_Dados!$A$79=_Dados!$A$59,_Dados!$A$79=_Dados!$A$63,_Dados!$A$79=_Dados!$A$64,_Dados!$A$79=_Dados!$A$65,_Dados!$A$79=_Dados!$A$69,_Dados!$A$79=_Dados!$A$70,_Dados!$A$79=_Dados!$A$71,_Dados!$A$79=_Dados!$A$73)),"VERDADEIRO", AND(F52=_Dados!$A$60,_Dados!$A$79<>"",OR(_Dados!$A$79=_Dados!$A$60,_Dados!$A$79=_Dados!$A$63,_Dados!$A$79=_Dados!$A$66,_Dados!$A$79=_Dados!$A$67,_Dados!$A$79=_Dados!$A$69,_Dados!$A$79=_Dados!$A$70,_Dados!$A$79=_Dados!$A$72,_Dados!$A$79=_Dados!$A$73)),"VERDADEIRO", AND(F52=_Dados!$A$61,_Dados!$A$79<>"",OR(_Dados!$A$79=_Dados!$A$61,_Dados!$A$79=_Dados!$A$64,_Dados!$A$79=_Dados!$A$66,_Dados!$A$79=_Dados!$A$68,_Dados!$A$79=_Dados!$A$69,_Dados!$A$79=_Dados!$A$71,_Dados!$A$79=_Dados!$A$72,_Dados!$A$79=_Dados!$A$73)),"VERDADEIRO", AND(F52=_Dados!$A$62,_Dados!$A$79<>"",OR(_Dados!$A$79=_Dados!$A$62,_Dados!$A$79=_Dados!$A$65,_Dados!$A$79=_Dados!$A$67,_Dados!$A$79=_Dados!$A$68,_Dados!$A$79=_Dados!$A$70,_Dados!$A$79=_Dados!$A$71,_Dados!$A$79=_Dados!$A$72,_Dados!$A$79=_Dados!$A$73)),"VERDADEIRO", AND(F52=_Dados!$A$63,_Dados!$A$79<>"",AND(_Dados!$A$79<>_Dados!$A$61,_Dados!$A$79<>_Dados!$A$62,_Dados!$A$79<>_Dados!$A$68)),"VERDADEIRO", AND(F52=_Dados!$A$64,_Dados!$A$79<>"",AND(_Dados!$A$79<>_Dados!$A$60,_Dados!$A$79<>_Dados!$A$62,_Dados!$A$79<>_Dados!$A$67)),"VERDADEIRO", AND(F52=_Dados!$A$65,_Dados!$A$79<>"",AND(_Dados!$A$79<>_Dados!$A$60,_Dados!$A$79<>_Dados!$A$61,_Dados!$A$79<>_Dados!$A$66)),"VERDADEIRO", AND(F52=_Dados!$A$66,_Dados!$A$79<>"",AND(_Dados!$A$79<>_Dados!$A$59,_Dados!$A$79<>_Dados!$A$61,_Dados!$A$79<>_Dados!$A$65)),"VERDADEIRO", AND(F52=_Dados!$A$67,_Dados!$A$79<>"",AND(_Dados!$A$79<>_Dados!$A$59,_Dados!$A$79<>_Dados!$A$61,_Dados!$A$79<>_Dados!$A$64)),"VERDADEIRO", AND(F52=_Dados!$A$68,_Dados!$A$79<>"",AND(_Dados!$A$79<>_Dados!$A$59,_Dados!$A$79<>_Dados!$A$60,_Dados!$A$79<>_Dados!$A$63)),"VERDADEIRO", AND(F52=_Dados!$A$69,_Dados!$A$79<>"",_Dados!$A$79<>_Dados!$A$62),"VERDADEIRO", AND(F52=_Dados!$A$70,_Dados!$A$79<>"",_Dados!$A$79<>_Dados!$A$61),"VERDADEIRO", AND(F52=_Dados!$A$71,_Dados!$A$79<>"",_Dados!$A$79<>_Dados!$A$60),"VERDADEIRO", AND(F52=_Dados!$A$72,_Dados!$A$79<>"",_Dados!$A$79<>_Dados!$A$59),"VERDADEIRO", AND(F52=_Dados!$A$73,_Dados!$A$79<>""),"VERDADEIRO"),"FALSO") -> FALSO | O52: Não | P52: =IF(O52="Não",0,(0.1*((J52*K52*1)/(J52*K52*1)))) -> 0 | Q52: 0
A53: =A52+0.1 -> 38.4 | B53: Social | C53: Comunidade afetada e do entorno | D53: A política formal de desenvolvimento local abrange medidas de redução de impacto de eventuais reestruturações? | E53: Satisfatório | F53: Estudos de Estruturação da Concessão; Licitação da Concessão; Implementação; Operação | J53: =IFERROR( VLOOKUP( C53,_Dados!B:F, MATCH( IF( AND(_Dados!$A$79<>_Dados!$A$59,_Dados!$A$79<>_Dados!$A$60,_Dados!$A$79<>_Dados!$A$61,_Dados!$A$79<>_Dados!$A$62), _Dados!$C$17,_Dados!$A$79), _Dados!B$17:F$17,0), 0), "") -> 2 | K53: =IFERROR(VLOOKUP(E53,_Dados!A:B,2,0),"") -> 1 | L53: =IFERROR(VLOOKUP(G53,_Dados!A:B,2,0),"") ->  | M53: VERDADEIRO | N53: =IFERROR(_xlfn.IFS( AND(F53=_Dados!$A$59,_Dados!$A$79<>"",OR(_Dados!$A$79=_Dados!$A$59,_Dados!$A$79=_Dados!$A$63,_Dados!$A$79=_Dados!$A$64,_Dados!$A$79=_Dados!$A$65,_Dados!$A$79=_Dados!$A$69,_Dados!$A$79=_Dados!$A$70,_Dados!$A$79=_Dados!$A$71,_Dados!$A$79=_Dados!$A$73)),"VERDADEIRO", AND(F53=_Dados!$A$60,_Dados!$A$79<>"",OR(_Dados!$A$79=_Dados!$A$60,_Dados!$A$79=_Dados!$A$63,_Dados!$A$79=_Dados!$A$66,_Dados!$A$79=_Dados!$A$67,_Dados!$A$79=_Dados!$A$69,_Dados!$A$79=_Dados!$A$70,_Dados!$A$79=_Dados!$A$72,_Dados!$A$79=_Dados!$A$73)),"VERDADEIRO", AND(F53=_Dados!$A$61,_Dados!$A$79<>"",OR(_Dados!$A$79=_Dados!$A$61,_Dados!$A$79=_Dados!$A$64,_Dados!$A$79=_Dados!$A$66,_Dados!$A$79=_Dados!$A$68,_Dados!$A$79=_Dados!$A$69,_Dados!$A$79=_Dados!$A$71,_Dados!$A$79=_Dados!$A$72,_Dados!$A$79=_Dados!$A$73)),"VERDADEIRO", AND(F53=_Dados!$A$62,_Dados!$A$79<>"",OR(_Dados!$A$79=_Dados!$A$62,_Dados!$A$79=_Dados!$A$65,_Dados!$A$79=_Dados!$A$67,_Dados!$A$79=_Dados!$A$68,_Dados!$A$79=_Dados!$A$70,_Dados!$A$79=_Dados!$A$71,_Dados!$A$79=_Dados!$A$72,_Dados!$A$79=_Dados!$A$73)),"VERDADEIRO", AND(F53=_Dados!$A$63,_Dados!$A$79<>"",AND(_Dados!$A$79<>_Dados!$A$61,_Dados!$A$79<>_Dados!$A$62,_Dados!$A$79<>_Dados!$A$68)),"VERDADEIRO", AND(F53=_Dados!$A$64,_Dados!$A$79<>"",AND(_Dados!$A$79<>_Dados!$A$60,_Dados!$A$79<>_Dados!$A$62,_Dados!$A$79<>_Dados!$A$67)),"VERDADEIRO", AND(F53=_Dados!$A$65,_Dados!$A$79<>"",AND(_Dados!$A$79<>_Dados!$A$60,_Dados!$A$79<>_Dados!$A$61,_Dados!$A$79<>_Dados!$A$66)),"VERDADEIRO", AND(F53=_Dados!$A$66,_Dados!$A$79<>"",AND(_Dados!$A$79<>_Dados!$A$59,_Dados!$A$79<>_Dados!$A$61,_Dados!$A$79<>_Dados!$A$65)),"VERDADEIRO", AND(F53=_Dados!$A$67,_Dados!$A$79<>"",AND(_Dados!$A$79<>_Dados!$A$59,_Dados!$A$79<>_Dados!$A$61,_Dados!$A$79<>_Dados!$A$64)),"VERDADEIRO", AND(F53=_Dados!$A$68,_Dados!$A$79<>"",AND(_Dados!$A$79<>_Dados!$A$59,_Dados!$A$79<>_Dados!$A$60,_Dados!$A$79<>_Dados!$A$63)),"VERDADEIRO", AND(F53=_Dados!$A$69,_Dados!$A$79<>"",_Dados!$A$79<>_Dados!$A$62),"VERDADEIRO", AND(F53=_Dados!$A$70,_Dados!$A$79<>"",_Dados!$A$79<>_Dados!$A$61),"VERDADEIRO", AND(F53=_Dados!$A$71,_Dados!$A$79<>"",_Dados!$A$79<>_Dados!$A$60),"VERDADEIRO", AND(F53=_Dados!$A$72,_Dados!$A$79<>"",_Dados!$A$79<>_Dados!$A$59),"VERDADEIRO", AND(F53=_Dados!$A$73,_Dados!$A$79<>""),"VERDADEIRO"),"FALSO") -> FALSO | O53: Não | P53: =IF(O53="Não",0,(0.1*((J53*K53*1)/(J53*K53*1)))) -> 0 | Q53: 0
A54: =A53+0.1 -> 38.5 | B54: Social | C54: Comunidade afetada e do entorno | D54: A política formal de desenvolvimento local abrange a exclusão da presença financeira da organização responsável pelo projeto em offshores ou jurisdições não reconhecidas pela OECD? | E54: Satisfatório | F54: Estudos de Estruturação da Concessão; Licitação da Concessão; Implementação; Operação | J54: =IFERROR( VLOOKUP( C54,_Dados!B:F, MATCH( IF( AND(_Dados!$A$79<>_Dados!$A$59,_Dados!$A$79<>_Dados!$A$60,_Dados!$A$79<>_Dados!$A$61,_Dados!$A$79<>_Dados!$A$62), _Dados!$C$17,_Dados!$A$79), _Dados!B$17:F$17,0), 0), "") -> 2 | K54: =IFERROR(VLOOKUP(E54,_Dados!A:B,2,0),"") -> 1 | L54: =IFERROR(VLOOKUP(G54,_Dados!A:B,2,0),"") ->  | M54: VERDADEIRO | N54: =IFERROR(_xlfn.IFS( AND(F54=_Dados!$A$59,_Dados!$A$79<>"",OR(_Dados!$A$79=_Dados!$A$59,_Dados!$A$79=_Dados!$A$63,_Dados!$A$79=_Dados!$A$64,_Dados!$A$79=_Dados!$A$65,_Dados!$A$79=_Dados!$A$69,_Dados!$A$79=_Dados!$A$70,_Dados!$A$79=_Dados!$A$71,_Dados!$A$79=_Dados!$A$73)),"VERDADEIRO", AND(F54=_Dados!$A$60,_Dados!$A$79<>"",OR(_Dados!$A$79=_Dados!$A$60,_Dados!$A$79=_Dados!$A$63,_Dados!$A$79=_Dados!$A$66,_Dados!$A$79=_Dados!$A$67,_Dados!$A$79=_Dados!$A$69,_Dados!$A$79=_Dados!$A$70,_Dados!$A$79=_Dados!$A$72,_Dados!$A$79=_Dados!$A$73)),"VERDADEIRO", AND(F54=_Dados!$A$61,_Dados!$A$79<>"",OR(_Dados!$A$79=_Dados!$A$61,_Dados!$A$79=_Dados!$A$64,_Dados!$A$79=_Dados!$A$66,_Dados!$A$79=_Dados!$A$68,_Dados!$A$79=_Dados!$A$69,_Dados!$A$79=_Dados!$A$71,_Dados!$A$79=_Dados!$A$72,_Dados!$A$79=_Dados!$A$73)),"VERDADEIRO", AND(F54=_Dados!$A$62,_Dados!$A$79<>"",OR(_Dados!$A$79=_Dados!$A$62,_Dados!$A$79=_Dados!$A$65,_Dados!$A$79=_Dados!$A$67,_Dados!$A$79=_Dados!$A$68,_Dados!$A$79=_Dados!$A$70,_Dados!$A$79=_Dados!$A$71,_Dados!$A$79=_Dados!$A$72,_Dados!$A$79=_Dados!$A$73)),"VERDADEIRO", AND(F54=_Dados!$A$63,_Dados!$A$79<>"",AND(_Dados!$A$79<>_Dados!$A$61,_Dados!$A$79<>_Dados!$A$62,_Dados!$A$79<>_Dados!$A$68)),"VERDADEIRO", AND(F54=_Dados!$A$64,_Dados!$A$79<>"",AND(_Dados!$A$79<>_Dados!$A$60,_Dados!$A$79<>_Dados!$A$62,_Dados!$A$79<>_Dados!$A$67)),"VERDADEIRO", AND(F54=_Dados!$A$65,_Dados!$A$79<>"",AND(_Dados!$A$79<>_Dados!$A$60,_Dados!$A$79<>_Dados!$A$61,_Dados!$A$79<>_Dados!$A$66)),"VERDADEIRO", AND(F54=_Dados!$A$66,_Dados!$A$79<>"",AND(_Dados!$A$79<>_Dados!$A$59,_Dados!$A$79<>_Dados!$A$61,_Dados!$A$79<>_Dados!$A$65)),"VERDADEIRO", AND(F54=_Dados!$A$67,_Dados!$A$79<>"",AND(_Dados!$A$79<>_Dados!$A$59,_Dados!$A$79<>_Dados!$A$61,_Dados!$A$79<>_Dados!$A$64)),"VERDADEIRO", AND(F54=_Dados!$A$68,_Dados!$A$79<>"",AND(_Dados!$A$79<>_Dados!$A$59,_Dados!$A$79<>_Dados!$A$60,_Dados!$A$79<>_Dados!$A$63)),"VERDADEIRO", AND(F54=_Dados!$A$69,_Dados!$A$79<>"",_Dados!$A$79<>_Dados!$A$62),"VERDADEIRO", AND(F54=_Dados!$A$70,_Dados!$A$79<>"",_Dados!$A$79<>_Dados!$A$61),"VERDADEIRO", AND(F54=_Dados!$A$71,_Dados!$A$79<>"",_Dados!$A$79<>_Dados!$A$60),"VERDADEIRO", AND(F54=_Dados!$A$72,_Dados!$A$79<>"",_Dados!$A$79<>_Dados!$A$59),"VERDADEIRO", AND(F54=_Dados!$A$73,_Dados!$A$79<>""),"VERDADEIRO"),"FALSO") -> FALSO | O54: Não | P54: =IF(O54="Não",0,(0.1*((J54*K54*1)/(J54*K54*1)))) -> 0 | Q54: 0
A55: =A54+0.1 -> 38.6 | B55: Social | C55: Comunidade afetada e do entorno | D55: Prevê mecanismos para difundir a existência da política para seus colaboradores, parceiros comerciais e outras partes interessadas? | E55: Satisfatório | F55: Estudos de Estruturação da Concessão; Licitação da Concessão; Implementação; Operação | J55: =IFERROR( VLOOKUP( C55,_Dados!B:F, MATCH( IF( AND(_Dados!$A$79<>_Dados!$A$59,_Dados!$A$79<>_Dados!$A$60,_Dados!$A$79<>_Dados!$A$61,_Dados!$A$79<>_Dados!$A$62), _Dados!$C$17,_Dados!$A$79), _Dados!B$17:F$17,0), 0), "") -> 2 | K55: =IFERROR(VLOOKUP(E55,_Dados!A:B,2,0),"") -> 1 | L55: =IFERROR(VLOOKUP(G55,_Dados!A:B,2,0),"") ->  | M55: VERDADEIRO | N55: =IFERROR(_xlfn.IFS( AND(F55=_Dados!$A$59,_Dados!$A$79<>"",OR(_Dados!$A$79=_Dados!$A$59,_Dados!$A$79=_Dados!$A$63,_Dados!$A$79=_Dados!$A$64,_Dados!$A$79=_Dados!$A$65,_Dados!$A$79=_Dados!$A$69,_Dados!$A$79=_Dados!$A$70,_Dados!$A$79=_Dados!$A$71,_Dados!$A$79=_Dados!$A$73)),"VERDADEIRO", AND(F55=_Dados!$A$60,_Dados!$A$79<>"",OR(_Dados!$A$79=_Dados!$A$60,_Dados!$A$79=_Dados!$A$63,_Dados!$A$79=_Dados!$A$66,_Dados!$A$79=_Dados!$A$67,_Dados!$A$79=_Dados!$A$69,_Dados!$A$79=_Dados!$A$70,_Dados!$A$79=_Dados!$A$72,_Dados!$A$79=_Dados!$A$73)),"VERDADEIRO", AND(F55=_Dados!$A$61,_Dados!$A$79<>"",OR(_Dados!$A$79=_Dados!$A$61,_Dados!$A$79=_Dados!$A$64,_Dados!$A$79=_Dados!$A$66,_Dados!$A$79=_Dados!$A$68,_Dados!$A$79=_Dados!$A$69,_Dados!$A$79=_Dados!$A$71,_Dados!$A$79=_Dados!$A$72,_Dados!$A$79=_Dados!$A$73)),"VERDADEIRO", AND(F55=_Dados!$A$62,_Dados!$A$79<>"",OR(_Dados!$A$79=_Dados!$A$62,_Dados!$A$79=_Dados!$A$65,_Dados!$A$79=_Dados!$A$67,_Dados!$A$79=_Dados!$A$68,_Dados!$A$79=_Dados!$A$70,_Dados!$A$79=_Dados!$A$71,_Dados!$A$79=_Dados!$A$72,_Dados!$A$79=_Dados!$A$73)),"VERDADEIRO", AND(F55=_Dados!$A$63,_Dados!$A$79<>"",AND(_Dados!$A$79<>_Dados!$A$61,_Dados!$A$79<>_Dados!$A$62,_Dados!$A$79<>_Dados!$A$68)),"VERDADEIRO", AND(F55=_Dados!$A$64,_Dados!$A$79<>"",AND(_Dados!$A$79<>_Dados!$A$60,_Dados!$A$79<>_Dados!$A$62,_Dados!$A$79<>_Dados!$A$67)),"VERDADEIRO", AND(F55=_Dados!$A$65,_Dados!$A$79<>"",AND(_Dados!$A$79<>_Dados!$A$60,_Dados!$A$79<>_Dados!$A$61,_Dados!$A$79<>_Dados!$A$66)),"VERDADEIRO", AND(F55=_Dados!$A$66,_Dados!$A$79<>"",AND(_Dados!$A$79<>_Dados!$A$59,_Dados!$A$79<>_Dados!$A$61,_Dados!$A$79<>_Dados!$A$65)),"VERDADEIRO", AND(F55=_Dados!$A$67,_Dados!$A$79<>"",AND(_Dados!$A$79<>_Dados!$A$59,_Dados!$A$79<>_Dados!$A$61,_Dados!$A$79<>_Dados!$A$64)),"VERDADEIRO", AND(F55=_Dados!$A$68,_Dados!$A$79<>"",AND(_Dados!$A$79<>_Dados!$A$59,_Dados!$A$79<>_Dados!$A$60,_Dados!$A$79<>_Dados!$A$63)),"VERDADEIRO", AND(F55=_Dados!$A$69,_Dados!$A$79<>"",_Dados!$A$79<>_Dados!$A$62),"VERDADEIRO", AND(F55=_Dados!$A$70,_Dados!$A$79<>"",_Dados!$A$79<>_Dados!$A$61),"VERDADEIRO", AND(F55=_Dados!$A$71,_Dados!$A$79<>"",_Dados!$A$79<>_Dados!$A$60),"VERDADEIRO", AND(F55=_Dados!$A$72,_Dados!$A$79<>"",_Dados!$A$79<>_Dados!$A$59),"VERDADEIRO", AND(F55=_Dados!$A$73,_Dados!$A$79<>""),"VERDADEIRO"),"FALSO") -> FALSO | O55: =IF(M55&N55="VERDADEIROVERDADEIRO","Sim","Não") -> Não | P55: =IF(O55="Não",0,(0.1*((J55*K55*1)/(J55*K55*1)))) -> 0 | Q55: 0
A56: =A49+2 -> 39 | B56: Social | C56: Comunidade afetada e do entorno | D56: Apresenta avaliações, pelo menos anualmente, de riscos e impactos sobre a saúde e a segurança das comunidades afetadas durante o ciclo de vida do projeto? As avaliações deverão ser sensíveis a aspectos de equidade, incluindo dados relacionados à integração de pessoas com deficiência, ocorrência de exploração sexual ou violência de gênero, gravidez precoce e doenças sexualmente transmissíveis. | E56: Satisfatório | F56: Estudos de Estruturação da Concessão; Licitação da Concessão; Implementação; Operação | J56: =IFERROR( VLOOKUP( C56,_Dados!B:F, MATCH( IF( AND(_Dados!$A$79<>_Dados!$A$59,_Dados!$A$79<>_Dados!$A$60,_Dados!$A$79<>_Dados!$A$61,_Dados!$A$79<>_Dados!$A$62), _Dados!$C$17,_Dados!$A$79), _Dados!B$17:F$17,0), 0), "") -> 2 | K56: =IFERROR(VLOOKUP(E56,_Dados!A:B,2,0),"") -> 1 | L56: =IFERROR(VLOOKUP(G56,_Dados!A:B,2,0),"") ->  | M56: VERDADEIRO | N56: =IFERROR(_xlfn.IFS( AND(F56=_Dados!$A$59,_Dados!$A$79<>"",OR(_Dados!$A$79=_Dados!$A$59,_Dados!$A$79=_Dados!$A$63,_Dados!$A$79=_Dados!$A$64,_Dados!$A$79=_Dados!$A$65,_Dados!$A$79=_Dados!$A$69,_Dados!$A$79=_Dados!$A$70,_Dados!$A$79=_Dados!$A$71,_Dados!$A$79=_Dados!$A$73)),"VERDADEIRO", AND(F56=_Dados!$A$60,_Dados!$A$79<>"",OR(_Dados!$A$79=_Dados!$A$60,_Dados!$A$79=_Dados!$A$63,_Dados!$A$79=_Dados!$A$66,_Dados!$A$79=_Dados!$A$67,_Dados!$A$79=_Dados!$A$69,_Dados!$A$79=_Dados!$A$70,_Dados!$A$79=_Dados!$A$72,_Dados!$A$79=_Dados!$A$73)),"VERDADEIRO", AND(F56=_Dados!$A$61,_Dados!$A$79<>"",OR(_Dados!$A$79=_Dados!$A$61,_Dados!$A$79=_Dados!$A$64,_Dados!$A$79=_Dados!$A$66,_Dados!$A$79=_Dados!$A$68,_Dados!$A$79=_Dados!$A$69,_Dados!$A$79=_Dados!$A$71,_Dados!$A$79=_Dados!$A$72,_Dados!$A$79=_Dados!$A$73)),"VERDADEIRO", AND(F56=_Dados!$A$62,_Dados!$A$79<>"",OR(_Dados!$A$79=_Dados!$A$62,_Dados!$A$79=_Dados!$A$65,_Dados!$A$79=_Dados!$A$67,_Dados!$A$79=_Dados!$A$68,_Dados!$A$79=_Dados!$A$70,_Dados!$A$79=_Dados!$A$71,_Dados!$A$79=_Dados!$A$72,_Dados!$A$79=_Dados!$A$73)),"VERDADEIRO", AND(F56=_Dados!$A$63,_Dados!$A$79<>"",AND(_Dados!$A$79<>_Dados!$A$61,_Dados!$A$79<>_Dados!$A$62,_Dados!$A$79<>_Dados!$A$68)),"VERDADEIRO", AND(F56=_Dados!$A$64,_Dados!$A$79<>"",AND(_Dados!$A$79<>_Dados!$A$60,_Dados!$A$79<>_Dados!$A$62,_Dados!$A$79<>_Dados!$A$67)),"VERDADEIRO", AND(F56=_Dados!$A$65,_Dados!$A$79<>"",AND(_Dados!$A$79<>_Dados!$A$60,_Dados!$A$79<>_Dados!$A$61,_Dados!$A$79<>_Dados!$A$66)),"VERDADEIRO", AND(F56=_Dados!$A$66,_Dados!$A$79<>"",AND(_Dados!$A$79<>_Dados!$A$59,_Dados!$A$79<>_Dados!$A$61,_Dados!$A$79<>_Dados!$A$65)),"VERDADEIRO", AND(F56=_Dados!$A$67,_Dados!$A$79<>"",AND(_Dados!$A$79<>_Dados!$A$59,_Dados!$A$79<>_Dados!$A$61,_Dados!$A$79<>_Dados!$A$64)),"VERDADEIRO", AND(F56=_Dados!$A$68,_Dados!$A$79<>"",AND(_Dados!$A$79<>_Dados!$A$59,_Dados!$A$79<>_Dados!$A$60,_Dados!$A$79<>_Dados!$A$63)),"VERDADEIRO", AND(F56=_Dados!$A$69,_Dados!$A$79<>"",_Dados!$A$79<>_Dados!$A$62),"VERDADEIRO", AND(F56=_Dados!$A$70,_Dados!$A$79<>"",_Dados!$A$79<>_Dados!$A$61),"VERDADEIRO", AND(F56=_Dados!$A$71,_Dados!$A$79<>"",_Dados!$A$79<>_Dados!$A$60),"VERDADEIRO", AND(F56=_Dados!$A$72,_Dados!$A$79<>"",_Dados!$A$79<>_Dados!$A$59),"VERDADEIRO", AND(F56=_Dados!$A$73,_Dados!$A$79<>""),"VERDADEIRO"),"FALSO") -> FALSO | O56: Não | P56: =IF(O56="Não",0,J56*K56*1) -> 0 | Q56: =IFERROR(IF(O56="Não",0,J56*K56*L56),999) -> 0
A57: =A56+1 -> 40 | B57: Social | C57: Comunidade afetada e do entorno | D57: Apresenta medidas de prevenção e controle dos riscos e impactos ASG identificados, incluindo ações para evitar ou minimizar a exposição da comunidade a substâncias perigosas e doenças transmitidas pela água ou por outros vetores decorrentes das atividades do projeto? | E57: Satisfatório | F57: Estudos de Estruturação da Concessão; Licitação da Concessão; Implementação; Operação | J57: =IFERROR( VLOOKUP( C57,_Dados!B:F, MATCH( IF( AND(_Dados!$A$79<>_Dados!$A$59,_Dados!$A$79<>_Dados!$A$60,_Dados!$A$79<>_Dados!$A$61,_Dados!$A$79<>_Dados!$A$62), _Dados!$C$17,_Dados!$A$79), _Dados!B$17:F$17,0), 0), "") -> 2 | K57: =IFERROR(VLOOKUP(E57,_Dados!A:B,2,0),"") -> 1 | L57: =IFERROR(VLOOKUP(G57,_Dados!A:B,2,0),"") ->  | M57: VERDADEIRO | N57: =IFERROR(_xlfn.IFS( AND(F57=_Dados!$A$59,_Dados!$A$79<>"",OR(_Dados!$A$79=_Dados!$A$59,_Dados!$A$79=_Dados!$A$63,_Dados!$A$79=_Dados!$A$64,_Dados!$A$79=_Dados!$A$65,_Dados!$A$79=_Dados!$A$69,_Dados!$A$79=_Dados!$A$70,_Dados!$A$79=_Dados!$A$71,_Dados!$A$79=_Dados!$A$73)),"VERDADEIRO", AND(F57=_Dados!$A$60,_Dados!$A$79<>"",OR(_Dados!$A$79=_Dados!$A$60,_Dados!$A$79=_Dados!$A$63,_Dados!$A$79=_Dados!$A$66,_Dados!$A$79=_Dados!$A$67,_Dados!$A$79=_Dados!$A$69,_Dados!$A$79=_Dados!$A$70,_Dados!$A$79=_Dados!$A$72,_Dados!$A$79=_Dados!$A$73)),"VERDADEIRO", AND(F57=_Dados!$A$61,_Dados!$A$79<>"",OR(_Dados!$A$79=_Dados!$A$61,_Dados!$A$79=_Dados!$A$64,_Dados!$A$79=_Dados!$A$66,_Dados!$A$79=_Dados!$A$68,_Dados!$A$79=_Dados!$A$69,_Dados!$A$79=_Dados!$A$71,_Dados!$A$79=_Dados!$A$72,_Dados!$A$79=_Dados!$A$73)),"VERDADEIRO", AND(F57=_Dados!$A$62,_Dados!$A$79<>"",OR(_Dados!$A$79=_Dados!$A$62,_Dados!$A$79=_Dados!$A$65,_Dados!$A$79=_Dados!$A$67,_Dados!$A$79=_Dados!$A$68,_Dados!$A$79=_Dados!$A$70,_Dados!$A$79=_Dados!$A$71,_Dados!$A$79=_Dados!$A$72,_Dados!$A$79=_Dados!$A$73)),"VERDADEIRO", AND(F57=_Dados!$A$63,_Dados!$A$79<>"",AND(_Dados!$A$79<>_Dados!$A$61,_Dados!$A$79<>_Dados!$A$62,_Dados!$A$79<>_Dados!$A$68)),"VERDADEIRO", AND(F57=_Dados!$A$64,_Dados!$A$79<>"",AND(_Dados!$A$79<>_Dados!$A$60,_Dados!$A$79<>_Dados!$A$62,_Dados!$A$79<>_Dados!$A$67)),"VERDADEIRO", AND(F57=_Dados!$A$65,_Dados!$A$79<>"",AND(_Dados!$A$79<>_Dados!$A$60,_Dados!$A$79<>_Dados!$A$61,_Dados!$A$79<>_Dados!$A$66)),"VERDADEIRO", AND(F57=_Dados!$A$66,_Dados!$A$79<>"",AND(_Dados!$A$79<>_Dados!$A$59,_Dados!$A$79<>_Dados!$A$61,_Dados!$A$79<>_Dados!$A$65)),"VERDADEIRO", AND(F57=_Dados!$A$67,_Dados!$A$79<>"",AND(_Dados!$A$79<>_Dados!$A$59,_Dados!$A$79<>_Dados!$A$61,_Dados!$A$79<>_Dados!$A$64)),"VERDADEIRO", AND(F57=_Dados!$A$68,_Dados!$A$79<>"",AND(_Dados!$A$79<>_Dados!$A$59,_Dados!$A$79<>_Dados!$A$60,_Dados!$A$79<>_Dados!$A$63)),"VERDADEIRO", AND(F57=_Dados!$A$69,_Dados!$A$79<>"",_Dados!$A$79<>_Dados!$A$62),"VERDADEIRO", AND(F57=_Dados!$A$70,_Dados!$A$79<>"",_Dados!$A$79<>_Dados!$A$61),"VERDADEIRO", AND(F57=_Dados!$A$71,_Dados!$A$79<>"",_Dados!$A$79<>_Dados!$A$60),"VERDADEIRO", AND(F57=_Dados!$A$72,_Dados!$A$79<>"",_Dados!$A$79<>_Dados!$A$59),"VERDADEIRO", AND(F57=_Dados!$A$73,_Dados!$A$79<>""),"VERDADEIRO"),"FALSO") -> FALSO | O57: Não | P57: 0 | Q57: 0
A58: =A57+1 -> 41 | B58: Social | C58: Comunidade afetada e do entorno | D58: Apresenta um Plano de Engajamento de Partes Interessadas que seja (i) dimensionado de acordo com os riscos e impactos e com a fase de desenvolvimento do projeto e (ii) alinhado às características e aos interesses das Comunidades Afetadas? Caso a localidade de implementação do projeto ainda não seja conhecida, deverá apresentar uma Estrutura de Engajamento de Partes Interessadas como parte do programa de gestão, descrevendo princípios gerais e uma estratégia para identificar Comunidades Afetadas e outras partes interessadas relevantes, bem como um plano para um processo de engajamento. | E58: Satisfatório | F58: Estudos de Estruturação da Concessão; Licitação da Concessão; Implementação; Operação | J58: =IFERROR( VLOOKUP( C58,_Dados!B:F, MATCH( IF( AND(_Dados!$A$79<>_Dados!$A$59,_Dados!$A$79<>_Dados!$A$60,_Dados!$A$79<>_Dados!$A$61,_Dados!$A$79<>_Dados!$A$62), _Dados!$C$17,_Dados!$A$79), _Dados!B$17:F$17,0), 0), "") -> 2 | K58: =IFERROR(VLOOKUP(E58,_Dados!A:B,2,0),"") -> 1 | L58: =IFERROR(VLOOKUP(G58,_Dados!A:B,2,0),"") ->  | M58: VERDADEIRO | N58: =IFERROR(_xlfn.IFS( AND(F58=_Dados!$A$59,_Dados!$A$79<>"",OR(_Dados!$A$79=_Dados!$A$59,_Dados!$A$79=_Dados!$A$63,_Dados!$A$79=_Dados!$A$64,_Dados!$A$79=_Dados!$A$65,_Dados!$A$79=_Dados!$A$69,_Dados!$A$79=_Dados!$A$70,_Dados!$A$79=_Dados!$A$71,_Dados!$A$79=_Dados!$A$73)),"VERDADEIRO", AND(F58=_Dados!$A$60,_Dados!$A$79<>"",OR(_Dados!$A$79=_Dados!$A$60,_Dados!$A$79=_Dados!$A$63,_Dados!$A$79=_Dados!$A$66,_Dados!$A$79=_Dados!$A$67,_Dados!$A$79=_Dados!$A$69,_Dados!$A$79=_Dados!$A$70,_Dados!$A$79=_Dados!$A$72,_Dados!$A$79=_Dados!$A$73)),"VERDADEIRO", AND(F58=_Dados!$A$61,_Dados!$A$79<>"",OR(_Dados!$A$79=_Dados!$A$61,_Dados!$A$79=_Dados!$A$64,_Dados!$A$79=_Dados!$A$66,_Dados!$A$79=_Dados!$A$68,_Dados!$A$79=_Dados!$A$69,_Dados!$A$79=_Dados!$A$71,_Dados!$A$79=_Dados!$A$72,_Dados!$A$79=_Dados!$A$73)),"VERDADEIRO", AND(F58=_Dados!$A$62,_Dados!$A$79<>"",OR(_Dados!$A$79=_Dados!$A$62,_Dados!$A$79=_Dados!$A$65,_Dados!$A$79=_Dados!$A$67,_Dados!$A$79=_Dados!$A$68,_Dados!$A$79=_Dados!$A$70,_Dados!$A$79=_Dados!$A$71,_Dados!$A$79=_Dados!$A$72,_Dados!$A$79=_Dados!$A$73)),"VERDADEIRO", AND(F58=_Dados!$A$63,_Dados!$A$79<>"",AND(_Dados!$A$79<>_Dados!$A$61,_Dados!$A$79<>_Dados!$A$62,_Dados!$A$79<>_Dados!$A$68)),"VERDADEIRO", AND(F58=_Dados!$A$64,_Dados!$A$79<>"",AND(_Dados!$A$79<>_Dados!$A$60,_Dados!$A$79<>_Dados!$A$62,_Dados!$A$79<>_Dados!$A$67)),"VERDADEIRO", AND(F58=_Dados!$A$65,_Dados!$A$79<>"",AND(_Dados!$A$79<>_Dados!$A$60,_Dados!$A$79<>_Dados!$A$61,_Dados!$A$79<>_Dados!$A$66)),"VERDADEIRO", AND(F58=_Dados!$A$66,_Dados!$A$79<>"",AND(_Dados!$A$79<>_Dados!$A$59,_Dados!$A$79<>_Dados!$A$61,_Dados!$A$79<>_Dados!$A$65)),"VERDADEIRO", AND(F58=_Dados!$A$67,_Dados!$A$79<>"",AND(_Dados!$A$79<>_Dados!$A$59,_Dados!$A$79<>_Dados!$A$61,_Dados!$A$79<>_Dados!$A$64)),"VERDADEIRO", AND(F58=_Dados!$A$68,_Dados!$A$79<>"",AND(_Dados!$A$79<>_Dados!$A$59,_Dados!$A$79<>_Dados!$A$60,_Dados!$A$79<>_Dados!$A$63)),"VERDADEIRO", AND(F58=_Dados!$A$69,_Dados!$A$79<>"",_Dados!$A$79<>_Dados!$A$62),"VERDADEIRO", AND(F58=_Dados!$A$70,_Dados!$A$79<>"",_Dados!$A$79<>_Dados!$A$61),"VERDADEIRO", AND(F58=_Dados!$A$71,_Dados!$A$79<>"",_Dados!$A$79<>_Dados!$A$60),"VERDADEIRO", AND(F58=_Dados!$A$72,_Dados!$A$79<>"",_Dados!$A$79<>_Dados!$A$59),"VERDADEIRO", AND(F58=_Dados!$A$73,_Dados!$A$79<>""),"VERDADEIRO"),"FALSO") -> FALSO | O58: Não | P58: 0 | Q58: 0
A59: 42 | B59: Social | C59: Comunidade afetada e do entorno | D59: Apresenta um plano de preparo e resposta a emergências que preveja medidas voltadas às comunidades do entorno? | E59: Satisfatório | F59: Estudos de Estruturação da Concessão; Licitação da Concessão; Implementação; Operação | J59: =IFERROR( VLOOKUP( C59,_Dados!B:F, MATCH( IF( AND(_Dados!$A$79<>_Dados!$A$59,_Dados!$A$79<>_Dados!$A$60,_Dados!$A$79<>_Dados!$A$61,_Dados!$A$79<>_Dados!$A$62), _Dados!$C$17,_Dados!$A$79), _Dados!B$17:F$17,0), 0), "") -> 2 | K59: =IFERROR(VLOOKUP(E59,_Dados!A:B,2,0),"") -> 1 | L59: =IFERROR(VLOOKUP(G59,_Dados!A:B,2,0),"") ->  | M59: VERDADEIRO | N59: =IFERROR(_xlfn.IFS( AND(F59=_Dados!$A$59,_Dados!$A$79<>"",OR(_Dados!$A$79=_Dados!$A$59,_Dados!$A$79=_Dados!$A$63,_Dados!$A$79=_Dados!$A$64,_Dados!$A$79=_Dados!$A$65,_Dados!$A$79=_Dados!$A$69,_Dados!$A$79=_Dados!$A$70,_Dados!$A$79=_Dados!$A$71,_Dados!$A$79=_Dados!$A$73)),"VERDADEIRO", AND(F59=_Dados!$A$60,_Dados!$A$79<>"",OR(_Dados!$A$79=_Dados!$A$60,_Dados!$A$79=_Dados!$A$63,_Dados!$A$79=_Dados!$A$66,_Dados!$A$79=_Dados!$A$67,_Dados!$A$79=_Dados!$A$69,_Dados!$A$79=_Dados!$A$70,_Dados!$A$79=_Dados!$A$72,_Dados!$A$79=_Dados!$A$73)),"VERDADEIRO", AND(F59=_Dados!$A$61,_Dados!$A$79<>"",OR(_Dados!$A$79=_Dados!$A$61,_Dados!$A$79=_Dados!$A$64,_Dados!$A$79=_Dados!$A$66,_Dados!$A$79=_Dados!$A$68,_Dados!$A$79=_Dados!$A$69,_Dados!$A$79=_Dados!$A$71,_Dados!$A$79=_Dados!$A$72,_Dados!$A$79=_Dados!$A$73)),"VERDADEIRO", AND(F59=_Dados!$A$62,_Dados!$A$79<>"",OR(_Dados!$A$79=_Dados!$A$62,_Dados!$A$79=_Dados!$A$65,_Dados!$A$79=_Dados!$A$67,_Dados!$A$79=_Dados!$A$68,_Dados!$A$79=_Dados!$A$70,_Dados!$A$79=_Dados!$A$71,_Dados!$A$79=_Dados!$A$72,_Dados!$A$79=_Dados!$A$73)),"VERDADEIRO", AND(F59=_Dados!$A$63,_Dados!$A$79<>"",AND(_Dados!$A$79<>_Dados!$A$61,_Dados!$A$79<>_Dados!$A$62,_Dados!$A$79<>_Dados!$A$68)),"VERDADEIRO", AND(F59=_Dados!$A$64,_Dados!$A$79<>"",AND(_Dados!$A$79<>_Dados!$A$60,_Dados!$A$79<>_Dados!$A$62,_Dados!$A$79<>_Dados!$A$67)),"VERDADEIRO", AND(F59=_Dados!$A$65,_Dados!$A$79<>"",AND(_Dados!$A$79<>_Dados!$A$60,_Dados!$A$79<>_Dados!$A$61,_Dados!$A$79<>_Dados!$A$66)),"VERDADEIRO", AND(F59=_Dados!$A$66,_Dados!$A$79<>"",AND(_Dados!$A$79<>_Dados!$A$59,_Dados!$A$79<>_Dados!$A$61,_Dados!$A$79<>_Dados!$A$65)),"VERDADEIRO", AND(F59=_Dados!$A$67,_Dados!$A$79<>"",AND(_Dados!$A$79<>_Dados!$A$59,_Dados!$A$79<>_Dados!$A$61,_Dados!$A$79<>_Dados!$A$64)),"VERDADEIRO", AND(F59=_Dados!$A$68,_Dados!$A$79<>"",AND(_Dados!$A$79<>_Dados!$A$59,_Dados!$A$79<>_Dados!$A$60,_Dados!$A$79<>_Dados!$A$63)),"VERDADEIRO", AND(F59=_Dados!$A$69,_Dados!$A$79<>"",_Dados!$A$79<>_Dados!$A$62),"VERDADEIRO", AND(F59=_Dados!$A$70,_Dados!$A$79<>"",_Dados!$A$79<>_Dados!$A$61),"VERDADEIRO", AND(F59=_Dados!$A$71,_Dados!$A$79<>"",_Dados!$A$79<>_Dados!$A$60),"VERDADEIRO", AND(F59=_Dados!$A$72,_Dados!$A$79<>"",_Dados!$A$79<>_Dados!$A$59),"VERDADEIRO", AND(F59=_Dados!$A$73,_Dados!$A$79<>""),"VERDADEIRO"),"FALSO") -> FALSO | O59: Não | P59: 0 | Q59: 0
A60: 43 | B60: Social | C60: Comunidade afetada e do entorno | D60: Divulga o número de instalações em ou perto de áreas de alta densidade populacional? | E60: Satisfatório | F60: Estudos de Estruturação da Concessão; Licitação da Concessão; Implementação; Operação | J60: =IFERROR( VLOOKUP( C60,_Dados!B:F, MATCH( IF( AND(_Dados!$A$79<>_Dados!$A$59,_Dados!$A$79<>_Dados!$A$60,_Dados!$A$79<>_Dados!$A$61,_Dados!$A$79<>_Dados!$A$62), _Dados!$C$17,_Dados!$A$79), _Dados!B$17:F$17,0), 0), "") -> 2 | K60: =IFERROR(VLOOKUP(E60,_Dados!A:B,2,0),"") -> 1 | L60: =IFERROR(VLOOKUP(G60,_Dados!A:B,2,0),"") ->  | M60: VERDADEIRO | N60: =IFERROR(_xlfn.IFS( AND(F60=_Dados!$A$59,_Dados!$A$79<>"",OR(_Dados!$A$79=_Dados!$A$59,_Dados!$A$79=_Dados!$A$63,_Dados!$A$79=_Dados!$A$64,_Dados!$A$79=_Dados!$A$65,_Dados!$A$79=_Dados!$A$69,_Dados!$A$79=_Dados!$A$70,_Dados!$A$79=_Dados!$A$71,_Dados!$A$79=_Dados!$A$73)),"VERDADEIRO", AND(F60=_Dados!$A$60,_Dados!$A$79<>"",OR(_Dados!$A$79=_Dados!$A$60,_Dados!$A$79=_Dados!$A$63,_Dados!$A$79=_Dados!$A$66,_Dados!$A$79=_Dados!$A$67,_Dados!$A$79=_Dados!$A$69,_Dados!$A$79=_Dados!$A$70,_Dados!$A$79=_Dados!$A$72,_Dados!$A$79=_Dados!$A$73)),"VERDADEIRO", AND(F60=_Dados!$A$61,_Dados!$A$79<>"",OR(_Dados!$A$79=_Dados!$A$61,_Dados!$A$79=_Dados!$A$64,_Dados!$A$79=_Dados!$A$66,_Dados!$A$79=_Dados!$A$68,_Dados!$A$79=_Dados!$A$69,_Dados!$A$79=_Dados!$A$71,_Dados!$A$79=_Dados!$A$72,_Dados!$A$79=_Dados!$A$73)),"VERDADEIRO", AND(F60=_Dados!$A$62,_Dados!$A$79<>"",OR(_Dados!$A$79=_Dados!$A$62,_Dados!$A$79=_Dados!$A$65,_Dados!$A$79=_Dados!$A$67,_Dados!$A$79=_Dados!$A$68,_Dados!$A$79=_Dados!$A$70,_Dados!$A$79=_Dados!$A$71,_Dados!$A$79=_Dados!$A$72,_Dados!$A$79=_Dados!$A$73)),"VERDADEIRO", AND(F60=_Dados!$A$63,_Dados!$A$79<>"",AND(_Dados!$A$79<>_Dados!$A$61,_Dados!$A$79<>_Dados!$A$62,_Dados!$A$79<>_Dados!$A$68)),"VERDADEIRO", AND(F60=_Dados!$A$64,_Dados!$A$79<>"",AND(_Dados!$A$79<>_Dados!$A$60,_Dados!$A$79<>_Dados!$A$62,_Dados!$A$79<>_Dados!$A$67)),"VERDADEIRO", AND(F60=_Dados!$A$65,_Dados!$A$79<>"",AND(_Dados!$A$79<>_Dados!$A$60,_Dados!$A$79<>_Dados!$A$61,_Dados!$A$79<>_Dados!$A$66)),"VERDADEIRO", AND(F60=_Dados!$A$66,_Dados!$A$79<>"",AND(_Dados!$A$79<>_Dados!$A$59,_Dados!$A$79<>_Dados!$A$61,_Dados!$A$79<>_Dados!$A$65)),"VERDADEIRO", AND(F60=_Dados!$A$67,_Dados!$A$79<>"",AND(_Dados!$A$79<>_Dados!$A$59,_Dados!$A$79<>_Dados!$A$61,_Dados!$A$79<>_Dados!$A$64)),"VERDADEIRO", AND(F60=_Dados!$A$68,_Dados!$A$79<>"",AND(_Dados!$A$79<>_Dados!$A$59,_Dados!$A$79<>_Dados!$A$60,_Dados!$A$79<>_Dados!$A$63)),"VERDADEIRO", AND(F60=_Dados!$A$69,_Dados!$A$79<>"",_Dados!$A$79<>_Dados!$A$62),"VERDADEIRO", AND(F60=_Dados!$A$70,_Dados!$A$79<>"",_Dados!$A$79<>_Dados!$A$61),"VERDADEIRO", AND(F60=_Dados!$A$71,_Dados!$A$79<>"",_Dados!$A$79<>_Dados!$A$60),"VERDADEIRO", AND(F60=_Dados!$A$72,_Dados!$A$79<>"",_Dados!$A$79<>_Dados!$A$59),"VERDADEIRO", AND(F60=_Dados!$A$73,_Dados!$A$79<>""),"VERDADEIRO"),"FALSO") -> FALSO | O60: Não | P60: 0 | Q60: 0
A61: 44 | B61: Social | C61: Comunidade afetada e do entorno | D61: Garante a boa operação das unidades de tratamento de resíduos de modo a minimizar odores, que podem ser gerados por gás sulfídrico, oxido nitroso, nitrato de amônia, mercaptanos, entre outros, que são nocivos à saúde humana e provocam grande incomodo nas comunidades de entorno? | E61: Satisfatório | F61: Implementação; Operação | J61: =IFERROR( VLOOKUP( C61,_Dados!B:F, MATCH( IF( AND(_Dados!$A$79<>_Dados!$A$59,_Dados!$A$79<>_Dados!$A$60,_Dados!$A$79<>_Dados!$A$61,_Dados!$A$79<>_Dados!$A$62), _Dados!$C$17,_Dados!$A$79), _Dados!B$17:F$17,0), 0), "") -> 2 | K61: =IFERROR(VLOOKUP(E61,_Dados!A:B,2,0),"") -> 1 | L61: =IFERROR(VLOOKUP(G61,_Dados!A:B,2,0),"") ->  | M61: VERDADEIRO | N61: =IFERROR(_xlfn.IFS( AND(F61=_Dados!$A$59,_Dados!$A$79<>"",OR(_Dados!$A$79=_Dados!$A$59,_Dados!$A$79=_Dados!$A$63,_Dados!$A$79=_Dados!$A$64,_Dados!$A$79=_Dados!$A$65,_Dados!$A$79=_Dados!$A$69,_Dados!$A$79=_Dados!$A$70,_Dados!$A$79=_Dados!$A$71,_Dados!$A$79=_Dados!$A$73)),"VERDADEIRO", AND(F61=_Dados!$A$60,_Dados!$A$79<>"",OR(_Dados!$A$79=_Dados!$A$60,_Dados!$A$79=_Dados!$A$63,_Dados!$A$79=_Dados!$A$66,_Dados!$A$79=_Dados!$A$67,_Dados!$A$79=_Dados!$A$69,_Dados!$A$79=_Dados!$A$70,_Dados!$A$79=_Dados!$A$72,_Dados!$A$79=_Dados!$A$73)),"VERDADEIRO", AND(F61=_Dados!$A$61,_Dados!$A$79<>"",OR(_Dados!$A$79=_Dados!$A$61,_Dados!$A$79=_Dados!$A$64,_Dados!$A$79=_Dados!$A$66,_Dados!$A$79=_Dados!$A$68,_Dados!$A$79=_Dados!$A$69,_Dados!$A$79=_Dados!$A$71,_Dados!$A$79=_Dados!$A$72,_Dados!$A$79=_Dados!$A$73)),"VERDADEIRO", AND(F61=_Dados!$A$62,_Dados!$A$79<>"",OR(_Dados!$A$79=_Dados!$A$62,_Dados!$A$79=_Dados!$A$65,_Dados!$A$79=_Dados!$A$67,_Dados!$A$79=_Dados!$A$68,_Dados!$A$79=_Dados!$A$70,_Dados!$A$79=_Dados!$A$71,_Dados!$A$79=_Dados!$A$72,_Dados!$A$79=_Dados!$A$73)),"VERDADEIRO", AND(F61=_Dados!$A$63,_Dados!$A$79<>"",AND(_Dados!$A$79<>_Dados!$A$61,_Dados!$A$79<>_Dados!$A$62,_Dados!$A$79<>_Dados!$A$68)),"VERDADEIRO", AND(F61=_Dados!$A$64,_Dados!$A$79<>"",AND(_Dados!$A$79<>_Dados!$A$60,_Dados!$A$79<>_Dados!$A$62,_Dados!$A$79<>_Dados!$A$67)),"VERDADEIRO", AND(F61=_Dados!$A$65,_Dados!$A$79<>"",AND(_Dados!$A$79<>_Dados!$A$60,_Dados!$A$79<>_Dados!$A$61,_Dados!$A$79<>_Dados!$A$66)),"VERDADEIRO", AND(F61=_Dados!$A$66,_Dados!$A$79<>"",AND(_Dados!$A$79<>_Dados!$A$59,_Dados!$A$79<>_Dados!$A$61,_Dados!$A$79<>_Dados!$A$65)),"VERDADEIRO", AND(F61=_Dados!$A$67,_Dados!$A$79<>"",AND(_Dados!$A$79<>_Dados!$A$59,_Dados!$A$79<>_Dados!$A$61,_Dados!$A$79<>_Dados!$A$64)),"VERDADEIRO", AND(F61=_Dados!$A$68,_Dados!$A$79<>"",AND(_Dados!$A$79<>_Dados!$A$59,_Dados!$A$79<>_Dados!$A$60,_Dados!$A$79<>_Dados!$A$63)),"VERDADEIRO", AND(F61=_Dados!$A$69,_Dados!$A$79<>"",_Dados!$A$79<>_Dados!$A$62),"VERDADEIRO", AND(F61=_Dados!$A$70,_Dados!$A$79<>"",_Dados!$A$79<>_Dados!$A$61),"VERDADEIRO", AND(F61=_Dados!$A$71,_Dados!$A$79<>"",_Dados!$A$79<>_Dados!$A$60),"VERDADEIRO", AND(F61=_Dados!$A$72,_Dados!$A$79<>"",_Dados!$A$79<>_Dados!$A$59),"VERDADEIRO", AND(F61=_Dados!$A$73,_Dados!$A$79<>""),"VERDADEIRO"),"FALSO") -> FALSO | O61: Não | P61: 0 | Q61: 0
A62: =A61+1.1 -> 45.1 | B62: Social | C62: Comunidade afetada e do entorno | D62: Prevê auditorias específicas para a temática de direitos humanos, incluindo uma avaliação do impacto real e potencial das atividades sobre os direitos humanos, a integração das conclusões em sua atuação a esse respeito; o acompanhamento das respostas e a comunicação de como as consequências negativas são enfrentadas? | E62: Satisfatório | F62: Implementação; Operação | J62: =IFERROR( VLOOKUP( C62,_Dados!B:F, MATCH( IF( AND(_Dados!$A$79<>_Dados!$A$59,_Dados!$A$79<>_Dados!$A$60,_Dados!$A$79<>_Dados!$A$61,_Dados!$A$79<>_Dados!$A$62), _Dados!$C$17,_Dados!$A$79), _Dados!B$17:F$17,0), 0), "") -> 2 | K62: =IFERROR(VLOOKUP(E62,_Dados!A:B,2,0),"") -> 1 | L62: =IFERROR(VLOOKUP(G62,_Dados!A:B,2,0),"") ->  | M62: VERDADEIRO | N62: =IFERROR(_xlfn.IFS( AND(F62=_Dados!$A$59,_Dados!$A$79<>"",OR(_Dados!$A$79=_Dados!$A$59,_Dados!$A$79=_Dados!$A$63,_Dados!$A$79=_Dados!$A$64,_Dados!$A$79=_Dados!$A$65,_Dados!$A$79=_Dados!$A$69,_Dados!$A$79=_Dados!$A$70,_Dados!$A$79=_Dados!$A$71,_Dados!$A$79=_Dados!$A$73)),"VERDADEIRO", AND(F62=_Dados!$A$60,_Dados!$A$79<>"",OR(_Dados!$A$79=_Dados!$A$60,_Dados!$A$79=_Dados!$A$63,_Dados!$A$79=_Dados!$A$66,_Dados!$A$79=_Dados!$A$67,_Dados!$A$79=_Dados!$A$69,_Dados!$A$79=_Dados!$A$70,_Dados!$A$79=_Dados!$A$72,_Dados!$A$79=_Dados!$A$73)),"VERDADEIRO", AND(F62=_Dados!$A$61,_Dados!$A$79<>"",OR(_Dados!$A$79=_Dados!$A$61,_Dados!$A$79=_Dados!$A$64,_Dados!$A$79=_Dados!$A$66,_Dados!$A$79=_Dados!$A$68,_Dados!$A$79=_Dados!$A$69,_Dados!$A$79=_Dados!$A$71,_Dados!$A$79=_Dados!$A$72,_Dados!$A$79=_Dados!$A$73)),"VERDADEIRO", AND(F62=_Dados!$A$62,_Dados!$A$79<>"",OR(_Dados!$A$79=_Dados!$A$62,_Dados!$A$79=_Dados!$A$65,_Dados!$A$79=_Dados!$A$67,_Dados!$A$79=_Dados!$A$68,_Dados!$A$79=_Dados!$A$70,_Dados!$A$79=_Dados!$A$71,_Dados!$A$79=_Dados!$A$72,_Dados!$A$79=_Dados!$A$73)),"VERDADEIRO", AND(F62=_Dados!$A$63,_Dados!$A$79<>"",AND(_Dados!$A$79<>_Dados!$A$61,_Dados!$A$79<>_Dados!$A$62,_Dados!$A$79<>_Dados!$A$68)),"VERDADEIRO", AND(F62=_Dados!$A$64,_Dados!$A$79<>"",AND(_Dados!$A$79<>_Dados!$A$60,_Dados!$A$79<>_Dados!$A$62,_Dados!$A$79<>_Dados!$A$67)),"VERDADEIRO", AND(F62=_Dados!$A$65,_Dados!$A$79<>"",AND(_Dados!$A$79<>_Dados!$A$60,_Dados!$A$79<>_Dados!$A$61,_Dados!$A$79<>_Dados!$A$66)),"VERDADEIRO", AND(F62=_Dados!$A$66,_Dados!$A$79<>"",AND(_Dados!$A$79<>_Dados!$A$59,_Dados!$A$79<>_Dados!$A$61,_Dados!$A$79<>_Dados!$A$65)),"VERDADEIRO", AND(F62=_Dados!$A$67,_Dados!$A$79<>"",AND(_Dados!$A$79<>_Dados!$A$59,_Dados!$A$79<>_Dados!$A$61,_Dados!$A$79<>_Dados!$A$64)),"VERDADEIRO", AND(F62=_Dados!$A$68,_Dados!$A$79<>"",AND(_Dados!$A$79<>_Dados!$A$59,_Dados!$A$79<>_Dados!$A$60,_Dados!$A$79<>_Dados!$A$63)),"VERDADEIRO", AND(F62=_Dados!$A$69,_Dados!$A$79<>"",_Dados!$A$79<>_Dados!$A$62),"VERDADEIRO", AND(F62=_Dados!$A$70,_Dados!$A$79<>"",_Dados!$A$79<>_Dados!$A$61),"VERDADEIRO", AND(F62=_Dados!$A$71,_Dados!$A$79<>"",_Dados!$A$79<>_Dados!$A$60),"VERDADEIRO", AND(F62=_Dados!$A$72,_Dados!$A$79<>"",_Dados!$A$79<>_Dados!$A$59),"VERDADEIRO", AND(F62=_Dados!$A$73,_Dados!$A$79<>""),"VERDADEIRO"),"FALSO") -> FALSO | O62: Não | P62: =IF(O62="Não",0,(0.5*((J62*K62*1)/(J62*K62*1)))) -> 0 | Q62: =_xlfn.IFS( O62="Não",0, G62="",999, G62="Não",0, G62="Sim",(J62*K62*L62)/(J62*K62*L62)*P62 ) -> 0
A63: =A62+0.1 -> 45.2 | B63: Social | C63: Comunidade afetada e do entorno | D63: A auditoria sobre direitos humanos abrange os impactos negativos sobre os direitos humanos que tenham sido causados ou que tiveram a contribuição do projeto para sua ocorrência por meio de suas próprias atividades, ou que tenham relação direta com suas operações, produtos ou serviços prestados por suas relações comerciais? | E63: Satisfatório | F63: Implementação; Operação | J63: =IFERROR( VLOOKUP( C63,_Dados!B:F, MATCH( IF( AND(_Dados!$A$79<>_Dados!$A$59,_Dados!$A$79<>_Dados!$A$60,_Dados!$A$79<>_Dados!$A$61,_Dados!$A$79<>_Dados!$A$62), _Dados!$C$17,_Dados!$A$79), _Dados!B$17:F$17,0), 0), "") -> 2 | K63: =IFERROR(VLOOKUP(E63,_Dados!A:B,2,0),"") -> 1 | L63: =IFERROR(VLOOKUP(G63,_Dados!A:B,2,0),"") ->  | M63: VERDADEIRO | N63: =IFERROR(_xlfn.IFS( AND(F63=_Dados!$A$59,_Dados!$A$79<>"",OR(_Dados!$A$79=_Dados!$A$59,_Dados!$A$79=_Dados!$A$63,_Dados!$A$79=_Dados!$A$64,_Dados!$A$79=_Dados!$A$65,_Dados!$A$79=_Dados!$A$69,_Dados!$A$79=_Dados!$A$70,_Dados!$A$79=_Dados!$A$71,_Dados!$A$79=_Dados!$A$73)),"VERDADEIRO", AND(F63=_Dados!$A$60,_Dados!$A$79<>"",OR(_Dados!$A$79=_Dados!$A$60,_Dados!$A$79=_Dados!$A$63,_Dados!$A$79=_Dados!$A$66,_Dados!$A$79=_Dados!$A$67,_Dados!$A$79=_Dados!$A$69,_Dados!$A$79=_Dados!$A$70,_Dados!$A$79=_Dados!$A$72,_Dados!$A$79=_Dados!$A$73)),"VERDADEIRO", AND(F63=_Dados!$A$61,_Dados!$A$79<>"",OR(_Dados!$A$79=_Dados!$A$61,_Dados!$A$79=_Dados!$A$64,_Dados!$A$79=_Dados!$A$66,_Dados!$A$79=_Dados!$A$68,_Dados!$A$79=_Dados!$A$69,_Dados!$A$79=_Dados!$A$71,_Dados!$A$79=_Dados!$A$72,_Dados!$A$79=_Dados!$A$73)),"VERDADEIRO", AND(F63=_Dados!$A$62,_Dados!$A$79<>"",OR(_Dados!$A$79=_Dados!$A$62,_Dados!$A$79=_Dados!$A$65,_Dados!$A$79=_Dados!$A$67,_Dados!$A$79=_Dados!$A$68,_Dados!$A$79=_Dados!$A$70,_Dados!$A$79=_Dados!$A$71,_Dados!$A$79=_Dados!$A$72,_Dados!$A$79=_Dados!$A$73)),"VERDADEIRO", AND(F63=_Dados!$A$63,_Dados!$A$79<>"",AND(_Dados!$A$79<>_Dados!$A$61,_Dados!$A$79<>_Dados!$A$62,_Dados!$A$79<>_Dados!$A$68)),"VERDADEIRO", AND(F63=_Dados!$A$64,_Dados!$A$79<>"",AND(_Dados!$A$79<>_Dados!$A$60,_Dados!$A$79<>_Dados!$A$62,_Dados!$A$79<>_Dados!$A$67)),"VERDADEIRO", AND(F63=_Dados!$A$65,_Dados!$A$79<>"",AND(_Dados!$A$79<>_Dados!$A$60,_Dados!$A$79<>_Dados!$A$61,_Dados!$A$79<>_Dados!$A$66)),"VERDADEIRO", AND(F63=_Dados!$A$66,_Dados!$A$79<>"",AND(_Dados!$A$79<>_Dados!$A$59,_Dados!$A$79<>_Dados!$A$61,_Dados!$A$79<>_Dados!$A$65)),"VERDADEIRO", AND(F63=_Dados!$A$67,_Dados!$A$79<>"",AND(_Dados!$A$79<>_Dados!$A$59,_Dados!$A$79<>_Dados!$A$61,_Dados!$A$79<>_Dados!$A$64)),"VERDADEIRO", AND(F63=_Dados!$A$68,_Dados!$A$79<>"",AND(_Dados!$A$79<>_Dados!$A$59,_Dados!$A$79<>_Dados!$A$60,_Dados!$A$79<>_Dados!$A$63)),"VERDADEIRO", AND(F63=_Dados!$A$69,_Dados!$A$79<>"",_Dados!$A$79<>_Dados!$A$62),"VERDADEIRO", AND(F63=_Dados!$A$70,_Dados!$A$79<>"",_Dados!$A$79<>_Dados!$A$61),"VERDADEIRO", AND(F63=_Dados!$A$71,_Dados!$A$79<>"",_Dados!$A$79<>_Dados!$A$60),"VERDADEIRO", AND(F63=_Dados!$A$72,_Dados!$A$79<>"",_Dados!$A$79<>_Dados!$A$59),"VERDADEIRO", AND(F63=_Dados!$A$73,_Dados!$A$79<>""),"VERDADEIRO"),"FALSO") -> FALSO | O63: Não | P63: =IF(O63="Não",0,(0.5*((J63*K63*1)/(J63*K63*1)))) -> 0 | Q63: =_xlfn.IFS( O63="Não",0, G63="",999, G63="Não",0, G63="Sim",(J63*K63*L63)/(J63*K63*L63)*P63 ) -> 0
A64: =A61+2 -> 46 | B64: Social | C64: Comunidade afetada e do entorno | D64: Se, excepcionalmente, o translado e o reassentamento de povos indígenas e comunidades tradicionais forem considerados necessários, só poderão ser efetuados com o consentimento dos mesmos, concedido livremente e com pleno conhecimento de causa. Quando não for possível obter o seu consentimento, o translado e o reassentamento são realizados após a conclusão de procedimentos adequados estabelecidos pela legislação nacional? | E64: Satisfatório | F64: Estudos de Estruturação da Concessão; Licitação da Concessão; Implementação; Operação | J64: =IFERROR( VLOOKUP( C64,_Dados!B:F, MATCH( IF( AND(_Dados!$A$79<>_Dados!$A$59,_Dados!$A$79<>_Dados!$A$60,_Dados!$A$79<>_Dados!$A$61,_Dados!$A$79<>_Dados!$A$62), _Dados!$C$17,_Dados!$A$79), _Dados!B$17:F$17,0), 0), "") -> 2 | K64: =IFERROR(VLOOKUP(E64,_Dados!A:B,2,0),"") -> 1 | L64: =IFERROR(VLOOKUP(G64,_Dados!A:B,2,0),"") ->  | M64: VERDADEIRO | N64: =IFERROR(_xlfn.IFS( AND(F64=_Dados!$A$59,_Dados!$A$79<>"",OR(_Dados!$A$79=_Dados!$A$59,_Dados!$A$79=_Dados!$A$63,_Dados!$A$79=_Dados!$A$64,_Dados!$A$79=_Dados!$A$65,_Dados!$A$79=_Dados!$A$69,_Dados!$A$79=_Dados!$A$70,_Dados!$A$79=_Dados!$A$71,_Dados!$A$79=_Dados!$A$73)),"VERDADEIRO", AND(F64=_Dados!$A$60,_Dados!$A$79<>"",OR(_Dados!$A$79=_Dados!$A$60,_Dados!$A$79=_Dados!$A$63,_Dados!$A$79=_Dados!$A$66,_Dados!$A$79=_Dados!$A$67,_Dados!$A$79=_Dados!$A$69,_Dados!$A$79=_Dados!$A$70,_Dados!$A$79=_Dados!$A$72,_Dados!$A$79=_Dados!$A$73)),"VERDADEIRO", AND(F64=_Dados!$A$61,_Dados!$A$79<>"",OR(_Dados!$A$79=_Dados!$A$61,_Dados!$A$79=_Dados!$A$64,_Dados!$A$79=_Dados!$A$66,_Dados!$A$79=_Dados!$A$68,_Dados!$A$79=_Dados!$A$69,_Dados!$A$79=_Dados!$A$71,_Dados!$A$79=_Dados!$A$72,_Dados!$A$79=_Dados!$A$73)),"VERDADEIRO", AND(F64=_Dados!$A$62,_Dados!$A$79<>"",OR(_Dados!$A$79=_Dados!$A$62,_Dados!$A$79=_Dados!$A$65,_Dados!$A$79=_Dados!$A$67,_Dados!$A$79=_Dados!$A$68,_Dados!$A$79=_Dados!$A$70,_Dados!$A$79=_Dados!$A$71,_Dados!$A$79=_Dados!$A$72,_Dados!$A$79=_Dados!$A$73)),"VERDADEIRO", AND(F64=_Dados!$A$63,_Dados!$A$79<>"",AND(_Dados!$A$79<>_Dados!$A$61,_Dados!$A$79<>_Dados!$A$62,_Dados!$A$79<>_Dados!$A$68)),"VERDADEIRO", AND(F64=_Dados!$A$64,_Dados!$A$79<>"",AND(_Dados!$A$79<>_Dados!$A$60,_Dados!$A$79<>_Dados!$A$62,_Dados!$A$79<>_Dados!$A$67)),"VERDADEIRO", AND(F64=_Dados!$A$65,_Dados!$A$79<>"",AND(_Dados!$A$79<>_Dados!$A$60,_Dados!$A$79<>_Dados!$A$61,_Dados!$A$79<>_Dados!$A$66)),"VERDADEIRO", AND(F64=_Dados!$A$66,_Dados!$A$79<>"",AND(_Dados!$A$79<>_Dados!$A$59,_Dados!$A$79<>_Dados!$A$61,_Dados!$A$79<>_Dados!$A$65)),"VERDADEIRO", AND(F64=_Dados!$A$67,_Dados!$A$79<>"",AND(_Dados!$A$79<>_Dados!$A$59,_Dados!$A$79<>_Dados!$A$61,_Dados!$A$79<>_Dados!$A$64)),"VERDADEIRO", AND(F64=_Dados!$A$68,_Dados!$A$79<>"",AND(_Dados!$A$79<>_Dados!$A$59,_Dados!$A$79<>_Dados!$A$60,_Dados!$A$79<>_Dados!$A$63)),"VERDADEIRO", AND(F64=_Dados!$A$69,_Dados!$A$79<>"",_Dados!$A$79<>_Dados!$A$62),"VERDADEIRO", AND(F64=_Dados!$A$70,_Dados!$A$79<>"",_Dados!$A$79<>_Dados!$A$61),"VERDADEIRO", AND(F64=_Dados!$A$71,_Dados!$A$79<>"",_Dados!$A$79<>_Dados!$A$60),"VERDADEIRO", AND(F64=_Dados!$A$72,_Dados!$A$79<>"",_Dados!$A$79<>_Dados!$A$59),"VERDADEIRO", AND(F64=_Dados!$A$73,_Dados!$A$79<>""),"VERDADEIRO"),"FALSO") -> FALSO | O64: Não | P64: =IF(O64="Não",0,J64*K64*1) -> 0 | Q64: =IFERROR(IF(O64="Não",0,J64*K64*L64),999) -> 0
A65: =A64+1 -> 47 | B65: Social | C65: Comunidade afetada e do entorno | D65: Apresenta um mecanismo de reclamação para receber e facilitar a solução de preocupações e reclamações das Comunidades Afetadas sobre o desempenho socioambiental do projeto? | E65: Robusto | F65: Estudos de Estruturação da Concessão; Licitação da Concessão; Implementação; Operação | J65: =IFERROR( VLOOKUP( C65,_Dados!B:F, MATCH( IF( AND(_Dados!$A$79<>_Dados!$A$59,_Dados!$A$79<>_Dados!$A$60,_Dados!$A$79<>_Dados!$A$61,_Dados!$A$79<>_Dados!$A$62), _Dados!$C$17,_Dados!$A$79), _Dados!B$17:F$17,0), 0), "") -> 2 | K65: =IFERROR(VLOOKUP(E65,_Dados!A:B,2,0),"") -> 1.5 | L65: =IFERROR(VLOOKUP(G65,_Dados!A:B,2,0),"") ->  | M65: VERDADEIRO | N65: =IFERROR(_xlfn.IFS( AND(F65=_Dados!$A$59,_Dados!$A$79<>"",OR(_Dados!$A$79=_Dados!$A$59,_Dados!$A$79=_Dados!$A$63,_Dados!$A$79=_Dados!$A$64,_Dados!$A$79=_Dados!$A$65,_Dados!$A$79=_Dados!$A$69,_Dados!$A$79=_Dados!$A$70,_Dados!$A$79=_Dados!$A$71,_Dados!$A$79=_Dados!$A$73)),"VERDADEIRO", AND(F65=_Dados!$A$60,_Dados!$A$79<>"",OR(_Dados!$A$79=_Dados!$A$60,_Dados!$A$79=_Dados!$A$63,_Dados!$A$79=_Dados!$A$66,_Dados!$A$79=_Dados!$A$67,_Dados!$A$79=_Dados!$A$69,_Dados!$A$79=_Dados!$A$70,_Dados!$A$79=_Dados!$A$72,_Dados!$A$79=_Dados!$A$73)),"VERDADEIRO", AND(F65=_Dados!$A$61,_Dados!$A$79<>"",OR(_Dados!$A$79=_Dados!$A$61,_Dados!$A$79=_Dados!$A$64,_Dados!$A$79=_Dados!$A$66,_Dados!$A$79=_Dados!$A$68,_Dados!$A$79=_Dados!$A$69,_Dados!$A$79=_Dados!$A$71,_Dados!$A$79=_Dados!$A$72,_Dados!$A$79=_Dados!$A$73)),"VERDADEIRO", AND(F65=_Dados!$A$62,_Dados!$A$79<>"",OR(_Dados!$A$79=_Dados!$A$62,_Dados!$A$79=_Dados!$A$65,_Dados!$A$79=_Dados!$A$67,_Dados!$A$79=_Dados!$A$68,_Dados!$A$79=_Dados!$A$70,_Dados!$A$79=_Dados!$A$71,_Dados!$A$79=_Dados!$A$72,_Dados!$A$79=_Dados!$A$73)),"VERDADEIRO", AND(F65=_Dados!$A$63,_Dados!$A$79<>"",AND(_Dados!$A$79<>_Dados!$A$61,_Dados!$A$79<>_Dados!$A$62,_Dados!$A$79<>_Dados!$A$68)),"VERDADEIRO", AND(F65=_Dados!$A$64,_Dados!$A$79<>"",AND(_Dados!$A$79<>_Dados!$A$60,_Dados!$A$79<>_Dados!$A$62,_Dados!$A$79<>_Dados!$A$67)),"VERDADEIRO", AND(F65=_Dados!$A$65,_Dados!$A$79<>"",AND(_Dados!$A$79<>_Dados!$A$60,_Dados!$A$79<>_Dados!$A$61,_Dados!$A$79<>_Dados!$A$66)),"VERDADEIRO", AND(F65=_Dados!$A$66,_Dados!$A$79<>"",AND(_Dados!$A$79<>_Dados!$A$59,_Dados!$A$79<>_Dados!$A$61,_Dados!$A$79<>_Dados!$A$65)),"VERDADEIRO", AND(F65=_Dados!$A$67,_Dados!$A$79<>"",AND(_Dados!$A$79<>_Dados!$A$59,_Dados!$A$79<>_Dados!$A$61,_Dados!$A$79<>_Dados!$A$64)),"VERDADEIRO", AND(F65=_Dados!$A$68,_Dados!$A$79<>"",AND(_Dados!$A$79<>_Dados!$A$59,_Dados!$A$79<>_Dados!$A$60,_Dados!$A$79<>_Dados!$A$63)),"VERDADEIRO", AND(F65=_Dados!$A$69,_Dados!$A$79<>"",_Dados!$A$79<>_Dados!$A$62),"VERDADEIRO", AND(F65=_Dados!$A$70,_Dados!$A$79<>"",_Dados!$A$79<>_Dados!$A$61),"VERDADEIRO", AND(F65=_Dados!$A$71,_Dados!$A$79<>"",_Dados!$A$79<>_Dados!$A$60),"VERDADEIRO", AND(F65=_Dados!$A$72,_Dados!$A$79<>"",_Dados!$A$79<>_Dados!$A$59),"VERDADEIRO", AND(F65=_Dados!$A$73,_Dados!$A$79<>""),"VERDADEIRO"),"FALSO") -> FALSO | O65: Não | P65: =IF(O65="Não",0,J65*K65*1) -> 0 | Q65: =IFERROR(IF(O65="Não",0,J65*K65*L65),999) -> 0
A66: =A65+1.1 -> 48.1 | B66: Social | C66: Comunidade afetada e do entorno | D66: Apresenta um processo de Consulta Informada e Participação (CIP) para consultar sobre os impactos adversos potencialmente significativos sobre as Comunidades Afetadas, visando captar as opiniões de homens e mulheres por meio de fóruns ou engajamentos separados (gerando dados desagregados)? Caso existam impactos sobre povos indígenas e/ou comunidades tradicionais, eles devem ser incluídos nesse processo. | E66: Robusto | F66: Estudos de Estruturação da Concessão; Licitação da Concessão | J66: =IFERROR( VLOOKUP( C66,_Dados!B:F, MATCH( IF( AND(_Dados!$A$79<>_Dados!$A$59,_Dados!$A$79<>_Dados!$A$60,_Dados!$A$79<>_Dados!$A$61,_Dados!$A$79<>_Dados!$A$62), _Dados!$C$17,_Dados!$A$79), _Dados!B$17:F$17,0), 0), "") -> 2 | K66: =IFERROR(VLOOKUP(E66,_Dados!A:B,2,0),"") -> 1.5 | L66: =IFERROR(VLOOKUP(G66,_Dados!A:B,2,0),"") ->  | M66: VERDADEIRO | N66: =IFERROR(_xlfn.IFS( AND(F66=_Dados!$A$59,_Dados!$A$79<>"",OR(_Dados!$A$79=_Dados!$A$59,_Dados!$A$79=_Dados!$A$63,_Dados!$A$79=_Dados!$A$64,_Dados!$A$79=_Dados!$A$65,_Dados!$A$79=_Dados!$A$69,_Dados!$A$79=_Dados!$A$70,_Dados!$A$79=_Dados!$A$71,_Dados!$A$79=_Dados!$A$73)),"VERDADEIRO", AND(F66=_Dados!$A$60,_Dados!$A$79<>"",OR(_Dados!$A$79=_Dados!$A$60,_Dados!$A$79=_Dados!$A$63,_Dados!$A$79=_Dados!$A$66,_Dados!$A$79=_Dados!$A$67,_Dados!$A$79=_Dados!$A$69,_Dados!$A$79=_Dados!$A$70,_Dados!$A$79=_Dados!$A$72,_Dados!$A$79=_Dados!$A$73)),"VERDADEIRO", AND(F66=_Dados!$A$61,_Dados!$A$79<>"",OR(_Dados!$A$79=_Dados!$A$61,_Dados!$A$79=_Dados!$A$64,_Dados!$A$79=_Dados!$A$66,_Dados!$A$79=_Dados!$A$68,_Dados!$A$79=_Dados!$A$69,_Dados!$A$79=_Dados!$A$71,_Dados!$A$79=_Dados!$A$72,_Dados!$A$79=_Dados!$A$73)),"VERDADEIRO", AND(F66=_Dados!$A$62,_Dados!$A$79<>"",OR(_Dados!$A$79=_Dados!$A$62,_Dados!$A$79=_Dados!$A$65,_Dados!$A$79=_Dados!$A$67,_Dados!$A$79=_Dados!$A$68,_Dados!$A$79=_Dados!$A$70,_Dados!$A$79=_Dados!$A$71,_Dados!$A$79=_Dados!$A$72,_Dados!$A$79=_Dados!$A$73)),"VERDADEIRO", AND(F66=_Dados!$A$63,_Dados!$A$79<>"",AND(_Dados!$A$79<>_Dados!$A$61,_Dados!$A$79<>_Dados!$A$62,_Dados!$A$79<>_Dados!$A$68)),"VERDADEIRO", AND(F66=_Dados!$A$64,_Dados!$A$79<>"",AND(_Dados!$A$79<>_Dados!$A$60,_Dados!$A$79<>_Dados!$A$62,_Dados!$A$79<>_Dados!$A$67)),"VERDADEIRO", AND(F66=_Dados!$A$65,_Dados!$A$79<>"",AND(_Dados!$A$79<>_Dados!$A$60,_Dados!$A$79<>_Dados!$A$61,_Dados!$A$79<>_Dados!$A$66)),"VERDADEIRO", AND(F66=_Dados!$A$66,_Dados!$A$79<>"",AND(_Dados!$A$79<>_Dados!$A$59,_Dados!$A$79<>_Dados!$A$61,_Dados!$A$79<>_Dados!$A$65)),"VERDADEIRO", AND(F66=_Dados!$A$67,_Dados!$A$79<>"",AND(_Dados!$A$79<>_Dados!$A$59,_Dados!$A$79<>_Dados!$A$61,_Dados!$A$79<>_Dados!$A$64)),"VERDADEIRO", AND(F66=_Dados!$A$68,_Dados!$A$79<>"",AND(_Dados!$A$79<>_Dados!$A$59,_Dados!$A$79<>_Dados!$A$60,_Dados!$A$79<>_Dados!$A$63)),"VERDADEIRO", AND(F66=_Dados!$A$69,_Dados!$A$79<>"",_Dados!$A$79<>_Dados!$A$62),"VERDADEIRO", AND(F66=_Dados!$A$70,_Dados!$A$79<>"",_Dados!$A$79<>_Dados!$A$61),"VERDADEIRO", AND(F66=_Dados!$A$71,_Dados!$A$79<>"",_Dados!$A$79<>_Dados!$A$60),"VERDADEIRO", AND(F66=_Dados!$A$72,_Dados!$A$79<>"",_Dados!$A$79<>_Dados!$A$59),"VERDADEIRO", AND(F66=_Dados!$A$73,_Dados!$A$79<>""),"VERDADEIRO"),"FALSO") -> FALSO | O66: Não | P66: =IF(O66="Não",0,(1*((J66*K66*1)/(J66*K66*1)))) -> 0 | Q66: =_xlfn.IFS( O66="Não",0, G66="",999, G66="Não",0, G66="Sim",(J66*K66*L66)/(J66*K66*L66)*P66 ) -> 0
A67: =A66+0.1 -> 48.2 | B67: Social | C67: Comunidade afetada e do entorno | D67: Prevê mecanismos para garantir acessibilidade na participação (em termos de linguagem, canais, horários viáveis, estrutura de apoio e mediação para garantir um espaço seguro e confortável), especialmente para mulheres? | E67: Robusto | F67: Estudos de Estruturação da Concessão; Licitação da Concessão | J67: =IFERROR( VLOOKUP( C67,_Dados!B:F, MATCH( IF( AND(_Dados!$A$79<>_Dados!$A$59,_Dados!$A$79<>_Dados!$A$60,_Dados!$A$79<>_Dados!$A$61,_Dados!$A$79<>_Dados!$A$62), _Dados!$C$17,_Dados!$A$79), _Dados!B$17:F$17,0), 0), "") -> 2 | K67: =IFERROR(VLOOKUP(E67,_Dados!A:B,2,0),"") -> 1.5 | L67: =IFERROR(VLOOKUP(G67,_Dados!A:B,2,0),"") ->  | M67: VERDADEIRO | N67: =IFERROR(_xlfn.IFS( AND(F67=_Dados!$A$59,_Dados!$A$79<>"",OR(_Dados!$A$79=_Dados!$A$59,_Dados!$A$79=_Dados!$A$63,_Dados!$A$79=_Dados!$A$64,_Dados!$A$79=_Dados!$A$65,_Dados!$A$79=_Dados!$A$69,_Dados!$A$79=_Dados!$A$70,_Dados!$A$79=_Dados!$A$71,_Dados!$A$79=_Dados!$A$73)),"VERDADEIRO", AND(F67=_Dados!$A$60,_Dados!$A$79<>"",OR(_Dados!$A$79=_Dados!$A$60,_Dados!$A$79=_Dados!$A$63,_Dados!$A$79=_Dados!$A$66,_Dados!$A$79=_Dados!$A$67,_Dados!$A$79=_Dados!$A$69,_Dados!$A$79=_Dados!$A$70,_Dados!$A$79=_Dados!$A$72,_Dados!$A$79=_Dados!$A$73)),"VERDADEIRO", AND(F67=_Dados!$A$61,_Dados!$A$79<>"",OR(_Dados!$A$79=_Dados!$A$61,_Dados!$A$79=_Dados!$A$64,_Dados!$A$79=_Dados!$A$66,_Dados!$A$79=_Dados!$A$68,_Dados!$A$79=_Dados!$A$69,_Dados!$A$79=_Dados!$A$71,_Dados!$A$79=_Dados!$A$72,_Dados!$A$79=_Dados!$A$73)),"VERDADEIRO", AND(F67=_Dados!$A$62,_Dados!$A$79<>"",OR(_Dados!$A$79=_Dados!$A$62,_Dados!$A$79=_Dados!$A$65,_Dados!$A$79=_Dados!$A$67,_Dados!$A$79=_Dados!$A$68,_Dados!$A$79=_Dados!$A$70,_Dados!$A$79=_Dados!$A$71,_Dados!$A$79=_Dados!$A$72,_Dados!$A$79=_Dados!$A$73)),"VERDADEIRO", AND(F67=_Dados!$A$63,_Dados!$A$79<>"",AND(_Dados!$A$79<>_Dados!$A$61,_Dados!$A$79<>_Dados!$A$62,_Dados!$A$79<>_Dados!$A$68)),"VERDADEIRO", AND(F67=_Dados!$A$64,_Dados!$A$79<>"",AND(_Dados!$A$79<>_Dados!$A$60,_Dados!$A$79<>_Dados!$A$62,_Dados!$A$79<>_Dados!$A$67)),"VERDADEIRO", AND(F67=_Dados!$A$65,_Dados!$A$79<>"",AND(_Dados!$A$79<>_Dados!$A$60,_Dados!$A$79<>_Dados!$A$61,_Dados!$A$79<>_Dados!$A$66)),"VERDADEIRO", AND(F67=_Dados!$A$66,_Dados!$A$79<>"",AND(_Dados!$A$79<>_Dados!$A$59,_Dados!$A$79<>_Dados!$A$61,_Dados!$A$79<>_Dados!$A$65)),"VERDADEIRO", AND(F67=_Dados!$A$67,_Dados!$A$79<>"",AND(_Dados!$A$79<>_Dados!$A$59,_Dados!$A$79<>_Dados!$A$61,_Dados!$A$79<>_Dados!$A$64)),"VERDADEIRO", AND(F67=_Dados!$A$68,_Dados!$A$79<>"",AND(_Dados!$A$79<>_Dados!$A$59,_Dados!$A$79<>_Dados!$A$60,_Dados!$A$79<>_Dados!$A$63)),"VERDADEIRO", AND(F67=_Dados!$A$69,_Dados!$A$79<>"",_Dados!$A$79<>_Dados!$A$62),"VERDADEIRO", AND(F67=_Dados!$A$70,_Dados!$A$79<>"",_Dados!$A$79<>_Dados!$A$61),"VERDADEIRO", AND(F67=_Dados!$A$71,_Dados!$A$79<>"",_Dados!$A$79<>_Dados!$A$60),"VERDADEIRO", AND(F67=_Dados!$A$72,_Dados!$A$79<>"",_Dados!$A$79<>_Dados!$A$59),"VERDADEIRO", AND(F67=_Dados!$A$73,_Dados!$A$79<>""),"VERDADEIRO"),"FALSO") -> FALSO | O67: Não | P67: =IF(O67="Não",0,(0.5*((J67*K67*1)/(J67*K67*1)))) -> 0 | Q67: =_xlfn.IFS( O67="Não",0, G67="",999, G67="Não",0, G67="Sim",(J67*K67*L67)/(J67*K67*L67)*P67 ) -> 0
A68: =A65+2 -> 49 | B68: Social | C68: Comunidade afetada e do entorno | D68: Possui um procedimento para comunicações externas que inclua métodos para: (i) receber e registrar comunicações externas do público; (ii) examinar e avaliar as questões levantadas e determinar a maneira de tratá-las; e (iii) fornecer, monitorar e documentar respostas. | E68: Robusto | F68: Estudos de Estruturação da Concessão; Licitação da Concessão; Implementação; Operação | J68: =IFERROR( VLOOKUP( C68,_Dados!B:F, MATCH( IF( AND(_Dados!$A$79<>_Dados!$A$59,_Dados!$A$79<>_Dados!$A$60,_Dados!$A$79<>_Dados!$A$61,_Dados!$A$79<>_Dados!$A$62), _Dados!$C$17,_Dados!$A$79), _Dados!B$17:F$17,0), 0), "") -> 2 | K68: =IFERROR(VLOOKUP(E68,_Dados!A:B,2,0),"") -> 1.5 | L68: =IFERROR(VLOOKUP(G68,_Dados!A:B,2,0),"") ->  | M68: VERDADEIRO | N68: =IFERROR(_xlfn.IFS( AND(F68=_Dados!$A$59,_Dados!$A$79<>"",OR(_Dados!$A$79=_Dados!$A$59,_Dados!$A$79=_Dados!$A$63,_Dados!$A$79=_Dados!$A$64,_Dados!$A$79=_Dados!$A$65,_Dados!$A$79=_Dados!$A$69,_Dados!$A$79=_Dados!$A$70,_Dados!$A$79=_Dados!$A$71,_Dados!$A$79=_Dados!$A$73)),"VERDADEIRO", AND(F68=_Dados!$A$60,_Dados!$A$79<>"",OR(_Dados!$A$79=_Dados!$A$60,_Dados!$A$79=_Dados!$A$63,_Dados!$A$79=_Dados!$A$66,_Dados!$A$79=_Dados!$A$67,_Dados!$A$79=_Dados!$A$69,_Dados!$A$79=_Dados!$A$70,_Dados!$A$79=_Dados!$A$72,_Dados!$A$79=_Dados!$A$73)),"VERDADEIRO", AND(F68=_Dados!$A$61,_Dados!$A$79<>"",OR(_Dados!$A$79=_Dados!$A$61,_Dados!$A$79=_Dados!$A$64,_Dados!$A$79=_Dados!$A$66,_Dados!$A$79=_Dados!$A$68,_Dados!$A$79=_Dados!$A$69,_Dados!$A$79=_Dados!$A$71,_Dados!$A$79=_Dados!$A$72,_Dados!$A$79=_Dados!$A$73)),"VERDADEIRO", AND(F68=_Dados!$A$62,_Dados!$A$79<>"",OR(_Dados!$A$79=_Dados!$A$62,_Dados!$A$79=_Dados!$A$65,_Dados!$A$79=_Dados!$A$67,_Dados!$A$79=_Dados!$A$68,_Dados!$A$79=_Dados!$A$70,_Dados!$A$79=_Dados!$A$71,_Dados!$A$79=_Dados!$A$72,_Dados!$A$79=_Dados!$A$73)),"VERDADEIRO", AND(F68=_Dados!$A$63,_Dados!$A$79<>"",AND(_Dados!$A$79<>_Dados!$A$61,_Dados!$A$79<>_Dados!$A$62,_Dados!$A$79<>_Dados!$A$68)),"VERDADEIRO", AND(F68=_Dados!$A$64,_Dados!$A$79<>"",AND(_Dados!$A$79<>_Dados!$A$60,_Dados!$A$79<>_Dados!$A$62,_Dados!$A$79<>_Dados!$A$67)),"VERDADEIRO", AND(F68=_Dados!$A$65,_Dados!$A$79<>"",AND(_Dados!$A$79<>_Dados!$A$60,_Dados!$A$79<>_Dados!$A$61,_Dados!$A$79<>_Dados!$A$66)),"VERDADEIRO", AND(F68=_Dados!$A$66,_Dados!$A$79<>"",AND(_Dados!$A$79<>_Dados!$A$59,_Dados!$A$79<>_Dados!$A$61,_Dados!$A$79<>_Dados!$A$65)),"VERDADEIRO", AND(F68=_Dados!$A$67,_Dados!$A$79<>"",AND(_Dados!$A$79<>_Dados!$A$59,_Dados!$A$79<>_Dados!$A$61,_Dados!$A$79<>_Dados!$A$64)),"VERDADEIRO", AND(F68=_Dados!$A$68,_Dados!$A$79<>"",AND(_Dados!$A$79<>_Dados!$A$59,_Dados!$A$79<>_Dados!$A$60,_Dados!$A$79<>_Dados!$A$63)),"VERDADEIRO", AND(F68=_Dados!$A$69,_Dados!$A$79<>"",_Dados!$A$79<>_Dados!$A$62),"VERDADEIRO", AND(F68=_Dados!$A$70,_Dados!$A$79<>"",_Dados!$A$79<>_Dados!$A$61),"VERDADEIRO", AND(F68=_Dados!$A$71,_Dados!$A$79<>"",_Dados!$A$79<>_Dados!$A$60),"VERDADEIRO", AND(F68=_Dados!$A$72,_Dados!$A$79<>"",_Dados!$A$79<>_Dados!$A$59),"VERDADEIRO", AND(F68=_Dados!$A$73,_Dados!$A$79<>""),"VERDADEIRO"),"FALSO") -> FALSO | O68: Não | P68: =IF(O68="Não",0,J68*K68*1) -> 0 | Q68: =IFERROR(IF(O68="Não",0,J68*K68*L68),999) -> 0
A69: =A68+1 -> 50 | B69: Social | C69: Comunidade afetada e do entorno | D69: Prevê a publicação, pelo menos anualmente, de relatórios que descrevam o progresso na implantação das ações sobre questões que envolvam riscos ou impactos contínuos sobre as Comunidades Afetadas e também sobre problemas que o processo de consulta ou mecanismo de reclamação tenha identificado como motivos de preocupação para essas Comunidades? | E69: Robusto | F69: Implementação; Operação | J69: =IFERROR( VLOOKUP( C69,_Dados!B:F, MATCH( IF( AND(_Dados!$A$79<>_Dados!$A$59,_Dados!$A$79<>_Dados!$A$60,_Dados!$A$79<>_Dados!$A$61,_Dados!$A$79<>_Dados!$A$62), _Dados!$C$17,_Dados!$A$79), _Dados!B$17:F$17,0), 0), "") -> 2 | K69: =IFERROR(VLOOKUP(E69,_Dados!A:B,2,0),"") -> 1.5 | L69: =IFERROR(VLOOKUP(G69,_Dados!A:B,2,0),"") ->  | M69: VERDADEIRO | N69: =IFERROR(_xlfn.IFS( AND(F69=_Dados!$A$59,_Dados!$A$79<>"",OR(_Dados!$A$79=_Dados!$A$59,_Dados!$A$79=_Dados!$A$63,_Dados!$A$79=_Dados!$A$64,_Dados!$A$79=_Dados!$A$65,_Dados!$A$79=_Dados!$A$69,_Dados!$A$79=_Dados!$A$70,_Dados!$A$79=_Dados!$A$71,_Dados!$A$79=_Dados!$A$73)),"VERDADEIRO", AND(F69=_Dados!$A$60,_Dados!$A$79<>"",OR(_Dados!$A$79=_Dados!$A$60,_Dados!$A$79=_Dados!$A$63,_Dados!$A$79=_Dados!$A$66,_Dados!$A$79=_Dados!$A$67,_Dados!$A$79=_Dados!$A$69,_Dados!$A$79=_Dados!$A$70,_Dados!$A$79=_Dados!$A$72,_Dados!$A$79=_Dados!$A$73)),"VERDADEIRO", AND(F69=_Dados!$A$61,_Dados!$A$79<>"",OR(_Dados!$A$79=_Dados!$A$61,_Dados!$A$79=_Dados!$A$64,_Dados!$A$79=_Dados!$A$66,_Dados!$A$79=_Dados!$A$68,_Dados!$A$79=_Dados!$A$69,_Dados!$A$79=_Dados!$A$71,_Dados!$A$79=_Dados!$A$72,_Dados!$A$79=_Dados!$A$73)),"VERDADEIRO", AND(F69=_Dados!$A$62,_Dados!$A$79<>"",OR(_Dados!$A$79=_Dados!$A$62,_Dados!$A$79=_Dados!$A$65,_Dados!$A$79=_Dados!$A$67,_Dados!$A$79=_Dados!$A$68,_Dados!$A$79=_Dados!$A$70,_Dados!$A$79=_Dados!$A$71,_Dados!$A$79=_Dados!$A$72,_Dados!$A$79=_Dados!$A$73)),"VERDADEIRO", AND(F69=_Dados!$A$63,_Dados!$A$79<>"",AND(_Dados!$A$79<>_Dados!$A$61,_Dados!$A$79<>_Dados!$A$62,_Dados!$A$79<>_Dados!$A$68)),"VERDADEIRO", AND(F69=_Dados!$A$64,_Dados!$A$79<>"",AND(_Dados!$A$79<>_Dados!$A$60,_Dados!$A$79<>_Dados!$A$62,_Dados!$A$79<>_Dados!$A$67)),"VERDADEIRO", AND(F69=_Dados!$A$65,_Dados!$A$79<>"",AND(_Dados!$A$79<>_Dados!$A$60,_Dados!$A$79<>_Dados!$A$61,_Dados!$A$79<>_Dados!$A$66)),"VERDADEIRO", AND(F69=_Dados!$A$66,_Dados!$A$79<>"",AND(_Dados!$A$79<>_Dados!$A$59,_Dados!$A$79<>_Dados!$A$61,_Dados!$A$79<>_Dados!$A$65)),"VERDADEIRO", AND(F69=_Dados!$A$67,_Dados!$A$79<>"",AND(_Dados!$A$79<>_Dados!$A$59,_Dados!$A$79<>_Dados!$A$61,_Dados!$A$79<>_Dados!$A$64)),"VERDADEIRO", AND(F69=_Dados!$A$68,_Dados!$A$79<>"",AND(_Dados!$A$79<>_Dados!$A$59,_Dados!$A$79<>_Dados!$A$60,_Dados!$A$79<>_Dados!$A$63)),"VERDADEIRO", AND(F69=_Dados!$A$69,_Dados!$A$79<>"",_Dados!$A$79<>_Dados!$A$62),"VERDADEIRO", AND(F69=_Dados!$A$70,_Dados!$A$79<>"",_Dados!$A$79<>_Dados!$A$61),"VERDADEIRO", AND(F69=_Dados!$A$71,_Dados!$A$79<>"",_Dados!$A$79<>_Dados!$A$60),"VERDADEIRO", AND(F69=_Dados!$A$72,_Dados!$A$79<>"",_Dados!$A$79<>_Dados!$A$59),"VERDADEIRO", AND(F69=_Dados!$A$73,_Dados!$A$79<>""),"VERDADEIRO"),"FALSO") -> FALSO | O69: Não | P69: 0 | Q69: 0
A70: =A69+1 -> 51 | B70: Social | C70: Comunidade afetada e do entorno | D70: Prevê, durante seu ciclo de vida, a conformidade de seus fornecedores diretos aos critérios de relacionamento com a comunidade afetada e do entorno apresentados anteriormente, por meio de cláusulas específicas nas contratações, exigência de certificações aplicáveis, suporte aos fornecedores (treinamentos e/ou assistência técnica) e auditorias? | E70: Superior | F70: Estudos de Estruturação da Concessão; Licitação da Concessão; Implementação; Operação | J70: =IFERROR( VLOOKUP( C70,_Dados!B:F, MATCH( IF( AND(_Dados!$A$79<>_Dados!$A$59,_Dados!$A$79<>_Dados!$A$60,_Dados!$A$79<>_Dados!$A$61,_Dados!$A$79<>_Dados!$A$62), _Dados!$C$17,_Dados!$A$79), _Dados!B$17:F$17,0), 0), "") -> 2 | K70: =IFERROR(VLOOKUP(E70,_Dados!A:B,2,0),"") -> 2 | L70: =IFERROR(VLOOKUP(G70,_Dados!A:B,2,0),"") ->  | M70: VERDADEIRO | N70: =IFERROR(_xlfn.IFS( AND(F70=_Dados!$A$59,_Dados!$A$79<>"",OR(_Dados!$A$79=_Dados!$A$59,_Dados!$A$79=_Dados!$A$63,_Dados!$A$79=_Dados!$A$64,_Dados!$A$79=_Dados!$A$65,_Dados!$A$79=_Dados!$A$69,_Dados!$A$79=_Dados!$A$70,_Dados!$A$79=_Dados!$A$71,_Dados!$A$79=_Dados!$A$73)),"VERDADEIRO", AND(F70=_Dados!$A$60,_Dados!$A$79<>"",OR(_Dados!$A$79=_Dados!$A$60,_Dados!$A$79=_Dados!$A$63,_Dados!$A$79=_Dados!$A$66,_Dados!$A$79=_Dados!$A$67,_Dados!$A$79=_Dados!$A$69,_Dados!$A$79=_Dados!$A$70,_Dados!$A$79=_Dados!$A$72,_Dados!$A$79=_Dados!$A$73)),"VERDADEIRO", AND(F70=_Dados!$A$61,_Dados!$A$79<>"",OR(_Dados!$A$79=_Dados!$A$61,_Dados!$A$79=_Dados!$A$64,_Dados!$A$79=_Dados!$A$66,_Dados!$A$79=_Dados!$A$68,_Dados!$A$79=_Dados!$A$69,_Dados!$A$79=_Dados!$A$71,_Dados!$A$79=_Dados!$A$72,_Dados!$A$79=_Dados!$A$73)),"VERDADEIRO", AND(F70=_Dados!$A$62,_Dados!$A$79<>"",OR(_Dados!$A$79=_Dados!$A$62,_Dados!$A$79=_Dados!$A$65,_Dados!$A$79=_Dados!$A$67,_Dados!$A$79=_Dados!$A$68,_Dados!$A$79=_Dados!$A$70,_Dados!$A$79=_Dados!$A$71,_Dados!$A$79=_Dados!$A$72,_Dados!$A$79=_Dados!$A$73)),"VERDADEIRO", AND(F70=_Dados!$A$63,_Dados!$A$79<>"",AND(_Dados!$A$79<>_Dados!$A$61,_Dados!$A$79<>_Dados!$A$62,_Dados!$A$79<>_Dados!$A$68)),"VERDADEIRO", AND(F70=_Dados!$A$64,_Dados!$A$79<>"",AND(_Dados!$A$79<>_Dados!$A$60,_Dados!$A$79<>_Dados!$A$62,_Dados!$A$79<>_Dados!$A$67)),"VERDADEIRO", AND(F70=_Dados!$A$65,_Dados!$A$79<>"",AND(_Dados!$A$79<>_Dados!$A$60,_Dados!$A$79<>_Dados!$A$61,_Dados!$A$79<>_Dados!$A$66)),"VERDADEIRO", AND(F70=_Dados!$A$66,_Dados!$A$79<>"",AND(_Dados!$A$79<>_Dados!$A$59,_Dados!$A$79<>_Dados!$A$61,_Dados!$A$79<>_Dados!$A$65)),"VERDADEIRO", AND(F70=_Dados!$A$67,_Dados!$A$79<>"",AND(_Dados!$A$79<>_Dados!$A$59,_Dados!$A$79<>_Dados!$A$61,_Dados!$A$79<>_Dados!$A$64)),"VERDADEIRO", AND(F70=_Dados!$A$68,_Dados!$A$79<>"",AND(_Dados!$A$79<>_Dados!$A$59,_Dados!$A$79<>_Dados!$A$60,_Dados!$A$79<>_Dados!$A$63)),"VERDADEIRO", AND(F70=_Dados!$A$69,_Dados!$A$79<>"",_Dados!$A$79<>_Dados!$A$62),"VERDADEIRO", AND(F70=_Dados!$A$70,_Dados!$A$79<>"",_Dados!$A$79<>_Dados!$A$61),"VERDADEIRO", AND(F70=_Dados!$A$71,_Dados!$A$79<>"",_Dados!$A$79<>_Dados!$A$60),"VERDADEIRO", AND(F70=_Dados!$A$72,_Dados!$A$79<>"",_Dados!$A$79<>_Dados!$A$59),"VERDADEIRO", AND(F70=_Dados!$A$73,_Dados!$A$79<>""),"VERDADEIRO"),"FALSO") -> FALSO | O70: Não | P70: 0 | Q70: 0
A71: =A70+1 -> 52 | B71: Social | C71: Equidade de gênero e inclusão social | D71: Os sistemas de monitoramento possuem indicadores referentes ao quantitativo de força de trabalho desagregado por sexo e tipo de função (operacional e gestão), que deve ser divulgado em relatório de acesso público? | E71: Satisfatório | F71: Implementação; Operação | J71: =IFERROR( VLOOKUP( C71,_Dados!B:F, MATCH( IF( AND(_Dados!$A$79<>_Dados!$A$59,_Dados!$A$79<>_Dados!$A$60,_Dados!$A$79<>_Dados!$A$61,_Dados!$A$79<>_Dados!$A$62), _Dados!$C$17,_Dados!$A$79), _Dados!B$17:F$17,0), 0), "") -> 1 | K71: =IFERROR(VLOOKUP(E71,_Dados!A:B,2,0),"") -> 1 | L71: =IFERROR(VLOOKUP(G71,_Dados!A:B,2,0),"") ->  | M71: VERDADEIRO | N71: =IFERROR(_xlfn.IFS( AND(F71=_Dados!$A$59,_Dados!$A$79<>"",OR(_Dados!$A$79=_Dados!$A$59,_Dados!$A$79=_Dados!$A$63,_Dados!$A$79=_Dados!$A$64,_Dados!$A$79=_Dados!$A$65,_Dados!$A$79=_Dados!$A$69,_Dados!$A$79=_Dados!$A$70,_Dados!$A$79=_Dados!$A$71,_Dados!$A$79=_Dados!$A$73)),"VERDADEIRO", AND(F71=_Dados!$A$60,_Dados!$A$79<>"",OR(_Dados!$A$79=_Dados!$A$60,_Dados!$A$79=_Dados!$A$63,_Dados!$A$79=_Dados!$A$66,_Dados!$A$79=_Dados!$A$67,_Dados!$A$79=_Dados!$A$69,_Dados!$A$79=_Dados!$A$70,_Dados!$A$79=_Dados!$A$72,_Dados!$A$79=_Dados!$A$73)),"VERDADEIRO", AND(F71=_Dados!$A$61,_Dados!$A$79<>"",OR(_Dados!$A$79=_Dados!$A$61,_Dados!$A$79=_Dados!$A$64,_Dados!$A$79=_Dados!$A$66,_Dados!$A$79=_Dados!$A$68,_Dados!$A$79=_Dados!$A$69,_Dados!$A$79=_Dados!$A$71,_Dados!$A$79=_Dados!$A$72,_Dados!$A$79=_Dados!$A$73)),"VERDADEIRO", AND(F71=_Dados!$A$62,_Dados!$A$79<>"",OR(_Dados!$A$79=_Dados!$A$62,_Dados!$A$79=_Dados!$A$65,_Dados!$A$79=_Dados!$A$67,_Dados!$A$79=_Dados!$A$68,_Dados!$A$79=_Dados!$A$70,_Dados!$A$79=_Dados!$A$71,_Dados!$A$79=_Dados!$A$72,_Dados!$A$79=_Dados!$A$73)),"VERDADEIRO", AND(F71=_Dados!$A$63,_Dados!$A$79<>"",AND(_Dados!$A$79<>_Dados!$A$61,_Dados!$A$79<>_Dados!$A$62,_Dados!$A$79<>_Dados!$A$68)),"VERDADEIRO", AND(F71=_Dados!$A$64,_Dados!$A$79<>"",AND(_Dados!$A$79<>_Dados!$A$60,_Dados!$A$79<>_Dados!$A$62,_Dados!$A$79<>_Dados!$A$67)),"VERDADEIRO", AND(F71=_Dados!$A$65,_Dados!$A$79<>"",AND(_Dados!$A$79<>_Dados!$A$60,_Dados!$A$79<>_Dados!$A$61,_Dados!$A$79<>_Dados!$A$66)),"VERDADEIRO", AND(F71=_Dados!$A$66,_Dados!$A$79<>"",AND(_Dados!$A$79<>_Dados!$A$59,_Dados!$A$79<>_Dados!$A$61,_Dados!$A$79<>_Dados!$A$65)),"VERDADEIRO", AND(F71=_Dados!$A$67,_Dados!$A$79<>"",AND(_Dados!$A$79<>_Dados!$A$59,_Dados!$A$79<>_Dados!$A$61,_Dados!$A$79<>_Dados!$A$64)),"VERDADEIRO", AND(F71=_Dados!$A$68,_Dados!$A$79<>"",AND(_Dados!$A$79<>_Dados!$A$59,_Dados!$A$79<>_Dados!$A$60,_Dados!$A$79<>_Dados!$A$63)),"VERDADEIRO", AND(F71=_Dados!$A$69,_Dados!$A$79<>"",_Dados!$A$79<>_Dados!$A$62),"VERDADEIRO", AND(F71=_Dados!$A$70,_Dados!$A$79<>"",_Dados!$A$79<>_Dados!$A$61),"VERDADEIRO", AND(F71=_Dados!$A$71,_Dados!$A$79<>"",_Dados!$A$79<>_Dados!$A$60),"VERDADEIRO", AND(F71=_Dados!$A$72,_Dados!$A$79<>"",_Dados!$A$79<>_Dados!$A$59),"VERDADEIRO", AND(F71=_Dados!$A$73,_Dados!$A$79<>""),"VERDADEIRO"),"FALSO") -> FALSO | O71: Não | P71: 0 | Q71: 0
A72: =A71+1 -> 53 | B72: Social | C72: Equidade de gênero e inclusão social | D72: Possui uma política formal que defina os objetivos e princípios que o orientam a alcançar um desempenho sólido na temática, incluindo seus compromissos com a promoção da equidade e inclusão social? | E72: Satisfatório | F72: Estudos de Estruturação da Concessão; Licitação da Concessão | J72: =IFERROR( VLOOKUP( C72,_Dados!B:F, MATCH( IF( AND(_Dados!$A$79<>_Dados!$A$59,_Dados!$A$79<>_Dados!$A$60,_Dados!$A$79<>_Dados!$A$61,_Dados!$A$79<>_Dados!$A$62), _Dados!$C$17,_Dados!$A$79), _Dados!B$17:F$17,0), 0), "") -> 1 | K72: =IFERROR(VLOOKUP(E72,_Dados!A:B,2,0),"") -> 1 | L72: =IFERROR(VLOOKUP(G72,_Dados!A:B,2,0),"") ->  | M72: VERDADEIRO | N72: =IFERROR(_xlfn.IFS( AND(F72=_Dados!$A$59,_Dados!$A$79<>"",OR(_Dados!$A$79=_Dados!$A$59,_Dados!$A$79=_Dados!$A$63,_Dados!$A$79=_Dados!$A$64,_Dados!$A$79=_Dados!$A$65,_Dados!$A$79=_Dados!$A$69,_Dados!$A$79=_Dados!$A$70,_Dados!$A$79=_Dados!$A$71,_Dados!$A$79=_Dados!$A$73)),"VERDADEIRO", AND(F72=_Dados!$A$60,_Dados!$A$79<>"",OR(_Dados!$A$79=_Dados!$A$60,_Dados!$A$79=_Dados!$A$63,_Dados!$A$79=_Dados!$A$66,_Dados!$A$79=_Dados!$A$67,_Dados!$A$79=_Dados!$A$69,_Dados!$A$79=_Dados!$A$70,_Dados!$A$79=_Dados!$A$72,_Dados!$A$79=_Dados!$A$73)),"VERDADEIRO", AND(F72=_Dados!$A$61,_Dados!$A$79<>"",OR(_Dados!$A$79=_Dados!$A$61,_Dados!$A$79=_Dados!$A$64,_Dados!$A$79=_Dados!$A$66,_Dados!$A$79=_Dados!$A$68,_Dados!$A$79=_Dados!$A$69,_Dados!$A$79=_Dados!$A$71,_Dados!$A$79=_Dados!$A$72,_Dados!$A$79=_Dados!$A$73)),"VERDADEIRO", AND(F72=_Dados!$A$62,_Dados!$A$79<>"",OR(_Dados!$A$79=_Dados!$A$62,_Dados!$A$79=_Dados!$A$65,_Dados!$A$79=_Dados!$A$67,_Dados!$A$79=_Dados!$A$68,_Dados!$A$79=_Dados!$A$70,_Dados!$A$79=_Dados!$A$71,_Dados!$A$79=_Dados!$A$72,_Dados!$A$79=_Dados!$A$73)),"VERDADEIRO", AND(F72=_Dados!$A$63,_Dados!$A$79<>"",AND(_Dados!$A$79<>_Dados!$A$61,_Dados!$A$79<>_Dados!$A$62,_Dados!$A$79<>_Dados!$A$68)),"VERDADEIRO", AND(F72=_Dados!$A$64,_Dados!$A$79<>"",AND(_Dados!$A$79<>_Dados!$A$60,_Dados!$A$79<>_Dados!$A$62,_Dados!$A$79<>_Dados!$A$67)),"VERDADEIRO", AND(F72=_Dados!$A$65,_Dados!$A$79<>"",AND(_Dados!$A$79<>_Dados!$A$60,_Dados!$A$79<>_Dados!$A$61,_Dados!$A$79<>_Dados!$A$66)),"VERDADEIRO", AND(F72=_Dados!$A$66,_Dados!$A$79<>"",AND(_Dados!$A$79<>_Dados!$A$59,_Dados!$A$79<>_Dados!$A$61,_Dados!$A$79<>_Dados!$A$65)),"VERDADEIRO", AND(F72=_Dados!$A$67,_Dados!$A$79<>"",AND(_Dados!$A$79<>_Dados!$A$59,_Dados!$A$79<>_Dados!$A$61,_Dados!$A$79<>_Dados!$A$64)),"VERDADEIRO", AND(F72=_Dados!$A$68,_Dados!$A$79<>"",AND(_Dados!$A$79<>_Dados!$A$59,_Dados!$A$79<>_Dados!$A$60,_Dados!$A$79<>_Dados!$A$63)),"VERDADEIRO", AND(F72=_Dados!$A$69,_Dados!$A$79<>"",_Dados!$A$79<>_Dados!$A$62),"VERDADEIRO", AND(F72=_Dados!$A$70,_Dados!$A$79<>"",_Dados!$A$79<>_Dados!$A$61),"VERDADEIRO", AND(F72=_Dados!$A$71,_Dados!$A$79<>"",_Dados!$A$79<>_Dados!$A$60),"VERDADEIRO", AND(F72=_Dados!$A$72,_Dados!$A$79<>"",_Dados!$A$79<>_Dados!$A$59),"VERDADEIRO", AND(F72=_Dados!$A$73,_Dados!$A$79<>""),"VERDADEIRO"),"FALSO") -> FALSO | O72: Não | P72: 0 | Q72: 0
A73: 54 | B73: Social | C73: Equidade de gênero e inclusão social | D73: Apresenta um plano de ação para enfrentar os impactos potenciais negativos identificados, incluindo medidas para preveni-los, mitigá-los e/ou compensá-los? | E73: Robusto | F73: Estudos de Estruturação da Concessão; Licitação da Concessão; Implementação; Operação | J73: =IFERROR( VLOOKUP( C73,_Dados!B:F, MATCH( IF( AND(_Dados!$A$79<>_Dados!$A$59,_Dados!$A$79<>_Dados!$A$60,_Dados!$A$79<>_Dados!$A$61,_Dados!$A$79<>_Dados!$A$62), _Dados!$C$17,_Dados!$A$79), _Dados!B$17:F$17,0), 0), "") -> 1 | K73: =IFERROR(VLOOKUP(E73,_Dados!A:B,2,0),"") -> 1.5 | L73: =IFERROR(VLOOKUP(G73,_Dados!A:B,2,0),"") ->  | M73: VERDADEIRO | N73: =IFERROR(_xlfn.IFS( AND(F73=_Dados!$A$59,_Dados!$A$79<>"",OR(_Dados!$A$79=_Dados!$A$59,_Dados!$A$79=_Dados!$A$63,_Dados!$A$79=_Dados!$A$64,_Dados!$A$79=_Dados!$A$65,_Dados!$A$79=_Dados!$A$69,_Dados!$A$79=_Dados!$A$70,_Dados!$A$79=_Dados!$A$71,_Dados!$A$79=_Dados!$A$73)),"VERDADEIRO", AND(F73=_Dados!$A$60,_Dados!$A$79<>"",OR(_Dados!$A$79=_Dados!$A$60,_Dados!$A$79=_Dados!$A$63,_Dados!$A$79=_Dados!$A$66,_Dados!$A$79=_Dados!$A$67,_Dados!$A$79=_Dados!$A$69,_Dados!$A$79=_Dados!$A$70,_Dados!$A$79=_Dados!$A$72,_Dados!$A$79=_Dados!$A$73)),"VERDADEIRO", AND(F73=_Dados!$A$61,_Dados!$A$79<>"",OR(_Dados!$A$79=_Dados!$A$61,_Dados!$A$79=_Dados!$A$64,_Dados!$A$79=_Dados!$A$66,_Dados!$A$79=_Dados!$A$68,_Dados!$A$79=_Dados!$A$69,_Dados!$A$79=_Dados!$A$71,_Dados!$A$79=_Dados!$A$72,_Dados!$A$79=_Dados!$A$73)),"VERDADEIRO", AND(F73=_Dados!$A$62,_Dados!$A$79<>"",OR(_Dados!$A$79=_Dados!$A$62,_Dados!$A$79=_Dados!$A$65,_Dados!$A$79=_Dados!$A$67,_Dados!$A$79=_Dados!$A$68,_Dados!$A$79=_Dados!$A$70,_Dados!$A$79=_Dados!$A$71,_Dados!$A$79=_Dados!$A$72,_Dados!$A$79=_Dados!$A$73)),"VERDADEIRO", AND(F73=_Dados!$A$63,_Dados!$A$79<>"",AND(_Dados!$A$79<>_Dados!$A$61,_Dados!$A$79<>_Dados!$A$62,_Dados!$A$79<>_Dados!$A$68)),"VERDADEIRO", AND(F73=_Dados!$A$64,_Dados!$A$79<>"",AND(_Dados!$A$79<>_Dados!$A$60,_Dados!$A$79<>_Dados!$A$62,_Dados!$A$79<>_Dados!$A$67)),"VERDADEIRO", AND(F73=_Dados!$A$65,_Dados!$A$79<>"",AND(_Dados!$A$79<>_Dados!$A$60,_Dados!$A$79<>_Dados!$A$61,_Dados!$A$79<>_Dados!$A$66)),"VERDADEIRO", AND(F73=_Dados!$A$66,_Dados!$A$79<>"",AND(_Dados!$A$79<>_Dados!$A$59,_Dados!$A$79<>_Dados!$A$61,_Dados!$A$79<>_Dados!$A$65)),"VERDADEIRO", AND(F73=_Dados!$A$67,_Dados!$A$79<>"",AND(_Dados!$A$79<>_Dados!$A$59,_Dados!$A$79<>_Dados!$A$61,_Dados!$A$79<>_Dados!$A$64)),"VERDADEIRO", AND(F73=_Dados!$A$68,_Dados!$A$79<>"",AND(_Dados!$A$79<>_Dados!$A$59,_Dados!$A$79<>_Dados!$A$60,_Dados!$A$79<>_Dados!$A$63)),"VERDADEIRO", AND(F73=_Dados!$A$69,_Dados!$A$79<>"",_Dados!$A$79<>_Dados!$A$62),"VERDADEIRO", AND(F73=_Dados!$A$70,_Dados!$A$79<>"",_Dados!$A$79<>_Dados!$A$61),"VERDADEIRO", AND(F73=_Dados!$A$71,_Dados!$A$79<>"",_Dados!$A$79<>_Dados!$A$60),"VERDADEIRO", AND(F73=_Dados!$A$72,_Dados!$A$79<>"",_Dados!$A$79<>_Dados!$A$59),"VERDADEIRO", AND(F73=_Dados!$A$73,_Dados!$A$79<>""),"VERDADEIRO"),"FALSO") -> FALSO | O73: Não | P73: 0 | Q73: 0
A74: 55 | B74: Social | C74: Equidade de gênero e inclusão social | D74: O plano de ação para enfrentar os impactos potenciais negativos identificados inclui indicadores para monitorar sua implementação ao longo de todo o ciclo de vida do ativo, incluindo dados desagregados por gênero? | E74: Robusto | F74: Estudos de Estruturação da Concessão; Licitação da Concessão; Implementação; Operação | J74: =IFERROR( VLOOKUP( C74,_Dados!B:F, MATCH( IF( AND(_Dados!$A$79<>_Dados!$A$59,_Dados!$A$79<>_Dados!$A$60,_Dados!$A$79<>_Dados!$A$61,_Dados!$A$79<>_Dados!$A$62), _Dados!$C$17,_Dados!$A$79), _Dados!B$17:F$17,0), 0), "") -> 1 | K74: =IFERROR(VLOOKUP(E74,_Dados!A:B,2,0),"") -> 1.5 | L74: =IFERROR(VLOOKUP(G74,_Dados!A:B,2,0),"") ->  | M74: VERDADEIRO | N74: =IFERROR(_xlfn.IFS( AND(F74=_Dados!$A$59,_Dados!$A$79<>"",OR(_Dados!$A$79=_Dados!$A$59,_Dados!$A$79=_Dados!$A$63,_Dados!$A$79=_Dados!$A$64,_Dados!$A$79=_Dados!$A$65,_Dados!$A$79=_Dados!$A$69,_Dados!$A$79=_Dados!$A$70,_Dados!$A$79=_Dados!$A$71,_Dados!$A$79=_Dados!$A$73)),"VERDADEIRO", AND(F74=_Dados!$A$60,_Dados!$A$79<>"",OR(_Dados!$A$79=_Dados!$A$60,_Dados!$A$79=_Dados!$A$63,_Dados!$A$79=_Dados!$A$66,_Dados!$A$79=_Dados!$A$67,_Dados!$A$79=_Dados!$A$69,_Dados!$A$79=_Dados!$A$70,_Dados!$A$79=_Dados!$A$72,_Dados!$A$79=_Dados!$A$73)),"VERDADEIRO", AND(F74=_Dados!$A$61,_Dados!$A$79<>"",OR(_Dados!$A$79=_Dados!$A$61,_Dados!$A$79=_Dados!$A$64,_Dados!$A$79=_Dados!$A$66,_Dados!$A$79=_Dados!$A$68,_Dados!$A$79=_Dados!$A$69,_Dados!$A$79=_Dados!$A$71,_Dados!$A$79=_Dados!$A$72,_Dados!$A$79=_Dados!$A$73)),"VERDADEIRO", AND(F74=_Dados!$A$62,_Dados!$A$79<>"",OR(_Dados!$A$79=_Dados!$A$62,_Dados!$A$79=_Dados!$A$65,_Dados!$A$79=_Dados!$A$67,_Dados!$A$79=_Dados!$A$68,_Dados!$A$79=_Dados!$A$70,_Dados!$A$79=_Dados!$A$71,_Dados!$A$79=_Dados!$A$72,_Dados!$A$79=_Dados!$A$73)),"VERDADEIRO", AND(F74=_Dados!$A$63,_Dados!$A$79<>"",AND(_Dados!$A$79<>_Dados!$A$61,_Dados!$A$79<>_Dados!$A$62,_Dados!$A$79<>_Dados!$A$68)),"VERDADEIRO", AND(F74=_Dados!$A$64,_Dados!$A$79<>"",AND(_Dados!$A$79<>_Dados!$A$60,_Dados!$A$79<>_Dados!$A$62,_Dados!$A$79<>_Dados!$A$67)),"VERDADEIRO", AND(F74=_Dados!$A$65,_Dados!$A$79<>"",AND(_Dados!$A$79<>_Dados!$A$60,_Dados!$A$79<>_Dados!$A$61,_Dados!$A$79<>_Dados!$A$66)),"VERDADEIRO", AND(F74=_Dados!$A$66,_Dados!$A$79<>"",AND(_Dados!$A$79<>_Dados!$A$59,_Dados!$A$79<>_Dados!$A$61,_Dados!$A$79<>_Dados!$A$65)),"VERDADEIRO", AND(F74=_Dados!$A$67,_Dados!$A$79<>"",AND(_Dados!$A$79<>_Dados!$A$59,_Dados!$A$79<>_Dados!$A$61,_Dados!$A$79<>_Dados!$A$64)),"VERDADEIRO", AND(F74=_Dados!$A$68,_Dados!$A$79<>"",AND(_Dados!$A$79<>_Dados!$A$59,_Dados!$A$79<>_Dados!$A$60,_Dados!$A$79<>_Dados!$A$63)),"VERDADEIRO", AND(F74=_Dados!$A$69,_Dados!$A$79<>"",_Dados!$A$79<>_Dados!$A$62),"VERDADEIRO", AND(F74=_Dados!$A$70,_Dados!$A$79<>"",_Dados!$A$79<>_Dados!$A$61),"VERDADEIRO", AND(F74=_Dados!$A$71,_Dados!$A$79<>"",_Dados!$A$79<>_Dados!$A$60),"VERDADEIRO", AND(F74=_Dados!$A$72,_Dados!$A$79<>"",_Dados!$A$79<>_Dados!$A$59),"VERDADEIRO", AND(F74=_Dados!$A$73,_Dados!$A$79<>""),"VERDADEIRO"),"FALSO") -> FALSO | O74: Não | P74: 0 | Q74: 0
A75: 56 | B75: Social | C75: Equidade de gênero e inclusão social | D75: Os sistemas de monitoramento possuem indicadores referentes à diferença salarial entre homens e mulheres desagregado por tipo de função (operacional e gestão), que deve ser divulgado em relatório de acesso público? | E75: Robusto | F75: Implementação; Operação | J75: =IFERROR( VLOOKUP( C75,_Dados!B:F, MATCH( IF( AND(_Dados!$A$79<>_Dados!$A$59,_Dados!$A$79<>_Dados!$A$60,_Dados!$A$79<>_Dados!$A$61,_Dados!$A$79<>_Dados!$A$62), _Dados!$C$17,_Dados!$A$79), _Dados!B$17:F$17,0), 0), "") -> 1 | K75: =IFERROR(VLOOKUP(E75,_Dados!A:B,2,0),"") -> 1.5 | L75: =IFERROR(VLOOKUP(G75,_Dados!A:B,2,0),"") ->  | M75: VERDADEIRO | N75: =IFERROR(_xlfn.IFS( AND(F75=_Dados!$A$59,_Dados!$A$79<>"",OR(_Dados!$A$79=_Dados!$A$59,_Dados!$A$79=_Dados!$A$63,_Dados!$A$79=_Dados!$A$64,_Dados!$A$79=_Dados!$A$65,_Dados!$A$79=_Dados!$A$69,_Dados!$A$79=_Dados!$A$70,_Dados!$A$79=_Dados!$A$71,_Dados!$A$79=_Dados!$A$73)),"VERDADEIRO", AND(F75=_Dados!$A$60,_Dados!$A$79<>"",OR(_Dados!$A$79=_Dados!$A$60,_Dados!$A$79=_Dados!$A$63,_Dados!$A$79=_Dados!$A$66,_Dados!$A$79=_Dados!$A$67,_Dados!$A$79=_Dados!$A$69,_Dados!$A$79=_Dados!$A$70,_Dados!$A$79=_Dados!$A$72,_Dados!$A$79=_Dados!$A$73)),"VERDADEIRO", AND(F75=_Dados!$A$61,_Dados!$A$79<>"",OR(_Dados!$A$79=_Dados!$A$61,_Dados!$A$79=_Dados!$A$64,_Dados!$A$79=_Dados!$A$66,_Dados!$A$79=_Dados!$A$68,_Dados!$A$79=_Dados!$A$69,_Dados!$A$79=_Dados!$A$71,_Dados!$A$79=_Dados!$A$72,_Dados!$A$79=_Dados!$A$73)),"VERDADEIRO", AND(F75=_Dados!$A$62,_Dados!$A$79<>"",OR(_Dados!$A$79=_Dados!$A$62,_Dados!$A$79=_Dados!$A$65,_Dados!$A$79=_Dados!$A$67,_Dados!$A$79=_Dados!$A$68,_Dados!$A$79=_Dados!$A$70,_Dados!$A$79=_Dados!$A$71,_Dados!$A$79=_Dados!$A$72,_Dados!$A$79=_Dados!$A$73)),"VERDADEIRO", AND(F75=_Dados!$A$63,_Dados!$A$79<>"",AND(_Dados!$A$79<>_Dados!$A$61,_Dados!$A$79<>_Dados!$A$62,_Dados!$A$79<>_Dados!$A$68)),"VERDADEIRO", AND(F75=_Dados!$A$64,_Dados!$A$79<>"",AND(_Dados!$A$79<>_Dados!$A$60,_Dados!$A$79<>_Dados!$A$62,_Dados!$A$79<>_Dados!$A$67)),"VERDADEIRO", AND(F75=_Dados!$A$65,_Dados!$A$79<>"",AND(_Dados!$A$79<>_Dados!$A$60,_Dados!$A$79<>_Dados!$A$61,_Dados!$A$79<>_Dados!$A$66)),"VERDADEIRO", AND(F75=_Dados!$A$66,_Dados!$A$79<>"",AND(_Dados!$A$79<>_Dados!$A$59,_Dados!$A$79<>_Dados!$A$61,_Dados!$A$79<>_Dados!$A$65)),"VERDADEIRO", AND(F75=_Dados!$A$67,_Dados!$A$79<>"",AND(_Dados!$A$79<>_Dados!$A$59,_Dados!$A$79<>_Dados!$A$61,_Dados!$A$79<>_Dados!$A$64)),"VERDADEIRO", AND(F75=_Dados!$A$68,_Dados!$A$79<>"",AND(_Dados!$A$79<>_Dados!$A$59,_Dados!$A$79<>_Dados!$A$60,_Dados!$A$79<>_Dados!$A$63)),"VERDADEIRO", AND(F75=_Dados!$A$69,_Dados!$A$79<>"",_Dados!$A$79<>_Dados!$A$62),"VERDADEIRO", AND(F75=_Dados!$A$70,_Dados!$A$79<>"",_Dados!$A$79<>_Dados!$A$61),"VERDADEIRO", AND(F75=_Dados!$A$71,_Dados!$A$79<>"",_Dados!$A$79<>_Dados!$A$60),"VERDADEIRO", AND(F75=_Dados!$A$72,_Dados!$A$79<>"",_Dados!$A$79<>_Dados!$A$59),"VERDADEIRO", AND(F75=_Dados!$A$73,_Dados!$A$79<>""),"VERDADEIRO"),"FALSO") -> FALSO | O75: Não | P75: =IF(O75="Não",0,J75*K75*1) -> 0 | Q75: =IFERROR(IF(O75="Não",0,J75*K75*L75),999) -> 0
A76: 57 | B76: Social | C76: Equidade de gênero e inclusão social | D76: Prevê uma estrutura de governança que defina funções, responsabilidades e autoridade para a gestão do tema de equidade de gênero e inclusão social (apontando os respectivos cargos envolvidos)? | E76: Robusto | F76: Estudos de Estruturação da Concessão; Licitação da Concessão; Implementação; Operação | J76: =IFERROR( VLOOKUP( C76,_Dados!B:F, MATCH( IF( AND(_Dados!$A$79<>_Dados!$A$59,_Dados!$A$79<>_Dados!$A$60,_Dados!$A$79<>_Dados!$A$61,_Dados!$A$79<>_Dados!$A$62), _Dados!$C$17,_Dados!$A$79), _Dados!B$17:F$17,0), 0), "") -> 1 | K76: =IFERROR(VLOOKUP(E76,_Dados!A:B,2,0),"") -> 1.5 | L76: =IFERROR(VLOOKUP(G76,_Dados!A:B,2,0),"") ->  | M76: =IF(G76<>"Não se aplica","VERDADEIRO","FALSO") -> VERDADEIRO | N76: =IFERROR(_xlfn.IFS( AND(F76=_Dados!$A$59,_Dados!$A$79<>"",OR(_Dados!$A$79=_Dados!$A$59,_Dados!$A$79=_Dados!$A$63,_Dados!$A$79=_Dados!$A$64,_Dados!$A$79=_Dados!$A$65,_Dados!$A$79=_Dados!$A$69,_Dados!$A$79=_Dados!$A$70,_Dados!$A$79=_Dados!$A$71,_Dados!$A$79=_Dados!$A$73)),"VERDADEIRO", AND(F76=_Dados!$A$60,_Dados!$A$79<>"",OR(_Dados!$A$79=_Dados!$A$60,_Dados!$A$79=_Dados!$A$63,_Dados!$A$79=_Dados!$A$66,_Dados!$A$79=_Dados!$A$67,_Dados!$A$79=_Dados!$A$69,_Dados!$A$79=_Dados!$A$70,_Dados!$A$79=_Dados!$A$72,_Dados!$A$79=_Dados!$A$73)),"VERDADEIRO", AND(F76=_Dados!$A$61,_Dados!$A$79<>"",OR(_Dados!$A$79=_Dados!$A$61,_Dados!$A$79=_Dados!$A$64,_Dados!$A$79=_Dados!$A$66,_Dados!$A$79=_Dados!$A$68,_Dados!$A$79=_Dados!$A$69,_Dados!$A$79=_Dados!$A$71,_Dados!$A$79=_Dados!$A$72,_Dados!$A$79=_Dados!$A$73)),"VERDADEIRO", AND(F76=_Dados!$A$62,_Dados!$A$79<>"",OR(_Dados!$A$79=_Dados!$A$62,_Dados!$A$79=_Dados!$A$65,_Dados!$A$79=_Dados!$A$67,_Dados!$A$79=_Dados!$A$68,_Dados!$A$79=_Dados!$A$70,_Dados!$A$79=_Dados!$A$71,_Dados!$A$79=_Dados!$A$72,_Dados!$A$79=_Dados!$A$73)),"VERDADEIRO", AND(F76=_Dados!$A$63,_Dados!$A$79<>"",AND(_Dados!$A$79<>_Dados!$A$61,_Dados!$A$79<>_Dados!$A$62,_Dados!$A$79<>_Dados!$A$68)),"VERDADEIRO", AND(F76=_Dados!$A$64,_Dados!$A$79<>"",AND(_Dados!$A$79<>_Dados!$A$60,_Dados!$A$79<>_Dados!$A$62,_Dados!$A$79<>_Dados!$A$67)),"VERDADEIRO", AND(F76=_Dados!$A$65,_Dados!$A$79<>"",AND(_Dados!$A$79<>_Dados!$A$60,_Dados!$A$79<>_Dados!$A$61,_Dados!$A$79<>_Dados!$A$66)),"VERDADEIRO", AND(F76=_Dados!$A$66,_Dados!$A$79<>"",AND(_Dados!$A$79<>_Dados!$A$59,_Dados!$A$79<>_Dados!$A$61,_Dados!$A$79<>_Dados!$A$65)),"VERDADEIRO", AND(F76=_Dados!$A$67,_Dados!$A$79<>"",AND(_Dados!$A$79<>_Dados!$A$59,_Dados!$A$79<>_Dados!$A$61,_Dados!$A$79<>_Dados!$A$64)),"VERDADEIRO", AND(F76=_Dados!$A$68,_Dados!$A$79<>"",AND(_Dados!$A$79<>_Dados!$A$59,_Dados!$A$79<>_Dados!$A$60,_Dados!$A$79<>_Dados!$A$63)),"VERDADEIRO", AND(F76=_Dados!$A$69,_Dados!$A$79<>"",_Dados!$A$79<>_Dados!$A$62),"VERDADEIRO", AND(F76=_Dados!$A$70,_Dados!$A$79<>"",_Dados!$A$79<>_Dados!$A$61),"VERDADEIRO", AND(F76=_Dados!$A$71,_Dados!$A$79<>"",_Dados!$A$79<>_Dados!$A$60),"VERDADEIRO", AND(F76=_Dados!$A$72,_Dados!$A$79<>"",_Dados!$A$79<>_Dados!$A$59),"VERDADEIRO", AND(F76=_Dados!$A$73,_Dados!$A$79<>""),"VERDADEIRO"),"FALSO") -> FALSO | O76: Não | P76: 0 | Q76: 0
A77: 58 | B77: Social | C77: Equidade de gênero e inclusão social | D77: Realiza um diagnóstico para identificar riscos relacionados à equidade de gênero, incluindo uma avaliação que aborde a relação do projeto com a estrutura institucional para questões de gênero em nível nacional e subnacional (incluindo convenções, legislação e estrutura de governança dedicada das autoridades envolvidas)? | E77: Robusto | F77: Estudos de Estruturação da Concessão; Licitação da Concessão; Implementação; Operação | J77: =IFERROR( VLOOKUP( C77,_Dados!B:F, MATCH( IF( AND(_Dados!$A$79<>_Dados!$A$59,_Dados!$A$79<>_Dados!$A$60,_Dados!$A$79<>_Dados!$A$61,_Dados!$A$79<>_Dados!$A$62), _Dados!$C$17,_Dados!$A$79), _Dados!B$17:F$17,0), 0), "") -> 1 | K77: =IFERROR(VLOOKUP(E77,_Dados!A:B,2,0),"") -> 1.5 | L77: =IFERROR(VLOOKUP(G77,_Dados!A:B,2,0),"") ->  | M77: VERDADEIRO | N77: =IFERROR(_xlfn.IFS( AND(F77=_Dados!$A$59,_Dados!$A$79<>"",OR(_Dados!$A$79=_Dados!$A$59,_Dados!$A$79=_Dados!$A$63,_Dados!$A$79=_Dados!$A$64,_Dados!$A$79=_Dados!$A$65,_Dados!$A$79=_Dados!$A$69,_Dados!$A$79=_Dados!$A$70,_Dados!$A$79=_Dados!$A$71,_Dados!$A$79=_Dados!$A$73)),"VERDADEIRO", AND(F77=_Dados!$A$60,_Dados!$A$79<>"",OR(_Dados!$A$79=_Dados!$A$60,_Dados!$A$79=_Dados!$A$63,_Dados!$A$79=_Dados!$A$66,_Dados!$A$79=_Dados!$A$67,_Dados!$A$79=_Dados!$A$69,_Dados!$A$79=_Dados!$A$70,_Dados!$A$79=_Dados!$A$72,_Dados!$A$79=_Dados!$A$73)),"VERDADEIRO", AND(F77=_Dados!$A$61,_Dados!$A$79<>"",OR(_Dados!$A$79=_Dados!$A$61,_Dados!$A$79=_Dados!$A$64,_Dados!$A$79=_Dados!$A$66,_Dados!$A$79=_Dados!$A$68,_Dados!$A$79=_Dados!$A$69,_Dados!$A$79=_Dados!$A$71,_Dados!$A$79=_Dados!$A$72,_Dados!$A$79=_Dados!$A$73)),"VERDADEIRO", AND(F77=_Dados!$A$62,_Dados!$A$79<>"",OR(_Dados!$A$79=_Dados!$A$62,_Dados!$A$79=_Dados!$A$65,_Dados!$A$79=_Dados!$A$67,_Dados!$A$79=_Dados!$A$68,_Dados!$A$79=_Dados!$A$70,_Dados!$A$79=_Dados!$A$71,_Dados!$A$79=_Dados!$A$72,_Dados!$A$79=_Dados!$A$73)),"VERDADEIRO", AND(F77=_Dados!$A$63,_Dados!$A$79<>"",AND(_Dados!$A$79<>_Dados!$A$61,_Dados!$A$79<>_Dados!$A$62,_Dados!$A$79<>_Dados!$A$68)),"VERDADEIRO", AND(F77=_Dados!$A$64,_Dados!$A$79<>"",AND(_Dados!$A$79<>_Dados!$A$60,_Dados!$A$79<>_Dados!$A$62,_Dados!$A$79<>_Dados!$A$67)),"VERDADEIRO", AND(F77=_Dados!$A$65,_Dados!$A$79<>"",AND(_Dados!$A$79<>_Dados!$A$60,_Dados!$A$79<>_Dados!$A$61,_Dados!$A$79<>_Dados!$A$66)),"VERDADEIRO", AND(F77=_Dados!$A$66,_Dados!$A$79<>"",AND(_Dados!$A$79<>_Dados!$A$59,_Dados!$A$79<>_Dados!$A$61,_Dados!$A$79<>_Dados!$A$65)),"VERDADEIRO", AND(F77=_Dados!$A$67,_Dados!$A$79<>"",AND(_Dados!$A$79<>_Dados!$A$59,_Dados!$A$79<>_Dados!$A$61,_Dados!$A$79<>_Dados!$A$64)),"VERDADEIRO", AND(F77=_Dados!$A$68,_Dados!$A$79<>"",AND(_Dados!$A$79<>_Dados!$A$59,_Dados!$A$79<>_Dados!$A$60,_Dados!$A$79<>_Dados!$A$63)),"VERDADEIRO", AND(F77=_Dados!$A$69,_Dados!$A$79<>"",_Dados!$A$79<>_Dados!$A$62),"VERDADEIRO", AND(F77=_Dados!$A$70,_Dados!$A$79<>"",_Dados!$A$79<>_Dados!$A$61),"VERDADEIRO", AND(F77=_Dados!$A$71,_Dados!$A$79<>"",_Dados!$A$79<>_Dados!$A$60),"VERDADEIRO", AND(F77=_Dados!$A$72,_Dados!$A$79<>"",_Dados!$A$79<>_Dados!$A$59),"VERDADEIRO", AND(F77=_Dados!$A$73,_Dados!$A$79<>""),"VERDADEIRO"),"FALSO") -> FALSO | O77: Não | P77: =IF(O77="Não",0,J77*K77*1) -> 0 | Q77: =IFERROR(IF(O77="Não",0,J77*K77*L77),999) -> 0
A78: 59 | B78: Social | C78: Patrimônio cultural | D78: Apresenta análises que considerem elaborações alternativas que sejam viáveis para evitar ou minimizar os impactos sobre o patrimônio cultural? | E78: Satisfatório | F78: Estudos de Estruturação da Concessão; Licitação da Concessão; Implementação; Operação | J78: =IFERROR( VLOOKUP( C78,_Dados!B:F, MATCH( IF( AND(_Dados!$A$79<>_Dados!$A$59,_Dados!$A$79<>_Dados!$A$60,_Dados!$A$79<>_Dados!$A$61,_Dados!$A$79<>_Dados!$A$62), _Dados!$C$17,_Dados!$A$79), _Dados!B$17:F$17,0), 0), "") -> 2 | K78: =IFERROR(VLOOKUP(E78,_Dados!A:B,2,0),"") -> 1 | L78: =IFERROR(VLOOKUP(G78,_Dados!A:B,2,0),"") ->  | M78: VERDADEIRO | N78: =IFERROR(_xlfn.IFS( AND(F78=_Dados!$A$59,_Dados!$A$79<>"",OR(_Dados!$A$79=_Dados!$A$59,_Dados!$A$79=_Dados!$A$63,_Dados!$A$79=_Dados!$A$64,_Dados!$A$79=_Dados!$A$65,_Dados!$A$79=_Dados!$A$69,_Dados!$A$79=_Dados!$A$70,_Dados!$A$79=_Dados!$A$71,_Dados!$A$79=_Dados!$A$73)),"VERDADEIRO", AND(F78=_Dados!$A$60,_Dados!$A$79<>"",OR(_Dados!$A$79=_Dados!$A$60,_Dados!$A$79=_Dados!$A$63,_Dados!$A$79=_Dados!$A$66,_Dados!$A$79=_Dados!$A$67,_Dados!$A$79=_Dados!$A$69,_Dados!$A$79=_Dados!$A$70,_Dados!$A$79=_Dados!$A$72,_Dados!$A$79=_Dados!$A$73)),"VERDADEIRO", AND(F78=_Dados!$A$61,_Dados!$A$79<>"",OR(_Dados!$A$79=_Dados!$A$61,_Dados!$A$79=_Dados!$A$64,_Dados!$A$79=_Dados!$A$66,_Dados!$A$79=_Dados!$A$68,_Dados!$A$79=_Dados!$A$69,_Dados!$A$79=_Dados!$A$71,_Dados!$A$79=_Dados!$A$72,_Dados!$A$79=_Dados!$A$73)),"VERDADEIRO", AND(F78=_Dados!$A$62,_Dados!$A$79<>"",OR(_Dados!$A$79=_Dados!$A$62,_Dados!$A$79=_Dados!$A$65,_Dados!$A$79=_Dados!$A$67,_Dados!$A$79=_Dados!$A$68,_Dados!$A$79=_Dados!$A$70,_Dados!$A$79=_Dados!$A$71,_Dados!$A$79=_Dados!$A$72,_Dados!$A$79=_Dados!$A$73)),"VERDADEIRO", AND(F78=_Dados!$A$63,_Dados!$A$79<>"",AND(_Dados!$A$79<>_Dados!$A$61,_Dados!$A$79<>_Dados!$A$62,_Dados!$A$79<>_Dados!$A$68)),"VERDADEIRO", AND(F78=_Dados!$A$64,_Dados!$A$79<>"",AND(_Dados!$A$79<>_Dados!$A$60,_Dados!$A$79<>_Dados!$A$62,_Dados!$A$79<>_Dados!$A$67)),"VERDADEIRO", AND(F78=_Dados!$A$65,_Dados!$A$79<>"",AND(_Dados!$A$79<>_Dados!$A$60,_Dados!$A$79<>_Dados!$A$61,_Dados!$A$79<>_Dados!$A$66)),"VERDADEIRO", AND(F78=_Dados!$A$66,_Dados!$A$79<>"",AND(_Dados!$A$79<>_Dados!$A$59,_Dados!$A$79<>_Dados!$A$61,_Dados!$A$79<>_Dados!$A$65)),"VERDADEIRO", AND(F78=_Dados!$A$67,_Dados!$A$79<>"",AND(_Dados!$A$79<>_Dados!$A$59,_Dados!$A$79<>_Dados!$A$61,_Dados!$A$79<>_Dados!$A$64)),"VERDADEIRO", AND(F78=_Dados!$A$68,_Dados!$A$79<>"",AND(_Dados!$A$79<>_Dados!$A$59,_Dados!$A$79<>_Dados!$A$60,_Dados!$A$79<>_Dados!$A$63)),"VERDADEIRO", AND(F78=_Dados!$A$69,_Dados!$A$79<>"",_Dados!$A$79<>_Dados!$A$62),"VERDADEIRO", AND(F78=_Dados!$A$70,_Dados!$A$79<>"",_Dados!$A$79<>_Dados!$A$61),"VERDADEIRO", AND(F78=_Dados!$A$71,_Dados!$A$79<>"",_Dados!$A$79<>_Dados!$A$60),"VERDADEIRO", AND(F78=_Dados!$A$72,_Dados!$A$79<>"",_Dados!$A$79<>_Dados!$A$59),"VERDADEIRO", AND(F78=_Dados!$A$73,_Dados!$A$79<>""),"VERDADEIRO"),"FALSO") -> FALSO | O78: =IF(M78&N78="VERDADEIROVERDADEIRO","Sim","Não") -> Não | P78: 0 | Q78: 0
A79: 60 | B79: Social | C79: Patrimônio cultural | D79: Apresenta uma análise de riscos e impactos associados ao patrimônio cultural, levantando sua presença e localização dentro da área de influência do projeto e a natureza e grau dos impactos decorrentes? | E79: Satisfatório | F79: Estudos de Estruturação da Concessão; Licitação da Concessão; Implementação; Operação | J79: =IFERROR( VLOOKUP( C79,_Dados!B:F, MATCH( IF( AND(_Dados!$A$79<>_Dados!$A$59,_Dados!$A$79<>_Dados!$A$60,_Dados!$A$79<>_Dados!$A$61,_Dados!$A$79<>_Dados!$A$62), _Dados!$C$17,_Dados!$A$79), _Dados!B$17:F$17,0), 0), "") -> 2 | K79: =IFERROR(VLOOKUP(E79,_Dados!A:B,2,0),"") -> 1 | L79: =IFERROR(VLOOKUP(G79,_Dados!A:B,2,0),"") ->  | M79: VERDADEIRO | N79: =IFERROR(_xlfn.IFS( AND(F79=_Dados!$A$59,_Dados!$A$79<>"",OR(_Dados!$A$79=_Dados!$A$59,_Dados!$A$79=_Dados!$A$63,_Dados!$A$79=_Dados!$A$64,_Dados!$A$79=_Dados!$A$65,_Dados!$A$79=_Dados!$A$69,_Dados!$A$79=_Dados!$A$70,_Dados!$A$79=_Dados!$A$71,_Dados!$A$79=_Dados!$A$73)),"VERDADEIRO", AND(F79=_Dados!$A$60,_Dados!$A$79<>"",OR(_Dados!$A$79=_Dados!$A$60,_Dados!$A$79=_Dados!$A$63,_Dados!$A$79=_Dados!$A$66,_Dados!$A$79=_Dados!$A$67,_Dados!$A$79=_Dados!$A$69,_Dados!$A$79=_Dados!$A$70,_Dados!$A$79=_Dados!$A$72,_Dados!$A$79=_Dados!$A$73)),"VERDADEIRO", AND(F79=_Dados!$A$61,_Dados!$A$79<>"",OR(_Dados!$A$79=_Dados!$A$61,_Dados!$A$79=_Dados!$A$64,_Dados!$A$79=_Dados!$A$66,_Dados!$A$79=_Dados!$A$68,_Dados!$A$79=_Dados!$A$69,_Dados!$A$79=_Dados!$A$71,_Dados!$A$79=_Dados!$A$72,_Dados!$A$79=_Dados!$A$73)),"VERDADEIRO", AND(F79=_Dados!$A$62,_Dados!$A$79<>"",OR(_Dados!$A$79=_Dados!$A$62,_Dados!$A$79=_Dados!$A$65,_Dados!$A$79=_Dados!$A$67,_Dados!$A$79=_Dados!$A$68,_Dados!$A$79=_Dados!$A$70,_Dados!$A$79=_Dados!$A$71,_Dados!$A$79=_Dados!$A$72,_Dados!$A$79=_Dados!$A$73)),"VERDADEIRO", AND(F79=_Dados!$A$63,_Dados!$A$79<>"",AND(_Dados!$A$79<>_Dados!$A$61,_Dados!$A$79<>_Dados!$A$62,_Dados!$A$79<>_Dados!$A$68)),"VERDADEIRO", AND(F79=_Dados!$A$64,_Dados!$A$79<>"",AND(_Dados!$A$79<>_Dados!$A$60,_Dados!$A$79<>_Dados!$A$62,_Dados!$A$79<>_Dados!$A$67)),"VERDADEIRO", AND(F79=_Dados!$A$65,_Dados!$A$79<>"",AND(_Dados!$A$79<>_Dados!$A$60,_Dados!$A$79<>_Dados!$A$61,_Dados!$A$79<>_Dados!$A$66)),"VERDADEIRO", AND(F79=_Dados!$A$66,_Dados!$A$79<>"",AND(_Dados!$A$79<>_Dados!$A$59,_Dados!$A$79<>_Dados!$A$61,_Dados!$A$79<>_Dados!$A$65)),"VERDADEIRO", AND(F79=_Dados!$A$67,_Dados!$A$79<>"",AND(_Dados!$A$79<>_Dados!$A$59,_Dados!$A$79<>_Dados!$A$61,_Dados!$A$79<>_Dados!$A$64)),"VERDADEIRO", AND(F79=_Dados!$A$68,_Dados!$A$79<>"",AND(_Dados!$A$79<>_Dados!$A$59,_Dados!$A$79<>_Dados!$A$60,_Dados!$A$79<>_Dados!$A$63)),"VERDADEIRO", AND(F79=_Dados!$A$69,_Dados!$A$79<>"",_Dados!$A$79<>_Dados!$A$62),"VERDADEIRO", AND(F79=_Dados!$A$70,_Dados!$A$79<>"",_Dados!$A$79<>_Dados!$A$61),"VERDADEIRO", AND(F79=_Dados!$A$71,_Dados!$A$79<>"",_Dados!$A$79<>_Dados!$A$60),"VERDADEIRO", AND(F79=_Dados!$A$72,_Dados!$A$79<>"",_Dados!$A$79<>_Dados!$A$59),"VERDADEIRO", AND(F79=_Dados!$A$73,_Dados!$A$79<>""),"VERDADEIRO"),"FALSO") -> FALSO | O79: Não | P79: 0 | Q79: 0
A80: 61 | B80: Social | C80: Aquisição, uso da terra e reassentamento | D80: Possui um Plano de Ação de Reassentamento para minimizar os impactos negativos do deslocamento que define o orçamento e o cronograma de reassentamento? | E80: Robusto | F80: Estudos de Estruturação da Concessão; Licitação da Concessão; Implementação | J80: =IFERROR( VLOOKUP( C80,_Dados!B:F, MATCH( IF( AND(_Dados!$A$79<>_Dados!$A$59,_Dados!$A$79<>_Dados!$A$60,_Dados!$A$79<>_Dados!$A$61,_Dados!$A$79<>_Dados!$A$62), _Dados!$C$17,_Dados!$A$79), _Dados!B$17:F$17,0), 0), "") -> 2 | K80: =IFERROR(VLOOKUP(E80,_Dados!A:B,2,0),"") -> 1.5 | L80: =IFERROR(VLOOKUP(G80,_Dados!A:B,2,0),"") ->  | M80: VERDADEIRO | N80: =IFERROR(_xlfn.IFS( AND(F80=_Dados!$A$59,_Dados!$A$79<>"",OR(_Dados!$A$79=_Dados!$A$59,_Dados!$A$79=_Dados!$A$63,_Dados!$A$79=_Dados!$A$64,_Dados!$A$79=_Dados!$A$65,_Dados!$A$79=_Dados!$A$69,_Dados!$A$79=_Dados!$A$70,_Dados!$A$79=_Dados!$A$71,_Dados!$A$79=_Dados!$A$73)),"VERDADEIRO", AND(F80=_Dados!$A$60,_Dados!$A$79<>"",OR(_Dados!$A$79=_Dados!$A$60,_Dados!$A$79=_Dados!$A$63,_Dados!$A$79=_Dados!$A$66,_Dados!$A$79=_Dados!$A$67,_Dados!$A$79=_Dados!$A$69,_Dados!$A$79=_Dados!$A$70,_Dados!$A$79=_Dados!$A$72,_Dados!$A$79=_Dados!$A$73)),"VERDADEIRO", AND(F80=_Dados!$A$61,_Dados!$A$79<>"",OR(_Dados!$A$79=_Dados!$A$61,_Dados!$A$79=_Dados!$A$64,_Dados!$A$79=_Dados!$A$66,_Dados!$A$79=_Dados!$A$68,_Dados!$A$79=_Dados!$A$69,_Dados!$A$79=_Dados!$A$71,_Dados!$A$79=_Dados!$A$72,_Dados!$A$79=_Dados!$A$73)),"VERDADEIRO", AND(F80=_Dados!$A$62,_Dados!$A$79<>"",OR(_Dados!$A$79=_Dados!$A$62,_Dados!$A$79=_Dados!$A$65,_Dados!$A$79=_Dados!$A$67,_Dados!$A$79=_Dados!$A$68,_Dados!$A$79=_Dados!$A$70,_Dados!$A$79=_Dados!$A$71,_Dados!$A$79=_Dados!$A$72,_Dados!$A$79=_Dados!$A$73)),"VERDADEIRO", AND(F80=_Dados!$A$63,_Dados!$A$79<>"",AND(_Dados!$A$79<>_Dados!$A$61,_Dados!$A$79<>_Dados!$A$62,_Dados!$A$79<>_Dados!$A$68)),"VERDADEIRO", AND(F80=_Dados!$A$64,_Dados!$A$79<>"",AND(_Dados!$A$79<>_Dados!$A$60,_Dados!$A$79<>_Dados!$A$62,_Dados!$A$79<>_Dados!$A$67)),"VERDADEIRO", AND(F80=_Dados!$A$65,_Dados!$A$79<>"",AND(_Dados!$A$79<>_Dados!$A$60,_Dados!$A$79<>_Dados!$A$61,_Dados!$A$79<>_Dados!$A$66)),"VERDADEIRO", AND(F80=_Dados!$A$66,_Dados!$A$79<>"",AND(_Dados!$A$79<>_Dados!$A$59,_Dados!$A$79<>_Dados!$A$61,_Dados!$A$79<>_Dados!$A$65)),"VERDADEIRO", AND(F80=_Dados!$A$67,_Dados!$A$79<>"",AND(_Dados!$A$79<>_Dados!$A$59,_Dados!$A$79<>_Dados!$A$61,_Dados!$A$79<>_Dados!$A$64)),"VERDADEIRO", AND(F80=_Dados!$A$68,_Dados!$A$79<>"",AND(_Dados!$A$79<>_Dados!$A$59,_Dados!$A$79<>_Dados!$A$60,_Dados!$A$79<>_Dados!$A$63)),"VERDADEIRO", AND(F80=_Dados!$A$69,_Dados!$A$79<>"",_Dados!$A$79<>_Dados!$A$62),"VERDADEIRO", AND(F80=_Dados!$A$70,_Dados!$A$79<>"",_Dados!$A$79<>_Dados!$A$61),"VERDADEIRO", AND(F80=_Dados!$A$71,_Dados!$A$79<>"",_Dados!$A$79<>_Dados!$A$60),"VERDADEIRO", AND(F80=_Dados!$A$72,_Dados!$A$79<>"",_Dados!$A$79<>_Dados!$A$59),"VERDADEIRO", AND(F80=_Dados!$A$73,_Dados!$A$79<>""),"VERDADEIRO"),"FALSO") -> FALSO | O80: Não | P80: 0 | Q80: 0
A81: 62 | B81: Social | C81: Aquisição, uso da terra e reassentamento | D81: Prevê, como opções para as pessoas deslocadas fisicamente, uma propriedade em substituição de igual ou maior valor, garantia de propriedade, características equivalentes ou melhores, vantagens de localização ou indenização pecuniária? | E81: Robusto | F81: Estudos de Estruturação da Concessão; Licitação da Concessão; Implementação | J81: =IFERROR( VLOOKUP( C81,_Dados!B:F, MATCH( IF( AND(_Dados!$A$79<>_Dados!$A$59,_Dados!$A$79<>_Dados!$A$60,_Dados!$A$79<>_Dados!$A$61,_Dados!$A$79<>_Dados!$A$62), _Dados!$C$17,_Dados!$A$79), _Dados!B$17:F$17,0), 0), "") -> 2 | K81: =IFERROR(VLOOKUP(E81,_Dados!A:B,2,0),"") -> 1.5 | L81: =IFERROR(VLOOKUP(G81,_Dados!A:B,2,0),"") ->  | M81: VERDADEIRO | N81: =IFERROR(_xlfn.IFS( AND(F81=_Dados!$A$59,_Dados!$A$79<>"",OR(_Dados!$A$79=_Dados!$A$59,_Dados!$A$79=_Dados!$A$63,_Dados!$A$79=_Dados!$A$64,_Dados!$A$79=_Dados!$A$65,_Dados!$A$79=_Dados!$A$69,_Dados!$A$79=_Dados!$A$70,_Dados!$A$79=_Dados!$A$71,_Dados!$A$79=_Dados!$A$73)),"VERDADEIRO", AND(F81=_Dados!$A$60,_Dados!$A$79<>"",OR(_Dados!$A$79=_Dados!$A$60,_Dados!$A$79=_Dados!$A$63,_Dados!$A$79=_Dados!$A$66,_Dados!$A$79=_Dados!$A$67,_Dados!$A$79=_Dados!$A$69,_Dados!$A$79=_Dados!$A$70,_Dados!$A$79=_Dados!$A$72,_Dados!$A$79=_Dados!$A$73)),"VERDADEIRO", AND(F81=_Dados!$A$61,_Dados!$A$79<>"",OR(_Dados!$A$79=_Dados!$A$61,_Dados!$A$79=_Dados!$A$64,_Dados!$A$79=_Dados!$A$66,_Dados!$A$79=_Dados!$A$68,_Dados!$A$79=_Dados!$A$69,_Dados!$A$79=_Dados!$A$71,_Dados!$A$79=_Dados!$A$72,_Dados!$A$79=_Dados!$A$73)),"VERDADEIRO", AND(F81=_Dados!$A$62,_Dados!$A$79<>"",OR(_Dados!$A$79=_Dados!$A$62,_Dados!$A$79=_Dados!$A$65,_Dados!$A$79=_Dados!$A$67,_Dados!$A$79=_Dados!$A$68,_Dados!$A$79=_Dados!$A$70,_Dados!$A$79=_Dados!$A$71,_Dados!$A$79=_Dados!$A$72,_Dados!$A$79=_Dados!$A$73)),"VERDADEIRO", AND(F81=_Dados!$A$63,_Dados!$A$79<>"",AND(_Dados!$A$79<>_Dados!$A$61,_Dados!$A$79<>_Dados!$A$62,_Dados!$A$79<>_Dados!$A$68)),"VERDADEIRO", AND(F81=_Dados!$A$64,_Dados!$A$79<>"",AND(_Dados!$A$79<>_Dados!$A$60,_Dados!$A$79<>_Dados!$A$62,_Dados!$A$79<>_Dados!$A$67)),"VERDADEIRO", AND(F81=_Dados!$A$65,_Dados!$A$79<>"",AND(_Dados!$A$79<>_Dados!$A$60,_Dados!$A$79<>_Dados!$A$61,_Dados!$A$79<>_Dados!$A$66)),"VERDADEIRO", AND(F81=_Dados!$A$66,_Dados!$A$79<>"",AND(_Dados!$A$79<>_Dados!$A$59,_Dados!$A$79<>_Dados!$A$61,_Dados!$A$79<>_Dados!$A$65)),"VERDADEIRO", AND(F81=_Dados!$A$67,_Dados!$A$79<>"",AND(_Dados!$A$79<>_Dados!$A$59,_Dados!$A$79<>_Dados!$A$61,_Dados!$A$79<>_Dados!$A$64)),"VERDADEIRO", AND(F81=_Dados!$A$68,_Dados!$A$79<>"",AND(_Dados!$A$79<>_Dados!$A$59,_Dados!$A$79<>_Dados!$A$60,_Dados!$A$79<>_Dados!$A$63)),"VERDADEIRO", AND(F81=_Dados!$A$69,_Dados!$A$79<>"",_Dados!$A$79<>_Dados!$A$62),"VERDADEIRO", AND(F81=_Dados!$A$70,_Dados!$A$79<>"",_Dados!$A$79<>_Dados!$A$61),"VERDADEIRO", AND(F81=_Dados!$A$71,_Dados!$A$79<>"",_Dados!$A$79<>_Dados!$A$60),"VERDADEIRO", AND(F81=_Dados!$A$72,_Dados!$A$79<>"",_Dados!$A$79<>_Dados!$A$59),"VERDADEIRO", AND(F81=_Dados!$A$73,_Dados!$A$79<>""),"VERDADEIRO"),"FALSO") -> FALSO | O81: Não | P81: 0 | Q81: 0
A82: 63 | B82: Social | C82: Povos indígenas e comunidades tradicionais | D82: Considerou alternativas viáveis para evitar ou minimizar os impactos sobre povos indígenas e/ou comunidades tradicionais, incluindo uma equipe responsável pela mitigação dos efeitos e um plano de ação para monitoramento ao longo do ciclo de vida do ativo? | E82: Satisfatório | F82: Estudos de Estruturação da Concessão; Licitação da Concessão; Implementação; Operação | J82: =IFERROR( VLOOKUP( C82,_Dados!B:F, MATCH( IF( AND(_Dados!$A$79<>_Dados!$A$59,_Dados!$A$79<>_Dados!$A$60,_Dados!$A$79<>_Dados!$A$61,_Dados!$A$79<>_Dados!$A$62), _Dados!$C$17,_Dados!$A$79), _Dados!B$17:F$17,0), 0), "") -> 2 | K82: =IFERROR(VLOOKUP(E82,_Dados!A:B,2,0),"") -> 1 | L82: =IFERROR(VLOOKUP(G82,_Dados!A:B,2,0),"") ->  | M82: VERDADEIRO | N82: =IFERROR(_xlfn.IFS( AND(F82=_Dados!$A$59,_Dados!$A$79<>"",OR(_Dados!$A$79=_Dados!$A$59,_Dados!$A$79=_Dados!$A$63,_Dados!$A$79=_Dados!$A$64,_Dados!$A$79=_Dados!$A$65,_Dados!$A$79=_Dados!$A$69,_Dados!$A$79=_Dados!$A$70,_Dados!$A$79=_Dados!$A$71,_Dados!$A$79=_Dados!$A$73)),"VERDADEIRO", AND(F82=_Dados!$A$60,_Dados!$A$79<>"",OR(_Dados!$A$79=_Dados!$A$60,_Dados!$A$79=_Dados!$A$63,_Dados!$A$79=_Dados!$A$66,_Dados!$A$79=_Dados!$A$67,_Dados!$A$79=_Dados!$A$69,_Dados!$A$79=_Dados!$A$70,_Dados!$A$79=_Dados!$A$72,_Dados!$A$79=_Dados!$A$73)),"VERDADEIRO", AND(F82=_Dados!$A$61,_Dados!$A$79<>"",OR(_Dados!$A$79=_Dados!$A$61,_Dados!$A$79=_Dados!$A$64,_Dados!$A$79=_Dados!$A$66,_Dados!$A$79=_Dados!$A$68,_Dados!$A$79=_Dados!$A$69,_Dados!$A$79=_Dados!$A$71,_Dados!$A$79=_Dados!$A$72,_Dados!$A$79=_Dados!$A$73)),"VERDADEIRO", AND(F82=_Dados!$A$62,_Dados!$A$79<>"",OR(_Dados!$A$79=_Dados!$A$62,_Dados!$A$79=_Dados!$A$65,_Dados!$A$79=_Dados!$A$67,_Dados!$A$79=_Dados!$A$68,_Dados!$A$79=_Dados!$A$70,_Dados!$A$79=_Dados!$A$71,_Dados!$A$79=_Dados!$A$72,_Dados!$A$79=_Dados!$A$73)),"VERDADEIRO", AND(F82=_Dados!$A$63,_Dados!$A$79<>"",AND(_Dados!$A$79<>_Dados!$A$61,_Dados!$A$79<>_Dados!$A$62,_Dados!$A$79<>_Dados!$A$68)),"VERDADEIRO", AND(F82=_Dados!$A$64,_Dados!$A$79<>"",AND(_Dados!$A$79<>_Dados!$A$60,_Dados!$A$79<>_Dados!$A$62,_Dados!$A$79<>_Dados!$A$67)),"VERDADEIRO", AND(F82=_Dados!$A$65,_Dados!$A$79<>"",AND(_Dados!$A$79<>_Dados!$A$60,_Dados!$A$79<>_Dados!$A$61,_Dados!$A$79<>_Dados!$A$66)),"VERDADEIRO", AND(F82=_Dados!$A$66,_Dados!$A$79<>"",AND(_Dados!$A$79<>_Dados!$A$59,_Dados!$A$79<>_Dados!$A$61,_Dados!$A$79<>_Dados!$A$65)),"VERDADEIRO", AND(F82=_Dados!$A$67,_Dados!$A$79<>"",AND(_Dados!$A$79<>_Dados!$A$59,_Dados!$A$79<>_Dados!$A$61,_Dados!$A$79<>_Dados!$A$64)),"VERDADEIRO", AND(F82=_Dados!$A$68,_Dados!$A$79<>"",AND(_Dados!$A$79<>_Dados!$A$59,_Dados!$A$79<>_Dados!$A$60,_Dados!$A$79<>_Dados!$A$63)),"VERDADEIRO", AND(F82=_Dados!$A$69,_Dados!$A$79<>"",_Dados!$A$79<>_Dados!$A$62),"VERDADEIRO", AND(F82=_Dados!$A$70,_Dados!$A$79<>"",_Dados!$A$79<>_Dados!$A$61),"VERDADEIRO", AND(F82=_Dados!$A$71,_Dados!$A$79<>"",_Dados!$A$79<>_Dados!$A$60),"VERDADEIRO", AND(F82=_Dados!$A$72,_Dados!$A$79<>"",_Dados!$A$79<>_Dados!$A$59),"VERDADEIRO", AND(F82=_Dados!$A$73,_Dados!$A$79<>""),"VERDADEIRO"),"FALSO") -> FALSO | O82: Não | P82: 0 | Q82: 0
A83: 64 | B83: Social | C83: Povos indígenas e comunidades tradicionais | D83: Foi desenvolvida uma análise de riscos e impactos socioambientais a povos indígenas e/ou comunidades tradicionais, bem como a seus elementos e tradições, levantando sua presença e localização dentro da área de influência do projeto e a natureza e grau dos impactos econômicos, sociais e culturais decorrentes? | E83: Satisfatório | F83: Estudos de Estruturação da Concessão; Licitação da Concessão; Implementação; Operação | J83: =IFERROR( VLOOKUP( C83,_Dados!B:F, MATCH( IF( AND(_Dados!$A$79<>_Dados!$A$59,_Dados!$A$79<>_Dados!$A$60,_Dados!$A$79<>_Dados!$A$61,_Dados!$A$79<>_Dados!$A$62), _Dados!$C$17,_Dados!$A$79), _Dados!B$17:F$17,0), 0), "") -> 2 | K83: =IFERROR(VLOOKUP(E83,_Dados!A:B,2,0),"") -> 1 | L83: =IFERROR(VLOOKUP(G83,_Dados!A:B,2,0),"") ->  | M83: VERDADEIRO | N83: =IFERROR(_xlfn.IFS( AND(F83=_Dados!$A$59,_Dados!$A$79<>"",OR(_Dados!$A$79=_Dados!$A$59,_Dados!$A$79=_Dados!$A$63,_Dados!$A$79=_Dados!$A$64,_Dados!$A$79=_Dados!$A$65,_Dados!$A$79=_Dados!$A$69,_Dados!$A$79=_Dados!$A$70,_Dados!$A$79=_Dados!$A$71,_Dados!$A$79=_Dados!$A$73)),"VERDADEIRO", AND(F83=_Dados!$A$60,_Dados!$A$79<>"",OR(_Dados!$A$79=_Dados!$A$60,_Dados!$A$79=_Dados!$A$63,_Dados!$A$79=_Dados!$A$66,_Dados!$A$79=_Dados!$A$67,_Dados!$A$79=_Dados!$A$69,_Dados!$A$79=_Dados!$A$70,_Dados!$A$79=_Dados!$A$72,_Dados!$A$79=_Dados!$A$73)),"VERDADEIRO", AND(F83=_Dados!$A$61,_Dados!$A$79<>"",OR(_Dados!$A$79=_Dados!$A$61,_Dados!$A$79=_Dados!$A$64,_Dados!$A$79=_Dados!$A$66,_Dados!$A$79=_Dados!$A$68,_Dados!$A$79=_Dados!$A$69,_Dados!$A$79=_Dados!$A$71,_Dados!$A$79=_Dados!$A$72,_Dados!$A$79=_Dados!$A$73)),"VERDADEIRO", AND(F83=_Dados!$A$62,_Dados!$A$79<>"",OR(_Dados!$A$79=_Dados!$A$62,_Dados!$A$79=_Dados!$A$65,_Dados!$A$79=_Dados!$A$67,_Dados!$A$79=_Dados!$A$68,_Dados!$A$79=_Dados!$A$70,_Dados!$A$79=_Dados!$A$71,_Dados!$A$79=_Dados!$A$72,_Dados!$A$79=_Dados!$A$73)),"VERDADEIRO", AND(F83=_Dados!$A$63,_Dados!$A$79<>"",AND(_Dados!$A$79<>_Dados!$A$61,_Dados!$A$79<>_Dados!$A$62,_Dados!$A$79<>_Dados!$A$68)),"VERDADEIRO", AND(F83=_Dados!$A$64,_Dados!$A$79<>"",AND(_Dados!$A$79<>_Dados!$A$60,_Dados!$A$79<>_Dados!$A$62,_Dados!$A$79<>_Dados!$A$67)),"VERDADEIRO", AND(F83=_Dados!$A$65,_Dados!$A$79<>"",AND(_Dados!$A$79<>_Dados!$A$60,_Dados!$A$79<>_Dados!$A$61,_Dados!$A$79<>_Dados!$A$66)),"VERDADEIRO", AND(F83=_Dados!$A$66,_Dados!$A$79<>"",AND(_Dados!$A$79<>_Dados!$A$59,_Dados!$A$79<>_Dados!$A$61,_Dados!$A$79<>_Dados!$A$65)),"VERDADEIRO", AND(F83=_Dados!$A$67,_Dados!$A$79<>"",AND(_Dados!$A$79<>_Dados!$A$59,_Dados!$A$79<>_Dados!$A$61,_Dados!$A$79<>_Dados!$A$64)),"VERDADEIRO", AND(F83=_Dados!$A$68,_Dados!$A$79<>"",AND(_Dados!$A$79<>_Dados!$A$59,_Dados!$A$79<>_Dados!$A$60,_Dados!$A$79<>_Dados!$A$63)),"VERDADEIRO", AND(F83=_Dados!$A$69,_Dados!$A$79<>"",_Dados!$A$79<>_Dados!$A$62),"VERDADEIRO", AND(F83=_Dados!$A$70,_Dados!$A$79<>"",_Dados!$A$79<>_Dados!$A$61),"VERDADEIRO", AND(F83=_Dados!$A$71,_Dados!$A$79<>"",_Dados!$A$79<>_Dados!$A$60),"VERDADEIRO", AND(F83=_Dados!$A$72,_Dados!$A$79<>"",_Dados!$A$79<>_Dados!$A$59),"VERDADEIRO", AND(F83=_Dados!$A$73,_Dados!$A$79<>""),"VERDADEIRO"),"FALSO") -> FALSO | O83: Não | P83: 0 | Q83: 0
A84: 65 | B84: Social | C84: Povos indígenas e comunidades tradicionais | D84: Foi realizada uma consulta com os povos indígenas e comunidades tradicionais (potencialmente) afetados, mediante procedimentos apropriados e, particularmente, através de suas instituições representativas? | E84: Satisfatório | F84: Estudos de Estruturação da Concessão; Licitação da Concessão; Implementação; Operação | J84: =IFERROR( VLOOKUP( C84,_Dados!B:F, MATCH( IF( AND(_Dados!$A$79<>_Dados!$A$59,_Dados!$A$79<>_Dados!$A$60,_Dados!$A$79<>_Dados!$A$61,_Dados!$A$79<>_Dados!$A$62), _Dados!$C$17,_Dados!$A$79), _Dados!B$17:F$17,0), 0), "") -> 2 | K84: =IFERROR(VLOOKUP(E84,_Dados!A:B,2,0),"") -> 1 | L84: =IFERROR(VLOOKUP(G84,_Dados!A:B,2,0),"") ->  | M84: VERDADEIRO | N84: =IFERROR(_xlfn.IFS( AND(F84=_Dados!$A$59,_Dados!$A$79<>"",OR(_Dados!$A$79=_Dados!$A$59,_Dados!$A$79=_Dados!$A$63,_Dados!$A$79=_Dados!$A$64,_Dados!$A$79=_Dados!$A$65,_Dados!$A$79=_Dados!$A$69,_Dados!$A$79=_Dados!$A$70,_Dados!$A$79=_Dados!$A$71,_Dados!$A$79=_Dados!$A$73)),"VERDADEIRO", AND(F84=_Dados!$A$60,_Dados!$A$79<>"",OR(_Dados!$A$79=_Dados!$A$60,_Dados!$A$79=_Dados!$A$63,_Dados!$A$79=_Dados!$A$66,_Dados!$A$79=_Dados!$A$67,_Dados!$A$79=_Dados!$A$69,_Dados!$A$79=_Dados!$A$70,_Dados!$A$79=_Dados!$A$72,_Dados!$A$79=_Dados!$A$73)),"VERDADEIRO", AND(F84=_Dados!$A$61,_Dados!$A$79<>"",OR(_Dados!$A$79=_Dados!$A$61,_Dados!$A$79=_Dados!$A$64,_Dados!$A$79=_Dados!$A$66,_Dados!$A$79=_Dados!$A$68,_Dados!$A$79=_Dados!$A$69,_Dados!$A$79=_Dados!$A$71,_Dados!$A$79=_Dados!$A$72,_Dados!$A$79=_Dados!$A$73)),"VERDADEIRO", AND(F84=_Dados!$A$62,_Dados!$A$79<>"",OR(_Dados!$A$79=_Dados!$A$62,_Dados!$A$79=_Dados!$A$65,_Dados!$A$79=_Dados!$A$67,_Dados!$A$79=_Dados!$A$68,_Dados!$A$79=_Dados!$A$70,_Dados!$A$79=_Dados!$A$71,_Dados!$A$79=_Dados!$A$72,_Dados!$A$79=_Dados!$A$73)),"VERDADEIRO", AND(F84=_Dados!$A$63,_Dados!$A$79<>"",AND(_Dados!$A$79<>_Dados!$A$61,_Dados!$A$79<>_Dados!$A$62,_Dados!$A$79<>_Dados!$A$68)),"VERDADEIRO", AND(F84=_Dados!$A$64,_Dados!$A$79<>"",AND(_Dados!$A$79<>_Dados!$A$60,_Dados!$A$79<>_Dados!$A$62,_Dados!$A$79<>_Dados!$A$67)),"VERDADEIRO", AND(F84=_Dados!$A$65,_Dados!$A$79<>"",AND(_Dados!$A$79<>_Dados!$A$60,_Dados!$A$79<>_Dados!$A$61,_Dados!$A$79<>_Dados!$A$66)),"VERDADEIRO", AND(F84=_Dados!$A$66,_Dados!$A$79<>"",AND(_Dados!$A$79<>_Dados!$A$59,_Dados!$A$79<>_Dados!$A$61,_Dados!$A$79<>_Dados!$A$65)),"VERDADEIRO", AND(F84=_Dados!$A$67,_Dados!$A$79<>"",AND(_Dados!$A$79<>_Dados!$A$59,_Dados!$A$79<>_Dados!$A$61,_Dados!$A$79<>_Dados!$A$64)),"VERDADEIRO", AND(F84=_Dados!$A$68,_Dados!$A$79<>"",AND(_Dados!$A$79<>_Dados!$A$59,_Dados!$A$79<>_Dados!$A$60,_Dados!$A$79<>_Dados!$A$63)),"VERDADEIRO", AND(F84=_Dados!$A$69,_Dados!$A$79<>"",_Dados!$A$79<>_Dados!$A$62),"VERDADEIRO", AND(F84=_Dados!$A$70,_Dados!$A$79<>"",_Dados!$A$79<>_Dados!$A$61),"VERDADEIRO", AND(F84=_Dados!$A$71,_Dados!$A$79<>"",_Dados!$A$79<>_Dados!$A$60),"VERDADEIRO", AND(F84=_Dados!$A$72,_Dados!$A$79<>"",_Dados!$A$79<>_Dados!$A$59),"VERDADEIRO", AND(F84=_Dados!$A$73,_Dados!$A$79<>""),"VERDADEIRO"),"FALSO") -> FALSO | O84: Não | P84: 0 | Q84: 0
A85: 66 | B85: Social | C85: Povos indígenas e comunidades tradicionais | D85: Adota medidas para garantir que os membros dos povos indígenas e comunidades tradicionais (potencialmente) afetados possam se fazer compreender em procedimentos legais, facilitando para eles, se for necessário, intérpretes ou outros meios eficazes para que tenham proteção contra a violação de seus direitos? | E85: Satisfatório | F85: Estudos de Estruturação da Concessão; Licitação da Concessão; Implementação; Operação | J85: =IFERROR( VLOOKUP( C85,_Dados!B:F, MATCH( IF( AND(_Dados!$A$79<>_Dados!$A$59,_Dados!$A$79<>_Dados!$A$60,_Dados!$A$79<>_Dados!$A$61,_Dados!$A$79<>_Dados!$A$62), _Dados!$C$17,_Dados!$A$79), _Dados!B$17:F$17,0), 0), "") -> 2 | K85: =IFERROR(VLOOKUP(E85,_Dados!A:B,2,0),"") -> 1 | L85: =IFERROR(VLOOKUP(G85,_Dados!A:B,2,0),"") ->  | M85: VERDADEIRO | N85: =IFERROR(_xlfn.IFS( AND(F85=_Dados!$A$59,_Dados!$A$79<>"",OR(_Dados!$A$79=_Dados!$A$59,_Dados!$A$79=_Dados!$A$63,_Dados!$A$79=_Dados!$A$64,_Dados!$A$79=_Dados!$A$65,_Dados!$A$79=_Dados!$A$69,_Dados!$A$79=_Dados!$A$70,_Dados!$A$79=_Dados!$A$71,_Dados!$A$79=_Dados!$A$73)),"VERDADEIRO", AND(F85=_Dados!$A$60,_Dados!$A$79<>"",OR(_Dados!$A$79=_Dados!$A$60,_Dados!$A$79=_Dados!$A$63,_Dados!$A$79=_Dados!$A$66,_Dados!$A$79=_Dados!$A$67,_Dados!$A$79=_Dados!$A$69,_Dados!$A$79=_Dados!$A$70,_Dados!$A$79=_Dados!$A$72,_Dados!$A$79=_Dados!$A$73)),"VERDADEIRO", AND(F85=_Dados!$A$61,_Dados!$A$79<>"",OR(_Dados!$A$79=_Dados!$A$61,_Dados!$A$79=_Dados!$A$64,_Dados!$A$79=_Dados!$A$66,_Dados!$A$79=_Dados!$A$68,_Dados!$A$79=_Dados!$A$69,_Dados!$A$79=_Dados!$A$71,_Dados!$A$79=_Dados!$A$72,_Dados!$A$79=_Dados!$A$73)),"VERDADEIRO", AND(F85=_Dados!$A$62,_Dados!$A$79<>"",OR(_Dados!$A$79=_Dados!$A$62,_Dados!$A$79=_Dados!$A$65,_Dados!$A$79=_Dados!$A$67,_Dados!$A$79=_Dados!$A$68,_Dados!$A$79=_Dados!$A$70,_Dados!$A$79=_Dados!$A$71,_Dados!$A$79=_Dados!$A$72,_Dados!$A$79=_Dados!$A$73)),"VERDADEIRO", AND(F85=_Dados!$A$63,_Dados!$A$79<>"",AND(_Dados!$A$79<>_Dados!$A$61,_Dados!$A$79<>_Dados!$A$62,_Dados!$A$79<>_Dados!$A$68)),"VERDADEIRO", AND(F85=_Dados!$A$64,_Dados!$A$79<>"",AND(_Dados!$A$79<>_Dados!$A$60,_Dados!$A$79<>_Dados!$A$62,_Dados!$A$79<>_Dados!$A$67)),"VERDADEIRO", AND(F85=_Dados!$A$65,_Dados!$A$79<>"",AND(_Dados!$A$79<>_Dados!$A$60,_Dados!$A$79<>_Dados!$A$61,_Dados!$A$79<>_Dados!$A$66)),"VERDADEIRO", AND(F85=_Dados!$A$66,_Dados!$A$79<>"",AND(_Dados!$A$79<>_Dados!$A$59,_Dados!$A$79<>_Dados!$A$61,_Dados!$A$79<>_Dados!$A$65)),"VERDADEIRO", AND(F85=_Dados!$A$67,_Dados!$A$79<>"",AND(_Dados!$A$79<>_Dados!$A$59,_Dados!$A$79<>_Dados!$A$61,_Dados!$A$79<>_Dados!$A$64)),"VERDADEIRO", AND(F85=_Dados!$A$68,_Dados!$A$79<>"",AND(_Dados!$A$79<>_Dados!$A$59,_Dados!$A$79<>_Dados!$A$60,_Dados!$A$79<>_Dados!$A$63)),"VERDADEIRO", AND(F85=_Dados!$A$69,_Dados!$A$79<>"",_Dados!$A$79<>_Dados!$A$62),"VERDADEIRO", AND(F85=_Dados!$A$70,_Dados!$A$79<>"",_Dados!$A$79<>_Dados!$A$61),"VERDADEIRO", AND(F85=_Dados!$A$71,_Dados!$A$79<>"",_Dados!$A$79<>_Dados!$A$60),"VERDADEIRO", AND(F85=_Dados!$A$72,_Dados!$A$79<>"",_Dados!$A$79<>_Dados!$A$59),"VERDADEIRO", AND(F85=_Dados!$A$73,_Dados!$A$79<>""),"VERDADEIRO"),"FALSO") -> FALSO | O85: Não | P85: 0 | Q85: 0
A86: 67 | B86: Social | C86: Saúde, segurança e condições de trabalho | D86: Apresenta procedimentos formalizados de monitoramento e capacitação para garantir o combate ao trabalho infantil, escravo ou análogo a escravo durante todo o ciclo de vida do ativo? | E86: Satisfatório | F86: Implementação; Operação | J86: =IFERROR( VLOOKUP( C86,_Dados!B:F, MATCH( IF( AND(_Dados!$A$79<>_Dados!$A$59,_Dados!$A$79<>_Dados!$A$60,_Dados!$A$79<>_Dados!$A$61,_Dados!$A$79<>_Dados!$A$62), _Dados!$C$17,_Dados!$A$79), _Dados!B$17:F$17,0), 0), "") -> 2 | K86: =IFERROR(VLOOKUP(E86,_Dados!A:B,2,0),"") -> 1 | L86: =IFERROR(VLOOKUP(G86,_Dados!A:B,2,0),"") ->  | M86: VERDADEIRO | N86: =IFERROR(_xlfn.IFS( AND(F86=_Dados!$A$59,_Dados!$A$79<>"",OR(_Dados!$A$79=_Dados!$A$59,_Dados!$A$79=_Dados!$A$63,_Dados!$A$79=_Dados!$A$64,_Dados!$A$79=_Dados!$A$65,_Dados!$A$79=_Dados!$A$69,_Dados!$A$79=_Dados!$A$70,_Dados!$A$79=_Dados!$A$71,_Dados!$A$79=_Dados!$A$73)),"VERDADEIRO", AND(F86=_Dados!$A$60,_Dados!$A$79<>"",OR(_Dados!$A$79=_Dados!$A$60,_Dados!$A$79=_Dados!$A$63,_Dados!$A$79=_Dados!$A$66,_Dados!$A$79=_Dados!$A$67,_Dados!$A$79=_Dados!$A$69,_Dados!$A$79=_Dados!$A$70,_Dados!$A$79=_Dados!$A$72,_Dados!$A$79=_Dados!$A$73)),"VERDADEIRO", AND(F86=_Dados!$A$61,_Dados!$A$79<>"",OR(_Dados!$A$79=_Dados!$A$61,_Dados!$A$79=_Dados!$A$64,_Dados!$A$79=_Dados!$A$66,_Dados!$A$79=_Dados!$A$68,_Dados!$A$79=_Dados!$A$69,_Dados!$A$79=_Dados!$A$71,_Dados!$A$79=_Dados!$A$72,_Dados!$A$79=_Dados!$A$73)),"VERDADEIRO", AND(F86=_Dados!$A$62,_Dados!$A$79<>"",OR(_Dados!$A$79=_Dados!$A$62,_Dados!$A$79=_Dados!$A$65,_Dados!$A$79=_Dados!$A$67,_Dados!$A$79=_Dados!$A$68,_Dados!$A$79=_Dados!$A$70,_Dados!$A$79=_Dados!$A$71,_Dados!$A$79=_Dados!$A$72,_Dados!$A$79=_Dados!$A$73)),"VERDADEIRO", AND(F86=_Dados!$A$63,_Dados!$A$79<>"",AND(_Dados!$A$79<>_Dados!$A$61,_Dados!$A$79<>_Dados!$A$62,_Dados!$A$79<>_Dados!$A$68)),"VERDADEIRO", AND(F86=_Dados!$A$64,_Dados!$A$79<>"",AND(_Dados!$A$79<>_Dados!$A$60,_Dados!$A$79<>_Dados!$A$62,_Dados!$A$79<>_Dados!$A$67)),"VERDADEIRO", AND(F86=_Dados!$A$65,_Dados!$A$79<>"",AND(_Dados!$A$79<>_Dados!$A$60,_Dados!$A$79<>_Dados!$A$61,_Dados!$A$79<>_Dados!$A$66)),"VERDADEIRO", AND(F86=_Dados!$A$66,_Dados!$A$79<>"",AND(_Dados!$A$79<>_Dados!$A$59,_Dados!$A$79<>_Dados!$A$61,_Dados!$A$79<>_Dados!$A$65)),"VERDADEIRO", AND(F86=_Dados!$A$67,_Dados!$A$79<>"",AND(_Dados!$A$79<>_Dados!$A$59,_Dados!$A$79<>_Dados!$A$61,_Dados!$A$79<>_Dados!$A$64)),"VERDADEIRO", AND(F86=_Dados!$A$68,_Dados!$A$79<>"",AND(_Dados!$A$79<>_Dados!$A$59,_Dados!$A$79<>_Dados!$A$60,_Dados!$A$79<>_Dados!$A$63)),"VERDADEIRO", AND(F86=_Dados!$A$69,_Dados!$A$79<>"",_Dados!$A$79<>_Dados!$A$62),"VERDADEIRO", AND(F86=_Dados!$A$70,_Dados!$A$79<>"",_Dados!$A$79<>_Dados!$A$61),"VERDADEIRO", AND(F86=_Dados!$A$71,_Dados!$A$79<>"",_Dados!$A$79<>_Dados!$A$60),"VERDADEIRO", AND(F86=_Dados!$A$72,_Dados!$A$79<>"",_Dados!$A$79<>_Dados!$A$59),"VERDADEIRO", AND(F86=_Dados!$A$73,_Dados!$A$79<>""),"VERDADEIRO"),"FALSO") -> FALSO | O86: Não | P86: 0 | Q86: 0
A87: 68 | B87: Social | C87: Saúde, segurança e condições de trabalho | D87: Apresenta procedimentos formalizados que garantam relações empregatícias baseadas na igualdade de oportunidades e tratamento justo, sem discriminação com relação a nenhum aspecto, como recrutamento e contratação, remuneração (incluindo salários e benefícios) condições de trabalho e de emprego, acesso a treinamento, atribuição de cargo, promoção, rescisão de contrato de trabalho ou aposentadoria e práticas disciplinares? | E87: Satisfatório | F87: Implementação; Operação | J87: =IFERROR( VLOOKUP( C87,_Dados!B:F, MATCH( IF( AND(_Dados!$A$79<>_Dados!$A$59,_Dados!$A$79<>_Dados!$A$60,_Dados!$A$79<>_Dados!$A$61,_Dados!$A$79<>_Dados!$A$62), _Dados!$C$17,_Dados!$A$79), _Dados!B$17:F$17,0), 0), "") -> 2 | K87: =IFERROR(VLOOKUP(E87,_Dados!A:B,2,0),"") -> 1 | L87: =IFERROR(VLOOKUP(G87,_Dados!A:B,2,0),"") ->  | M87: VERDADEIRO | N87: =IFERROR(_xlfn.IFS( AND(F87=_Dados!$A$59,_Dados!$A$79<>"",OR(_Dados!$A$79=_Dados!$A$59,_Dados!$A$79=_Dados!$A$63,_Dados!$A$79=_Dados!$A$64,_Dados!$A$79=_Dados!$A$65,_Dados!$A$79=_Dados!$A$69,_Dados!$A$79=_Dados!$A$70,_Dados!$A$79=_Dados!$A$71,_Dados!$A$79=_Dados!$A$73)),"VERDADEIRO", AND(F87=_Dados!$A$60,_Dados!$A$79<>"",OR(_Dados!$A$79=_Dados!$A$60,_Dados!$A$79=_Dados!$A$63,_Dados!$A$79=_Dados!$A$66,_Dados!$A$79=_Dados!$A$67,_Dados!$A$79=_Dados!$A$69,_Dados!$A$79=_Dados!$A$70,_Dados!$A$79=_Dados!$A$72,_Dados!$A$79=_Dados!$A$73)),"VERDADEIRO", AND(F87=_Dados!$A$61,_Dados!$A$79<>"",OR(_Dados!$A$79=_Dados!$A$61,_Dados!$A$79=_Dados!$A$64,_Dados!$A$79=_Dados!$A$66,_Dados!$A$79=_Dados!$A$68,_Dados!$A$79=_Dados!$A$69,_Dados!$A$79=_Dados!$A$71,_Dados!$A$79=_Dados!$A$72,_Dados!$A$79=_Dados!$A$73)),"VERDADEIRO", AND(F87=_Dados!$A$62,_Dados!$A$79<>"",OR(_Dados!$A$79=_Dados!$A$62,_Dados!$A$79=_Dados!$A$65,_Dados!$A$79=_Dados!$A$67,_Dados!$A$79=_Dados!$A$68,_Dados!$A$79=_Dados!$A$70,_Dados!$A$79=_Dados!$A$71,_Dados!$A$79=_Dados!$A$72,_Dados!$A$79=_Dados!$A$73)),"VERDADEIRO", AND(F87=_Dados!$A$63,_Dados!$A$79<>"",AND(_Dados!$A$79<>_Dados!$A$61,_Dados!$A$79<>_Dados!$A$62,_Dados!$A$79<>_Dados!$A$68)),"VERDADEIRO", AND(F87=_Dados!$A$64,_Dados!$A$79<>"",AND(_Dados!$A$79<>_Dados!$A$60,_Dados!$A$79<>_Dados!$A$62,_Dados!$A$79<>_Dados!$A$67)),"VERDADEIRO", AND(F87=_Dados!$A$65,_Dados!$A$79<>"",AND(_Dados!$A$79<>_Dados!$A$60,_Dados!$A$79<>_Dados!$A$61,_Dados!$A$79<>_Dados!$A$66)),"VERDADEIRO", AND(F87=_Dados!$A$66,_Dados!$A$79<>"",AND(_Dados!$A$79<>_Dados!$A$59,_Dados!$A$79<>_Dados!$A$61,_Dados!$A$79<>_Dados!$A$65)),"VERDADEIRO", AND(F87=_Dados!$A$67,_Dados!$A$79<>"",AND(_Dados!$A$79<>_Dados!$A$59,_Dados!$A$79<>_Dados!$A$61,_Dados!$A$79<>_Dados!$A$64)),"VERDADEIRO", AND(F87=_Dados!$A$68,_Dados!$A$79<>"",AND(_Dados!$A$79<>_Dados!$A$59,_Dados!$A$79<>_Dados!$A$60,_Dados!$A$79<>_Dados!$A$63)),"VERDADEIRO", AND(F87=_Dados!$A$69,_Dados!$A$79<>"",_Dados!$A$79<>_Dados!$A$62),"VERDADEIRO", AND(F87=_Dados!$A$70,_Dados!$A$79<>"",_Dados!$A$79<>_Dados!$A$61),"VERDADEIRO", AND(F87=_Dados!$A$71,_Dados!$A$79<>"",_Dados!$A$79<>_Dados!$A$60),"VERDADEIRO", AND(F87=_Dados!$A$72,_Dados!$A$79<>"",_Dados!$A$79<>_Dados!$A$59),"VERDADEIRO", AND(F87=_Dados!$A$73,_Dados!$A$79<>""),"VERDADEIRO"),"FALSO") -> FALSO | O87: Não | P87: 0 | Q87: 0
A88: 69 | B88: Social | C88: Saúde, segurança e condições de trabalho | D88: Divulga o total de dias ociosos como resultado de paralisações de trabalho, descrever o motivo de cada paralisação (conforme descrito pelos trabalhadores), o impacto nas operações e as ações corretivas tomadas em decorrência? | E88: Satisfatório | F88: Implementação; Operação | J88: =IFERROR( VLOOKUP( C88,_Dados!B:F, MATCH( IF( AND(_Dados!$A$79<>_Dados!$A$59,_Dados!$A$79<>_Dados!$A$60,_Dados!$A$79<>_Dados!$A$61,_Dados!$A$79<>_Dados!$A$62), _Dados!$C$17,_Dados!$A$79), _Dados!B$17:F$17,0), 0), "") -> 2 | K88: =IFERROR(VLOOKUP(E88,_Dados!A:B,2,0),"") -> 1 | L88: =IFERROR(VLOOKUP(G88,_Dados!A:B,2,0),"") ->  | M88: VERDADEIRO | N88: =IFERROR(_xlfn.IFS( AND(F88=_Dados!$A$59,_Dados!$A$79<>"",OR(_Dados!$A$79=_Dados!$A$59,_Dados!$A$79=_Dados!$A$63,_Dados!$A$79=_Dados!$A$64,_Dados!$A$79=_Dados!$A$65,_Dados!$A$79=_Dados!$A$69,_Dados!$A$79=_Dados!$A$70,_Dados!$A$79=_Dados!$A$71,_Dados!$A$79=_Dados!$A$73)),"VERDADEIRO", AND(F88=_Dados!$A$60,_Dados!$A$79<>"",OR(_Dados!$A$79=_Dados!$A$60,_Dados!$A$79=_Dados!$A$63,_Dados!$A$79=_Dados!$A$66,_Dados!$A$79=_Dados!$A$67,_Dados!$A$79=_Dados!$A$69,_Dados!$A$79=_Dados!$A$70,_Dados!$A$79=_Dados!$A$72,_Dados!$A$79=_Dados!$A$73)),"VERDADEIRO", AND(F88=_Dados!$A$61,_Dados!$A$79<>"",OR(_Dados!$A$79=_Dados!$A$61,_Dados!$A$79=_Dados!$A$64,_Dados!$A$79=_Dados!$A$66,_Dados!$A$79=_Dados!$A$68,_Dados!$A$79=_Dados!$A$69,_Dados!$A$79=_Dados!$A$71,_Dados!$A$79=_Dados!$A$72,_Dados!$A$79=_Dados!$A$73)),"VERDADEIRO", AND(F88=_Dados!$A$62,_Dados!$A$79<>"",OR(_Dados!$A$79=_Dados!$A$62,_Dados!$A$79=_Dados!$A$65,_Dados!$A$79=_Dados!$A$67,_Dados!$A$79=_Dados!$A$68,_Dados!$A$79=_Dados!$A$70,_Dados!$A$79=_Dados!$A$71,_Dados!$A$79=_Dados!$A$72,_Dados!$A$79=_Dados!$A$73)),"VERDADEIRO", AND(F88=_Dados!$A$63,_Dados!$A$79<>"",AND(_Dados!$A$79<>_Dados!$A$61,_Dados!$A$79<>_Dados!$A$62,_Dados!$A$79<>_Dados!$A$68)),"VERDADEIRO", AND(F88=_Dados!$A$64,_Dados!$A$79<>"",AND(_Dados!$A$79<>_Dados!$A$60,_Dados!$A$79<>_Dados!$A$62,_Dados!$A$79<>_Dados!$A$67)),"VERDADEIRO", AND(F88=_Dados!$A$65,_Dados!$A$79<>"",AND(_Dados!$A$79<>_Dados!$A$60,_Dados!$A$79<>_Dados!$A$61,_Dados!$A$79<>_Dados!$A$66)),"VERDADEIRO", AND(F88=_Dados!$A$66,_Dados!$A$79<>"",AND(_Dados!$A$79<>_Dados!$A$59,_Dados!$A$79<>_Dados!$A$61,_Dados!$A$79<>_Dados!$A$65)),"VERDADEIRO", AND(F88=_Dados!$A$67,_Dados!$A$79<>"",AND(_Dados!$A$79<>_Dados!$A$59,_Dados!$A$79<>_Dados!$A$61,_Dados!$A$79<>_Dados!$A$64)),"VERDADEIRO", AND(F88=_Dados!$A$68,_Dados!$A$79<>"",AND(_Dados!$A$79<>_Dados!$A$59,_Dados!$A$79<>_Dados!$A$60,_Dados!$A$79<>_Dados!$A$63)),"VERDADEIRO", AND(F88=_Dados!$A$69,_Dados!$A$79<>"",_Dados!$A$79<>_Dados!$A$62),"VERDADEIRO", AND(F88=_Dados!$A$70,_Dados!$A$79<>"",_Dados!$A$79<>_Dados!$A$61),"VERDADEIRO", AND(F88=_Dados!$A$71,_Dados!$A$79<>"",_Dados!$A$79<>_Dados!$A$60),"VERDADEIRO", AND(F88=_Dados!$A$72,_Dados!$A$79<>"",_Dados!$A$79<>_Dados!$A$59),"VERDADEIRO", AND(F88=_Dados!$A$73,_Dados!$A$79<>""),"VERDADEIRO"),"FALSO") -> FALSO | O88: Não | P88: 0 | Q88: 0
A89: 70 | B89: Social | C89: Saúde, segurança e condições de trabalho | D89: Divulga, pelo menos anualmente, as taxas de saúde e segurança ocupacional (acidentes registrados × 200.000) /horas trabalhadas? | E89: Satisfatório | F89: Implementação; Operação | J89: =IFERROR( VLOOKUP( C89,_Dados!B:F, MATCH( IF( AND(_Dados!$A$79<>_Dados!$A$59,_Dados!$A$79<>_Dados!$A$60,_Dados!$A$79<>_Dados!$A$61,_Dados!$A$79<>_Dados!$A$62), _Dados!$C$17,_Dados!$A$79), _Dados!B$17:F$17,0), 0), "") -> 2 | K89: =IFERROR(VLOOKUP(E89,_Dados!A:B,2,0),"") -> 1 | L89: =IFERROR(VLOOKUP(G89,_Dados!A:B,2,0),"") ->  | M89: VERDADEIRO | N89: =IFERROR(_xlfn.IFS( AND(F89=_Dados!$A$59,_Dados!$A$79<>"",OR(_Dados!$A$79=_Dados!$A$59,_Dados!$A$79=_Dados!$A$63,_Dados!$A$79=_Dados!$A$64,_Dados!$A$79=_Dados!$A$65,_Dados!$A$79=_Dados!$A$69,_Dados!$A$79=_Dados!$A$70,_Dados!$A$79=_Dados!$A$71,_Dados!$A$79=_Dados!$A$73)),"VERDADEIRO", AND(F89=_Dados!$A$60,_Dados!$A$79<>"",OR(_Dados!$A$79=_Dados!$A$60,_Dados!$A$79=_Dados!$A$63,_Dados!$A$79=_Dados!$A$66,_Dados!$A$79=_Dados!$A$67,_Dados!$A$79=_Dados!$A$69,_Dados!$A$79=_Dados!$A$70,_Dados!$A$79=_Dados!$A$72,_Dados!$A$79=_Dados!$A$73)),"VERDADEIRO", AND(F89=_Dados!$A$61,_Dados!$A$79<>"",OR(_Dados!$A$79=_Dados!$A$61,_Dados!$A$79=_Dados!$A$64,_Dados!$A$79=_Dados!$A$66,_Dados!$A$79=_Dados!$A$68,_Dados!$A$79=_Dados!$A$69,_Dados!$A$79=_Dados!$A$71,_Dados!$A$79=_Dados!$A$72,_Dados!$A$79=_Dados!$A$73)),"VERDADEIRO", AND(F89=_Dados!$A$62,_Dados!$A$79<>"",OR(_Dados!$A$79=_Dados!$A$62,_Dados!$A$79=_Dados!$A$65,_Dados!$A$79=_Dados!$A$67,_Dados!$A$79=_Dados!$A$68,_Dados!$A$79=_Dados!$A$70,_Dados!$A$79=_Dados!$A$71,_Dados!$A$79=_Dados!$A$72,_Dados!$A$79=_Dados!$A$73)),"VERDADEIRO", AND(F89=_Dados!$A$63,_Dados!$A$79<>"",AND(_Dados!$A$79<>_Dados!$A$61,_Dados!$A$79<>_Dados!$A$62,_Dados!$A$79<>_Dados!$A$68)),"VERDADEIRO", AND(F89=_Dados!$A$64,_Dados!$A$79<>"",AND(_Dados!$A$79<>_Dados!$A$60,_Dados!$A$79<>_Dados!$A$62,_Dados!$A$79<>_Dados!$A$67)),"VERDADEIRO", AND(F89=_Dados!$A$65,_Dados!$A$79<>"",AND(_Dados!$A$79<>_Dados!$A$60,_Dados!$A$79<>_Dados!$A$61,_Dados!$A$79<>_Dados!$A$66)),"VERDADEIRO", AND(F89=_Dados!$A$66,_Dados!$A$79<>"",AND(_Dados!$A$79<>_Dados!$A$59,_Dados!$A$79<>_Dados!$A$61,_Dados!$A$79<>_Dados!$A$65)),"VERDADEIRO", AND(F89=_Dados!$A$67,_Dados!$A$79<>"",AND(_Dados!$A$79<>_Dados!$A$59,_Dados!$A$79<>_Dados!$A$61,_Dados!$A$79<>_Dados!$A$64)),"VERDADEIRO", AND(F89=_Dados!$A$68,_Dados!$A$79<>"",AND(_Dados!$A$79<>_Dados!$A$59,_Dados!$A$79<>_Dados!$A$60,_Dados!$A$79<>_Dados!$A$63)),"VERDADEIRO", AND(F89=_Dados!$A$69,_Dados!$A$79<>"",_Dados!$A$79<>_Dados!$A$62),"VERDADEIRO", AND(F89=_Dados!$A$70,_Dados!$A$79<>"",_Dados!$A$79<>_Dados!$A$61),"VERDADEIRO", AND(F89=_Dados!$A$71,_Dados!$A$79<>"",_Dados!$A$79<>_Dados!$A$60),"VERDADEIRO", AND(F89=_Dados!$A$72,_Dados!$A$79<>"",_Dados!$A$79<>_Dados!$A$59),"VERDADEIRO", AND(F89=_Dados!$A$73,_Dados!$A$79<>""),"VERDADEIRO"),"FALSO") -> FALSO | O89: Não | P89: 0 | Q89: 0
A90: 71 | B90: Social | C90: Saúde, segurança e condições de trabalho | D90: Divulga, pelo menos anualmente, o número de paralisações de trabalhadores com duração de um turno completo ou mais? | E90: Satisfatório | F90: Implementação; Operação | J90: =IFERROR( VLOOKUP( C90,_Dados!B:F, MATCH( IF( AND(_Dados!$A$79<>_Dados!$A$59,_Dados!$A$79<>_Dados!$A$60,_Dados!$A$79<>_Dados!$A$61,_Dados!$A$79<>_Dados!$A$62), _Dados!$C$17,_Dados!$A$79), _Dados!B$17:F$17,0), 0), "") -> 2 | K90: =IFERROR(VLOOKUP(E90,_Dados!A:B,2,0),"") -> 1 | L90: =IFERROR(VLOOKUP(G90,_Dados!A:B,2,0),"") ->  | M90: VERDADEIRO | N90: =IFERROR(_xlfn.IFS( AND(F90=_Dados!$A$59,_Dados!$A$79<>"",OR(_Dados!$A$79=_Dados!$A$59,_Dados!$A$79=_Dados!$A$63,_Dados!$A$79=_Dados!$A$64,_Dados!$A$79=_Dados!$A$65,_Dados!$A$79=_Dados!$A$69,_Dados!$A$79=_Dados!$A$70,_Dados!$A$79=_Dados!$A$71,_Dados!$A$79=_Dados!$A$73)),"VERDADEIRO", AND(F90=_Dados!$A$60,_Dados!$A$79<>"",OR(_Dados!$A$79=_Dados!$A$60,_Dados!$A$79=_Dados!$A$63,_Dados!$A$79=_Dados!$A$66,_Dados!$A$79=_Dados!$A$67,_Dados!$A$79=_Dados!$A$69,_Dados!$A$79=_Dados!$A$70,_Dados!$A$79=_Dados!$A$72,_Dados!$A$79=_Dados!$A$73)),"VERDADEIRO", AND(F90=_Dados!$A$61,_Dados!$A$79<>"",OR(_Dados!$A$79=_Dados!$A$61,_Dados!$A$79=_Dados!$A$64,_Dados!$A$79=_Dados!$A$66,_Dados!$A$79=_Dados!$A$68,_Dados!$A$79=_Dados!$A$69,_Dados!$A$79=_Dados!$A$71,_Dados!$A$79=_Dados!$A$72,_Dados!$A$79=_Dados!$A$73)),"VERDADEIRO", AND(F90=_Dados!$A$62,_Dados!$A$79<>"",OR(_Dados!$A$79=_Dados!$A$62,_Dados!$A$79=_Dados!$A$65,_Dados!$A$79=_Dados!$A$67,_Dados!$A$79=_Dados!$A$68,_Dados!$A$79=_Dados!$A$70,_Dados!$A$79=_Dados!$A$71,_Dados!$A$79=_Dados!$A$72,_Dados!$A$79=_Dados!$A$73)),"VERDADEIRO", AND(F90=_Dados!$A$63,_Dados!$A$79<>"",AND(_Dados!$A$79<>_Dados!$A$61,_Dados!$A$79<>_Dados!$A$62,_Dados!$A$79<>_Dados!$A$68)),"VERDADEIRO", AND(F90=_Dados!$A$64,_Dados!$A$79<>"",AND(_Dados!$A$79<>_Dados!$A$60,_Dados!$A$79<>_Dados!$A$62,_Dados!$A$79<>_Dados!$A$67)),"VERDADEIRO", AND(F90=_Dados!$A$65,_Dados!$A$79<>"",AND(_Dados!$A$79<>_Dados!$A$60,_Dados!$A$79<>_Dados!$A$61,_Dados!$A$79<>_Dados!$A$66)),"VERDADEIRO", AND(F90=_Dados!$A$66,_Dados!$A$79<>"",AND(_Dados!$A$79<>_Dados!$A$59,_Dados!$A$79<>_Dados!$A$61,_Dados!$A$79<>_Dados!$A$65)),"VERDADEIRO", AND(F90=_Dados!$A$67,_Dados!$A$79<>"",AND(_Dados!$A$79<>_Dados!$A$59,_Dados!$A$79<>_Dados!$A$61,_Dados!$A$79<>_Dados!$A$64)),"VERDADEIRO", AND(F90=_Dados!$A$68,_Dados!$A$79<>"",AND(_Dados!$A$79<>_Dados!$A$59,_Dados!$A$79<>_Dados!$A$60,_Dados!$A$79<>_Dados!$A$63)),"VERDADEIRO", AND(F90=_Dados!$A$69,_Dados!$A$79<>"",_Dados!$A$79<>_Dados!$A$62),"VERDADEIRO", AND(F90=_Dados!$A$70,_Dados!$A$79<>"",_Dados!$A$79<>_Dados!$A$61),"VERDADEIRO", AND(F90=_Dados!$A$71,_Dados!$A$79<>"",_Dados!$A$79<>_Dados!$A$60),"VERDADEIRO", AND(F90=_Dados!$A$72,_Dados!$A$79<>"",_Dados!$A$79<>_Dados!$A$59),"VERDADEIRO", AND(F90=_Dados!$A$73,_Dados!$A$79<>""),"VERDADEIRO"),"FALSO") -> FALSO | O90: Não | P90: 0 | Q90: 0
A91: 72 | B91: Social | C91: Saúde, segurança e condições de trabalho | D91: Divulga, pelo menos anualmente, o número total agregado de acidentes e incidentes rodoviários envolvendo seus funcionários diretos e / ou contratados durante o horário de trabalho? | E91: Satisfatório | F91: Implementação; Operação | J91: =IFERROR( VLOOKUP( C91,_Dados!B:F, MATCH( IF( AND(_Dados!$A$79<>_Dados!$A$59,_Dados!$A$79<>_Dados!$A$60,_Dados!$A$79<>_Dados!$A$61,_Dados!$A$79<>_Dados!$A$62), _Dados!$C$17,_Dados!$A$79), _Dados!B$17:F$17,0), 0), "") -> 2 | K91: =IFERROR(VLOOKUP(E91,_Dados!A:B,2,0),"") -> 1 | L91: =IFERROR(VLOOKUP(G91,_Dados!A:B,2,0),"") ->  | M91: VERDADEIRO | N91: =IFERROR(_xlfn.IFS( AND(F91=_Dados!$A$59,_Dados!$A$79<>"",OR(_Dados!$A$79=_Dados!$A$59,_Dados!$A$79=_Dados!$A$63,_Dados!$A$79=_Dados!$A$64,_Dados!$A$79=_Dados!$A$65,_Dados!$A$79=_Dados!$A$69,_Dados!$A$79=_Dados!$A$70,_Dados!$A$79=_Dados!$A$71,_Dados!$A$79=_Dados!$A$73)),"VERDADEIRO", AND(F91=_Dados!$A$60,_Dados!$A$79<>"",OR(_Dados!$A$79=_Dados!$A$60,_Dados!$A$79=_Dados!$A$63,_Dados!$A$79=_Dados!$A$66,_Dados!$A$79=_Dados!$A$67,_Dados!$A$79=_Dados!$A$69,_Dados!$A$79=_Dados!$A$70,_Dados!$A$79=_Dados!$A$72,_Dados!$A$79=_Dados!$A$73)),"VERDADEIRO", AND(F91=_Dados!$A$61,_Dados!$A$79<>"",OR(_Dados!$A$79=_Dados!$A$61,_Dados!$A$79=_Dados!$A$64,_Dados!$A$79=_Dados!$A$66,_Dados!$A$79=_Dados!$A$68,_Dados!$A$79=_Dados!$A$69,_Dados!$A$79=_Dados!$A$71,_Dados!$A$79=_Dados!$A$72,_Dados!$A$79=_Dados!$A$73)),"VERDADEIRO", AND(F91=_Dados!$A$62,_Dados!$A$79<>"",OR(_Dados!$A$79=_Dados!$A$62,_Dados!$A$79=_Dados!$A$65,_Dados!$A$79=_Dados!$A$67,_Dados!$A$79=_Dados!$A$68,_Dados!$A$79=_Dados!$A$70,_Dados!$A$79=_Dados!$A$71,_Dados!$A$79=_Dados!$A$72,_Dados!$A$79=_Dados!$A$73)),"VERDADEIRO", AND(F91=_Dados!$A$63,_Dados!$A$79<>"",AND(_Dados!$A$79<>_Dados!$A$61,_Dados!$A$79<>_Dados!$A$62,_Dados!$A$79<>_Dados!$A$68)),"VERDADEIRO", AND(F91=_Dados!$A$64,_Dados!$A$79<>"",AND(_Dados!$A$79<>_Dados!$A$60,_Dados!$A$79<>_Dados!$A$62,_Dados!$A$79<>_Dados!$A$67)),"VERDADEIRO", AND(F91=_Dados!$A$65,_Dados!$A$79<>"",AND(_Dados!$A$79<>_Dados!$A$60,_Dados!$A$79<>_Dados!$A$61,_Dados!$A$79<>_Dados!$A$66)),"VERDADEIRO", AND(F91=_Dados!$A$66,_Dados!$A$79<>"",AND(_Dados!$A$79<>_Dados!$A$59,_Dados!$A$79<>_Dados!$A$61,_Dados!$A$79<>_Dados!$A$65)),"VERDADEIRO", AND(F91=_Dados!$A$67,_Dados!$A$79<>"",AND(_Dados!$A$79<>_Dados!$A$59,_Dados!$A$79<>_Dados!$A$61,_Dados!$A$79<>_Dados!$A$64)),"VERDADEIRO", AND(F91=_Dados!$A$68,_Dados!$A$79<>"",AND(_Dados!$A$79<>_Dados!$A$59,_Dados!$A$79<>_Dados!$A$60,_Dados!$A$79<>_Dados!$A$63)),"VERDADEIRO", AND(F91=_Dados!$A$69,_Dados!$A$79<>"",_Dados!$A$79<>_Dados!$A$62),"VERDADEIRO", AND(F91=_Dados!$A$70,_Dados!$A$79<>"",_Dados!$A$79<>_Dados!$A$61),"VERDADEIRO", AND(F91=_Dados!$A$71,_Dados!$A$79<>"",_Dados!$A$79<>_Dados!$A$60),"VERDADEIRO", AND(F91=_Dados!$A$72,_Dados!$A$79<>"",_Dados!$A$79<>_Dados!$A$59),"VERDADEIRO", AND(F91=_Dados!$A$73,_Dados!$A$79<>""),"VERDADEIRO"),"FALSO") -> FALSO | O91: Não | P91: 0 | Q91: 0
A92: 73 | B92: Social | C92: Saúde, segurança e condições de trabalho | D92: Divulga, pelo menos anualmente, o percentual de seus empregados na força de trabalho ativa que foram cobertos por acordos de negociação coletiva? | E92: Satisfatório | F92: Implementação; Operação | J92: =IFERROR( VLOOKUP( C92,_Dados!B:F, MATCH( IF( AND(_Dados!$A$79<>_Dados!$A$59,_Dados!$A$79<>_Dados!$A$60,_Dados!$A$79<>_Dados!$A$61,_Dados!$A$79<>_Dados!$A$62), _Dados!$C$17,_Dados!$A$79), _Dados!B$17:F$17,0), 0), "") -> 2 | K92: =IFERROR(VLOOKUP(E92,_Dados!A:B,2,0),"") -> 1 | L92: =IFERROR(VLOOKUP(G92,_Dados!A:B,2,0),"") ->  | M92: VERDADEIRO | N92: =IFERROR(_xlfn.IFS( AND(F92=_Dados!$A$59,_Dados!$A$79<>"",OR(_Dados!$A$79=_Dados!$A$59,_Dados!$A$79=_Dados!$A$63,_Dados!$A$79=_Dados!$A$64,_Dados!$A$79=_Dados!$A$65,_Dados!$A$79=_Dados!$A$69,_Dados!$A$79=_Dados!$A$70,_Dados!$A$79=_Dados!$A$71,_Dados!$A$79=_Dados!$A$73)),"VERDADEIRO", AND(F92=_Dados!$A$60,_Dados!$A$79<>"",OR(_Dados!$A$79=_Dados!$A$60,_Dados!$A$79=_Dados!$A$63,_Dados!$A$79=_Dados!$A$66,_Dados!$A$79=_Dados!$A$67,_Dados!$A$79=_Dados!$A$69,_Dados!$A$79=_Dados!$A$70,_Dados!$A$79=_Dados!$A$72,_Dados!$A$79=_Dados!$A$73)),"VERDADEIRO", AND(F92=_Dados!$A$61,_Dados!$A$79<>"",OR(_Dados!$A$79=_Dados!$A$61,_Dados!$A$79=_Dados!$A$64,_Dados!$A$79=_Dados!$A$66,_Dados!$A$79=_Dados!$A$68,_Dados!$A$79=_Dados!$A$69,_Dados!$A$79=_Dados!$A$71,_Dados!$A$79=_Dados!$A$72,_Dados!$A$79=_Dados!$A$73)),"VERDADEIRO", AND(F92=_Dados!$A$62,_Dados!$A$79<>"",OR(_Dados!$A$79=_Dados!$A$62,_Dados!$A$79=_Dados!$A$65,_Dados!$A$79=_Dados!$A$67,_Dados!$A$79=_Dados!$A$68,_Dados!$A$79=_Dados!$A$70,_Dados!$A$79=_Dados!$A$71,_Dados!$A$79=_Dados!$A$72,_Dados!$A$79=_Dados!$A$73)),"VERDADEIRO", AND(F92=_Dados!$A$63,_Dados!$A$79<>"",AND(_Dados!$A$79<>_Dados!$A$61,_Dados!$A$79<>_Dados!$A$62,_Dados!$A$79<>_Dados!$A$68)),"VERDADEIRO", AND(F92=_Dados!$A$64,_Dados!$A$79<>"",AND(_Dados!$A$79<>_Dados!$A$60,_Dados!$A$79<>_Dados!$A$62,_Dados!$A$79<>_Dados!$A$67)),"VERDADEIRO", AND(F92=_Dados!$A$65,_Dados!$A$79<>"",AND(_Dados!$A$79<>_Dados!$A$60,_Dados!$A$79<>_Dados!$A$61,_Dados!$A$79<>_Dados!$A$66)),"VERDADEIRO", AND(F92=_Dados!$A$66,_Dados!$A$79<>"",AND(_Dados!$A$79<>_Dados!$A$59,_Dados!$A$79<>_Dados!$A$61,_Dados!$A$79<>_Dados!$A$65)),"VERDADEIRO", AND(F92=_Dados!$A$67,_Dados!$A$79<>"",AND(_Dados!$A$79<>_Dados!$A$59,_Dados!$A$79<>_Dados!$A$61,_Dados!$A$79<>_Dados!$A$64)),"VERDADEIRO", AND(F92=_Dados!$A$68,_Dados!$A$79<>"",AND(_Dados!$A$79<>_Dados!$A$59,_Dados!$A$79<>_Dados!$A$60,_Dados!$A$79<>_Dados!$A$63)),"VERDADEIRO", AND(F92=_Dados!$A$69,_Dados!$A$79<>"",_Dados!$A$79<>_Dados!$A$62),"VERDADEIRO", AND(F92=_Dados!$A$70,_Dados!$A$79<>"",_Dados!$A$79<>_Dados!$A$61),"VERDADEIRO", AND(F92=_Dados!$A$71,_Dados!$A$79<>"",_Dados!$A$79<>_Dados!$A$60),"VERDADEIRO", AND(F92=_Dados!$A$72,_Dados!$A$79<>"",_Dados!$A$79<>_Dados!$A$59),"VERDADEIRO", AND(F92=_Dados!$A$73,_Dados!$A$79<>""),"VERDADEIRO"),"FALSO") -> FALSO | O92: Não | P92: 0 | Q92: 0
A93: 74 | B93: Social | C93: Saúde, segurança e condições de trabalho | D93: Divulga, pelo menos anualmente, sua taxa de frequência de quase acidente (NMFR) para quase acidentes relacionados ao trabalho? | E93: Satisfatório | F93: Implementação; Operação | J93: =IFERROR( VLOOKUP( C93,_Dados!B:F, MATCH( IF( AND(_Dados!$A$79<>_Dados!$A$59,_Dados!$A$79<>_Dados!$A$60,_Dados!$A$79<>_Dados!$A$61,_Dados!$A$79<>_Dados!$A$62), _Dados!$C$17,_Dados!$A$79), _Dados!B$17:F$17,0), 0), "") -> 2 | K93: =IFERROR(VLOOKUP(E93,_Dados!A:B,2,0),"") -> 1 | L93: =IFERROR(VLOOKUP(G93,_Dados!A:B,2,0),"") ->  | M93: VERDADEIRO | N93: =IFERROR(_xlfn.IFS( AND(F93=_Dados!$A$59,_Dados!$A$79<>"",OR(_Dados!$A$79=_Dados!$A$59,_Dados!$A$79=_Dados!$A$63,_Dados!$A$79=_Dados!$A$64,_Dados!$A$79=_Dados!$A$65,_Dados!$A$79=_Dados!$A$69,_Dados!$A$79=_Dados!$A$70,_Dados!$A$79=_Dados!$A$71,_Dados!$A$79=_Dados!$A$73)),"VERDADEIRO", AND(F93=_Dados!$A$60,_Dados!$A$79<>"",OR(_Dados!$A$79=_Dados!$A$60,_Dados!$A$79=_Dados!$A$63,_Dados!$A$79=_Dados!$A$66,_Dados!$A$79=_Dados!$A$67,_Dados!$A$79=_Dados!$A$69,_Dados!$A$79=_Dados!$A$70,_Dados!$A$79=_Dados!$A$72,_Dados!$A$79=_Dados!$A$73)),"VERDADEIRO", AND(F93=_Dados!$A$61,_Dados!$A$79<>"",OR(_Dados!$A$79=_Dados!$A$61,_Dados!$A$79=_Dados!$A$64,_Dados!$A$79=_Dados!$A$66,_Dados!$A$79=_Dados!$A$68,_Dados!$A$79=_Dados!$A$69,_Dados!$A$79=_Dados!$A$71,_Dados!$A$79=_Dados!$A$72,_Dados!$A$79=_Dados!$A$73)),"VERDADEIRO", AND(F93=_Dados!$A$62,_Dados!$A$79<>"",OR(_Dados!$A$79=_Dados!$A$62,_Dados!$A$79=_Dados!$A$65,_Dados!$A$79=_Dados!$A$67,_Dados!$A$79=_Dados!$A$68,_Dados!$A$79=_Dados!$A$70,_Dados!$A$79=_Dados!$A$71,_Dados!$A$79=_Dados!$A$72,_Dados!$A$79=_Dados!$A$73)),"VERDADEIRO", AND(F93=_Dados!$A$63,_Dados!$A$79<>"",AND(_Dados!$A$79<>_Dados!$A$61,_Dados!$A$79<>_Dados!$A$62,_Dados!$A$79<>_Dados!$A$68)),"VERDADEIRO", AND(F93=_Dados!$A$64,_Dados!$A$79<>"",AND(_Dados!$A$79<>_Dados!$A$60,_Dados!$A$79<>_Dados!$A$62,_Dados!$A$79<>_Dados!$A$67)),"VERDADEIRO", AND(F93=_Dados!$A$65,_Dados!$A$79<>"",AND(_Dados!$A$79<>_Dados!$A$60,_Dados!$A$79<>_Dados!$A$61,_Dados!$A$79<>_Dados!$A$66)),"VERDADEIRO", AND(F93=_Dados!$A$66,_Dados!$A$79<>"",AND(_Dados!$A$79<>_Dados!$A$59,_Dados!$A$79<>_Dados!$A$61,_Dados!$A$79<>_Dados!$A$65)),"VERDADEIRO", AND(F93=_Dados!$A$67,_Dados!$A$79<>"",AND(_Dados!$A$79<>_Dados!$A$59,_Dados!$A$79<>_Dados!$A$61,_Dados!$A$79<>_Dados!$A$64)),"VERDADEIRO", AND(F93=_Dados!$A$68,_Dados!$A$79<>"",AND(_Dados!$A$79<>_Dados!$A$59,_Dados!$A$79<>_Dados!$A$60,_Dados!$A$79<>_Dados!$A$63)),"VERDADEIRO", AND(F93=_Dados!$A$69,_Dados!$A$79<>"",_Dados!$A$79<>_Dados!$A$62),"VERDADEIRO", AND(F93=_Dados!$A$70,_Dados!$A$79<>"",_Dados!$A$79<>_Dados!$A$61),"VERDADEIRO", AND(F93=_Dados!$A$71,_Dados!$A$79<>"",_Dados!$A$79<>_Dados!$A$60),"VERDADEIRO", AND(F93=_Dados!$A$72,_Dados!$A$79<>"",_Dados!$A$79<>_Dados!$A$59),"VERDADEIRO", AND(F93=_Dados!$A$73,_Dados!$A$79<>""),"VERDADEIRO"),"FALSO") -> FALSO | O93: Não | P93: 0 | Q93: 0
A94: 75 | B94: Social | C94: Saúde, segurança e condições de trabalho | D94: Divulga, pelo menos anualmente, sua taxa de mortalidade para mortes relacionadas ao trabalho? | E94: Satisfatório | F94: Implementação; Operação | J94: =IFERROR( VLOOKUP( C94,_Dados!B:F, MATCH( IF( AND(_Dados!$A$79<>_Dados!$A$59,_Dados!$A$79<>_Dados!$A$60,_Dados!$A$79<>_Dados!$A$61,_Dados!$A$79<>_Dados!$A$62), _Dados!$C$17,_Dados!$A$79), _Dados!B$17:F$17,0), 0), "") -> 2 | K94: =IFERROR(VLOOKUP(E94,_Dados!A:B,2,0),"") -> 1 | L94: =IFERROR(VLOOKUP(G94,_Dados!A:B,2,0),"") ->  | M94: VERDADEIRO | N94: =IFERROR(_xlfn.IFS( AND(F94=_Dados!$A$59,_Dados!$A$79<>"",OR(_Dados!$A$79=_Dados!$A$59,_Dados!$A$79=_Dados!$A$63,_Dados!$A$79=_Dados!$A$64,_Dados!$A$79=_Dados!$A$65,_Dados!$A$79=_Dados!$A$69,_Dados!$A$79=_Dados!$A$70,_Dados!$A$79=_Dados!$A$71,_Dados!$A$79=_Dados!$A$73)),"VERDADEIRO", AND(F94=_Dados!$A$60,_Dados!$A$79<>"",OR(_Dados!$A$79=_Dados!$A$60,_Dados!$A$79=_Dados!$A$63,_Dados!$A$79=_Dados!$A$66,_Dados!$A$79=_Dados!$A$67,_Dados!$A$79=_Dados!$A$69,_Dados!$A$79=_Dados!$A$70,_Dados!$A$79=_Dados!$A$72,_Dados!$A$79=_Dados!$A$73)),"VERDADEIRO", AND(F94=_Dados!$A$61,_Dados!$A$79<>"",OR(_Dados!$A$79=_Dados!$A$61,_Dados!$A$79=_Dados!$A$64,_Dados!$A$79=_Dados!$A$66,_Dados!$A$79=_Dados!$A$68,_Dados!$A$79=_Dados!$A$69,_Dados!$A$79=_Dados!$A$71,_Dados!$A$79=_Dados!$A$72,_Dados!$A$79=_Dados!$A$73)),"VERDADEIRO", AND(F94=_Dados!$A$62,_Dados!$A$79<>"",OR(_Dados!$A$79=_Dados!$A$62,_Dados!$A$79=_Dados!$A$65,_Dados!$A$79=_Dados!$A$67,_Dados!$A$79=_Dados!$A$68,_Dados!$A$79=_Dados!$A$70,_Dados!$A$79=_Dados!$A$71,_Dados!$A$79=_Dados!$A$72,_Dados!$A$79=_Dados!$A$73)),"VERDADEIRO", AND(F94=_Dados!$A$63,_Dados!$A$79<>"",AND(_Dados!$A$79<>_Dados!$A$61,_Dados!$A$79<>_Dados!$A$62,_Dados!$A$79<>_Dados!$A$68)),"VERDADEIRO", AND(F94=_Dados!$A$64,_Dados!$A$79<>"",AND(_Dados!$A$79<>_Dados!$A$60,_Dados!$A$79<>_Dados!$A$62,_Dados!$A$79<>_Dados!$A$67)),"VERDADEIRO", AND(F94=_Dados!$A$65,_Dados!$A$79<>"",AND(_Dados!$A$79<>_Dados!$A$60,_Dados!$A$79<>_Dados!$A$61,_Dados!$A$79<>_Dados!$A$66)),"VERDADEIRO", AND(F94=_Dados!$A$66,_Dados!$A$79<>"",AND(_Dados!$A$79<>_Dados!$A$59,_Dados!$A$79<>_Dados!$A$61,_Dados!$A$79<>_Dados!$A$65)),"VERDADEIRO", AND(F94=_Dados!$A$67,_Dados!$A$79<>"",AND(_Dados!$A$79<>_Dados!$A$59,_Dados!$A$79<>_Dados!$A$61,_Dados!$A$79<>_Dados!$A$64)),"VERDADEIRO", AND(F94=_Dados!$A$68,_Dados!$A$79<>"",AND(_Dados!$A$79<>_Dados!$A$59,_Dados!$A$79<>_Dados!$A$60,_Dados!$A$79<>_Dados!$A$63)),"VERDADEIRO", AND(F94=_Dados!$A$69,_Dados!$A$79<>"",_Dados!$A$79<>_Dados!$A$62),"VERDADEIRO", AND(F94=_Dados!$A$70,_Dados!$A$79<>"",_Dados!$A$79<>_Dados!$A$61),"VERDADEIRO", AND(F94=_Dados!$A$71,_Dados!$A$79<>"",_Dados!$A$79<>_Dados!$A$60),"VERDADEIRO", AND(F94=_Dados!$A$72,_Dados!$A$79<>"",_Dados!$A$79<>_Dados!$A$59),"VERDADEIRO", AND(F94=_Dados!$A$73,_Dados!$A$79<>""),"VERDADEIRO"),"FALSO") -> FALSO | O94: Não | P94: 0 | Q94: 0
A95: 76 | B95: Social | C95: Saúde, segurança e condições de trabalho | D95: Divulga, pelo menos anualmente, sua taxa total de incidentes registráveis (TRIR) para lesões e doenças relacionadas ao trabalho? | E95: Satisfatório | F95: Implementação; Operação | J95: =IFERROR( VLOOKUP( C95,_Dados!B:F, MATCH( IF( AND(_Dados!$A$79<>_Dados!$A$59,_Dados!$A$79<>_Dados!$A$60,_Dados!$A$79<>_Dados!$A$61,_Dados!$A$79<>_Dados!$A$62), _Dados!$C$17,_Dados!$A$79), _Dados!B$17:F$17,0), 0), "") -> 2 | K95: =IFERROR(VLOOKUP(E95,_Dados!A:B,2,0),"") -> 1 | L95: =IFERROR(VLOOKUP(G95,_Dados!A:B,2,0),"") ->  | M95: VERDADEIRO | N95: =IFERROR(_xlfn.IFS( AND(F95=_Dados!$A$59,_Dados!$A$79<>"",OR(_Dados!$A$79=_Dados!$A$59,_Dados!$A$79=_Dados!$A$63,_Dados!$A$79=_Dados!$A$64,_Dados!$A$79=_Dados!$A$65,_Dados!$A$79=_Dados!$A$69,_Dados!$A$79=_Dados!$A$70,_Dados!$A$79=_Dados!$A$71,_Dados!$A$79=_Dados!$A$73)),"VERDADEIRO", AND(F95=_Dados!$A$60,_Dados!$A$79<>"",OR(_Dados!$A$79=_Dados!$A$60,_Dados!$A$79=_Dados!$A$63,_Dados!$A$79=_Dados!$A$66,_Dados!$A$79=_Dados!$A$67,_Dados!$A$79=_Dados!$A$69,_Dados!$A$79=_Dados!$A$70,_Dados!$A$79=_Dados!$A$72,_Dados!$A$79=_Dados!$A$73)),"VERDADEIRO", AND(F95=_Dados!$A$61,_Dados!$A$79<>"",OR(_Dados!$A$79=_Dados!$A$61,_Dados!$A$79=_Dados!$A$64,_Dados!$A$79=_Dados!$A$66,_Dados!$A$79=_Dados!$A$68,_Dados!$A$79=_Dados!$A$69,_Dados!$A$79=_Dados!$A$71,_Dados!$A$79=_Dados!$A$72,_Dados!$A$79=_Dados!$A$73)),"VERDADEIRO", AND(F95=_Dados!$A$62,_Dados!$A$79<>"",OR(_Dados!$A$79=_Dados!$A$62,_Dados!$A$79=_Dados!$A$65,_Dados!$A$79=_Dados!$A$67,_Dados!$A$79=_Dados!$A$68,_Dados!$A$79=_Dados!$A$70,_Dados!$A$79=_Dados!$A$71,_Dados!$A$79=_Dados!$A$72,_Dados!$A$79=_Dados!$A$73)),"VERDADEIRO", AND(F95=_Dados!$A$63,_Dados!$A$79<>"",AND(_Dados!$A$79<>_Dados!$A$61,_Dados!$A$79<>_Dados!$A$62,_Dados!$A$79<>_Dados!$A$68)),"VERDADEIRO", AND(F95=_Dados!$A$64,_Dados!$A$79<>"",AND(_Dados!$A$79<>_Dados!$A$60,_Dados!$A$79<>_Dados!$A$62,_Dados!$A$79<>_Dados!$A$67)),"VERDADEIRO", AND(F95=_Dados!$A$65,_Dados!$A$79<>"",AND(_Dados!$A$79<>_Dados!$A$60,_Dados!$A$79<>_Dados!$A$61,_Dados!$A$79<>_Dados!$A$66)),"VERDADEIRO", AND(F95=_Dados!$A$66,_Dados!$A$79<>"",AND(_Dados!$A$79<>_Dados!$A$59,_Dados!$A$79<>_Dados!$A$61,_Dados!$A$79<>_Dados!$A$65)),"VERDADEIRO", AND(F95=_Dados!$A$67,_Dados!$A$79<>"",AND(_Dados!$A$79<>_Dados!$A$59,_Dados!$A$79<>_Dados!$A$61,_Dados!$A$79<>_Dados!$A$64)),"VERDADEIRO", AND(F95=_Dados!$A$68,_Dados!$A$79<>"",AND(_Dados!$A$79<>_Dados!$A$59,_Dados!$A$79<>_Dados!$A$60,_Dados!$A$79<>_Dados!$A$63)),"VERDADEIRO", AND(F95=_Dados!$A$69,_Dados!$A$79<>"",_Dados!$A$79<>_Dados!$A$62),"VERDADEIRO", AND(F95=_Dados!$A$70,_Dados!$A$79<>"",_Dados!$A$79<>_Dados!$A$61),"VERDADEIRO", AND(F95=_Dados!$A$71,_Dados!$A$79<>"",_Dados!$A$79<>_Dados!$A$60),"VERDADEIRO", AND(F95=_Dados!$A$72,_Dados!$A$79<>"",_Dados!$A$79<>_Dados!$A$59),"VERDADEIRO", AND(F95=_Dados!$A$73,_Dados!$A$79<>""),"VERDADEIRO"),"FALSO") -> FALSO | O95: Não | P95: 0 | Q95: 0
A96: 77.1 | B96: Social | C96: Saúde, segurança e condições de trabalho | D96: Possui procedimentos formalizados que promovam a saúde e segurança ocupacional durante todo o ciclo de vida do ativo, incluindo ações para difundir a existência do procedimento para seus colaboradores, parceiros comerciais e outras partes interessadas? | E96: Satisfatório | F96: Implementação; Operação | J96: =IFERROR( VLOOKUP( C96,_Dados!B:F, MATCH( IF( AND(_Dados!$A$79<>_Dados!$A$59,_Dados!$A$79<>_Dados!$A$60,_Dados!$A$79<>_Dados!$A$61,_Dados!$A$79<>_Dados!$A$62), _Dados!$C$17,_Dados!$A$79), _Dados!B$17:F$17,0), 0), "") -> 2 | K96: =IFERROR(VLOOKUP(E96,_Dados!A:B,2,0),"") -> 1 | L96: =IFERROR(VLOOKUP(G96,_Dados!A:B,2,0),"") ->  | M96: VERDADEIRO | N96: =IFERROR(_xlfn.IFS( AND(F96=_Dados!$A$59,_Dados!$A$79<>"",OR(_Dados!$A$79=_Dados!$A$59,_Dados!$A$79=_Dados!$A$63,_Dados!$A$79=_Dados!$A$64,_Dados!$A$79=_Dados!$A$65,_Dados!$A$79=_Dados!$A$69,_Dados!$A$79=_Dados!$A$70,_Dados!$A$79=_Dados!$A$71,_Dados!$A$79=_Dados!$A$73)),"VERDADEIRO", AND(F96=_Dados!$A$60,_Dados!$A$79<>"",OR(_Dados!$A$79=_Dados!$A$60,_Dados!$A$79=_Dados!$A$63,_Dados!$A$79=_Dados!$A$66,_Dados!$A$79=_Dados!$A$67,_Dados!$A$79=_Dados!$A$69,_Dados!$A$79=_Dados!$A$70,_Dados!$A$79=_Dados!$A$72,_Dados!$A$79=_Dados!$A$73)),"VERDADEIRO", AND(F96=_Dados!$A$61,_Dados!$A$79<>"",OR(_Dados!$A$79=_Dados!$A$61,_Dados!$A$79=_Dados!$A$64,_Dados!$A$79=_Dados!$A$66,_Dados!$A$79=_Dados!$A$68,_Dados!$A$79=_Dados!$A$69,_Dados!$A$79=_Dados!$A$71,_Dados!$A$79=_Dados!$A$72,_Dados!$A$79=_Dados!$A$73)),"VERDADEIRO", AND(F96=_Dados!$A$62,_Dados!$A$79<>"",OR(_Dados!$A$79=_Dados!$A$62,_Dados!$A$79=_Dados!$A$65,_Dados!$A$79=_Dados!$A$67,_Dados!$A$79=_Dados!$A$68,_Dados!$A$79=_Dados!$A$70,_Dados!$A$79=_Dados!$A$71,_Dados!$A$79=_Dados!$A$72,_Dados!$A$79=_Dados!$A$73)),"VERDADEIRO", AND(F96=_Dados!$A$63,_Dados!$A$79<>"",AND(_Dados!$A$79<>_Dados!$A$61,_Dados!$A$79<>_Dados!$A$62,_Dados!$A$79<>_Dados!$A$68)),"VERDADEIRO", AND(F96=_Dados!$A$64,_Dados!$A$79<>"",AND(_Dados!$A$79<>_Dados!$A$60,_Dados!$A$79<>_Dados!$A$62,_Dados!$A$79<>_Dados!$A$67)),"VERDADEIRO", AND(F96=_Dados!$A$65,_Dados!$A$79<>"",AND(_Dados!$A$79<>_Dados!$A$60,_Dados!$A$79<>_Dados!$A$61,_Dados!$A$79<>_Dados!$A$66)),"VERDADEIRO", AND(F96=_Dados!$A$66,_Dados!$A$79<>"",AND(_Dados!$A$79<>_Dados!$A$59,_Dados!$A$79<>_Dados!$A$61,_Dados!$A$79<>_Dados!$A$65)),"VERDADEIRO", AND(F96=_Dados!$A$67,_Dados!$A$79<>"",AND(_Dados!$A$79<>_Dados!$A$59,_Dados!$A$79<>_Dados!$A$61,_Dados!$A$79<>_Dados!$A$64)),"VERDADEIRO", AND(F96=_Dados!$A$68,_Dados!$A$79<>"",AND(_Dados!$A$79<>_Dados!$A$59,_Dados!$A$79<>_Dados!$A$60,_Dados!$A$79<>_Dados!$A$63)),"VERDADEIRO", AND(F96=_Dados!$A$69,_Dados!$A$79<>"",_Dados!$A$79<>_Dados!$A$62),"VERDADEIRO", AND(F96=_Dados!$A$70,_Dados!$A$79<>"",_Dados!$A$79<>_Dados!$A$61),"VERDADEIRO", AND(F96=_Dados!$A$71,_Dados!$A$79<>"",_Dados!$A$79<>_Dados!$A$60),"VERDADEIRO", AND(F96=_Dados!$A$72,_Dados!$A$79<>"",_Dados!$A$79<>_Dados!$A$59),"VERDADEIRO", AND(F96=_Dados!$A$73,_Dados!$A$79<>""),"VERDADEIRO"),"FALSO") -> FALSO | O96: Não | P96: =IF(O96="Não",0,(0.5*((J96*K96*1)/(J96*K96*1)))) -> 0 | Q96: =_xlfn.IFS( O96="Não",0, G96="",999, G96="Não",0, G96="Sim",(J96*K96*L96)/(J96*K96*L96)*P96 ) -> 0
A97: 77.2 | B97: Social | C97: Saúde, segurança e condições de trabalho | D97: Esses procedimentos abrangem estruturas de alojamento e vestiários separados para homens e mulheres, e com segurança (iluminação, fechaduras) adequada? | E97: Satisfatório | F97: Implementação; Operação | J97: =IFERROR( VLOOKUP( C97,_Dados!B:F, MATCH( IF( AND(_Dados!$A$79<>_Dados!$A$59,_Dados!$A$79<>_Dados!$A$60,_Dados!$A$79<>_Dados!$A$61,_Dados!$A$79<>_Dados!$A$62), _Dados!$C$17,_Dados!$A$79), _Dados!B$17:F$17,0), 0), "") -> 2 | K97: =IFERROR(VLOOKUP(E97,_Dados!A:B,2,0),"") -> 1 | L97: =IFERROR(VLOOKUP(G97,_Dados!A:B,2,0),"") ->  | M97: VERDADEIRO | N97: =IFERROR(_xlfn.IFS( AND(F97=_Dados!$A$59,_Dados!$A$79<>"",OR(_Dados!$A$79=_Dados!$A$59,_Dados!$A$79=_Dados!$A$63,_Dados!$A$79=_Dados!$A$64,_Dados!$A$79=_Dados!$A$65,_Dados!$A$79=_Dados!$A$69,_Dados!$A$79=_Dados!$A$70,_Dados!$A$79=_Dados!$A$71,_Dados!$A$79=_Dados!$A$73)),"VERDADEIRO", AND(F97=_Dados!$A$60,_Dados!$A$79<>"",OR(_Dados!$A$79=_Dados!$A$60,_Dados!$A$79=_Dados!$A$63,_Dados!$A$79=_Dados!$A$66,_Dados!$A$79=_Dados!$A$67,_Dados!$A$79=_Dados!$A$69,_Dados!$A$79=_Dados!$A$70,_Dados!$A$79=_Dados!$A$72,_Dados!$A$79=_Dados!$A$73)),"VERDADEIRO", AND(F97=_Dados!$A$61,_Dados!$A$79<>"",OR(_Dados!$A$79=_Dados!$A$61,_Dados!$A$79=_Dados!$A$64,_Dados!$A$79=_Dados!$A$66,_Dados!$A$79=_Dados!$A$68,_Dados!$A$79=_Dados!$A$69,_Dados!$A$79=_Dados!$A$71,_Dados!$A$79=_Dados!$A$72,_Dados!$A$79=_Dados!$A$73)),"VERDADEIRO", AND(F97=_Dados!$A$62,_Dados!$A$79<>"",OR(_Dados!$A$79=_Dados!$A$62,_Dados!$A$79=_Dados!$A$65,_Dados!$A$79=_Dados!$A$67,_Dados!$A$79=_Dados!$A$68,_Dados!$A$79=_Dados!$A$70,_Dados!$A$79=_Dados!$A$71,_Dados!$A$79=_Dados!$A$72,_Dados!$A$79=_Dados!$A$73)),"VERDADEIRO", AND(F97=_Dados!$A$63,_Dados!$A$79<>"",AND(_Dados!$A$79<>_Dados!$A$61,_Dados!$A$79<>_Dados!$A$62,_Dados!$A$79<>_Dados!$A$68)),"VERDADEIRO", AND(F97=_Dados!$A$64,_Dados!$A$79<>"",AND(_Dados!$A$79<>_Dados!$A$60,_Dados!$A$79<>_Dados!$A$62,_Dados!$A$79<>_Dados!$A$67)),"VERDADEIRO", AND(F97=_Dados!$A$65,_Dados!$A$79<>"",AND(_Dados!$A$79<>_Dados!$A$60,_Dados!$A$79<>_Dados!$A$61,_Dados!$A$79<>_Dados!$A$66)),"VERDADEIRO", AND(F97=_Dados!$A$66,_Dados!$A$79<>"",AND(_Dados!$A$79<>_Dados!$A$59,_Dados!$A$79<>_Dados!$A$61,_Dados!$A$79<>_Dados!$A$65)),"VERDADEIRO", AND(F97=_Dados!$A$67,_Dados!$A$79<>"",AND(_Dados!$A$79<>_Dados!$A$59,_Dados!$A$79<>_Dados!$A$61,_Dados!$A$79<>_Dados!$A$64)),"VERDADEIRO", AND(F97=_Dados!$A$68,_Dados!$A$79<>"",AND(_Dados!$A$79<>_Dados!$A$59,_Dados!$A$79<>_Dados!$A$60,_Dados!$A$79<>_Dados!$A$63)),"VERDADEIRO", AND(F97=_Dados!$A$69,_Dados!$A$79<>"",_Dados!$A$79<>_Dados!$A$62),"VERDADEIRO", AND(F97=_Dados!$A$70,_Dados!$A$79<>"",_Dados!$A$79<>_Dados!$A$61),"VERDADEIRO", AND(F97=_Dados!$A$71,_Dados!$A$79<>"",_Dados!$A$79<>_Dados!$A$60),"VERDADEIRO", AND(F97=_Dados!$A$72,_Dados!$A$79<>"",_Dados!$A$79<>_Dados!$A$59),"VERDADEIRO", AND(F97=_Dados!$A$73,_Dados!$A$79<>""),"VERDADEIRO"),"FALSO") -> FALSO | O97: Não | P97: =IF(O97="Não",0,(0.25*((J97*K97*1)/(J97*K97*1)))) -> 0 | Q97: =_xlfn.IFS( O97="Não",0, G97="",999, G97="Não",0, G97="Sim",(J97*K97*L97)/(J97*K97*L97)*P97 ) -> 0
A98: 77.3 | B98: Social | C98: Saúde, segurança e condições de trabalho | D98: Esses procedimentos abrangem especificações e adequações dos Equipamentos de Proteção Individual (EPIs) para que sejam ajustáveis às necessidades de mulheres e outros grupos com eventuais necessidades distintas (em termos de tamanho e ergonomia, por exemplo)? | E98: Satisfatório | F98: Implementação; Operação | J98: =IFERROR( VLOOKUP( C98,_Dados!B:F, MATCH( IF( AND(_Dados!$A$79<>_Dados!$A$59,_Dados!$A$79<>_Dados!$A$60,_Dados!$A$79<>_Dados!$A$61,_Dados!$A$79<>_Dados!$A$62), _Dados!$C$17,_Dados!$A$79), _Dados!B$17:F$17,0), 0), "") -> 2 | K98: =IFERROR(VLOOKUP(E98,_Dados!A:B,2,0),"") -> 1 | L98: =IFERROR(VLOOKUP(G98,_Dados!A:B,2,0),"") ->  | M98: VERDADEIRO | N98: =IFERROR(_xlfn.IFS( AND(F98=_Dados!$A$59,_Dados!$A$79<>"",OR(_Dados!$A$79=_Dados!$A$59,_Dados!$A$79=_Dados!$A$63,_Dados!$A$79=_Dados!$A$64,_Dados!$A$79=_Dados!$A$65,_Dados!$A$79=_Dados!$A$69,_Dados!$A$79=_Dados!$A$70,_Dados!$A$79=_Dados!$A$71,_Dados!$A$79=_Dados!$A$73)),"VERDADEIRO", AND(F98=_Dados!$A$60,_Dados!$A$79<>"",OR(_Dados!$A$79=_Dados!$A$60,_Dados!$A$79=_Dados!$A$63,_Dados!$A$79=_Dados!$A$66,_Dados!$A$79=_Dados!$A$67,_Dados!$A$79=_Dados!$A$69,_Dados!$A$79=_Dados!$A$70,_Dados!$A$79=_Dados!$A$72,_Dados!$A$79=_Dados!$A$73)),"VERDADEIRO", AND(F98=_Dados!$A$61,_Dados!$A$79<>"",OR(_Dados!$A$79=_Dados!$A$61,_Dados!$A$79=_Dados!$A$64,_Dados!$A$79=_Dados!$A$66,_Dados!$A$79=_Dados!$A$68,_Dados!$A$79=_Dados!$A$69,_Dados!$A$79=_Dados!$A$71,_Dados!$A$79=_Dados!$A$72,_Dados!$A$79=_Dados!$A$73)),"VERDADEIRO", AND(F98=_Dados!$A$62,_Dados!$A$79<>"",OR(_Dados!$A$79=_Dados!$A$62,_Dados!$A$79=_Dados!$A$65,_Dados!$A$79=_Dados!$A$67,_Dados!$A$79=_Dados!$A$68,_Dados!$A$79=_Dados!$A$70,_Dados!$A$79=_Dados!$A$71,_Dados!$A$79=_Dados!$A$72,_Dados!$A$79=_Dados!$A$73)),"VERDADEIRO", AND(F98=_Dados!$A$63,_Dados!$A$79<>"",AND(_Dados!$A$79<>_Dados!$A$61,_Dados!$A$79<>_Dados!$A$62,_Dados!$A$79<>_Dados!$A$68)),"VERDADEIRO", AND(F98=_Dados!$A$64,_Dados!$A$79<>"",AND(_Dados!$A$79<>_Dados!$A$60,_Dados!$A$79<>_Dados!$A$62,_Dados!$A$79<>_Dados!$A$67)),"VERDADEIRO", AND(F98=_Dados!$A$65,_Dados!$A$79<>"",AND(_Dados!$A$79<>_Dados!$A$60,_Dados!$A$79<>_Dados!$A$61,_Dados!$A$79<>_Dados!$A$66)),"VERDADEIRO", AND(F98=_Dados!$A$66,_Dados!$A$79<>"",AND(_Dados!$A$79<>_Dados!$A$59,_Dados!$A$79<>_Dados!$A$61,_Dados!$A$79<>_Dados!$A$65)),"VERDADEIRO", AND(F98=_Dados!$A$67,_Dados!$A$79<>"",AND(_Dados!$A$79<>_Dados!$A$59,_Dados!$A$79<>_Dados!$A$61,_Dados!$A$79<>_Dados!$A$64)),"VERDADEIRO", AND(F98=_Dados!$A$68,_Dados!$A$79<>"",AND(_Dados!$A$79<>_Dados!$A$59,_Dados!$A$79<>_Dados!$A$60,_Dados!$A$79<>_Dados!$A$63)),"VERDADEIRO", AND(F98=_Dados!$A$69,_Dados!$A$79<>"",_Dados!$A$79<>_Dados!$A$62),"VERDADEIRO", AND(F98=_Dados!$A$70,_Dados!$A$79<>"",_Dados!$A$79<>_Dados!$A$61),"VERDADEIRO", AND(F98=_Dados!$A$71,_Dados!$A$79<>"",_Dados!$A$79<>_Dados!$A$60),"VERDADEIRO", AND(F98=_Dados!$A$72,_Dados!$A$79<>"",_Dados!$A$79<>_Dados!$A$59),"VERDADEIRO", AND(F98=_Dados!$A$73,_Dados!$A$79<>""),"VERDADEIRO"),"FALSO") -> FALSO | O98: Não | P98: =IF(O98="Não",0,(0.25*((J98*K98*1)/(J98*K98*1)))) -> 0 | Q98: =_xlfn.IFS( O98="Não",0, G98="",999, G98="Não",0, G98="Sim",(J98*K98*L98)/(J98*K98*L98)*P98 ) -> 0
A99: =A95+2 -> 78 | B99: Social | C99: Saúde, segurança e condições de trabalho | D99: Prevê mecanismos de reclamação e denúncia por meio dos quais os colaboradores (incluindo terceiros) possam expressar suas preocupações relacionadas às condições de trabalho, incluindo estratégias para informá-los a respeito da existência do mecanismo? | E99: Satisfatório | F99: Implementação; Operação | J99: =IFERROR( VLOOKUP( C99,_Dados!B:F, MATCH( IF( AND(_Dados!$A$79<>_Dados!$A$59,_Dados!$A$79<>_Dados!$A$60,_Dados!$A$79<>_Dados!$A$61,_Dados!$A$79<>_Dados!$A$62), _Dados!$C$17,_Dados!$A$79), _Dados!B$17:F$17,0), 0), "") -> 2 | K99: =IFERROR(VLOOKUP(E99,_Dados!A:B,2,0),"") -> 1 | L99: =IFERROR(VLOOKUP(G99,_Dados!A:B,2,0),"") ->  | M99: VERDADEIRO | N99: =IFERROR(_xlfn.IFS( AND(F99=_Dados!$A$59,_Dados!$A$79<>"",OR(_Dados!$A$79=_Dados!$A$59,_Dados!$A$79=_Dados!$A$63,_Dados!$A$79=_Dados!$A$64,_Dados!$A$79=_Dados!$A$65,_Dados!$A$79=_Dados!$A$69,_Dados!$A$79=_Dados!$A$70,_Dados!$A$79=_Dados!$A$71,_Dados!$A$79=_Dados!$A$73)),"VERDADEIRO", AND(F99=_Dados!$A$60,_Dados!$A$79<>"",OR(_Dados!$A$79=_Dados!$A$60,_Dados!$A$79=_Dados!$A$63,_Dados!$A$79=_Dados!$A$66,_Dados!$A$79=_Dados!$A$67,_Dados!$A$79=_Dados!$A$69,_Dados!$A$79=_Dados!$A$70,_Dados!$A$79=_Dados!$A$72,_Dados!$A$79=_Dados!$A$73)),"VERDADEIRO", AND(F99=_Dados!$A$61,_Dados!$A$79<>"",OR(_Dados!$A$79=_Dados!$A$61,_Dados!$A$79=_Dados!$A$64,_Dados!$A$79=_Dados!$A$66,_Dados!$A$79=_Dados!$A$68,_Dados!$A$79=_Dados!$A$69,_Dados!$A$79=_Dados!$A$71,_Dados!$A$79=_Dados!$A$72,_Dados!$A$79=_Dados!$A$73)),"VERDADEIRO", AND(F99=_Dados!$A$62,_Dados!$A$79<>"",OR(_Dados!$A$79=_Dados!$A$62,_Dados!$A$79=_Dados!$A$65,_Dados!$A$79=_Dados!$A$67,_Dados!$A$79=_Dados!$A$68,_Dados!$A$79=_Dados!$A$70,_Dados!$A$79=_Dados!$A$71,_Dados!$A$79=_Dados!$A$72,_Dados!$A$79=_Dados!$A$73)),"VERDADEIRO", AND(F99=_Dados!$A$63,_Dados!$A$79<>"",AND(_Dados!$A$79<>_Dados!$A$61,_Dados!$A$79<>_Dados!$A$62,_Dados!$A$79<>_Dados!$A$68)),"VERDADEIRO", AND(F99=_Dados!$A$64,_Dados!$A$79<>"",AND(_Dados!$A$79<>_Dados!$A$60,_Dados!$A$79<>_Dados!$A$62,_Dados!$A$79<>_Dados!$A$67)),"VERDADEIRO", AND(F99=_Dados!$A$65,_Dados!$A$79<>"",AND(_Dados!$A$79<>_Dados!$A$60,_Dados!$A$79<>_Dados!$A$61,_Dados!$A$79<>_Dados!$A$66)),"VERDADEIRO", AND(F99=_Dados!$A$66,_Dados!$A$79<>"",AND(_Dados!$A$79<>_Dados!$A$59,_Dados!$A$79<>_Dados!$A$61,_Dados!$A$79<>_Dados!$A$65)),"VERDADEIRO", AND(F99=_Dados!$A$67,_Dados!$A$79<>"",AND(_Dados!$A$79<>_Dados!$A$59,_Dados!$A$79<>_Dados!$A$61,_Dados!$A$79<>_Dados!$A$64)),"VERDADEIRO", AND(F99=_Dados!$A$68,_Dados!$A$79<>"",AND(_Dados!$A$79<>_Dados!$A$59,_Dados!$A$79<>_Dados!$A$60,_Dados!$A$79<>_Dados!$A$63)),"VERDADEIRO", AND(F99=_Dados!$A$69,_Dados!$A$79<>"",_Dados!$A$79<>_Dados!$A$62),"VERDADEIRO", AND(F99=_Dados!$A$70,_Dados!$A$79<>"",_Dados!$A$79<>_Dados!$A$61),"VERDADEIRO", AND(F99=_Dados!$A$71,_Dados!$A$79<>"",_Dados!$A$79<>_Dados!$A$60),"VERDADEIRO", AND(F99=_Dados!$A$72,_Dados!$A$79<>"",_Dados!$A$79<>_Dados!$A$59),"VERDADEIRO", AND(F99=_Dados!$A$73,_Dados!$A$79<>""),"VERDADEIRO"),"FALSO") -> FALSO | O99: Não | P99: =IF(O99="Não",0,J99*K99*1) -> 0 | Q99: =IFERROR(IF(O99="Não",0,J99*K99*L99),999) -> 0
